Workbook

Sheet Readme First
B2: Updated notes for the 2015 Exhibit 1
A4: 1 | B4: 2014 specifics in program budget detail sheets are greyed-out and represent the originally-filed budget amounts. They are not actual 2014 expenditures.
B5: "Original 2015 Budget" lines (in the detail sheets' horizontal tables) represent the 2015 amounts originally noted for 2015 in the 2014-2015 Biennial Conservation Plan.
A6: 2 | B6: Red tabs within this workbook indicate programs that are cancelled or are on hiatus.
A7: 3 | B7: Readers will note that some rows or columns are hidden in some worksheets. This is done to preserve links that were originally established in the 2014-2015 Exhibit 1.
B8: Deleting these rows or columns may have broken those links or affected roll-up totals.
A9: 4 | B9: Cells for major subtotals (total savings, total budget) are named for easier reference
C10: (Rather than a cell designation (such as "F34"), the cell is named; "SFWx_2014_totbudget_gas")
A11: 5 | B11: In the portfolio views, the Web Experience sub-totals (in the Portfolio Support section) are derived from the budget detail sheets,
B12: rather than the Sector View tabs.
A13: 6 | B13: All lines are coded with a reference, such as "aa" or "f". This makes conference discussions much easier.
A14: 7 | B14: Several programs, such as Single Family Existing and Customer Online Experience are comprised of sub-groupings on the Portfolio View page.
C15: Those sub-groups are color-coded and indented. Their totals add up to the grouping above.
C16: Some sub-groups also have a subtotal within; these are also indented and color-coded.
A17: 8 | B17: Single Family New Construction and Multifamily New Construction have been combined on the Portfolio views into Residential New Construction.
A18: 9 | B18: Program names, order number, and fuel type are noted in both the horizontal and vertical margins, providing a quick reference
B19: for readers, no matter where they are in the worksheet.
A20: 10 | B20: All formulae are visible, regardless of rounding tenets applied. In order to view all of the formulae in the worksheet, press "Control + ~" (the little squiggle
B21: next to the "1" key). That way, the reader doesn't need to hover over a cell. To get back to normal view, press the same key combination.
A22: 11 | B22: All two-year "totals" include the original 2014 and the updated 2015 figures. "Original 2015" figures are excluded from the calculation and
B23: are shown only for reference.
A24: 12 | B24: Green tabs indicate new detail sheets
A25: 13 | B25: 2015 overhead rates were adjusted from the estimated 69.6% presented in the 2014-2015 BCP to a now-current 70.7%.
A26: 14 | B26: Please note that most Residential program measure tables contain new data that is specific to 2015. The Residential Business-to-Business
B27: (Comprised of the Low Income Weatherization, Multifamily Existing and Multifamily New Construction programs) measure tables are ONLY
B28: 2015. This is due to the large number of measures used in each program.

Sheet Budget Category Descriptions
B1: Exhibit 1 Budget Category Definitions
B3: Cost Element | C3: Also referred to as a General Ledger account number, the cost element is the finest level of detail within PSE accounting systems. There are often many cost element numbers that "roll up" into a cost element segment. For instance, the overhead segment includes material OH, transportation OH, labor OH, etc. Employee/Office Expenses include travel, meals, lodging, parking, etc. Cost elements have a very specific connotation and are typically designed to meet a variety of accounting standards, such as FERC requirements. Therefore, in Exhibit 1, the term "cost element" is rarely used. The groupings that represent the budget allocations are most accurately listed in the below table.
B4: Order number(s) | C4: This is the main level of tracking expenditures and expenses in EES. Per FERC rules, all conservation order numbers start with a "1823nnnn", where "n" is some number. Cost elements apply to all order numbers (for instance, all conservation programs that offer incentives will have at least a labor, incentive and overhead cost element within the order number.
B5: Labor | C5: Energy Efficiency program staff labor. Average FTE cost including management assessments. This Budget Category group includes assessments from Major Accounts management, Resource Planning, Corporate Communications management, IT specialists and some building maintenance allocations.
B6: Marketing Labor | C6: Also Energy Efficiency staff labor, associated specifically with Marketing functions. Marketing allocates staffing according to program needs.
B7: Overhead | C7: Overhead--costs associated with primarily employee labor; benefits, for instance.
B8: Marketing | C8: Service and materials associated with the cost of printing program brochures, marketing pieces, advertising, banners, etc. Also includes marketing conducted by vendors and contractors.
B9: Employee/Office Expense | C9: Costs associated with EE staff attending events, employee training, conferences, business meals, business parking, ferry & bridge tolls, mileage incurred on employee automobiles, office supplies, phones, subscriptions, software/hardware, etc.
B10: Outside Services | C10: Contractors and vendors, such as PECI, Ecos, CostCo, EFI, etc. Legal expenses, technical services (CMS design, PSE.com web portals, etc.). These costs do NOT include brochure development, marketing pieces, (which are classified under MARKETING). These costs do NOT include incentives paid to customers by contractors.
B11: Materials | C11: Primarily tools, trade show equipment, etc.
B12: Miscellaneous | C12: This category should seldomly be used, and only expenses that cannot be classified under one of the above categories.
B13: Direct Benefit to Customer | C13: All costs associated with rebates, grants, remuneration, value-added services. PSE cost element # 62510000; Consumer Incentive Payments, is classified by the Accounting department as Miscellaneous. However, it is one of the primarily elements of Energy Efficiency's Direct Benefit to Customer (DBtC).
B14: Revenue (Enter as a negative) | C14: Any amount that PSE is paid by a customer, partner, municipality or outside entity.

Sheet Building the 2-year elec. tgt
F5: 2014-2015 Electric Portfolio Savings
F8: Description | G8: MWh | H8: aMW | I8: Comment | L8: Calculation
E10: a | F10: Total Biennial Potential | G10: =ROUND(551880,-1) -> 551880 | H10: =G10/8760 -> 63 | I10: IRP guidance (no behavior savings) | L10: Figure 5, Exhibit i
E12: b | F12: Plus legacy HER | G12: =ROUND(6422,-1) -> 6420 | H12: =G12/8760 -> 0.7328767123 | I12: 15,000 residential HER customers | L12: line l of Exhibit 1
E13: c | F13: Total "base" savings | G13: =ROUND(SUM(G10:G12),-1) -> 558300 | H13: =SUM(H10:H12) -> 63.73287671
E15: d | F15: Less NEEA | G15: =ROUND(72533,-1) -> 72530 | H15: =-G15/8760 -> -8.279680365 | I15: NEEA's adjusted TRS
E17: e | F17: Total Biennial EIA Target | G17: =ROUND(G13-G15,-1) -> 485770 | H17: =H13+H15 -> 55.45319635 | I17: Penalty: $50/MWh shortfall | L17: c - d ("base" - NEEA)
E19: f | F19: Decoupling Commitment (5% add) | G19: =ROUND(G13*0.05,-1) -> 27920 | H19: =H13*0.05 -> 3.186643836 | I19: 5% of "base" savings | L19: c * 0.05 ("base" * 5%)
E21: g | F21: Total savings subject to decoupling penalty | G21: =ROUND(G25-(G23+G15),-1) -> 513260 | H21: =SUM(H17:H20) -> 58.63984018 | I21: Penalty: $50/MWh shortfall | L21: e + f (EIA target + D.C.)
E23: h | F23: Individual Energy Reports (IER) | G23: =ROUND(35330,-1) -> 35330 | H23: =G23/8760 -> 4.033105023 | I23: New Residential + Small Business | L23: line ab of Exhibit 1
E25: i | F25: 2014-2015 Portfolio Total | G25: =ROUND(621120,-1) -> 621120 | H25: =G25/8760 -> 70.90410959 | I25: Biennial budget is built to achieve this | L25: c + f + h ("base" + D.C. + IER)
F31: D.C. = Decoupling Committment
F32: EIA = Energy Independence Act; referencing RCM 19.285, or "I-937".
F33: HER = Residential Home Energy Reports
F34: IER = Individual Energy Reports
F35: IRP = Integrated Resource Plan
F36: NEEA = Northwest Energy Efficiency Alliance
F37: TRS = Total Regional Savings

Sheet Portfolio--2015 only
F1: 2015-specific PSE Conservation Rider Savings Goals and Budgets
E2: Last revised: | F2: =NOW() -> 2015-04-09T11:43:14.940
B3: Ref # | C3: Schedule Nos. (Unless otherwise noted, applies to both electric and gas) | D3: Program Name | G3: MWh Savings | H3: Electric Rider Budget | I3: Therm Savings | J3: Gas Rider Budget | K3: Total Tariff Budget
D4: (All indented program or activity names are color-coded and comprise the totals of the above program or activity grouping. In some cases, there are sub-activities within another sub-grouping.)
D5: Residential Energy Management
B6: a | C6: 201 | D6: Low Income Weatherization | G6: =liw_elec_totsavings_2015/1000 -> 1571.21429 | H6: =liw_elec_totbudget_2015 -> 3318139.527 | I6: =liw_gas_totsavings_2015 -> 18814.63 | J6: =liw_gas_totbudget_2015 -> 268097.714 | K6: =H6+J6 -> 3586237.241
B7: b | C7: 214 | D7: Single Family Existing | G7: =SUM(G8:G17) -> 101368.273 | H7: =SUM(H8:H17) -> 31570261.2 | I7: =SUM(I8:I17) -> 1195516.5 | J7: =SUM(J8:J17) -> 5522570.555 | K7: =H7+J7 -> 37092831.75
B8: c | E8: Residential lighting | G8: =lighting_elec_totsavings_2015/1000 -> 66609.29726 | H8: =lighting_elec_totbudget_2015 -> 15379406.86 | K8: =H8+J8 -> 15379406.86
B9: d | E9: Space heat | G9: =sfspcht_elec_totsavings_2015/1000 -> 7841.91 | H9: =sfspht_elec_totbudget_2015 -> 4061640.392 | I9: =sfspcht_gas_totsavings_2015 -> 531650 | J9: =sfspcht_gas_totbudget_2015 -> 1595778.02 | K9: 5657418.412
B10: e | E10: Water heat | G10: =sfwtrht_elec_totsavings_2015/1000 -> 634.5 | H10: =sfwtrht_elec_totbudget_2015 -> 400630.2537 | I10: =sfwtrht_gas_totsavings_2015 -> 0 | J10: =sfwtrht_gas_totbudget_2015 -> 0 | K10: 400630.2537
B11: f | E11: HomePrint | G11: =homep_elec_totsavings_2015/1000 -> 3009 | H11: =homep_elec_totbudget_2015 -> 1811236.258 | I11: =homep_gas_totsavings_2015 -> 0 | J11: =homep_gas_totbudget_2015 -> 0 | K11: 1811236.258
B12: g | E12: Home Appliances | G12: =hmappl_elec_totsavings_2015/1000 -> 11386.446 | H12: =hmappl_elec_totbudget_2015 -> 6297052.5 | I12: =hmappl_gas_totsavings_2015 -> 32735.5 | K12: 6297052.5
B13: h | E13: Mobile Home Duct Sealing | G13: =MHDS_2015_totsavings_elec/1000 -> 4665.981 | H13: =MHDS_2015_totbudget_elec -> 1665636.11 | I13: =MHDS_2015_gas_totsavings -> 0 | J13: =MHDS_2015_gas_totbudget -> 0 | K13: 1665636.11
B14: i | E14: Web-Enabled Thermostats | I14: =WebTstat_2015_gas_totsavings -> 54000 | J14: =WebTstat_2015_gas_totbudget -> 323442.5 | K14: 323442.5
B15: j | E15: Showerheads | G15: =shwrhd_elec_totsavings_2015/1000 -> 4138.68 | H15: =shwrhd_elec_totbudget_2015 -> 574709.5 | I15: =shwrhd_gas_totsavings_2015 -> 145116 | J15: =shwrhd_gas_totbudget_2015 -> 387114.5 | K15: =H15+J15 -> 961824
B16: k | E16: Weatherization | G16: =sfwx_elec_totsavings_2015/1000+SFWx_ARRA_Totsavings_2015_Elec/1000 -> 2609.95871 | H16: =sfwx_elec_totbudget_2015+SFWx_ARRA_Totbudget_2015_elec -> 1227723.821 | I16: =sfwx_gas_totsavings_2015 -> 432015 | J16: =sfwx_gas_totbudget_2015 -> 3171544.919 | K16: 4399268.74
B17: l | E17: Home Energy Reports | G17: =hmenrgyrpts_elec_totsavings_2015/1000 -> 472.5 | H17: =hmenrgyrpts_elec_totbudget_2015 -> 152225.5 | I17: =hmenrgyrpt_gas_totsavings_2015 -> 0 | J17: =hmenrgyrpt_gas_totbudget_2015 -> 44690.616 | K17: =H17+J17 -> 196916.116
B18: m | C18: 215 & 218 | D18: Residential New Construction | G18: =sfnewconst_elec_totsavings_2015+mfnewconst_elec_totsavings_2015/1000 -> 1057.398712 | H18: =sfnewconst_elec_totbudget_2015+mfghm_elec_totbudget_2015+mfnewconst_elec_totbudget_2015 -> 486590.697 | I18: =sfnewconst_gas_totsavings_2015+mfnewconst_gas_totsavings_2015 -> 147072 | J18: =sfnewconst_gas_totbudget_2015+mfnewconst_gas_totbudget_2015 -> 657848.144 | K18: 1144438.841
B19: n | C19: 216 | D19: Fuel Conversion | G19: =fuelconv_elec_totsavings_2015/1000 -> 2062.5 | H19: =fuelconv_elec_totbudget_2015 -> 785783.2323 | K19: 785783.2323
B20: o | C20: 217 | D20: Multi Family Existing | G20: =mftretro_elec_totsavings_2015/1000 -> 25861.86 | H20: =mfretro_elec_totbudget_2015 -> 11513537 | I20: =mfretro_gas_totsavings_2015 -> 107541.65 | J20: =mfretro_gas_totbudget_2015 -> 499044.4936 | K20: 12012581.49
B21: p | D21: Total, Residential Programs | G21: =REM_2015_Totsvgs_E/1000 -> 131921.246 | H21: =REM_2015_TotBudg_E -> 47674311.66 | I21: =REM_2015_Gas_Totsavings -> 1468944.78 | J21: =REM_2015_Gas_Totbudget -> 6947560.906 | K21: =H21+J21 -> 54621872.56
D23: Business Energy Management
B24: q | C24: 250 | D24: Commercial / Industrial Retrofit | G24: =ciretro_elec_totsavings_2015/1000+BusLgtGrt_Elec_Totsavings_2015/1000 -> 62259.6 | H24: =citretro_elec_totbudget_2015+BusLgtGrt_Elec_totbudget_2015 -> 19421153 | I24: =ciretro_gas_totsavings_2015 -> 381000 | J24: =ciretro_gas_totbudget_2015 -> 2044680 | K24: =H24+J24 -> 21465833
B25: r | C25: 251 | D25: Commercial/Industrial New Construction | G25: =cinewconst_elec_totsavings_2015/1000 -> 9350 | H25: =cinewconst_elec_totbudget_2015 -> 2987974 | I25: =cinewconst_gas_totsavings_2015 -> 150000 | J25: =cinewconst_gas_totbudget_2015 -> 606236 | K25: 3594210
B26: s | C26: 253 | D26: Resource Conservation Manager | G26: =rcm_elec_totsavings_2015/1000 -> 16350 | H26: =rcm_elec_totbudget_2015 -> 2744361 | I26: =rcm_gas_totsavings_2015 -> 500000 | J26: =rcm_gas_totbudget_2015 -> 636260 | K26: 3380621
B27: t | C27: E255 | D27: Small Business Lighting Rebate | G27: =smbuslgt_elec_totsavings_2015/1000 -> 0 | H27: =smbuslgt_elec_totbudget_2015 -> 0 | K27: 0
B28: t | C28: E258 | D28: Large Power User - Self Directed Program | G28: =hvself_elec_totsavings_2015/1000 -> 1700 | H28: =hvself_elec_totbudget_2015 -> 1667723 | K28: 1667723
B29: u | C29: 261 | D29: Energy Efficient Technology Evaluation | G29: =TechEval_totsaving_elec_2015/1000 -> 500 | H29: =techeval_elec_totbudget_2015 -> 210710 | J29: =techeval_gas_totbudget_2015 -> 20000 | K29: 230710
B30: v | C30: 262 | D30: Commercial Rebates | G30: =busrbt_elec_totsavings_2015/1000 -> 21966.71525 | H30: =busrbt_elec_totbudget_2015 -> 5641008.096 | I30: =busrbt_gas_totsavings_2015 -> 580881 | J30: =busrbt_gas_totbudget_2015 -> 698839.0323 | K30: =H30+J30 -> 6339847.128
B31: w | D31: Subtotal, Business Programs | G31: =BEM_2015_Totalsvgs_E/1000 -> 112126.3152 | H31: =BEM_2015_Totbudget_E -> 32672929.1 | I31: =BEM_2015_Gas_Totsavings -> 1611881 | J31: =BEM_2015_Gas_Totbudget -> 4006015.032 | K31: 36678944.13
D33: Pilots
B34: x | C34: 249 | D34: Residential Pilots - Individual Energy Reports | G34: =Pilot_REM_2015_totsavings_E/1000 -> 3219.475 | H34: =Pilot_REM_totbudget_2015_E -> 1127007.216 | I34: =Pilot_REM_totsavings_2015_G -> 0 | J34: =Pilot_REM_totbudget_2015_G -> 233901.657 | K34: =H34+J34 -> 1360908.873
B35: y | C35: 249 | D35: Business Pilots - Individual Energy Reports | G35: =Pilot_BEM_2015_totsavings_E/1000 -> 5000 | H35: =Pilot_BEM_2015_totbudget_E -> 140704.4 | I35: =Pilot_BEM_totsavings_2015_G -> 0 | J35: =Pilot_BEM_totbudget_2015_G -> 0 | K35: =H35+J35 -> 140704.4
B36: z | D36: Subtotal, Pilots | G36: =Pilot_Totsavings_E_2015/1000 -> 8219.475 | H36: =Pilot_totbudget_E_2015 -> 1267711.616 | I36: =Pilot_Totsavings_G_2015 -> 0 | J36: =Pilot_Totbudget_G_2015 -> 233901.657 | K36: =H36+J36 -> 1501613.273
D38: Regional Efficiency Programs
B39: aa | C39: E254 | D39: NW Energy Efficiency Alliance | G39: =neea_elec_totsavings_2015/1000 -> 22338 | H39: =neea_elec_totbudget_2015 -> 4771921.5 | I39: =GasMktTrans_TotSvgs_Gas_2015 -> 0 | J39: =GasMktTrans_TotBudget_Gas_2015 -> 738000 | K39: =H39+J39 -> 5509921.5
B40: ab | C40: E292 | D40: Generation, Transmission and Distribution | G40: =transdistr_elec_totsavings_2015/1000 -> 3000 | H40: =transdist_elec_totbudget_2015 -> 0 | K40: =H40+J40 -> 0
B41: ac | D41: Subtotal, Regional Programs | G41: =Reg_2015_totsvgs_E/1000 -> 25338 | H41: =Reg_2015_Totbudget_E -> 4771921.5 | J41: =Region_Gas_TotBudget_2015 -> 738000 | K41: =H41+J41 -> 5509921.5
D44: Energy Efficiency Portfolio Support
B45: ad | D45: Customer Engagement and Education | H45: =H46+H47+H48+H49 -> 1752121.234 | J45: =J46+J47+J48+J49 -> 264482.0528 | K45: =H45+J45 -> 2016603.287
B46: ae | E46: Energy Advisors | H46: =enrgyadv_elec_totbudget_2015 -> 1060385.339 | J46: =enrgyadv_gas_totbudget_2015 -> 158555.9026 | K46: =H46+J46 -> 1218941.242
B47: af | E47: Events | H47: =events_elec_totbudget_2015 -> 530378.6931 | J47: =events_gas_totbudget_2015 -> 81547.2652 | K47: =H47+J47 -> 611925.9583
B48: ag | E48: Brochures, non program-specific | H48: =brochr_elec_totbudget_2015 -> 80222.005 | J48: =brochure_gas_totbudget_2015 -> 12752.295 | K48: =H48+J48 -> 92974.3
B49: ah | C49: 202 | E49: Education | H49: =eductn_elec_totbudget_2015 -> 81135.19694 | J49: =educ_gas_totbudget_2015 -> 11626.59 | K49: =H49+J49 -> 92761.78694
B50: ai | D50: Web Experience | H50: =H51+H57+H58 -> 928838.195 | J50: =J51+J57+J58 -> 155096.739 | K50: 1083934.934
B51: aj | E51: Customer Online Experience | H51: =onlineex_elec_totbudget_2015 -> 562455 | J51: =onlineexp_gas_totbudget_2015 -> 84045 | K51: 646500
B52: ak | F52: Web Development | H52: ='CustOnline Detail_PSWE_Elec'!E48 -> 0 | J52: ='CustOnline Detail_PSWE_Gas'!E48 -> 0 | K52: 0
B53: al | F53: Web content, maintenance + analytics | H53: ='CustOnline Detail_PSWE_Elec'!E49 -> 104400 | J53: ='CustOnline Detail_PSWE_Gas'!E49 -> 15600 | K53: 120000
B54: am | F54: Online customer tools | H54: ='CustOnline Detail_PSWE_Elec'!E47 -> 435000 | J54: ='CustOnline Detail_PSWE_Gas'!E47 -> 65000 | K54: 500000
B55: an | F55: E-news | H55: ='CustOnline Detail_PSWE_Elec'!E50 -> 10005 | J55: ='CustOnline Detail_PSWE_Gas'!E50 -> 1495 | K55: 11500
B56: ao | F56: Miscellaneous applications | H56: ='CustOnline Detail_PSWE_Elec'!E51 -> 13050 | J56: ='CustOnline Detail_PSWE_Gas'!E51 -> 1950 | K56: 15000
B57: ap | E57: Market Integration | H57: =mktint_elec_totbudget_2015 -> 298797.195 | J57: =mktint_gas_totbudget_2015 -> 44647.739 | K57: 343444.934
B58: aq | E58: Automated Benchmarking System | H58: =ABS_Elec_totbudget_2015 -> 67586 | J58: =ABS_gas_totbudget_2015 -> 26404 | K58: =H58+J58 -> 93990
B59: ar | D59: Programs Support | H59: =prgmsvcSyst_elec_totbudget_2015+PrgmsvcAnalytics_Totbudget_Elec_2015 -> 1279675.764 | J59: =PrgmSvcSystems_TotBudg_gas_2015+'2015 Sector View Gas'!S66 -> 171099.0222 | K59: 1450774.786
B60: as | D60: Rebates Processing | H60: =RebtProc_Elec_TotBudget_2015 -> 740193.1603 | J60: =RebtProc_TotBudget_gas_2015 -> 110213.5757 | K60: 850406.736
B61: at | D61: Energy Efficient Communities | H61: =eecomm_elec_totbudget_2015 -> 814515.851 | J61: =eecomm_gas_totbudget_2015 -> 200853.895 | K61: 1015369.746
B62: au | D62: Trade Ally Support | H62: =trdallysupp_elec_totbudget_2015 -> 60333 | J62: =trdallysupp_gas_totbudget_2015 -> 12792 | K62: 73125
B63: av | D63: Subtotal, Portfolio Support | H63: =PortSupp_2015_Totbudget_E -> 5575677.205 | J63: =PortSupp_2015_Gas_Totbudget -> 914537.2846 | K63: 6490214.489
D65: Energy Efficiency Research & Compliance
B66: aw | D66: Conservation Supply Curves | H66: =supplcrv_elec_totbudget_2015 -> 196761.431 | J66: =suppcrv_gas_totbudget_2015 -> 29397.001 | K66: =H66+J66 -> 226158.432
B67: ax | D67: Strategic Planning | H67: =stratpln_elec_totbudget_2015 -> 158392.92 | J67: =stratpln_gas_totbudget_2015 -> 23663.467 | K67: 182056.387
B68: ay | D68: Market Research | H68: =mktresch_elec_totbudget_2015 -> 316165.1206 | J68: =mktresh_gas_totbudget_2015 -> 47246.28911 | K68: 363411.4097
B69: az | D69: Verification Team | H69: =VTeam_elec_totbudget_2015 -> 457749.0802 | J69: =VTeam_gas_totbudget_2015 -> 68399.28784 | K69: =H69+J69 -> 526148.368
B70: ba | D70: Program Evaluation | H70: =eval_elec_totbudget_2015 -> 2567563.233 | J70: =eval_gas_totbudget_2015 -> 313713.62 | K70: 2881276.853
B71: bb | D71: Biennial Electric Conservation Acquisition Review | H71: =BECAR_Elec_Totbudget_2015 -> 110000 | K71: 110000
B72: bc | D72: Subtotal, Research & Compliance | G72: 0 | H72: =ResComp_2015_Totbudget_E -> 3806631.785 | J72: =ResComp_2015_Gas_Totbudget -> 482419.665 | K72: 4289051.45
B74: bd | C74: Total MWh, Efficiency Programs Included in CE Calculations | G74: =G21+G31+G36+G41 -> 277605.0362 | H74: =H21+H31+H36+H41+H63+H72 -> 95769182.86 | I74: =I21+I31+I36 -> 3080825.78 | J74: =J21+J31+J36+J41+J63+J72 -> 13322434.55 | K74: =H74+J74 -> 109091617.4
D76: Other Electric Programs
B77: be | C77: E150 | D77: Net Metering | H77: =netmtr_elec_totbudget_2015 -> 760196.4049 | K77: =H77+J77 -> 760196.4049
B78: bf | C78: E195 | D78: Electric Vehicle Charger Incentive | H78: =ElecVehclChgIncent_Elect_2015 -> 2878145.783 | K78: =H78+J78 -> 2878145.783
B79: bf | C79: E271 | D79: C/I Load Control | H79: =ciloadctr_elec_totbudget_2015 -> 0 | K79: =H79+J79 -> 0
B80: bg | C80: E249a | D80: Residential Demand Response Pilot | H80: =resdr_elec_totbudget_2015 -> 0 | K80: =H80+J80 -> 0
B81: bg | D81: Subtotal, Other Electric Programs | H81: =OthElec_2015_Totbudget_E -> 3638342.188 | J81: 0 | K81: =H81+J81 -> 3638342.188
B85: bh | D85: GRAND TOTAL All Programs | G85: =G74/8760 -> 31.69007263 | H85: =H74+H81 -> 99407525.05 | I85: =I74 -> 3080825.78 | J85: =J74+J81 -> 13322434.55 | K85: =H85+J85 -> 112729959.6
B88: bi | D88: Electric Total, less NEEA | G88: =(G74-G39) -> 255267.0362 | H88: =H85-H39 -> 94635603.55
G89: =G88/8760 -> 29.14007263
B92: bj | D92: Electric Total, less (NEEA + Pilots) | G92: =G88-G36 -> 247047.5612 | H92: =H88-H36 -> 93367891.93
G93: =G92/8760 -> 28.2017764
B96: bk | E96: Blue cells = use for 10% "info-only" calculation: | H96: =(H36+H63)/H74 -> 0.07145710777 | J96: =(J36+J63)/J74 -> 0.08620338405
F97: Add up all blue cells and divide by "Total, Efficiency Programs Included in CE Calculations" line.
F98: HER-legacy program costs excluded from "info-only" calculation because savings will be measured.
B100: bl | E100: Purple cells = use to indicate a reasonable amt. spent on EM&V: | H100: =SUM(H69:H71)/(H21+H31) -> 0.03902202843 | J100: =SUM(J69:J71)/(J21+J31) -> 0.03488476366
F101: Add up the sum of "Program Evaluation" + "Verification" pink cells and divide by the Residential + Business pink cells.

Sheet 2015 Sector View Elect
C2: Energy Efficiency 2015 Budgets, Sector View
C3: Electric Programs | I3: Please see category descriptions at the bottom of the sector table.
I4: Budget Category
B5: Workbook Name | C5: Schedule | D5: Comment | E5: Description | H5: Order Number (Click on the order# below to link to the detail page) | I5: Labor | J5: Marketing Labor | K5: Overhead | L5: Marketing | M5: Employee/Office Expense | N5: Outside Services | O5: Materials | P5: Conservation-Specific Memberships, Sponsorships & Miscellaneous | Q5: DBtC | R5: Revenue | S5: Total Budget | T5: Total Savings kWh
C6: Residential Energy Management
B7: LIW Detail_REM E201_Elec | C7: E201 | E7: Low Income Weatherization | H7: 18230611 | I7: =' LIW Detail_REM E201_Elec'!H6 -> 143233 | J7: =' LIW Detail_REM E201_Elec'!I6 -> 17159 | K7: =' LIW Detail_REM E201_Elec'!J6 -> 113397.144 | L7: =' LIW Detail_REM E201_Elec'!K6 -> 19800 | M7: =' LIW Detail_REM E201_Elec'!L6 -> 6000 | N7: =' LIW Detail_REM E201_Elec'!M6 -> 10000 | O7: =' LIW Detail_REM E201_Elec'!N6 -> 0 | P7: =' LIW Detail_REM E201_Elec'!O6 -> 0 | Q7: =' LIW Detail_REM E201_Elec'!P6 -> 3008550.383 | R7: =' LIW Detail_REM E201_Elec'!Q6 -> 0 | S7: =' LIW Detail_REM E201_Elec'!R6 -> 3318139.527 | T7: =' LIW Detail_REM E201_Elec'!S6 -> 1571214.29
B8: HomePrint Detail_REM_E214 Elec | C8: E214 | E8: HomePrint | H8: 18230625 | I8: ='HomePrint Detail_REM_E214 Elec'!H6 -> 45637.92 | J8: ='HomePrint Detail_REM_E214 Elec'!I6 -> 22133.76 | K8: ='HomePrint Detail_REM_E214 Elec'!J6 -> 47914.57776 | L8: ='HomePrint Detail_REM_E214 Elec'!K6 -> 93750 | M8: ='HomePrint Detail_REM_E214 Elec'!L6 -> 3000 | N8: ='HomePrint Detail_REM_E214 Elec'!M6 -> 25000 | O8: ='HomePrint Detail_REM_E214 Elec'!N6 -> 1000 | P8: ='HomePrint Detail_REM_E214 Elec'!O6 -> 2000 | Q8: ='HomePrint Detail_REM_E214 Elec'!P6 -> 1570800 | R8: ='HomePrint Detail_REM_E214 Elec'!Q6 -> 0 | S8: ='HomePrint Detail_REM_E214 Elec'!R6 -> 1811236.258 | T8: ='HomePrint Detail_REM_E214 Elec'!S6 -> 3009000
B9: WaterHea_Detail_REM_E214 Elec | C9: E214 | E9: SF Existing Water Heat | H9: 18230626 | I9: ='WaterHea_Detail_REM_E214 Elec'!H6 -> 11409.48 | J9: ='WaterHea_Detail_REM_E214 Elec'!I6 -> 6036.48 | K9: ='WaterHea_Detail_REM_E214 Elec'!J6 -> 12334.29372 | L9: ='WaterHea_Detail_REM_E214 Elec'!K6 -> 78750 | M9: ='WaterHea_Detail_REM_E214 Elec'!L6 -> 1200 | N9: ='WaterHea_Detail_REM_E214 Elec'!M6 -> 4000 | O9: ='WaterHea_Detail_REM_E214 Elec'!N6 -> 5000 | P9: ='WaterHea_Detail_REM_E214 Elec'!O6 -> 2400 | Q9: ='WaterHea_Detail_REM_E214 Elec'!P6 -> 279500 | R9: ='WaterHea_Detail_REM_E214 Elec'!Q6 -> 0 | S9: ='WaterHea_Detail_REM_E214 Elec'!R6 -> 400630.2537 | T9: ='WaterHea_Detail_REM_E214 Elec'!S6 -> 634500
B10: Wx_Detail_REM E214 Elec | C10: E214 | E10: SF Existing Weatherization | H10: 18230627 | I10: ='Wx_Detail_REM E214 Elec'!H6 -> 53165.52 | J10: ='Wx_Detail_REM E214 Elec'!I6 -> 22133.76 | K10: ='Wx_Detail_REM E214 Elec'!J6 -> 53236.59096 | L10: ='Wx_Detail_REM E214 Elec'!K6 -> 163500 | M10: ='Wx_Detail_REM E214 Elec'!L6 -> 5302 | N10: ='Wx_Detail_REM E214 Elec'!M6 -> 85000 | O10: ='Wx_Detail_REM E214 Elec'!N6 -> 0 | P10: ='Wx_Detail_REM E214 Elec'!O6 -> 15000 | Q10: ='Wx_Detail_REM E214 Elec'!P6 -> 730385.95 | R10: ='Wx_Detail_REM E214 Elec'!Q6 -> 0 | S10: ='Wx_Detail_REM E214 Elec'!R6 -> 1127723.821 | T10: ='Wx_Detail_REM E214 Elec'!S6 -> 2315958.71
B11: ARRAWx_Detail_REM E214_Elec | C11: E214 | E11: SF Existing Wx_Contracted | H11: 18230501 | I11: ='ARRAWx Detail_REM_E214 Elec'!H6 -> 0 | J11: ='ARRAWx Detail_REM_E214 Elec'!I6 -> 0 | K11: ='ARRAWx Detail_REM_E214 Elec'!J6 -> 0 | L11: ='ARRAWx Detail_REM_E214 Elec'!K6 -> 0 | M11: ='ARRAWx Detail_REM_E214 Elec'!L6 -> 0 | N11: ='ARRAWx Detail_REM_E214 Elec'!M6 -> 0 | O11: ='ARRAWx Detail_REM_E214 Elec'!N6 -> 0 | P11: ='ARRAWx Detail_REM_E214 Elec'!O6 -> 0 | Q11: ='ARRAWx Detail_REM_E214 Elec'!P6 -> 100000 | R11: ='ARRAWx Detail_REM_E214 Elec'!Q6 -> 0 | S11: ='ARRAWx Detail_REM_E214 Elec'!R6 -> 100000 | T11: ='ARRAWx Detail_REM_E214 Elec'!S6 -> 294000
B12: SpcHeat Detail_REM_E214 Elec | C12: E214 | E12: SF Existing Space Heat | H12: 18230628 | I12: ='SpcHeat Detail_REM_E214 Elec'!H6 -> 53461.08 | J12: ='SpcHeat Detail_REM_E214 Elec'!I6 -> 22133.76 | K12: ='SpcHeat Detail_REM_E214 Elec'!J6 -> 53445.55188 | L12: ='SpcHeat Detail_REM_E214 Elec'!K6 -> 222000 | M12: ='SpcHeat Detail_REM_E214 Elec'!L6 -> 7200 | N12: ='SpcHeat Detail_REM_E214 Elec'!M6 -> 28000 | O12: ='SpcHeat Detail_REM_E214 Elec'!N6 -> 17200 | P12: ='SpcHeat Detail_REM_E214 Elec'!O6 -> 28200 | Q12: ='SpcHeat Detail_REM_E214 Elec'!P6 -> 3630000 | R12: ='SpcHeat Detail_REM_E214 Elec'!Q6 -> 0 | S12: ='SpcHeat Detail_REM_E214 Elec'!R6 -> 4061640.392 | T12: ='SpcHeat Detail_REM_E214 Elec'!S6 -> 7841910
C13: E214 | E13: Refrigerator Replacement Program | H13: 18230409
B14: HmAppplc_Detail_REM_E214 Elec | C14: E214 | E14: Home Appliances | H14: 18230432 | I14: ='HmAppplc_Detail_REM_E214 Elec'!H6 -> 112500 | J14: ='HmAppplc_Detail_REM_E214 Elec'!I6 -> 90000 | K14: ='HmAppplc_Detail_REM_E214 Elec'!J6 -> 143167.5 | L14: ='HmAppplc_Detail_REM_E214 Elec'!K6 -> 340000 | M14: ='HmAppplc_Detail_REM_E214 Elec'!L6 -> 5000 | N14: ='HmAppplc_Detail_REM_E214 Elec'!M6 -> 340635 | O14: ='HmAppplc_Detail_REM_E214 Elec'!N6 -> 8000 | P14: ='HmAppplc_Detail_REM_E214 Elec'!O6 -> 7500 | Q14: ='HmAppplc_Detail_REM_E214 Elec'!P6 -> 5250250 | R14: ='HmAppplc_Detail_REM_E214 Elec'!Q6 -> 0 | S14: ='HmAppplc_Detail_REM_E214 Elec'!R6 -> 6297052.5 | T14: ='HmAppplc_Detail_REM_E214 Elec'!S6 -> 11386446
B15: ShwrHead_Detail_REM_E214 Elec | C15: E214 | E15: Residential Showerheads | H15: 18230435 | I15: ='ShwrHead_Detail_REM_E214 Elec'!H6 -> 45000 | J15: ='ShwrHead_Detail_REM_E214 Elec'!I6 -> 13500 | K15: ='ShwrHead_Detail_REM_E214 Elec'!J6 -> 41359.5 | L15: ='ShwrHead_Detail_REM_E214 Elec'!K6 -> 65000 | M15: ='ShwrHead_Detail_REM_E214 Elec'!L6 -> 1000 | N15: ='ShwrHead_Detail_REM_E214 Elec'!M6 -> 40000 | O15: ='ShwrHead_Detail_REM_E214 Elec'!N6 -> 1000 | P15: ='ShwrHead_Detail_REM_E214 Elec'!O6 -> 500 | Q15: ='ShwrHead_Detail_REM_E214 Elec'!P6 -> 367350 | R15: ='ShwrHead_Detail_REM_E214 Elec'!Q6 -> 0 | S15: ='ShwrHead_Detail_REM_E214 Elec'!R6 -> 574709.5 | T15: ='ShwrHead_Detail_REM_E214 Elec'!S6 -> 4138680
B16: Lighting Detail_REM_E214 Elec | C16: E214 | E16: Energy Efficient Lighting Services | H16: 18230440 | I16: ='Lighting Detail_REM_E214 Elec'!H6 -> 315000 | J16: ='Lighting Detail_REM_E214 Elec'!I6 -> 135000 | K16: ='Lighting Detail_REM_E214 Elec'!J6 -> 318150 | L16: ='Lighting Detail_REM_E214 Elec'!K6 -> 1870000 | M16: ='Lighting Detail_REM_E214 Elec'!L6 -> 11000 | N16: ='Lighting Detail_REM_E214 Elec'!M6 -> 1081537 | O16: ='Lighting Detail_REM_E214 Elec'!N6 -> 8250 | P16: ='Lighting Detail_REM_E214 Elec'!O6 -> 20000 | Q16: ='Lighting Detail_REM_E214 Elec'!P6 -> 11620469.86 | R16: ='Lighting Detail_REM_E214 Elec'!Q6 -> 0 | S16: ='Lighting Detail_REM_E214 Elec'!R6 -> 15379406.86 | T16: ='Lighting Detail_REM_E214 Elec'!S6 -> 66609297.26
B17: MHDS Detail_REM_E214 Elec. | C17: E214 | E17: Mobile Home Duct Sealing | H17: 18230634 | I17: ='MHDS Detail_REM_E214 Elec.'!H6 -> 39036.6 | J17: ='MHDS Detail_REM_E214 Elec.'!I6 -> 4024.32 | K17: ='MHDS Detail_REM_E214 Elec.'!J6 -> 30444.07044 | L17: ='MHDS Detail_REM_E214 Elec.'!K6 -> 15000 | M17: ='MHDS Detail_REM_E214 Elec.'!L6 -> 402.26 | N17: ='MHDS Detail_REM_E214 Elec.'!M6 -> 126.99 | O17: ='MHDS Detail_REM_E214 Elec.'!N6 -> 507.96 | P17: ='MHDS Detail_REM_E214 Elec.'!O6 -> 590.71 | Q17: ='MHDS Detail_REM_E214 Elec.'!P6 -> 1575503.2 | R17: ='MHDS Detail_REM_E214 Elec.'!Q6 -> 0 | S17: ='MHDS Detail_REM_E214 Elec.'!R6 -> 1665636.11 | T17: ='MHDS Detail_REM_E214 Elec.'!S6 -> 4665981
B18: HER Detail_REM_E214 elec. | C18: E214 | E18: Home Energy Reports | H18: 18230461 | I18: ='HER Detail_REM_E214 elec.'!H6 -> 5250 | J18: ='HER Detail_REM_E214 elec.'!I6 -> 750 | K18: ='HER Detail_REM_E214 elec.'!J6 -> 4242 | L18: ='HER Detail_REM_E214 elec.'!K6 -> 0 | M18: ='HER Detail_REM_E214 elec.'!L6 -> 500 | N18: ='HER Detail_REM_E214 elec.'!M6 -> 75473.5 | O18: ='HER Detail_REM_E214 elec.'!N6 -> 250 | P18: ='HER Detail_REM_E214 elec.'!O6 -> 100 | Q18: ='HER Detail_REM_E214 elec.'!P6 -> 65660 | R18: ='HER Detail_REM_E214 elec.'!Q6 -> 0 | S18: ='HER Detail_REM_E214 elec.'!R6 -> 152225.5 | T18: ='HER Detail_REM_E214 elec.'!S6 -> 472500
B19: SFNC Detail_REM E215 Elec | C19: E215 | D19: P/O Res. New Construction | E19: Single Family New Construction | H19: 18230405 | I19: ='SFNC Detail_REM E215 Elec'!H6 -> 16476 | J19: ='SFNC Detail_REM E215 Elec'!I6 -> 3295 | K19: ='SFNC Detail_REM E215 Elec'!J6 -> 13978.097 | L19: ='SFNC Detail_REM E215 Elec'!K6 -> 30000 | M19: ='SFNC Detail_REM E215 Elec'!L6 -> 0 | N19: ='SFNC Detail_REM E215 Elec'!M6 -> 0 | O19: ='SFNC Detail_REM E215 Elec'!N6 -> 0 | P19: ='SFNC Detail_REM E215 Elec'!O6 -> 5000 | Q19: ='SFNC Detail_REM E215 Elec'!P6 -> 0 | R19: ='SFNC Detail_REM E215 Elec'!Q6 -> 0 | S19: ='SFNC Detail_REM E215 Elec'!R6 -> 68749.097 | T19: ='SFNC Detail_REM E215 Elec'!S6 -> 0
B20: NCMfgHome Detail_REM E215 Elec | C20: E215 | D20: P/O Res. New Construction | E20: Energy Star Manufactured Home | H20: 18230433 | I20: ='NCMfgHome Detail_REM E215 Elec'!H6 -> 0 | J20: ='NCMfgHome Detail_REM E215 Elec'!I6 -> 0 | K20: ='NCMfgHome Detail_REM E215 Elec'!J6 -> 0 | L20: ='NCMfgHome Detail_REM E215 Elec'!K6 -> 5000 | M20: ='NCMfgHome Detail_REM E215 Elec'!L6 -> 0 | N20: ='NCMfgHome Detail_REM E215 Elec'!M6 -> 0 | O20: ='NCMfgHome Detail_REM E215 Elec'!N6 -> 0 | P20: ='NCMfgHome Detail_REM E215 Elec'!O6 -> 0 | Q20: ='NCMfgHome Detail_REM E215 Elec'!P6 -> 0 | R20: ='NCMfgHome Detail_REM E215 Elec'!Q6 -> 0 | S20: ='NCMfgHome Detail_REM E215 Elec'!R6 -> 5000 | T20: ='NCMfgHome Detail_REM E215 Elec'!S6 -> 0
B21: FuelConv Detail_REM E216 Elec | C21: E216 | E21: Fuel Conversion Rebate | H21: 18230612 | I21: ='FuelConv Detail_REM E216 Elec'!H6 -> 54072 | J21: ='FuelConv Detail_REM E216 Elec'!I6 -> 22133.76 | K21: ='FuelConv Detail_REM E216 Elec'!J6 -> 53877.47232 | L21: ='FuelConv Detail_REM E216 Elec'!K6 -> 105000 | M21: ='FuelConv Detail_REM E216 Elec'!L6 -> 1200 | N21: ='FuelConv Detail_REM E216 Elec'!M6 -> 1000 | O21: ='FuelConv Detail_REM E216 Elec'!N6 -> 1000 | P21: ='FuelConv Detail_REM E216 Elec'!O6 -> 2000 | Q21: ='FuelConv Detail_REM E216 Elec'!P6 -> 545500 | R21: ='FuelConv Detail_REM E216 Elec'!Q6 -> 0 | S21: ='FuelConv Detail_REM E216 Elec'!R6 -> 785783.2323 | T21: ='FuelConv Detail_REM E216 Elec'!S6 -> 2062500
B22: MF Retr Detail_REM E217 Elec | C22: E217 | E22: Multi-Family Existing | H22: 18230407 | I22: ='MF Retr Detail_REM E217 Elec'!H6 -> 188926.95 | J22: ='MF Retr Detail_REM E217 Elec'!I6 -> 63880.2 | K22: ='MF Retr Detail_REM E217 Elec'!J6 -> 178734.6551 | L22: ='MF Retr Detail_REM E217 Elec'!K6 -> 74293 | M22: ='MF Retr Detail_REM E217 Elec'!L6 -> 12400 | N22: ='MF Retr Detail_REM E217 Elec'!M6 -> 1046266.88 | O22: ='MF Retr Detail_REM E217 Elec'!N6 -> 4000 | P22: ='MF Retr Detail_REM E217 Elec'!O6 -> 1500 | Q22: ='MF Retr Detail_REM E217 Elec'!P6 -> 9943535 | R22: ='MF Retr Detail_REM E217 Elec'!Q6 -> 0 | S22: ='MF Retr Detail_REM E217 Elec'!R6 -> 11513537 | T22: ='MF Retr Detail_REM E217 Elec'!S6 -> 25861860
B23: MFNC Detail_REM E218 Elec | C23: E218 | D23: P/O Res. New Construction | E23: Multi-Family New Construction | H23: 18230486 | I23: ='MFNC Detail_REM E218 Elec'!H6 -> 65000 | J23: ='MFNC Detail_REM E218 Elec'!I6 -> 3000 | K23: ='MFNC Detail_REM E218 Elec'!J6 -> 48076 | L23: ='MFNC Detail_REM E218 Elec'!K6 -> 10000 | M23: ='MFNC Detail_REM E218 Elec'!L6 -> 6000 | N23: ='MFNC Detail_REM E218 Elec'!M6 -> 0 | O23: ='MFNC Detail_REM E218 Elec'!N6 -> 800 | P23: ='MFNC Detail_REM E218 Elec'!O6 -> 0 | Q23: ='MFNC Detail_REM E218 Elec'!P6 -> 279965.6 | R23: ='MFNC Detail_REM E218 Elec'!Q6 -> 0 | S23: ='MFNC Detail_REM E218 Elec'!R6 -> 412841.6 | T23: ='MFNC Detail_REM E218 Elec'!S6 -> 1057398.712
G24: Total, Residential Energy Management | I24: =SUM(I7:I23) -> 1148168.55 | J24: =SUM(J7:J23) -> 425180.04 | K24: 1112357.453 | L24: 3092093 | M24: 60204.26 | N24: 2737039.37 | O24: 47007.96 | P24: 84790.71 | Q24: 38967470 | R24: 0 | S24: 47674311.66 | T24: =SUM(T7:T23) -> 131921246
H26: Original 2015 Totals | I26: 1388185.56 | J26: 516482 | K26: 1325648.622 | L26: 3039593 | M26: 58144.26 | N26: 2416860.49 | O26: 74857.96 | P26: 106110.71 | Q26: 37687592.84 | R26: 0 | S26: 46613475.44 | T26: 130563050.5
C29: Business Energy Managment
B30: CI Retr Detail_BEM E250 Elec | C30: E250 | E30: Commercial/Industrial Retrofit | H30: 18230711 | I30: ='CI Retr Detail_BEM E250 Elec'!C6 -> 429996 | J30: ='CI Retr Detail_BEM E250 Elec'!D6 -> 8217 | K30: ='CI Retr Detail_BEM E250 Elec'!E6 -> 313200 | L30: ='CI Retr Detail_BEM E250 Elec'!F6 -> 17625 | M30: ='CI Retr Detail_BEM E250 Elec'!G6 -> 33944 | N30: ='CI Retr Detail_BEM E250 Elec'!H6 -> 1932673 | O30: ='CI Retr Detail_BEM E250 Elec'!I6 -> 8679 | P30: ='CI Retr Detail_BEM E250 Elec'!J6 -> 66400 | Q30: ='CI Retr Detail_BEM E250 Elec'!K6 -> 5831917 | S30: ='CI Retr Detail_BEM E250 Elec'!L6 -> 8642651 | T30: ='CI Retr Detail_BEM E250 Elec'!M6 -> 26009600
B31: Bus Lgt Grnts_BEM E250 Elect | C31: E250 | E31: Business Lighting Grants | H31: 18230724 | I31: ='Bus Lgt Grnts_BEM E250 Elect'!C6 -> 1494904 | J31: ='Bus Lgt Grnts_BEM E250 Elect'!D6 -> 16683 | K31: ='Bus Lgt Grnts_BEM E250 Elect'!E6 -> 1068700 | L31: ='Bus Lgt Grnts_BEM E250 Elect'!F6 -> 35785 | M31: ='Bus Lgt Grnts_BEM E250 Elect'!G6 -> 68916 | N31: ='Bus Lgt Grnts_BEM E250 Elect'!H6 -> 20000 | O31: ='Bus Lgt Grnts_BEM E250 Elect'!I6 -> 17621 | P31: ='Bus Lgt Grnts_BEM E250 Elect'!J6 -> 12000 | Q31: ='Bus Lgt Grnts_BEM E250 Elect'!K6 -> 8043893 | S31: ='Bus Lgt Grnts_BEM E250 Elect'!L6 -> 10778502 | T31: ='Bus Lgt Grnts_BEM E250 Elect'!M6 -> 36250000
B32: CI NC Detail_BEM E251 Elec | C32: E251 | E32: Commercial/Industrial New Construction | H32: 18230715 | I32: ='CI NC Detail_BEM E251 Elec'!C6 -> 240000 | J32: ='CI NC Detail_BEM E251 Elec'!D6 -> 24300 | K32: ='CI NC Detail_BEM E251 Elec'!E6 -> 186900 | L32: ='CI NC Detail_BEM E251 Elec'!F6 -> 19810 | M32: ='CI NC Detail_BEM E251 Elec'!G6 -> 4410 | N32: ='CI NC Detail_BEM E251 Elec'!H6 -> 153518 | O32: ='CI NC Detail_BEM E251 Elec'!I6 -> 1130 | P32: ='CI NC Detail_BEM E251 Elec'!J6 -> 7906 | Q32: ='CI NC Detail_BEM E251 Elec'!K6 -> 2350000 | S32: ='CI NC Detail_BEM E251 Elec'!L6 -> 2987974 | T32: ='CI NC Detail_BEM E251 Elec'!M6 -> 9350000
B33: RCM Detail_BEM E253 Elec | C33: E253 | E33: Resource Conservation Manager | H33: 18230723 | I33: ='RCM Detail_BEM E253 Elec'!C6 -> 393300 | J33: ='RCM Detail_BEM E253 Elec'!D6 -> 20700 | K33: ='RCM Detail_BEM E253 Elec'!E6 -> 292700 | L33: ='RCM Detail_BEM E253 Elec'!F6 -> 17736 | M33: ='RCM Detail_BEM E253 Elec'!G6 -> 13630 | N33: ='RCM Detail_BEM E253 Elec'!H6 -> 326759 | O33: ='RCM Detail_BEM E253 Elec'!I6 -> 3800 | P33: ='RCM Detail_BEM E253 Elec'!J6 -> 30236 | Q33: ='RCM Detail_BEM E253 Elec'!K6 -> 1645500 | S33: ='RCM Detail_BEM E253 Elec'!L6 -> 2744361 | T33: ='RCM Detail_BEM E253 Elec'!M6 -> 16350000
B34: Cancelled--SBL_Sch 255 Elec | C34: E255 | E34: Small Business Lighting | H34: 18230725 | I34: ='Cancelled--SBL_Sch 255 Elec'!C6 -> 0 | J34: ='Cancelled--SBL_Sch 255 Elec'!D6 -> 0 | K34: ='Cancelled--SBL_Sch 255 Elec'!E6 -> 0 | L34: ='Cancelled--SBL_Sch 255 Elec'!F6 -> 0 | M34: ='Cancelled--SBL_Sch 255 Elec'!G6 -> 0 | N34: ='Cancelled--SBL_Sch 255 Elec'!H6 -> 0 | O34: ='Cancelled--SBL_Sch 255 Elec'!I6 -> 0 | P34: ='Cancelled--SBL_Sch 255 Elec'!J6 -> 0 | Q34: ='Cancelled--SBL_Sch 255 Elec'!K6 -> 0 | S34: ='Cancelled--SBL_Sch 255 Elec'!L6 -> 0 | T34: ='Cancelled--SBL_Sch 255 Elec'!M6 -> 0
B35: LPSD_Detail_BEM E258 Elec | C35: E258 | E35: High Voltage, Self-Directed | H35: 18230729 | I35: ='LPSD_Detail_BEM E258 Elec'!C6 -> 306300 | J35: ='LPSD_Detail_BEM E258 Elec'!D6 -> 0 | K35: ='LPSD_Detail_BEM E258 Elec'!E6 -> 213200 | L35: ='LPSD_Detail_BEM E258 Elec'!F6 -> 0 | M35: ='LPSD_Detail_BEM E258 Elec'!G6 -> 0 | N35: ='LPSD_Detail_BEM E258 Elec'!H6 -> 0 | O35: ='LPSD_Detail_BEM E258 Elec'!I6 -> 0 | P35: ='LPSD_Detail_BEM E258 Elec'!J6 -> 0 | Q35: ='LPSD_Detail_BEM E258 Elec'!K6 -> 1148223 | S35: ='LPSD_Detail_BEM E258 Elec'!L6 -> 1667723 | T35: ='LPSD_Detail_BEM E258 Elec'!M6 -> 1700000
B36: TechEval Detail_BEM E261 Elec | C36: E261 | E36: Technology Evaluation | H36: 18230448 | I36: ='TechEval Detail_BEM E261 Elec'!C6 -> 9200 | J36: ='TechEval Detail_BEM E261 Elec'!D6 -> 0 | K36: ='TechEval Detail_BEM E261 Elec'!E6 -> 6500 | L36: ='TechEval Detail_BEM E261 Elec'!F6 -> 0 | M36: ='TechEval Detail_BEM E261 Elec'!G6 -> 11100 | N36: ='TechEval Detail_BEM E261 Elec'!H6 -> 100000 | O36: ='TechEval Detail_BEM E261 Elec'!I6 -> 8910 | P36: ='TechEval Detail_BEM E261 Elec'!J6 -> 0 | Q36: ='TechEval Detail_BEM E261 Elec'!K6 -> 75000 | S36: ='TechEval Detail_BEM E261 Elec'!L6 -> 210710 | T36: ='TechEval Detail_BEM E261 Elec'!M6 -> 500000
B37: Rebates Detail_BEM E262 Elec | C37: E262 | E37: Business Rebates (total of indented programs below) | H37: (Indiv' order# no longer used) | I37: =SUM(I38:I43) -> 535297.76 | J37: =SUM(J38:J43) -> 63170.24 | K37: =SUM(K38:K43) -> 423116.876 | L37: =SUM(L38:L43) -> 126654.89 | M37: 15850 | N37: =SUM(N38:N43) -> 236875 | O37: 14410 | P37: 8000 | Q37: 4217633.33 | R37: 0 | S37: 5641008.096 | T37: 21966715.25
B38: Comm Lgt Mkdn_E262 Elec | C38: E262 | F38: Lighting to Go--also referred to as Business Lighting Markdowns | H38: 18230714 | I38: ='Comm Lgt Mkdn_E262 Elec'!H6 -> 102000 | J38: ='Comm Lgt Mkdn_E262 Elec'!I6 -> 20000 | K38: ='Comm Lgt Mkdn_E262 Elec'!J6 -> 86254 | L38: ='Comm Lgt Mkdn_E262 Elec'!K6 -> 32627 | M38: ='Comm Lgt Mkdn_E262 Elec'!L6 -> 5000 | N38: ='Comm Lgt Mkdn_E262 Elec'!M6 -> 90000 | O38: ='Comm Lgt Mkdn_E262 Elec'!N6 -> 2800 | P38: ='Comm Lgt Mkdn_E262 Elec'!O6 -> 5000 | Q38: ='Comm Lgt Mkdn_E262 Elec'!P6 -> 517535 | R38: ='Comm Lgt Mkdn_E262 Elec'!Q6 -> 0 | S38: ='Comm Lgt Mkdn_E262 Elec'!R6 -> 861216 | T38: ='Comm Lgt Mkdn_E262 Elec'!S6 -> 6166728.25
B39: Comm Kit-Laund_E262 elec | C39: E262 | F39: Commercial kitchen and laundry | H39: 18230716 | I39: ='Comm Kit-Laund_E262 elec'!H6 -> 39667.32 | J39: ='Comm Kit-Laund_E262 elec'!I6 -> 8048.64 | K39: ='Comm Kit-Laund_E262 elec'!J6 -> 33735.18372 | L39: ='Comm Kit-Laund_E262 elec'!K6 -> 10000 | M39: ='Comm Kit-Laund_E262 elec'!L6 -> 1200 | N39: ='Comm Kit-Laund_E262 elec'!M6 -> 550 | O39: ='Comm Kit-Laund_E262 elec'!N6 -> 110 | P39: ='Comm Kit-Laund_E262 elec'!O6 -> 200 | Q39: ='Comm Kit-Laund_E262 elec'!P6 -> 70170 | R39: ='Comm Kit-Laund_E262 elec'!Q6 -> 0 | S39: ='Comm Kit-Laund_E262 elec'!R6 -> 163681.1437 | T39: ='Comm Kit-Laund_E262 elec'!S6 -> 598313
B40: Comm DI_E262 Elec | C40: E262 | F40: Commercial direct install (non-SBDI) | H40: 18230717 | I40: ='Comm DI_E262 Elec'!H6 -> 10818.36 | J40: ='Comm DI_E262 Elec'!I6 -> 0 | K40: ='Comm DI_E262 Elec'!J6 -> 7648.58052 | L40: ='Comm DI_E262 Elec'!K6 -> 2000 | M40: ='Comm DI_E262 Elec'!L6 -> 150 | N40: ='Comm DI_E262 Elec'!M6 -> 125 | O40: ='Comm DI_E262 Elec'!N6 -> 250 | P40: ='Comm DI_E262 Elec'!O6 -> 50 | Q40: ='Comm DI_E262 Elec'!P6 -> 79840 | R40: ='Comm DI_E262 Elec'!Q6 -> 0 | S40: ='Comm DI_E262 Elec'!R6 -> 100881.9405 | T40: ='Comm DI_E262 Elec'!S6 -> 702730
B41: Comm HVAC_E262 elec | C41: E262 | F41: Commercial HVAC | H41: 18230718 | I41: ='Comm HVAC_E262 elec'!H6 -> 115395.84 | J41: ='Comm HVAC_E262 elec'!I6 -> 8048.64 | K41: ='Comm HVAC_E262 elec'!J6 -> 87275.24736 | L41: ='Comm HVAC_E262 elec'!K6 -> 18000 | M41: ='Comm HVAC_E262 elec'!L6 -> 2000 | N41: ='Comm HVAC_E262 elec'!M6 -> 60000 | O41: ='Comm HVAC_E262 elec'!N6 -> 2250 | P41: ='Comm HVAC_E262 elec'!O6 -> 1200 | Q41: ='Comm HVAC_E262 elec'!P6 -> 934800 | R41: ='Comm HVAC_E262 elec'!Q6 -> 0 | S41: ='Comm HVAC_E262 elec'!R6 -> 1228969.727 | T41: ='Comm HVAC_E262 elec'!S6 -> 3332530
B42: Comm Lgt_E262 Elec | C42: E262 | F42: Business Lighting Express | H42: 18230722 | I42: ='Comm Lgt_E262 Elec'!H6 -> 140000 | J42: ='Comm Lgt_E262 Elec'!I6 -> 15000 | K42: ='Comm Lgt_E262 Elec'!J6 -> 109585 | L42: ='Comm Lgt_E262 Elec'!K6 -> 24027.89 | M42: ='Comm Lgt_E262 Elec'!L6 -> 5000 | N42: ='Comm Lgt_E262 Elec'!M6 -> 21200 | O42: ='Comm Lgt_E262 Elec'!N6 -> 3600 | P42: ='Comm Lgt_E262 Elec'!O6 -> 1200 | Q42: ='Comm Lgt_E262 Elec'!P6 -> 892500 | R42: ='Comm Lgt_E262 Elec'!Q6 -> 0 | S42: ='Comm Lgt_E262 Elec'!R6 -> 1212112.89 | T42: ='Comm Lgt_E262 Elec'!S6 -> 5116000
B43: Sm Bus DI_E262 Elec | C43: E262 | F43: Small Business Direct Install | H43: 18231134 | I43: ='Sm Bus DI_E262 Elec'!H6 -> 127416.24 | J43: ='Sm Bus DI_E262 Elec'!I6 -> 12072.96 | K43: ='Sm Bus DI_E262 Elec'!J6 -> 98618.8644 | L43: ='Sm Bus DI_E262 Elec'!K6 -> 40000 | M43: ='Sm Bus DI_E262 Elec'!L6 -> 2500 | N43: ='Sm Bus DI_E262 Elec'!M6 -> 65000 | O43: ='Sm Bus DI_E262 Elec'!N6 -> 5400 | P43: ='Sm Bus DI_E262 Elec'!O6 -> 350 | Q43: ='Sm Bus DI_E262 Elec'!P6 -> 1722788.33 | R43: ='Sm Bus DI_E262 Elec'!Q6 -> 0 | S43: ='Sm Bus DI_E262 Elec'!R6 -> 2074146.394 | T43: ='Sm Bus DI_E262 Elec'!S6 -> 6050414
G44: Total, Business Energy Management | I44: =SUM(I30:I37) -> 3408997.76 | J44: =SUM(J30:J37) -> 133070.24 | K44: 2504316.876 | L44: 217610.89 | M44: 147850 | N44: 2769825 | O44: 54550 | P44: 124542 | Q44: 23312166.33 | R44: 0 | S44: =SUM(S30:S37) -> 32672929.1 | T44: =SUM(T30:T37) -> 112126315.2
H46: Original 2015 Totals | I46: 3551700 | J46: 102100 | K46: 2543000 | L46: 210656 | M46: 168190 | N46: 3162103 | O46: 50730 | P46: 320322 | Q46: 21667672.6 | R46: 0 | S46: 31776473.6 | T46: 112162600
C48: Pilots
B49: REM Pilots E249 Elec | C49: E249 | E49: Residential Energy Report Expansion | H49: 18230522 | I49: ='REM Pilots E249 Elec'!H6 -> 57188 | J49: ='REM Pilots E249 Elec'!I6 -> 7000 | K49: ='REM Pilots E249 Elec'!J6 -> 45380.916 | L49: ='REM Pilots E249 Elec'!K6 -> 16200 | M49: ='REM Pilots E249 Elec'!L6 -> 2500 | N49: ='REM Pilots E249 Elec'!M6 -> 566123.5 | O49: ='REM Pilots E249 Elec'!N6 -> 1000 | P49: ='REM Pilots E249 Elec'!O6 -> 1000 | Q49: ='REM Pilots E249 Elec'!P6 -> 430614.8 | R49: ='REM Pilots E249 Elec'!Q6 -> 0 | S49: ='REM Pilots E249 Elec'!R6 -> 1127007.216 | T49: ='REM Pilots E249 Elec'!S6 -> 3219475
B50: BEM Pilots E249 Elec | C50: E249 | E50: Business Energy Reports | H50: 18230506 | I50: ='BEM Pilots E249 Elec'!H6 -> 9200 | J50: ='BEM Pilots E249 Elec'!I6 -> 0 | K50: ='BEM Pilots E249 Elec'!J6 -> 6504.4 | L50: ='BEM Pilots E249 Elec'!K6 -> 0 | M50: ='BEM Pilots E249 Elec'!L6 -> 0 | N50: ='BEM Pilots E249 Elec'!M6 -> 125000 | O50: ='BEM Pilots E249 Elec'!N6 -> 0 | P50: ='BEM Pilots E249 Elec'!O6 -> 0 | Q50: ='BEM Pilots E249 Elec'!P6 -> 0 | R50: ='BEM Pilots E249 Elec'!Q6 -> 0 | S50: ='BEM Pilots E249 Elec'!R6 -> 140704.4 | T50: ='BEM Pilots E249 Elec'!S6 -> 5000000
G51: Total, Pilots | I51: =SUM(I49:I50) -> 66388 | J51: =SUM(J49:J50) -> 7000 | K51: 51885.316 | L51: 16200 | M51: 2500 | N51: 691123.5 | O51: 1000 | P51: 1000 | Q51: 430614.8 | R51: 0 | S51: 1267711.616 | T51: 8219475
H53: Original 2015 Totals | I53: 64887.5 | J53: 7492.5 | K53: 50376.48 | L53: 0 | M53: 3960 | N53: 691123.5 | O53: 0 | P53: 1980 | Q53: 477802 | R53: 0 | S53: 1297621.98 | T53: 8572000
C55: Regional Efficiency Programs
B56: NEEA Detail_E254 elec | C56: E254 | E56: Northwest Energy Efficiency Alliance | H56: 18230421 | I56: ='NEEA Detail_E254 elec'!H6 -> 0 | J56: ='NEEA Detail_E254 elec'!I6 -> 0 | K56: ='NEEA Detail_E254 elec'!J6 -> 0 | L56: ='NEEA Detail_E254 elec'!K6 -> 0 | M56: ='NEEA Detail_E254 elec'!L6 -> 0 | N56: ='NEEA Detail_E254 elec'!M6 -> 1431576.5 | O56: ='NEEA Detail_E254 elec'!N6 -> 0 | P56: ='NEEA Detail_E254 elec'!O6 -> 0 | Q56: ='NEEA Detail_E254 elec'!P6 -> 3340345 | S56: ='NEEA Detail_E254 elec'!Q6 -> 4771921.5 | T56: ='NEEA Detail_E254 elec'!R6 -> 22338000
B57: T&D Detail_Reg E292 elec | E57: Transmission & Distribution | H57: 18230711 | I57: ='T&D Detail_Reg E292 elec'!C6 -> 0 | J57: ='T&D Detail_Reg E292 elec'!D6 -> 0 | K57: ='T&D Detail_Reg E292 elec'!E6 -> 0 | L57: ='T&D Detail_Reg E292 elec'!F6 -> 0 | M57: ='T&D Detail_Reg E292 elec'!G6 -> 0 | N57: ='T&D Detail_Reg E292 elec'!H6 -> 0 | O57: ='T&D Detail_Reg E292 elec'!I6 -> 0 | P57: ='T&D Detail_Reg E292 elec'!J6 -> 0 | Q57: ='T&D Detail_Reg E292 elec'!K6 -> 0 | S57: ='T&D Detail_Reg E292 elec'!L6 -> 0 | T57: ='T&D Detail_Reg E292 elec'!M6 -> 3000000
G58: Total, Regional Efficiency Programs | I58: =SUM(I56:I57) -> 0 | J58: 0 | K58: 0 | L58: 0 | M58: 0 | N58: 1431576.5 | O58: 0 | P58: 0 | Q58: 3340345 | R58: 0 | S58: =SUM(S56:S57) -> 4771921.5 | T58: =SUM(T56:T57) -> 25338000
H60: Original 2015 Totals | I60: 0 | J60: 0 | K60: 0 | L60: 0 | M60: 0 | N60: 885569.5 | O60: 0 | P60: 692622.5 | Q60: 3682448 | R60: 0 | S60: 5260640 | T60: 25438000
C62: Energy Efficiency Portfolio Support
B63: Portf Suppt Cust Eng Elec Title | C63: (Title pg) | E63: Customer Engagement & Education
B64: Engy Adv Detail_PSCE Elec | F64: Energy Advisors | H64: 18230610 | I64: ='Engy Adv Detail_PSCE Elec'!H6 -> 595267.92 | J64: ='Engy Adv Detail_PSCE Elec'!I6 -> 0 | K64: ='Engy Adv Detail_PSCE Elec'!J6 -> 420854.4194 | L64: ='Engy Adv Detail_PSCE Elec'!K6 -> 0 | M64: ='Engy Adv Detail_PSCE Elec'!L6 -> 39000 | N64: ='Engy Adv Detail_PSCE Elec'!M6 -> 913 | O64: ='Engy Adv Detail_PSCE Elec'!N6 -> 3000 | P64: ='Engy Adv Detail_PSCE Elec'!O6 -> 1350 | Q64: ='Engy Adv Detail_PSCE Elec'!P6 -> 0 | R64: ='Engy Adv Detail_PSCE Elec'!Q6 -> 0 | S64: ='Engy Adv Detail_PSCE Elec'!R6 -> 1060385.339
B65: Events Detail_PSCE Elec | F65: Events | H65: 18230487 | I65: ='Events Detail_PSCE Elec'!H6 -> 240451.15 | J65: ='Events Detail_PSCE Elec'!I6 -> 0 | K65: ='Events Detail_PSCE Elec'!J6 -> 169998.963 | L65: ='Events Detail_PSCE Elec'!K6 -> 13050 | M65: ='Events Detail_PSCE Elec'!L6 -> 6045.58 | N65: ='Events Detail_PSCE Elec'!M6 -> 96048 | O65: ='Events Detail_PSCE Elec'!N6 -> 4785 | P65: ='Events Detail_PSCE Elec'!O6 -> 0 | Q65: ='Events Detail_PSCE Elec'!P6 -> 0 | R65: ='Events Detail_PSCE Elec'!Q6 -> 0 | S65: ='Events Detail_PSCE Elec'!R6 -> 530378.6931
B66: Brochures Detail_PSCE Elec | F66: Brochures, non program-specific | H66: 18230482 | I66: ='Brochures Detail_PSCE Elec'!H6 -> 15215 | J66: ='Brochures Detail_PSCE Elec'!I6 -> 0 | K66: ='Brochures Detail_PSCE Elec'!J6 -> 10757.005 | L66: ='Brochures Detail_PSCE Elec'!K6 -> 27280 | M66: ='Brochures Detail_PSCE Elec'!L6 -> 0 | N66: ='Brochures Detail_PSCE Elec'!M6 -> 2175 | O66: ='Brochures Detail_PSCE Elec'!N6 -> 24795 | P66: ='Brochures Detail_PSCE Elec'!O6 -> 0 | Q66: ='Brochures Detail_PSCE Elec'!P6 -> 0 | R66: ='Brochures Detail_PSCE Elec'!Q6 -> 0 | S66: ='Brochures Detail_PSCE Elec'!R6 -> 80222.005
B67: Educatn Detail_PSCE E202 Elec | C67: E202 | F67: Education | H67: 18230621 | I67: ='Educatn Detail_PSCE E202 Elec'!H6 -> 36640.42 | J67: ='Educatn Detail_PSCE E202 Elec'!I6 -> 0 | K67: ='Educatn Detail_PSCE E202 Elec'!J6 -> 25904.77694 | L67: ='Educatn Detail_PSCE E202 Elec'!K6 -> 0 | M67: ='Educatn Detail_PSCE E202 Elec'!L6 -> 840 | N67: ='Educatn Detail_PSCE E202 Elec'!M6 -> 8800 | O67: ='Educatn Detail_PSCE E202 Elec'!N6 -> 8950 | P67: ='Educatn Detail_PSCE E202 Elec'!O6 -> 0 | Q67: ='Educatn Detail_PSCE E202 Elec'!P6 -> 0 | R67: ='Educatn Detail_PSCE E202 Elec'!Q6 -> 0 | S67: ='Educatn Detail_PSCE E202 Elec'!R6 -> 81135.19694
B68: Port Suppt_Web Exp Elec Title | C68: (Title pg) | E68: Web Experience
B69: CustOnline Detail_PSWE_Elec | F69: Customer Online Experience | H69: 18230408 | I69: ='CustOnline Detail_PSWE_Elec'!H6 -> 0 | J69: ='CustOnline Detail_PSWE_Elec'!I6 -> 0 | K69: ='CustOnline Detail_PSWE_Elec'!J6 -> 0 | L69: ='CustOnline Detail_PSWE_Elec'!K6 -> 0 | M69: ='CustOnline Detail_PSWE_Elec'!L6 -> 0 | N69: ='CustOnline Detail_PSWE_Elec'!M6 -> 562455 | O69: ='CustOnline Detail_PSWE_Elec'!N6 -> 0 | P69: ='CustOnline Detail_PSWE_Elec'!O6 -> 0 | Q69: ='CustOnline Detail_PSWE_Elec'!P6 -> 0 | S69: ='CustOnline Detail_PSWE_Elec'!Q6 -> 562455
B70: Mkt Intgn Detail_PSWE_Elec | F70: Market Integration | H70: 18230466 | I70: ='Mkt Intgn Detail_PSWE_Elec'!H6 -> 140385 | J70: ='Mkt Intgn Detail_PSWE_Elec'!I6 -> 0 | K70: ='Mkt Intgn Detail_PSWE_Elec'!J6 -> 99252.195 | L70: ='Mkt Intgn Detail_PSWE_Elec'!K6 -> 0 | M70: ='Mkt Intgn Detail_PSWE_Elec'!L6 -> 0 | N70: ='Mkt Intgn Detail_PSWE_Elec'!M6 -> 59160 | O70: ='Mkt Intgn Detail_PSWE_Elec'!N6 -> 0 | P70: ='Mkt Intgn Detail_PSWE_Elec'!O6 -> 0 | Q70: ='Mkt Intgn Detail_PSWE_Elec'!P6 -> 0 | S70: ='Mkt Intgn Detail_PSWE_Elec'!Q6 -> 298797.195
B71: ABS Detail_PSWE_Elec | F71: MyData (Automated Benchmarking System) | H71: 18230411 | I71: ='ABS Detail_PSWE_Elec'!H6 -> 0 | J71: ='ABS Detail_PSWE_Elec'!I6 -> 0 | K71: ='ABS Detail_PSWE_Elec'!J6 -> 0 | L71: ='ABS Detail_PSWE_Elec'!K6 -> 0 | M71: ='ABS Detail_PSWE_Elec'!L6 -> 0 | N71: ='ABS Detail_PSWE_Elec'!M6 -> 67586 | O71: ='ABS Detail_PSWE_Elec'!N6 -> 0 | P71: ='ABS Detail_PSWE_Elec'!O6 -> 0 | Q71: ='ABS Detail_PSWE_Elec'!P6 -> 0 | R71: ='ABS Detail_PSWE_Elec'!P6 -> 0 | S71: ='ABS Detail_PSWE_Elec'!Q6 -> 67586
B72: ProgSvc-Systems R&C_ Elec | E72: Programs Support - Data and Systems Services | H72: 18230745 | I72: ='Data & Systms Svcs R&C_ Elec'!H6 -> 467685.9 | J72: ='Data & Systms Svcs R&C_ Elec'!I6 -> 0 | K72: ='Data & Systms Svcs R&C_ Elec'!J6 -> 330653.9313 | L72: ='Data & Systms Svcs R&C_ Elec'!K6 -> 0 | M72: ='Data & Systms Svcs R&C_ Elec'!L6 -> 12500 | N72: ='Data & Systms Svcs R&C_ Elec'!M6 -> 15000 | O72: ='Data & Systms Svcs R&C_ Elec'!N6 -> 0 | P72: ='Data & Systms Svcs R&C_ Elec'!O6 -> 0 | Q72: ='Data & Systms Svcs R&C_ Elec'!P6 -> 0 | S72: ='Data & Systms Svcs R&C_ Elec'!Q6 -> 825839.8313
B73: ProgSvcs_Analytics_R&C Elec | E73: Programs Support - Program Development | H73: 18230810 | I73: ='Prog Develpmt_R&C Elec'!H6 -> 187074.36 | J73: ='Prog Develpmt_R&C Elec'!I6 -> 0 | K73: ='Prog Develpmt_R&C Elec'!J6 -> 132261.5725 | L73: ='Prog Develpmt_R&C Elec'!K6 -> 0 | M73: ='Prog Develpmt_R&C Elec'!L6 -> 19500 | N73: ='Prog Develpmt_R&C Elec'!M6 -> 115000 | O73: ='Prog Develpmt_R&C Elec'!N6 -> 0 | P73: ='Prog Develpmt_R&C Elec'!O6 -> 0 | Q73: ='Prog Develpmt_R&C Elec'!P6 -> 0 | S73: ='Prog Develpmt_R&C Elec'!Q6 -> 453835.9325
B74: Rebt Procg Detail_Elec | E74: Rebates Processing | H74: 18230507 | I74: ='Rebt Procg Detail_Elec'!H6 -> 414509.76 | J74: ='Rebt Procg Detail_Elec'!I6 -> 0 | K74: ='Rebt Procg Detail_Elec'!J6 -> 293058.4003 | L74: ='Rebt Procg Detail_Elec'!K6 -> 0 | M74: ='Rebt Procg Detail_Elec'!L6 -> 12615 | N74: ='Rebt Procg Detail_Elec'!M6 -> 15660 | O74: ='Rebt Procg Detail_Elec'!N6 -> 4350 | P74: ='Rebt Procg Detail_Elec'!O6 -> 0 | Q74: ='Rebt Procg Detail_Elec'!P6 -> 0 | S74: ='Rebt Procg Detail_Elec'!Q6 -> 740193.1603
B75: EEC Detail_PS_Elec | E75: Energy Efficient Communities | H75: 18230811 | I75: ='EEC Detail_PS_Elec'!H6 -> 252393 | J75: ='EEC Detail_PS_Elec'!I6 -> 0 | K75: ='EEC Detail_PS_Elec'!J6 -> 178441.851 | L75: ='EEC Detail_PS_Elec'!K6 -> 40890 | M75: ='EEC Detail_PS_Elec'!L6 -> 65000 | N75: ='EEC Detail_PS_Elec'!M6 -> 214850 | O75: ='EEC Detail_PS_Elec'!N6 -> 60941 | P75: ='EEC Detail_PS_Elec'!O6 -> 2000 | Q75: ='EEC Detail_PS_Elec'!P6 -> 0 | S75: ='EEC Detail_PS_Elec'!Q6 -> 814515.851
B76: TradeAlly Detail_PS_ Elec | E76: Trade Ally Support | H76: 18230730 | I76: ='TradeAlly Detail_PS_ Elec'!H6 -> 0 | J76: ='TradeAlly Detail_PS_ Elec'!I6 -> 0 | K76: ='TradeAlly Detail_PS_ Elec'!J6 -> 0 | L76: ='TradeAlly Detail_PS_ Elec'!K6 -> 0 | M76: ='TradeAlly Detail_PS_ Elec'!L6 -> 0 | N76: ='TradeAlly Detail_PS_ Elec'!M6 -> 0 | O76: ='TradeAlly Detail_PS_ Elec'!N6 -> 0 | P76: ='TradeAlly Detail_PS_ Elec'!O6 -> 235922 | Q76: ='TradeAlly Detail_PS_ Elec'!P6 -> 0 | R76: ='TradeAlly Detail_PS_ Elec'!Q6 -> -175589 | S76: ='TradeAlly Detail_PS_ Elec'!R6 -> 60333
G77: Total, Portfolio Support | I77: =SUM(I64:I76) -> 2349622.51 | J77: =SUM(J64:J76) -> 0 | K77: 1661183.115 | L77: 81220 | M77: 155500.58 | N77: 1157647 | O77: 106821 | P77: 239272 | Q77: 0 | R77: -175589 | S77: =SUM(S64:S76) -> 5575677.205
H79: Original 2015 Totals | I79: 1280088.38 | J79: 0 | K79: 890941.5125 | L79: 81220 | M79: 93465.58 | N79: 882511 | O79: 102471 | P79: 55533 | Q79: 0 | R79: 0 | S79: 3386230.472
C81: Research & Compliance
B82: SuppCrv Detail_R&C_Elec | E82: Conservation Supply Curves | H82: 18230809 | I82: ='SuppCrv Detail_R&C_Elec'!H6 -> 99333 | J82: ='SuppCrv Detail_R&C_Elec'!I6 -> 0 | K82: ='SuppCrv Detail_R&C_Elec'!J6 -> 70228.431 | L82: ='SuppCrv Detail_R&C_Elec'!K6 -> 0 | M82: ='SuppCrv Detail_R&C_Elec'!L6 -> 200 | N82: ='SuppCrv Detail_R&C_Elec'!M6 -> 27000 | O82: ='SuppCrv Detail_R&C_Elec'!N6 -> 0 | P82: ='SuppCrv Detail_R&C_Elec'!O6 -> 0 | Q82: ='SuppCrv Detail_R&C_Elec'!P6 -> 0 | S82: ='SuppCrv Detail_R&C_Elec'!Q6 -> 196761.431
B83: Strat Plan Detail_R&C_Elec | E83: Strategic Planning | H83: 18230469 | I83: ='Strat Plan Detail_R&C_Elec'!H6 -> 91560 | J83: ='Strat Plan Detail_R&C_Elec'!I6 -> 0 | K83: ='Strat Plan Detail_R&C_Elec'!J6 -> 64732.92 | L83: ='Strat Plan Detail_R&C_Elec'!K6 -> 0 | M83: ='Strat Plan Detail_R&C_Elec'!L6 -> 2100 | N83: ='Strat Plan Detail_R&C_Elec'!M6 -> 0 | O83: ='Strat Plan Detail_R&C_Elec'!N6 -> 0 | P83: ='Strat Plan Detail_R&C_Elec'!O6 -> 0 | Q83: ='Strat Plan Detail_R&C_Elec'!P6 -> 0 | S83: ='Strat Plan Detail_R&C_Elec'!Q6 -> 158392.92
B84: Mktg Resch Detail_PS_ Elec | E84: Market Research | H84: 18230437 | I84: ='Mktg Resch Detail_PS_ Elec'!H6 -> 67623.94 | J84: ='Mktg Resch Detail_PS_ Elec'!I6 -> 0 | K84: ='Mktg Resch Detail_PS_ Elec'!J6 -> 47810.12558 | L84: ='Mktg Resch Detail_PS_ Elec'!K6 -> 0 | M84: ='Mktg Resch Detail_PS_ Elec'!L6 -> 4250 | N84: ='Mktg Resch Detail_PS_ Elec'!M6 -> 195131.055 | O84: ='Mktg Resch Detail_PS_ Elec'!N6 -> 1350 | P84: ='Mktg Resch Detail_PS_ Elec'!O6 -> 0 | Q84: ='Mktg Resch Detail_PS_ Elec'!P6 -> 0 | S84: ='Mktg Resch Detail_PS_ Elec'!Q6 -> 316165.1206
B85: Eval Detail_R&C_Elec | E85: Program Evaluation | H85: 18230802 | I85: ='Eval Detail_R&C_Elec'!H6 -> 248019 | J85: ='Eval Detail_R&C_Elec'!I6 -> 0 | K85: ='Eval Detail_R&C_Elec'!J6 -> 175349.433 | L85: ='Eval Detail_R&C_Elec'!K6 -> 0 | M85: ='Eval Detail_R&C_Elec'!L6 -> 9300 | N85: ='Eval Detail_R&C_Elec'!M6 -> 1938394.8 | O85: ='Eval Detail_R&C_Elec'!N6 -> 0 | P85: ='Eval Detail_R&C_Elec'!O6 -> 196500 | Q85: ='Eval Detail_R&C_Elec'!P6 -> 0 | S85: ='Eval Detail_R&C_Elec'!Q6 -> 2567563.233
B86: BECAR Detail_R&C Elec | E86: Biennial Elec. Consv. Aquisitn. Review | H86: 18230624 | I86: ='BECAR Detail_R&C Elec'!H6 -> 0 | J86: ='BECAR Detail_R&C Elec'!I6 -> 0 | K86: ='BECAR Detail_R&C Elec'!J6 -> 0 | L86: ='BECAR Detail_R&C Elec'!K6 -> 0 | M86: ='BECAR Detail_R&C Elec'!L6 -> 0 | N86: ='BECAR Detail_R&C Elec'!M6 -> 110000 | O86: ='BECAR Detail_R&C Elec'!N6 -> 0 | P86: ='BECAR Detail_R&C Elec'!O6 -> 0 | Q86: ='BECAR Detail_R&C Elec'!P6 -> 0 | S86: ='BECAR Detail_R&C Elec'!Q6 -> 110000
B87: VTeam Detail_R&C_Elec | E87: Verification Team | H87: 18230418 | I87: ='VTeam Detail_R&C_Elec'!H6 -> 207254.88 | J87: ='VTeam Detail_R&C_Elec'!I6 -> 0 | K87: ='VTeam Detail_R&C_Elec'!J6 -> 146529.2002 | L87: ='VTeam Detail_R&C_Elec'!K6 -> 0 | M87: ='VTeam Detail_R&C_Elec'!L6 -> 5655 | N87: ='VTeam Detail_R&C_Elec'!M6 -> 95700 | O87: ='VTeam Detail_R&C_Elec'!N6 -> 2610 | P87: ='VTeam Detail_R&C_Elec'!O6 -> 0 | Q87: ='VTeam Detail_R&C_Elec'!P6 -> 0 | S87: ='VTeam Detail_R&C_Elec'!Q6 -> 457749.0802
G88: Total, Research & Compliance | I88: =SUM(I82:I87) -> 713790.82 | J88: =SUM(J82:J87) -> 0 | K88: 504650.1097 | L88: 0 | M88: 21505 | N88: 2366225.855 | O88: =SUM(O82:O87) -> 3960 | P88: 196500 | Q88: 0 | R88: 0 | S88: 3806631.785
H90: Original 2015 Totals | I90: 1057517.14 | J90: 0 | K90: 736031.9294 | L90: 0 | M90: 42055 | N90: 1850807.555 | O90: 203747 | P90: 0 | Q90: 0 | R90: 0 | S90: 3890158.624
C92: Other Electric Programs
B93: Net Mtr Details_Oth Elec E150 | C93: E150 | E93: Net Metering | H93: 18230128 | I93: ='Net Mtr Details_Oth Elec E150'!H6 -> 195006.6812 | J93: ='Net Mtr Details_Oth Elec E150'!I6 -> 0 | K93: ='Net Mtr Details_Oth Elec E150'!J6 -> 137869.7236 | L93: ='Net Mtr Details_Oth Elec E150'!K6 -> 0 | M93: ='Net Mtr Details_Oth Elec E150'!L6 -> 12320 | N93: ='Net Mtr Details_Oth Elec E150'!M6 -> 0 | O93: ='Net Mtr Details_Oth Elec E150'!N6 -> 10000 | P93: ='Net Mtr Details_Oth Elec E150'!O6 -> 405000 | Q93: ='Net Mtr Details_Oth Elec E150'!P6 -> 0 | S93: ='Net Mtr Details_Oth Elec E150'!Q6 -> 760196.4049
B94: ElecVehChgInctv_E195_Elec | C94: E195 | E94: Electric Vehicle Charger Incentive | H94: 18230613 | I94: =ElecVehChgInctv_E195_Elec!H6 -> 121885 | J94: =ElecVehChgInctv_E195_Elec!I6 -> 13184 | K94: =ElecVehChgInctv_E195_Elec!J6 -> 95493.783 | L94: =ElecVehChgInctv_E195_Elec!K6 -> 36000 | M94: =ElecVehChgInctv_E195_Elec!L6 -> 9950 | N94: =ElecVehChgInctv_E195_Elec!M6 -> 314133 | O94: =ElecVehChgInctv_E195_Elec!N6 -> 0 | P94: =ElecVehChgInctv_E195_Elec!O6 -> 0 | Q94: =ElecVehChgInctv_E195_Elec!P6 -> 2287500 | S94: =ElecVehChgInctv_E195_Elec!Q6 -> 2878145.783
B95: Cancelled_Oth Elec_Renw Ed E248 | C95: E248 | E95: Renewable Energy Education | H95: 18230492 | I95: ='Cancelled_Oth Elec_Renw Ed E248'!H6 -> 0 | J95: ='Cancelled_Oth Elec_Renw Ed E248'!I6 -> 0 | K95: ='Cancelled_Oth Elec_Renw Ed E248'!J6 -> 0 | L95: ='Cancelled_Oth Elec_Renw Ed E248'!K6 -> 0 | M95: ='Cancelled_Oth Elec_Renw Ed E248'!L6 -> 0 | N95: ='Cancelled_Oth Elec_Renw Ed E248'!M6 -> 0 | O95: ='Cancelled_Oth Elec_Renw Ed E248'!N6 -> 0 | P95: ='Cancelled_Oth Elec_Renw Ed E248'!O6 -> 0 | Q95: ='Cancelled_Oth Elec_Renw Ed E248'!P6 -> 0 | S95: ='Cancelled_Oth Elec_Renw Ed E248'!Q6 -> 0
B96: CI Load Details_Oth Elec E271 | C96: E271 | E96: C/I Load Control | H96: 18230438 | I96: ='CI Load Details_Oth Elec E271'!H6 -> 0 | J96: ='CI Load Details_Oth Elec E271'!I6 -> 0 | K96: ='CI Load Details_Oth Elec E271'!J6 -> 0 | L96: ='CI Load Details_Oth Elec E271'!K6 -> 0 | M96: ='CI Load Details_Oth Elec E271'!L6 -> 0 | N96: ='CI Load Details_Oth Elec E271'!M6 -> 0 | O96: ='CI Load Details_Oth Elec E271'!N6 -> 0 | P96: ='CI Load Details_Oth Elec E271'!O6 -> 0 | Q96: ='CI Load Details_Oth Elec E271'!P6 -> 0 | S96: ='CI Load Details_Oth Elec E271'!Q6 -> 0
B97: Suspended_Oth Elec_Res DR | E97: Residential Demand Response | H97: 18230439 | I97: ='Suspended_Oth Elec_Res DR'!H6 -> 0 | J97: ='Suspended_Oth Elec_Res DR'!I6 -> 0 | K97: ='Suspended_Oth Elec_Res DR'!J6 -> 0 | L97: ='Suspended_Oth Elec_Res DR'!K6 -> 0 | M97: ='Suspended_Oth Elec_Res DR'!L6 -> 0 | N97: ='Suspended_Oth Elec_Res DR'!M6 -> 0 | O97: ='Suspended_Oth Elec_Res DR'!N6 -> 0 | P97: ='Suspended_Oth Elec_Res DR'!O6 -> 0 | Q97: ='Suspended_Oth Elec_Res DR'!P6 -> 0 | S97: ='Suspended_Oth Elec_Res DR'!Q6 -> 0
G98: Total, Other Electric Programs | I98: =SUM(I93:I97) -> 316891.6812 | J98: =SUM(J93:J97) -> 13184 | K98: 233363.5066 | L98: 36000 | M98: 22270 | N98: 314133 | O98: 10000 | P98: 405000 | Q98: 2287500 | R98: 0 | S98: 3638342.188
H100: Original 2015 Totals | I100: 222721.2542 | J100: 0 | K100: 155013.9929 | L100: 0 | M100: 12320 | N100: 0 | O100: 10000 | P100: 17000 | Q100: 0 | R100: 0 | S100: 417055.2472
G103: GRAND TOTAL, ELECTRIC PROGRAMS | I103: =BEM_2015_Labtot_E+Pilot_Labtot_E_2015+OthElec_2015_Labtot_E+PortSupp_2015_Labtot_E+Reg_2015_Labtot_E+REM_2015_Labtot_E+ResComp_2015_Labtot_E -> 8003859.321 | J103: =BEM_2015_Mktlabtot_E+Mktlabtot_E_2015+OthElec_2015_Mktlabtot_E+PortSupp_2015_Mktlabtot_E+Reg_2015_Mktlabtot_E+REM_2015_Mktlabtot_E+ResComp_2015_Mktlabtot_E -> 578434.28 | K103: =BEM_2015_Oheadtot_E+Pilot_oheadtot_E_2015+OthElec_2015_Oheadtot_E+PortSupp_2015_Oheadtot_E+Reg_2015_Oheadtot_E+REM_2015_Oheadtot_E+ResComp_2015_Oheadtot_E -> 6067756.376 | L103: =REM_2015_Mktgtot_E+BEM_2015_Mkttot_E+Pilot_Mkttot_E_2015+Reg_2015_Mkttot_E+PortSupp_2015_Mkttot_E+ResComp_2015_Mkttot_E+OthElec_2015_Mkttot_E -> 3443123.89 | M103: =REM_2015_EEtot_E+BEM_2015_EEtot_E+Pilot_EmpExptot_E_2015+Reg_2015_EEtot_E+PortSupp_2015_EEtot_E+ResComp_2015_EEtot_E+OthElec_2015_EEtot_E -> 409829.84 | N103: =REM_2015_Outsvctot_E+BEM_2015_Outsvcstot_E+Pilot_outsvctot_E_2015+Reg_2015_Outsvctot_E+PortSupp_2015_Outsvctot_E+ResComp_2015_Outsvctot_E+OthElec_2015_Outsvctot_E -> 11467570.23 | O103: =REM_2015_Mattot_E+BEM_2015_Mattot_E+Pilot_matlstot_E_2015+Reg_2015_Mattot_E+PortSupp_2015_Mattot_E+ResComp_2015_Matltot_E+OthElec_2015_Mattot_E -> 223338.96 | P103: =REM_2015_Misctot_E+BEM_2015_Misctot_E+Pilot_Misctot_E_2015+Reg_2015_Misctot_E+PortSupp_2015_Misctot_E+ResComp_2015_Misctot_E+OthElec_2015_Misctot_E -> 1051104.71 | Q103: =REM_2015_DBtCtot_E+BEM_2015_DBtCtot_E+Pilot_DBTCtot_E_2015+Reg_2015_DBtCtot_E+PortSupp_2015_DBtCtot_E+ResComp_2015_DBtCtot_E+OthElec_2015_DBtCtot_E -> 68338096.13 | R103: =REM_2015_Revtot_E+BEM_2015_Revtot_E+Reg_2015_Revtot_E+PortSupp_2015_Revtot_E+ResComp_2015_Revtot_E+OthElec_2015_Revtot_E -> -175589 | S103: =REM_2015_TotBudg_E+BEM_2015_Totbudget_E+Pilot_totbudget_E_2015+Reg_2015_Totbudget_E+PortSupp_2015_Totbudget_E+ResComp_2015_Totbudget_E+OthElec_2015_Totbudget_E -> 99407525.05 | T103: =REM_2015_Totsvgs_E+BEM_2015_Totalsvgs_E+Pilot_Totsavings_E_2015+Reg_2015_totsvgs_E -> 277605036.2
T104: =T103/1000/8760 -> 31.69007263
H106: Original 2015 Totals | I106: 7565100 | J106: 626075 | K106: 5701013 | L106: 3331469 | M106: 378135 | N106: 9888975 | O106: 441806 | P106: 1193568 | Q106: 63515515 | R106: =REM_2015_Revtot_E+BEM_2015_Revtot_E+Reg_2015_Revtot_E+PortSupp_2015_Revtot_E+ResComp_2015_Revtot_E+OthElec_2015_Revtot_E -> -175589 | S106: 92641655 | T106: 268163651
T107: =(T106/1000)/8760 -> 30.61228893
G108: Budget Category Includes | H108: This is the main level of tracking expenditures and expenses in EES. Per FERC rules, all conservation order numbers start with a "1823nnnn", where "n" is some number. Cost elements apply to all order numbers (for instance, all conservation programs that | I108: Energy Efficiency program staff labor. Average FTE cost including management assessments. This Budget Category group includes assessments from Major Accounts management, Resource Planning, Corporate Communications management, IT specialists and some building maintenance allocations. | J108: Also Energy Efficiency staff labor, associated specifically with Marketing functions. Marketing allocates staffing according to program needs. | K108: Overhead--costs associated with primarily employee labor; benefits, for instance. | L108: Service and materials associated with the cost of printing program brochures, marketing pieces, advertising, banners, etc. Also includes marketing conducted by vendors and contractors. | M108: Costs associated with EE staff attending events, employee training, conferences, business meals, business parking, ferry & bridge tolls, mileage incurred on employee automobiles, office supplies, phones, subscriptions, software/hardware, etc. | N108: Contractors and vendors, such as PECI, Ecos, CostCo, EFI, etc. Legal expenses, technical services (CMS design, PSE.com web portals, etc.). These costs do NOT include brochure development, marketing pieces, (which are classified under MARKETING). These costs do NOT include incentives paid to customers by contractors. | O108: Primarily tools, trade show equipment, etc. | P108: This category should seldomly be used, and only expenses that cannot be classified under one of the above categories. | Q108: All costs associated with rebates, grants, remuneration, value-added services. PSE cost element # 62510000; Consumer Incentive Payments, is classified by the Accounting department as Miscellaneous. However, it is one of the primarly elements of Energy Efficiency's Direct Benefit to Customer (DBtC). | R108: Any amount that PSE is paid by a customer, partner, municipality or outside entity.

Sheet 2015 Sector View Gas
C2: Energy Efficiency 2015 Budgets, Sector View
C3: Gas Programs | I3: Please see category descriptions at the bottom of the sector table.
I4: Budget Category
B5: Workbook Name | C5: Schedule | D5: Comment | E5: Description | H5: Order Number (Click on the order# below to link to the detail page) | I5: Labor | J5: Marketing Labor | K5: Overhead | L5: Marketing | M5: Employee/Office Expense | N5: Outside Services | O5: Materials | P5: Conservation-Specific Memberships, Sponsorships & Miscellaneous | Q5: DBtC | R5: Revenue | S5: Total Budget | T5: Total Savings Therms | V5: Comments
C6: Residential Energy Management
B7: LIW Detail_REM G201 Gas | C7: G201 | E7: Low Income Weatherization | H7: 18230661 | I7: ='LIW Detail_REM G201 Gas'!H6 -> 15426 | J7: ='LIW Detail_REM G201 Gas'!I6 -> 1300 | K7: ='LIW Detail_REM G201 Gas'!J6 -> 11825.282 | L7: ='LIW Detail_REM G201 Gas'!K6 -> 5000 | M7: ='LIW Detail_REM G201 Gas'!L6 -> 900 | N7: ='LIW Detail_REM G201 Gas'!M6 -> 2000 | O7: ='LIW Detail_REM G201 Gas'!N6 -> 0 | P7: ='LIW Detail_REM G201 Gas'!O6 -> 0 | Q7: ='LIW Detail_REM G201 Gas'!P6 -> 231646.432 | R7: ='LIW Detail_REM G201 Gas'!Q6 -> 0 | S7: ='LIW Detail_REM G201 Gas'!R6 -> 268097.714 | T7: ='LIW Detail_REM G201 Gas'!S6 -> 18814.63
B8: HmPrint Detail_REM G214 Gas | C8: G214 | E8: HomePrint | H8: 18230635 | I8: ='HmPrint Detail_REM G214 Gas'!H6 -> 0 | J8: ='HmPrint Detail_REM G214 Gas'!I6 -> 0 | K8: ='HmPrint Detail_REM G214 Gas'!J6 -> 0 | L8: ='HmPrint Detail_REM G214 Gas'!K6 -> 0 | M8: ='HmPrint Detail_REM G214 Gas'!L6 -> 0 | N8: ='HmPrint Detail_REM G214 Gas'!M6 -> 0 | O8: ='HmPrint Detail_REM G214 Gas'!N6 -> 0 | P8: ='HmPrint Detail_REM G214 Gas'!O6 -> 0 | Q8: ='HmPrint Detail_REM G214 Gas'!P6 -> 0 | R8: ='HmPrint Detail_REM G214 Gas'!Q6 -> 0 | S8: ='HmPrint Detail_REM G214 Gas'!R6 -> 0 | T8: ='HmPrint Detail_REM G214 Gas'!S6 -> 0
B9: WtrHeat Detail_REM G214 Gas | C9: G214 | E9: SF Existing Water Heat | H9: 18230636 | I9: ='WtrHeat Detail_REM G214 Gas'!H6 -> 0 | J9: ='WtrHeat Detail_REM G214 Gas'!I6 -> 0 | K9: ='WtrHeat Detail_REM G214 Gas'!J6 -> 0 | L9: ='WtrHeat Detail_REM G214 Gas'!K6 -> 0 | M9: ='WtrHeat Detail_REM G214 Gas'!L6 -> 0 | N9: ='WtrHeat Detail_REM G214 Gas'!M6 -> 0 | O9: ='WtrHeat Detail_REM G214 Gas'!N6 -> 0 | P9: ='WtrHeat Detail_REM G214 Gas'!O6 -> 0 | Q9: ='WtrHeat Detail_REM G214 Gas'!P6 -> 0 | R9: ='WtrHeat Detail_REM G214 Gas'!Q6 -> 0 | S9: ='WtrHeat Detail_REM G214 Gas'!R6 -> 0 | T9: ='WtrHeat Detail_REM G214 Gas'!S6 -> 0
B10: Wx Detail_REM G214 Gas | C10: G214 | E10: SF Existing Weatherization | H10: 18230637 | I10: ='Wx Detail_REM G214 Gas'!H6 -> 28829.16 | J10: ='Wx Detail_REM G214 Gas'!I6 -> 12072.96 | K10: ='Wx Detail_REM G214 Gas'!J6 -> 28917.79884 | L10: ='Wx Detail_REM G214 Gas'!K6 -> 37500 | M10: ='Wx Detail_REM G214 Gas'!L6 -> 2500 | N10: ='Wx Detail_REM G214 Gas'!M6 -> 292500 | O10: ='Wx Detail_REM G214 Gas'!N6 -> 0 | P10: ='Wx Detail_REM G214 Gas'!O6 -> 15000 | Q10: ='Wx Detail_REM G214 Gas'!P6 -> 2754225 | R10: ='Wx Detail_REM G214 Gas'!Q6 -> 0 | S10: ='Wx Detail_REM G214 Gas'!R6 -> 3171544.919 | T10: ='Wx Detail_REM G214 Gas'!S6 -> 432015
B11: SpHeat Detail_REM G214 Gas | C11: G214 | E11: SF Existing Space Heat | H11: 18230638 | I11: ='SpHeat Detail_REM G214 Gas'!H6 -> 41145.12 | J11: ='SpHeat Detail_REM G214 Gas'!I6 -> 14085.12 | K11: ='SpHeat Detail_REM G214 Gas'!J6 -> 39047.77968 | L11: ='SpHeat Detail_REM G214 Gas'!K6 -> 165000 | M11: ='SpHeat Detail_REM G214 Gas'!L6 -> 5400 | N11: ='SpHeat Detail_REM G214 Gas'!M6 -> 18000 | O11: ='SpHeat Detail_REM G214 Gas'!N6 -> 15400 | P11: ='SpHeat Detail_REM G214 Gas'!O6 -> 10200 | Q11: ='SpHeat Detail_REM G214 Gas'!P6 -> 1287500 | R11: ='SpHeat Detail_REM G214 Gas'!Q6 -> 0 | S11: ='SpHeat Detail_REM G214 Gas'!R6 -> 1595778.02 | T11: ='SpHeat Detail_REM G214 Gas'!S6 -> 531650
B12: ShwrHead Detail_REM G214 Gas | C12: G214 | E12: Residential Showerheads | H12: 18230700 | I12: ='ShwrHead Detail_REM G214 Gas'!H6 -> 19000 | J12: ='ShwrHead Detail_REM G214 Gas'!I6 -> 4500 | K12: ='ShwrHead Detail_REM G214 Gas'!J6 -> 16614.5 | L12: ='ShwrHead Detail_REM G214 Gas'!K6 -> 25000 | M12: ='ShwrHead Detail_REM G214 Gas'!L6 -> 300 | N12: ='ShwrHead Detail_REM G214 Gas'!M6 -> 10000 | O12: ='ShwrHead Detail_REM G214 Gas'!N6 -> 500 | P12: ='ShwrHead Detail_REM G214 Gas'!O6 -> 300 | Q12: ='ShwrHead Detail_REM G214 Gas'!P6 -> 310900 | R12: ='ShwrHead Detail_REM G214 Gas'!Q6 -> 0 | S12: ='ShwrHead Detail_REM G214 Gas'!R6 -> 387114.5 | T12: ='ShwrHead Detail_REM G214 Gas'!S6 -> 145116
B13: HmApplSvgs Detail_REM G214 Gas | C13: G214 | E13: Home Appliances | H13: Savings Only | I13: ='HmApplSvgs Detail_REM G214 Gas'!H6 -> 0 | J13: ='HmApplSvgs Detail_REM G214 Gas'!I6 -> 0 | K13: ='HmApplSvgs Detail_REM G214 Gas'!J6 -> 0 | L13: ='HmApplSvgs Detail_REM G214 Gas'!K6 -> 0 | M13: ='HmApplSvgs Detail_REM G214 Gas'!L6 -> 0 | N13: ='HmApplSvgs Detail_REM G214 Gas'!M6 -> 0 | O13: ='HmApplSvgs Detail_REM G214 Gas'!N6 -> 0 | P13: ='HmApplSvgs Detail_REM G214 Gas'!O6 -> 0 | Q13: ='HmApplSvgs Detail_REM G214 Gas'!P6 -> 0 | R13: ='HmApplSvgs Detail_REM G214 Gas'!Q6 -> 0 | S13: ='HmApplSvgs Detail_REM G214 Gas'!R6 -> 0 | T13: ='HmApplSvgs Detail_REM G214 Gas'!S6 -> 32735.5
B14: MHDS Detail_REM G214 Gas | C14: G214 | E14: Mobile Home Duct Sealing | H14: 18230680 | I14: ='MHDS Detail_REM G214 Gas'!H6 -> 0 | J14: ='MHDS Detail_REM G214 Gas'!I6 -> 0 | K14: ='MHDS Detail_REM G214 Gas'!J6 -> 0 | L14: ='MHDS Detail_REM G214 Gas'!K6 -> 0 | M14: ='MHDS Detail_REM G214 Gas'!L6 -> 0 | N14: ='MHDS Detail_REM G214 Gas'!M6 -> 0 | O14: ='MHDS Detail_REM G214 Gas'!N6 -> 0 | P14: ='MHDS Detail_REM G214 Gas'!O6 -> 0 | Q14: ='MHDS Detail_REM G214 Gas'!P6 -> 0 | R14: ='MHDS Detail_REM G214 Gas'!Q6 -> 0 | S14: ='MHDS Detail_REM G214 Gas'!R6 -> 0 | T14: ='MHDS Detail_REM G214 Gas'!S6 -> 0
B15: WebTstat Detail_REM G214 Gas | C15: G214 | E15: Web-Enabled Thermostats | H15: 18230687 | I15: ='WebTstat Detail_REM G214 Gas'!H6 -> 25000 | J15: ='WebTstat Detail_REM G214 Gas'!I6 -> 2500 | K15: ='WebTstat Detail_REM G214 Gas'!J6 -> 19442.5 | L15: ='WebTstat Detail_REM G214 Gas'!K6 -> 20000 | M15: ='WebTstat Detail_REM G214 Gas'!L6 -> 500 | N15: ='WebTstat Detail_REM G214 Gas'!M6 -> 0 | O15: ='WebTstat Detail_REM G214 Gas'!N6 -> 500 | P15: ='WebTstat Detail_REM G214 Gas'!O6 -> 500 | Q15: ='WebTstat Detail_REM G214 Gas'!P6 -> 255000 | R15: ='WebTstat Detail_REM G214 Gas'!Q6 -> 0 | S15: ='WebTstat Detail_REM G214 Gas'!R6 -> 323442.5 | T15: ='WebTstat Detail_REM G214 Gas'!S6 -> 54000
B16: HER Detail_REM G214 gas | C16: G214 | E16: Home Energy Reports | H16: 18230738 | I16: ='HER Detail_REM G214 gas'!H6 -> 1913 | J16: ='HER Detail_REM G214 gas'!I6 -> 375 | K16: ='HER Detail_REM G214 gas'!J6 -> 1617.616 | L16: ='HER Detail_REM G214 gas'!K6 -> 0 | M16: ='HER Detail_REM G214 gas'!L6 -> 250 | N16: ='HER Detail_REM G214 gas'!M6 -> 21995 | O16: ='HER Detail_REM G214 gas'!N6 -> 100 | P16: ='HER Detail_REM G214 gas'!O6 -> 100 | Q16: ='HER Detail_REM G214 gas'!P6 -> 18340 | R16: ='HER Detail_REM G214 gas'!Q6 -> 0 | S16: ='HER Detail_REM G214 gas'!R6 -> 44690.616 | T16: ='HER Detail_REM G214 gas'!S6 -> 0
B17: NCMfgHomes Detail_REM G215 Gas | C17: G215 | D17: P/O Res. New Construction | E17: Energy Star Manufactured Home | H17: 18230442 | I17: ='NCMfgHomes Detail_REM G215 Gas'!H6 -> 0 | J17: ='NCMfgHomes Detail_REM G215 Gas'!I6 -> 0 | K17: ='NCMfgHomes Detail_REM G215 Gas'!J6 -> 0 | L17: ='NCMfgHomes Detail_REM G215 Gas'!K6 -> 0 | M17: ='NCMfgHomes Detail_REM G215 Gas'!L6 -> 0 | N17: ='NCMfgHomes Detail_REM G215 Gas'!M6 -> 0 | O17: ='NCMfgHomes Detail_REM G215 Gas'!N6 -> 0 | P17: ='NCMfgHomes Detail_REM G215 Gas'!O6 -> 0 | Q17: ='NCMfgHomes Detail_REM G215 Gas'!P6 -> 0 | R17: ='NCMfgHomes Detail_REM G215 Gas'!Q6 -> 0 | S17: ='NCMfgHomes Detail_REM G215 Gas'!R6 -> 0 | T17: ='NCMfgHomes Detail_REM G215 Gas'!S6 -> 0
B18: SFNC Detail_REM G215 Gas | C18: G215 | D18: P/O Res. New Construction | E18: Single Family New Construction | H18: 18230684 | I18: ='SFNC Detail_REM G215 Gas'!H6 -> 5492 | J18: ='SFNC Detail_REM G215 Gas'!I6 -> 1099 | K18: ='SFNC Detail_REM G215 Gas'!J6 -> 3882.844 | L18: ='SFNC Detail_REM G215 Gas'!K6 -> 24000 | M18: ='SFNC Detail_REM G215 Gas'!L6 -> 0 | N18: ='SFNC Detail_REM G215 Gas'!M6 -> 0 | O18: ='SFNC Detail_REM G215 Gas'!N6 -> 2500 | P18: ='SFNC Detail_REM G215 Gas'!O6 -> 0 | Q18: ='SFNC Detail_REM G215 Gas'!P6 -> 0 | R18: ='SFNC Detail_REM G215 Gas'!Q6 -> 0 | S18: ='SFNC Detail_REM G215 Gas'!R6 -> 36973.844 | T18: ='SFNC Detail_REM G215 Gas'!S6 -> 0
B19: MF Retr Detail_REM G217 Gas | C19: G217 | E19: Multi-Family Existing | H19: 18230736 | I19: ='MF Retr Detail_REM G217 Gas'!H6 -> 52723.8 | J19: ='MF Retr Detail_REM G217 Gas'!I6 -> 3321 | K19: ='MF Retr Detail_REM G217 Gas'!J6 -> 39623.6736 | L19: ='MF Retr Detail_REM G217 Gas'!K6 -> 3750 | M19: ='MF Retr Detail_REM G217 Gas'!L6 -> 1500 | N19: ='MF Retr Detail_REM G217 Gas'!M6 -> 54403.52 | O19: ='MF Retr Detail_REM G217 Gas'!N6 -> 1500 | P19: ='MF Retr Detail_REM G217 Gas'!O6 -> 200 | Q19: ='MF Retr Detail_REM G217 Gas'!P6 -> 342022.5 | R19: ='MF Retr Detail_REM G217 Gas'!Q6 -> 0 | S19: ='MF Retr Detail_REM G217 Gas'!R6 -> 499044.4936 | T19: ='MF Retr Detail_REM G217 Gas'!S6 -> 107541.65
B20: MFNC Detail_REM G218 Gas | C20: G218 | D20: P/O Res. New Construction | E20: Multi-Family New Construction | H20: 18230673 | I20: ='MFNC Detail_REM G218 Gas'!H6 -> 105000 | J20: ='MFNC Detail_REM G218 Gas'!I6 -> 2500 | K20: ='MFNC Detail_REM G218 Gas'!J6 -> 76002.5 | L20: ='MFNC Detail_REM G218 Gas'!K6 -> 10000 | M20: ='MFNC Detail_REM G218 Gas'!L6 -> 7000 | N20: ='MFNC Detail_REM G218 Gas'!M6 -> 8000 | O20: ='MFNC Detail_REM G218 Gas'!N6 -> 200 | P20: ='MFNC Detail_REM G218 Gas'!O6 -> 0 | Q20: ='MFNC Detail_REM G218 Gas'!P6 -> 412171.8 | R20: ='MFNC Detail_REM G218 Gas'!Q6 -> 0 | S20: ='MFNC Detail_REM G218 Gas'!R6 -> 620874.3 | T20: ='MFNC Detail_REM G218 Gas'!S6 -> 147072
G21: Total, Residential Energy Management | I21: =SUM(I7:I20) -> 294529.08 | J21: 41753.08 | K21: 236974.4941 | L21: 290250 | M21: 18350 | N21: 406898.52 | O21: 20700 | P21: 26300 | Q21: 5611805.732 | R21: 0 | S21: 6947560.906 | T21: =SUM(T7:T20) -> 1468944.78
H23: Original 2015 Totals | I23: 349392.45 | J23: 44165 | K23: 273915.9852 | L23: 253950 | M23: 28420 | N23: 365495 | O23: 19650 | P23: 26360 | Q23: 5991489.5 | R23: 0 | S23: 7352837.935 | T23: 1583942.22
C26: Business Energy Management
B27: CI Retr Detail_BEM G250 Gas | C27: G250 | E27: Commercial/Industrial Retrofit | H27: 18230731 | I27: ='CI Retr Detail_BEM G250 Gas'!C6 -> 465200 | J27: ='CI Retr Detail_BEM G250 Gas'!D6 -> 6100 | K27: ='CI Retr Detail_BEM G250 Gas'!E6 -> 333200 | L27: ='CI Retr Detail_BEM G250 Gas'!F6 -> 22890 | M27: ='CI Retr Detail_BEM G250 Gas'!G6 -> 8210 | N27: ='CI Retr Detail_BEM G250 Gas'!H6 -> 154470 | O27: ='CI Retr Detail_BEM G250 Gas'!I6 -> 1620 | P27: ='CI Retr Detail_BEM G250 Gas'!J6 -> 39790 | Q27: ='CI Retr Detail_BEM G250 Gas'!K6 -> 1013200 | S27: ='CI Retr Detail_BEM G250 Gas'!L6 -> 2044680 | T27: ='CI Retr Detail_BEM G250 Gas'!M6 -> 381000
B28: CI NC Detail_BEM G251 Gas | C28: G251 | E28: Commercial/Industrial New Construction | H28: 18230706 | I28: ='CI NC Detail_BEM G251 Gas'!C6 -> 43000 | J28: ='CI NC Detail_BEM G251 Gas'!D6 -> 2400 | K28: ='CI NC Detail_BEM G251 Gas'!E6 -> 32100 | L28: ='CI NC Detail_BEM G251 Gas'!F6 -> 8490 | M28: ='CI NC Detail_BEM G251 Gas'!G6 -> 1060 | N28: ='CI NC Detail_BEM G251 Gas'!H6 -> 16559 | O28: ='CI NC Detail_BEM G251 Gas'!I6 -> 180 | P28: ='CI NC Detail_BEM G251 Gas'!J6 -> 2447 | Q28: ='CI NC Detail_BEM G251 Gas'!K6 -> 500000 | S28: ='CI NC Detail_BEM G251 Gas'!L6 -> 606236 | T28: ='CI NC Detail_BEM G251 Gas'!M6 -> 150000
B29: RCM Detail_BEM 253 Gas | C29: G253 | E29: Resource Conservation Manager | H29: 18230691 | I29: ='RCM Detail_BEM 253 Gas'!C6 -> 265100 | J29: ='RCM Detail_BEM 253 Gas'!D6 -> 4900 | K29: ='RCM Detail_BEM 253 Gas'!E6 -> 190900 | L29: ='RCM Detail_BEM 253 Gas'!F6 -> 7601 | M29: ='RCM Detail_BEM 253 Gas'!G6 -> 0 | N29: ='RCM Detail_BEM 253 Gas'!H6 -> 67759 | O29: ='RCM Detail_BEM 253 Gas'!I6 -> 0 | P29: ='RCM Detail_BEM 253 Gas'!J6 -> 0 | Q29: ='RCM Detail_BEM 253 Gas'!K6 -> 100000 | S29: ='RCM Detail_BEM 253 Gas'!L6 -> 636260 | T29: ='RCM Detail_BEM 253 Gas'!M6 -> 500000
B30: TechEval Detail_BEM G261 Gas | C30: G261 | E30: Technology Evaluation | H30: 18230694 | I30: ='TechEval Detail_BEM G261 Gas'!C6 -> 0 | J30: ='TechEval Detail_BEM G261 Gas'!D6 -> 0 | K30: ='TechEval Detail_BEM G261 Gas'!E6 -> 0 | L30: ='TechEval Detail_BEM G261 Gas'!F6 -> 0 | M30: ='TechEval Detail_BEM G261 Gas'!G6 -> 11760 | N30: ='TechEval Detail_BEM G261 Gas'!H6 -> 0 | O30: ='TechEval Detail_BEM G261 Gas'!I6 -> 8240 | P30: ='TechEval Detail_BEM G261 Gas'!J6 -> 0 | Q30: ='TechEval Detail_BEM G261 Gas'!K6 -> 0 | S30: ='TechEval Detail_BEM G261 Gas'!L6 -> 20000 | T30: ='TechEval Detail_BEM G261 Gas'!M6 -> 0
B31: Rebates Detail_BEM G262 Gas | C31: G262 | E31: Business Rebates (total of indented programs below) | H31: (Indiv' order# no longer used) | I31: =SUM(I32:I35) -> 48682.62 | J31: =SUM(J32:J35) -> 0 | K31: 34418.61234 | L31: 18300 | M31: 2850 | N31: 14075 | O31: 2625 | P31: 550 | Q31: 577337.8 | R31: 0 | S31: 698839.0323 | T31: 580881
B32: Sm Bus DI_G262 Gas | C32: G262 | F32: Small Business Direct Installs | H32: 18231022 | I32: ='Sm Bus DI_G262 Gas'!H6 -> 12621.42 | J32: ='Sm Bus DI_G262 Gas'!I6 -> 0 | K32: ='Sm Bus DI_G262 Gas'!J6 -> 8923.34394 | L32: ='Sm Bus DI_G262 Gas'!K6 -> 1500 | M32: ='Sm Bus DI_G262 Gas'!L6 -> 100 | N32: ='Sm Bus DI_G262 Gas'!M6 -> 4000 | O32: ='Sm Bus DI_G262 Gas'!N6 -> 525 | P32: ='Sm Bus DI_G262 Gas'!O6 -> 100 | Q32: ='Sm Bus DI_G262 Gas'!P6 -> 3662.8 | R32: ='Sm Bus DI_G262 Gas'!Q6 -> 0 | S32: ='Sm Bus DI_G262 Gas'!R6 -> 31432.56394 | T32: ='Sm Bus DI_G262 Gas'!S6 -> 9365
B33: Comm Kit-Laund_G262 Gas | C33: G262 | F33: Commercial Kitchen & Laundry | H33: 18231027 | I33: ='Comm Kit-Laund_G262 Gas'!H6 -> 12621.42 | J33: ='Comm Kit-Laund_G262 Gas'!I6 -> 0 | K33: ='Comm Kit-Laund_G262 Gas'!J6 -> 8923.34394 | L33: ='Comm Kit-Laund_G262 Gas'!K6 -> 10000 | M33: ='Comm Kit-Laund_G262 Gas'!L6 -> 1200 | N33: ='Comm Kit-Laund_G262 Gas'!M6 -> 450 | O33: ='Comm Kit-Laund_G262 Gas'!N6 -> 800 | P33: ='Comm Kit-Laund_G262 Gas'!O6 -> 150 | Q33: ='Comm Kit-Laund_G262 Gas'!P6 -> 207830 | R33: ='Comm Kit-Laund_G262 Gas'!Q6 -> 0 | S33: ='Comm Kit-Laund_G262 Gas'!R6 -> 241974.7639 | T33: ='Comm Kit-Laund_G262 Gas'!S6 -> 164836
B34: Comm DI_G262 Gas | C34: G262 | F34: Commercial Direct Install (non-SBDI) | H34: 18231028 | I34: ='Comm DI_G262 Gas'!H6 -> 10818.36 | J34: ='Comm DI_G262 Gas'!I6 -> 0 | K34: ='Comm DI_G262 Gas'!J6 -> 7648.58052 | L34: ='Comm DI_G262 Gas'!K6 -> 1500 | M34: ='Comm DI_G262 Gas'!L6 -> 1200 | N34: ='Comm DI_G262 Gas'!M6 -> 625 | O34: ='Comm DI_G262 Gas'!N6 -> 1000 | P34: ='Comm DI_G262 Gas'!O6 -> 200 | Q34: ='Comm DI_G262 Gas'!P6 -> 343315 | R34: ='Comm DI_G262 Gas'!Q6 -> 0 | S34: ='Comm DI_G262 Gas'!R6 -> 366306.9405 | T34: ='Comm DI_G262 Gas'!S6 -> 391180
C35: G262 | F35: Commercial HVAC | H35: 18231029 | I35: ='Comm HVAC_G262 Gas'!H6 -> 12621.42 | J35: ='Comm HVAC_G262 Gas'!I6 -> 0 | K35: ='Comm HVAC_G262 Gas'!J6 -> 8923.34394 | L35: ='Comm HVAC_G262 Gas'!K6 -> 5300 | M35: ='Comm HVAC_G262 Gas'!L6 -> 350 | N35: ='Comm HVAC_G262 Gas'!M6 -> 9000 | O35: ='Comm HVAC_G262 Gas'!N6 -> 300 | P35: ='Comm HVAC_G262 Gas'!O6 -> 100 | Q35: ='Comm HVAC_G262 Gas'!P6 -> 22530 | R35: ='Comm HVAC_G262 Gas'!Q6 -> 0 | S35: ='Comm HVAC_G262 Gas'!R6 -> 59124.76394 | T35: ='Comm HVAC_G262 Gas'!S6 -> 15500
G36: Total, Business Energy Management | I36: =SUM(I27:I35) -> 870665.24 | J36: 13400 | K36: 625037.2247 | L36: =SUM(L27:L31) -> 57281 | M36: 23880 | N36: 252863 | O36: 12665 | P36: 42787 | Q36: =SUM(Q27:Q31) -> 2190537.8 | R36: 0 | S36: =SUM(S27:S31) -> 4006015.032 | T36: =SUM(T27:T31) -> 1611881
H38: Original 2015 Totals | I38: 869900 | J38: 19500 | K38: 619000 | L38: 52281 | M38: 21730 | N38: 276427 | O38: 10320 | P38: 76453 | Q38: 1601449 | R38: 0 | S38: 3547060 | T38: 1476700
C40: Pilots
B41: REM Pilots Detail G249 Gas | C41: G249 | E41: Residential Energy Report Expansion | H41: 18230622 | I41: ='REM Pilots Detail G249 Gas'!H6 -> 17213 | J41: ='REM Pilots Detail G249 Gas'!I6 -> 3038 | K41: ='REM Pilots Detail G249 Gas'!J6 -> 14317.457 | L41: ='REM Pilots Detail G249 Gas'!K6 -> 10800 | M41: ='REM Pilots Detail G249 Gas'!L6 -> 1000 | N41: ='REM Pilots Detail G249 Gas'!M6 -> 110658 | O41: ='REM Pilots Detail G249 Gas'!N6 -> 500 | P41: ='REM Pilots Detail G249 Gas'!O6 -> 500 | Q41: ='REM Pilots Detail G249 Gas'!P6 -> 75875.2 | R41: ='REM Pilots Detail G249 Gas'!Q6 -> 0 | S41: ='REM Pilots Detail G249 Gas'!R6 -> 233901.657
B42: BEM Pilots Detail G249 Gas | C42: G249 | E42: Business Energy Reports | H42: 18230639 | I42: ='BEM Pilots Detail G249 Gas'!H6 -> 0 | J42: ='BEM Pilots Detail G249 Gas'!I6 -> 0 | K42: ='BEM Pilots Detail G249 Gas'!J6 -> 0 | L42: ='BEM Pilots Detail G249 Gas'!K6 -> 0 | M42: ='BEM Pilots Detail G249 Gas'!L6 -> 0 | N42: ='BEM Pilots Detail G249 Gas'!M6 -> 0 | O42: ='BEM Pilots Detail G249 Gas'!N6 -> 0 | P42: ='BEM Pilots Detail G249 Gas'!O6 -> 0 | Q42: ='BEM Pilots Detail G249 Gas'!P6 -> 0 | R42: ='BEM Pilots Detail G249 Gas'!Q6 -> 0 | S42: ='BEM Pilots Detail G249 Gas'!R6 -> 0
G43: Total, Pilots | I43: =SUM(I41:I42) -> 17213 | J43: =SUM(J41:J42) -> 3038 | K43: 14317.457 | L43: 10800 | M43: 1000 | N43: 110658 | O43: 500 | P43: 500 | Q43: 75875.2 | R43: 0 | S43: 233901.657
H45: Original 2015 Totals | I45: 21038 | J45: 3713 | K45: 17226 | L45: 0 | M45: 1980 | N45: 110658 | O45: 0 | P45: 990 | Q45: 86198 | R45: 0 | S45: 241802 | T45: 0
C48: Regional Efficiency Programs
B49: NEEA Detail_E254 elec | E49: NEEA Gas Market Tranformation Study | H49: 18230660 | I49: ='Gas MktTrans_Detail_Gas'!H6 -> 0 | J49: ='Gas MktTrans_Detail_Gas'!I6 -> 0 | K49: ='Gas MktTrans_Detail_Gas'!J6 -> 0 | L49: ='Gas MktTrans_Detail_Gas'!K6 -> 0 | M49: ='Gas MktTrans_Detail_Gas'!L6 -> 0 | N49: ='Gas MktTrans_Detail_Gas'!M6 -> 738000 | O49: ='Gas MktTrans_Detail_Gas'!N6 -> 0 | P49: ='Gas MktTrans_Detail_Gas'!O6 -> 0 | Q49: ='Gas MktTrans_Detail_Gas'!P6 -> 0 | R49: 0 | S49: ='Gas MktTrans_Detail_Gas'!Q6 -> 738000
G50: Total, Regional Efficiency Programs | I50: =SUM(I49:I49) -> 0 | J50: 0 | K50: 0 | L50: 0 | M50: 0 | N50: 738000 | O50: 0 | P50: 0 | Q50: 0 | R50: 0 | S50: =SUM(S49:S49) -> 738000
H52: Original 2015 Totals
C55: Energy Efficiency Portfolio Support
B56: Port Supp Cust Engage Gas Title | C56: (Title pg) | E56: Customer Engagement & Education
B57: Engy Adv Detail_PSCE_Gas | F57: Energy Advisors | H57: 18230704 | I57: ='Engy Adv Detail_PSCE_Gas'!H6 -> 88948.08 | J57: ='Engy Adv Detail_PSCE_Gas'!I6 -> 0 | K57: ='Engy Adv Detail_PSCE_Gas'!J6 -> 62886.29256 | L57: ='Engy Adv Detail_PSCE_Gas'!K6 -> 0 | M57: ='Engy Adv Detail_PSCE_Gas'!L6 -> 5866.53 | N57: ='Engy Adv Detail_PSCE_Gas'!M6 -> 200 | O57: ='Engy Adv Detail_PSCE_Gas'!N6 -> 453 | P57: ='Engy Adv Detail_PSCE_Gas'!O6 -> 202 | Q57: ='Engy Adv Detail_PSCE_Gas'!P6 -> 0 | R57: ='Engy Adv Detail_PSCE_Gas'!Q6 -> 0 | S57: ='Engy Adv Detail_PSCE_Gas'!R6 -> 158555.9026
B58: Events Detail_PSCE_Gas | F58: Events | H58: 18230675 | I58: ='Events Detail_PSCE_Gas'!H6 -> 37143.6 | J58: ='Events Detail_PSCE_Gas'!I6 -> 0 | K58: ='Events Detail_PSCE_Gas'!J6 -> 26260.5252 | L58: ='Events Detail_PSCE_Gas'!K6 -> 1950 | M58: ='Events Detail_PSCE_Gas'!L6 -> 1126.14 | N58: ='Events Detail_PSCE_Gas'!M6 -> 14352 | O58: ='Events Detail_PSCE_Gas'!N6 -> 65 | P58: ='Events Detail_PSCE_Gas'!O6 -> 650 | Q58: ='Events Detail_PSCE_Gas'!P6 -> 0 | R58: ='Events Detail_PSCE_Gas'!Q6 -> 0 | S58: ='Events Detail_PSCE_Gas'!R6 -> 81547.2652
B59: Brochure Detail_PSCE_Gas | F59: Brochures, non program-specific | H59: 18230685 | I59: ='Brochure Detail_PSCE_Gas'!H6 -> 2685 | J59: ='Brochure Detail_PSCE_Gas'!I6 -> 0 | K59: ='Brochure Detail_PSCE_Gas'!J6 -> 1898.295 | L59: ='Brochure Detail_PSCE_Gas'!K6 -> 4139 | M59: ='Brochure Detail_PSCE_Gas'!L6 -> 0 | N59: ='Brochure Detail_PSCE_Gas'!M6 -> 325 | O59: ='Brochure Detail_PSCE_Gas'!N6 -> 3705 | P59: ='Brochure Detail_PSCE_Gas'!O6 -> 0 | Q59: ='Brochure Detail_PSCE_Gas'!P6 -> 0 | R59: ='Brochure Detail_PSCE_Gas'!Q6 -> 0 | S59: ='Brochure Detail_PSCE_Gas'!R6 -> 12752.295
B60: Eductn Detail_PSCE_G207 Gas | C60: G207 | F60: Education | H60: 18230671 | I60: ='Eductn Detail_PSCE_G207 Gas'!H6 -> 5370 | J60: ='Eductn Detail_PSCE_G207 Gas'!I6 -> 0 | K60: ='Eductn Detail_PSCE_G207 Gas'!J6 -> 3796.59 | L60: ='Eductn Detail_PSCE_G207 Gas'!K6 -> 0 | M60: ='Eductn Detail_PSCE_G207 Gas'!L6 -> 185 | N60: ='Eductn Detail_PSCE_G207 Gas'!M6 -> 975 | O60: ='Eductn Detail_PSCE_G207 Gas'!N6 -> 1300 | P60: ='Eductn Detail_PSCE_G207 Gas'!O6 -> 0 | Q60: ='Eductn Detail_PSCE_G207 Gas'!P6 -> 0 | R60: ='Eductn Detail_PSCE_G207 Gas'!Q6 -> 0 | S60: ='Eductn Detail_PSCE_G207 Gas'!R6 -> 11626.59
B61: Port Supp_Web Exp Gas Title | C61: (Title pg) | E61: Web Experience
B62: CustOnline Detail_PSWE_Gas | F62: Customer Online Experience | H62: 18230737 | I62: ='CustOnline Detail_PSWE_Gas'!H6 -> 0 | J62: ='CustOnline Detail_PSWE_Gas'!I6 -> 0 | K62: ='CustOnline Detail_PSWE_Gas'!J6 -> 0 | L62: ='CustOnline Detail_PSWE_Gas'!K6 -> 0 | M62: ='CustOnline Detail_PSWE_Gas'!L6 -> 0 | N62: ='CustOnline Detail_PSWE_Gas'!M6 -> 84045 | O62: ='CustOnline Detail_PSWE_Gas'!N6 -> 0 | P62: ='CustOnline Detail_PSWE_Gas'!O6 -> 0 | Q62: ='CustOnline Detail_PSWE_Gas'!P6 -> 0 | S62: ='CustOnline Detail_PSWE_Gas'!Q6 -> 84045
B63: Mkt Intg Detail_PSWE_Gas | F63: Market Integration | H63: 18230732 | I63: ='Mkt Intg Detail_PSWE_Gas'!H6 -> 20977 | J63: ='Mkt Intg Detail_PSWE_Gas'!I6 -> 0 | K63: ='Mkt Intg Detail_PSWE_Gas'!J6 -> 14830.739 | L63: ='Mkt Intg Detail_PSWE_Gas'!K6 -> 0 | M63: ='Mkt Intg Detail_PSWE_Gas'!L6 -> 0 | N63: ='Mkt Intg Detail_PSWE_Gas'!M6 -> 8840 | O63: ='Mkt Intg Detail_PSWE_Gas'!N6 -> 0 | P63: ='Mkt Intg Detail_PSWE_Gas'!O6 -> 0 | Q63: ='Mkt Intg Detail_PSWE_Gas'!P6 -> 0 | S63: ='Mkt Intg Detail_PSWE_Gas'!Q6 -> 44647.739
B64: ABS Detail_PSWE_Gas | F64: MyData (Automated Benchmarking System) | H64: 18230667 | I64: ='ABS Detail_PSWE_Gas'!H6 -> 0 | J64: ='ABS Detail_PSWE_Gas'!I6 -> 0 | K64: ='ABS Detail_PSWE_Gas'!J6 -> 0 | L64: ='ABS Detail_PSWE_Gas'!K6 -> 0 | M64: ='ABS Detail_PSWE_Gas'!L6 -> 0 | N64: ='ABS Detail_PSWE_Gas'!M6 -> 26404 | O64: ='ABS Detail_PSWE_Gas'!N6 -> 0 | P64: ='ABS Detail_PSWE_Gas'!O6 -> 0 | Q64: ='ABS Detail_PSWE_Gas'!P6 -> 0 | R64: ='ABS Detail_PSWE_Gas'!P6 -> 0 | S64: ='ABS Detail_PSWE_Gas'!Q6 -> 26404
B65: ProgSvc Systems_R&C_Gas | E65: Programs Support - Data and Systems Services | H65: 18231005 | I65: ='Data & Systms Svcs_R&C_Gas'!H6 -> 69884.1 | J65: ='Data & Systms Svcs_R&C_Gas'!I6 -> 0 | K65: ='Data & Systms Svcs_R&C_Gas'!J6 -> 49408.0587 | L65: ='Data & Systms Svcs_R&C_Gas'!K6 -> 0 | M65: ='Data & Systms Svcs_R&C_Gas'!L6 -> 2300 | N65: ='Data & Systms Svcs_R&C_Gas'!M6 -> 0 | O65: ='Data & Systms Svcs_R&C_Gas'!N6 -> 0 | P65: ='Data & Systms Svcs_R&C_Gas'!O6 -> 0 | Q65: ='Data & Systms Svcs_R&C_Gas'!P6 -> 0 | S65: ='Data & Systms Svcs_R&C_Gas'!Q6 -> 121592.1587
B66: ProgSvcs_Analytics_R&C Gas | E66: Programs Support - Program Development | H66: 18230688 | I66: ='Prog Develpmnt_R&C Gas'!H6 -> 27953.64 | J66: ='Prog Develpmnt_R&C Gas'!I6 -> 0 | K66: ='Prog Develpmnt_R&C Gas'!J6 -> 19763.22348 | L66: ='Prog Develpmnt_R&C Gas'!K6 -> 0 | M66: ='Prog Develpmnt_R&C Gas'!L6 -> 1790 | N66: ='Prog Develpmnt_R&C Gas'!M6 -> 0 | O66: ='Prog Develpmnt_R&C Gas'!N6 -> 0 | P66: ='Prog Develpmnt_R&C Gas'!O6 -> 0 | Q66: ='Prog Develpmnt_R&C Gas'!P6 -> 0 | S66: ='Prog Develpmnt_R&C Gas'!Q6 -> 49506.86348
B67: Rebt Procg_Detail Gas | E67: Rebates Processing | H67: 18230659 | I67: ='Rebt Procg_Detail Gas'!H6 -> 61938.24 | J67: ='Rebt Procg_Detail Gas'!I6 -> 0 | K67: ='Rebt Procg_Detail Gas'!J6 -> 43790.33568 | L67: ='Rebt Procg_Detail Gas'!K6 -> 0 | M67: ='Rebt Procg_Detail Gas'!L6 -> 1495 | N67: ='Rebt Procg_Detail Gas'!M6 -> 2340 | O67: ='Rebt Procg_Detail Gas'!N6 -> 650 | P67: ='Rebt Procg_Detail Gas'!O6 -> 0 | Q67: ='Rebt Procg_Detail Gas'!P6 -> 0 | S67: ='Rebt Procg_Detail Gas'!Q6 -> 110213.5757
B68: EEC Detail_PS_Gas | E68: Energy Efficient Communities | H68: 18230657 | I68: ='EEC Detail_PS_Gas'!H6 -> 38485 | J68: ='EEC Detail_PS_Gas'!I6 -> 0 | K68: ='EEC Detail_PS_Gas'!J6 -> 27208.895 | L68: ='EEC Detail_PS_Gas'!K6 -> 6110 | M68: ='EEC Detail_PS_Gas'!L6 -> 11000 | N68: ='EEC Detail_PS_Gas'!M6 -> 109888 | O68: ='EEC Detail_PS_Gas'!N6 -> 7162 | P68: ='EEC Detail_PS_Gas'!O6 -> 1000 | Q68: ='EEC Detail_PS_Gas'!P6 -> 0 | S68: ='EEC Detail_PS_Gas'!Q6 -> 200853.895
B69: TradeAlly Detail_PS_gas | E69: Trade Ally Support | H69: 18230698 | I69: ='TradeAlly Detail_PS_gas'!H6 -> 0 | J69: ='TradeAlly Detail_PS_gas'!I6 -> 0 | K69: ='TradeAlly Detail_PS_gas'!J6 -> 0 | L69: ='TradeAlly Detail_PS_gas'!K6 -> 0 | M69: ='TradeAlly Detail_PS_gas'!L6 -> 0 | N69: ='TradeAlly Detail_PS_gas'!M6 -> 0 | O69: ='TradeAlly Detail_PS_gas'!N6 -> 0 | P69: ='TradeAlly Detail_PS_gas'!O6 -> 195548 | Q69: ='TradeAlly Detail_PS_gas'!P6 -> 0 | R69: ='TradeAlly Detail_PS_gas'!Q6 -> -182756 | S69: ='TradeAlly Detail_PS_gas'!R6 -> 12792
G70: Total, Portfolio Support | I70: =SUM(I57:I69) -> 353384.66 | J70: 0 | K70: 249842.9546 | L70: 12199 | M70: 23762.67 | N70: 247369 | O70: 13335 | P70: 197400 | Q70: 0 | R70: -182756 | S70: =SUM(S57:S69) -> 914537.2846
H72: Original 2015 Totals | I72: 242026.47 | J72: 0 | K72: 168450.4231 | L72: 12199 | M72: 14287.37 | N72: 148791 | O72: 12685 | P72: 12804 | Q72: 0 | R72: 0 | S72: 611243.2631
C74: Energy Efficiency Research & Compliance
B75: Supp Crv Detail_R&C_gas | E75: Conservation Supply Curves | H75: 18230703 | I75: ='Supp Crv Detail_R&C_gas'!H6 -> 14843 | J75: ='Supp Crv Detail_R&C_gas'!I6 -> 0 | K75: ='Supp Crv Detail_R&C_gas'!J6 -> 10494.001 | L75: ='Supp Crv Detail_R&C_gas'!K6 -> 0 | M75: ='Supp Crv Detail_R&C_gas'!L6 -> 30 | N75: ='Supp Crv Detail_R&C_gas'!M6 -> 4030 | O75: ='Supp Crv Detail_R&C_gas'!N6 -> 0 | P75: ='Supp Crv Detail_R&C_gas'!O6 -> 0 | Q75: ='Supp Crv Detail_R&C_gas'!P6 -> 0 | S75: ='Supp Crv Detail_R&C_gas'!Q6 -> 29397.001
B76: Strat Pln Detail_R&C_Gas | E76: Strategic Planning | H76: 18230679 | I76: ='Strat Pln Detail_R&C_Gas'!H6 -> 13681 | J76: ='Strat Pln Detail_R&C_Gas'!I6 -> 0 | K76: ='Strat Pln Detail_R&C_Gas'!J6 -> 9672.467 | L76: ='Strat Pln Detail_R&C_Gas'!K6 -> 0 | M76: ='Strat Pln Detail_R&C_Gas'!L6 -> 310 | N76: ='Strat Pln Detail_R&C_Gas'!M6 -> 0 | O76: ='Strat Pln Detail_R&C_Gas'!N6 -> 0 | P76: ='Strat Pln Detail_R&C_Gas'!O6 -> 0 | Q76: ='Strat Pln Detail_R&C_Gas'!P6 -> 0 | S76: ='Strat Pln Detail_R&C_Gas'!Q6 -> 23663.467
B77: Mktg Rsch Detail_PS_gas | E77: Market Research | H77: 18230670 | I77: ='Mktg Rsch Detail_PS_gas'!H6 -> 10104.73 | J77: ='Mktg Rsch Detail_PS_gas'!I6 -> 0 | K77: ='Mktg Rsch Detail_PS_gas'!J6 -> 7144.04411 | L77: ='Mktg Rsch Detail_PS_gas'!K6 -> 0 | M77: ='Mktg Rsch Detail_PS_gas'!L6 -> 640 | N77: ='Mktg Rsch Detail_PS_gas'!M6 -> 29157.515 | O77: ='Mktg Rsch Detail_PS_gas'!N6 -> 200 | P77: ='Mktg Rsch Detail_PS_gas'!O6 -> 0 | Q77: ='Mktg Rsch Detail_PS_gas'!P6 -> 0 | S77: ='Mktg Rsch Detail_PS_gas'!Q6 -> 47246.28911
B78: Eval Detail_R&C_Gas | E78: Program Evaluation | H78: 18230699 | I78: ='Eval Detail_R&C_Gas'!H6 -> 37060 | J78: ='Eval Detail_R&C_Gas'!I6 -> 0 | K78: ='Eval Detail_R&C_Gas'!J6 -> 26201.42 | L78: ='Eval Detail_R&C_Gas'!K6 -> 0 | M78: ='Eval Detail_R&C_Gas'!L6 -> 1300 | N78: ='Eval Detail_R&C_Gas'!M6 -> 249152.2 | O78: ='Eval Detail_R&C_Gas'!N6 -> 0 | P78: ='Eval Detail_R&C_Gas'!O6 -> 0 | Q78: ='Eval Detail_R&C_Gas'!P6 -> 0 | S78: ='Eval Detail_R&C_Gas'!Q6 -> 313713.62
B79: Vteam Detail_R&C_Gas | E79: Verification Team | H79: 18230668 | I79: ='Vteam Detail_R&C_Gas'!H6 -> 30969.12 | J79: ='Vteam Detail_R&C_Gas'!I6 -> 0 | K79: ='Vteam Detail_R&C_Gas'!J6 -> 21895.16784 | L79: ='Vteam Detail_R&C_Gas'!K6 -> 0 | M79: ='Vteam Detail_R&C_Gas'!L6 -> 845 | N79: ='Vteam Detail_R&C_Gas'!M6 -> 14300 | O79: ='Vteam Detail_R&C_Gas'!N6 -> 390 | P79: ='Vteam Detail_R&C_Gas'!O6 -> 0 | Q79: ='Vteam Detail_R&C_Gas'!P6 -> 0 | S79: ='Vteam Detail_R&C_Gas'!Q6 -> 68399.28784
G80: Total, Research & Compliance | I80: =SUM(I75:I79) -> 106657.85 | J80: =SUM(J75:J79) -> 0 | K80: =SUM(K75:K79) -> 75407.09995 | L80: 0 | M80: 3125 | N80: 296639.715 | O80: 590 | P80: 0 | Q80: 0 | R80: 0 | S80: 482419.665
H82: Original 2015 Totals | I82: 146523.98 | J82: 0 | K82: 101980.6901 | L82: 0 | M82: 5212 | N82: 262132.015 | O82: 1359 | P82: 0 | Q82: 0 | R82: 0 | S82: 517207.6851
G84: GRAND TOTAL, GAS PROGRAMS | I84: =REM_2015_Gas_Labtot+BEM_2015_Gas_Labtot+Pilot_Totlab_G_2015+I50+PortSupp_2015_Gas_Labtot+ResComp_2015_Gas_Labtot -> 1642449.83 | J84: =REM_2015_Gas_Mktlabtot+BEM_2015_Gas_Mktlabtot+Pilot_Mktlabtot_G_2015+J50+PortSupp_2015_Gas_Mktlabtot+ResComp_2015_Gas_Mktlabtot -> 58191.08 | K84: =REM_2015_Gas_Oheadtot+BEM_2015_Gas_Oheadtot+Pilot_Oheadtot_G_2015+K50+PortSupp_2015_Gas_Oheadtot+ResComp_2015_Gas_Oheadtot -> 1201579.23 | L84: =REM_2015_Gas_Mkttot+BEM_2015_Gas_Mktgtot+Pilot_Mkttot_G_2015+L50+PortSupp_2015_Gas_Mkttot+ResComp_2015_Gas_Mkttot -> 370530 | M84: =REM_2015_Gas_EEtot+BEM_2015_Gas_EEtot+Pilot_Empexptot_G_2015+M50+PortSupp_2015_Gas_EEtot+ResComp_2015_Gas_EEtot -> 70117.67 | N84: =REM_2015_Gas_Outsvctot+BEM_2015_Gas_Outsvctot+Pilot_Outsvcstot_G_2015+N50+PortSupp_2015_Gas_Outsvctot+ResComp_2015_Gas_Outsvctot -> 2052428.235 | O84: =REM_2015_Gas_matltot+BEM_2015_Gas_Mattot+Pilot_Matlstot_G_2015+O50+PortSupp_2015_Gas_Matltot+ResComp_2015_Gas_Matltot -> 47790 | P84: =REM_2015_Gas_Misctot+BEM_2015_Gas_Misctot+Pilot_Misctot_G_2015+P50+PortSupp_2015_Gas_Misctot+ResComp_2015_Gas_Misctot -> 266987 | Q84: =REM_2015_Gas_DBtCtot+BEM_2015_Gas_DBtCtot+Pilot_DBTCtot_G_2015+Q50+PortSupp_2015_Gas_DBtCtot+ResComp_2015_Gas_DBtCtot -> 7878218.732 | R84: =REM_2015_Gas_Revtot+BEM_2015_Gas_Revtot+Pilot_revtot_G_2015+R50+PortSupp_2015_Gas_Revtot+ResComp_2015_Gas_Revtot -> -182756 | S84: =REM_2015_Gas_Totbudget+BEM_2015_Gas_Totbudget+Region_Gas_TotBudget_2015+Pilot_Totbudget_G_2015+PortSupp_2015_Gas_Totbudget+ResComp_2015_Gas_Totbudget -> 13322434.55 | T84: =REM_2015_Gas_Totsavings+BEM_2015_Gas_Totsavings+T50+T70+T80 -> 3080825.78
H86: Original 2015 Totals | I86: 1628880.4 | J86: 67377.5 | K86: 1180573.098 | L86: 318430 | M86: 71629.37 | N86: 1163503.015 | O86: 44014 | P86: 116607 | Q86: 7679136.5 | R86: 0 | S86: 12270150.88 | T86: 3060642.22
G88: Budget Category Includes | H88: This is the main level of tracking expenditures and expenses in EES. Per FERC rules, all conservation order numbers start with a "1823nnnn", where "n" is some number. Cost elements apply to all order numbers (for instance, all conservation programs that | I88: Energy Efficiency program staff labor. Average FTE cost including management assessments. This Budget Category group includes assessments from Major Accounts management, Resource Planning, Corporate Communications management, IT specialists and some building maintenance allocations. | J88: Also Energy Efficiency staff labor, associated specifically with Marketing functions. Marketing allocates staffing according to program needs. | K88: Overhead--costs associated with primarily employee labor; benefits, for instance. | L88: Service and materials associated with the cost of printing program brochures, marketing pieces, advertising, banners, etc. Also includes marketing conducted by vendors and contractors. | M88: Costs associated with EE staff attending events, employee training, conferences, business meals, business parking, ferry & bridge tolls, mileage incurred on employee automobiles, office supplies, phones, subscriptions, software/hardware, etc. | N88: Contractors and vendors, such as PECI, Ecos, CostCo, EFI, etc. Legal expenses, technical services (CMS design, PSE.com web portals, etc.). These costs do NOT include brochure development, marketing pieces, (which are classified under MARKETING). These costs do NOT include incentives paid to customers by contractors. | O88: Primarily tools, trade show equipment, etc. | P88: This category should seldomly be used, and only expenses that cannot be classified under one of the above categories. | Q88: All costs associated with rebates, grants, remuneration, value-added services. PSE cost element # 62510000; Consumer Incentive Payments, is classified by the Accounting department as Miscellaneous. However, it is one of the primarly elements of Energy Efficiency's Direct Benefit to Customer (DBtC). | R88: Any amount that PSE is paid by a customer, partner, municipality or outside entity.

Sheet LIW Detail_REM E201_Elec
C1: Low Income Weatherization | D1: Schedule 201 | E1: Order Number | F1: 18230611 | G1: Electric | L1: Low Income Weatherization | M1: Schedule 201 | N1: Order Number | O1: 18230611 | P1: Electric | T1: Low Income Weatherization | U1: Schedule 201 | V1: Order Number | W1: 18230611 | X1: Electric
H2: This table summarizes the subtotals in the detail table to the left and is used to populate 2014-2015 Sector views. | T2: Ratios | W2: Acquisition Cost
A3: Low Income Weatherization | G3: 2014 Values are shown as reference only. | H3: Labor | I3: Marketing Labor | J3: Overhead | K3: Marketing | L3: Employee/Office Expense | M3: Outside Services | N3: Materials | O3: Miscellaneous | P3: DBtC | Q3: Revenue | R3: Total Budget | S3: Total Savings | T3: DBTC | U3: Marketing | V3: Outside Svcs
A4: Schedule 201 | C4: Budget amount includes $500,000 required by decoupling order. Additional $100,000 in shareholder funding is not noted in this Conservation Rider-focused budget. | G4: 2014 | H4: =D15 -> 143233 | I4: =D21 -> 17159 | J4: =D27 -> 110991.264 | K4: =D34 -> 19800 | L4: =D40 -> 6000 | M4: =D46 -> 10000 | N4: =D52 -> 0 | O4: =D58 -> 0 | P4: =D64 -> 2678409.68 | Q4: =D67 -> 0 | R4: =SUM(H4:Q4) -> 2985592.944 | S4: =T15 -> 1571214.29 | T4: =P4/R4 -> 0.8971114717 | U4: =(K4+(I4*1.63))/R4 -> 0.01599989379 | V4: =M4/R4 -> 0.00334941842 | W4: =R4/S4 -> 1.900181893
A5: Order Number | G5: Original 2015 Budget | H5: 143233 | I5: 17159 | J5: 111632.832 | K5: 19800 | L5: 6000 | M5: 10000 | N5: 0 | O5: 0 | P5: 2791500.817 | Q5: 0 | R5: 3099325.649 | S5: 1571473.69 | T5: =P5/R5 -> 0.9006800618 | U5: =(K5+(I5*1.63))/R5 -> 0.01541276246 | V5: =M5/R5 -> 0.003226508323 | W5: =R5/S5 -> 1.972241513
A6: 18230611 | G6: Revised 2015 Budget | H6: =E15 -> 143233 | I6: =E21 -> 17159 | J6: =E27 -> 113397.144 | K6: =E34 -> 19800 | L6: =E40 -> 6000 | M6: =E46 -> 10000 | N6: =E52 -> 0 | O6: =E58 -> 0 | P6: =E64 -> 3008550.383 | Q6: =E67 -> 0 | R6: =SUM(H6:Q6) -> 3318139.527 | S6: =T15 -> 1571214.29
A7: Electric | G7: Total | H7: =H4+H6 -> 286466 | I7: =I4+I6 -> 34318 | J7: 224388.408 | K7: 39600 | L7: 12000 | M7: 20000 | N7: 0 | O7: 0 | P7: 5686960.063 | Q7: 0 | R7: 6303732.471 | S7: =S4+S6 -> 3142428.58 | T7: =P7/R7 -> 0.9021575851 | U7: =(K7+(I7*1.63))/R7 -> 0.01515583671 | V7: =M7/R7 -> 0.003172723476 | W7: =R7/S7 -> 2.0060066
D8: 2014 Values are shown as reference only. | H8: NOTE: "Total" excludes "Original 2015 Budget" amount
H9: The below measure table excludes the program's 2014 measures, due to its size and complexity.
C10: Spending Section | I10: Savings Section | V10: Savings Section | AE10: Savings Section
Y11: 0.1226768467 | Z11: f PSE Program Support %
C12: Overall Total | D12: =D15+D21+D27+D34+D40+D46+D52+D58+D64 -> 2985592.944 | E12: =E15+E21+E27+E34+E40+E46+E52+E58+E64 -> 3318139.527 | F12: =D12+E12 -> 6303732.471 | H12: Measure Information | P12: Unit Totals | S12: Projected Savings | V12: Incentive Totals | Y12: ***REVISED 2015*** Program Support | AD12: ***REVISED 2015*** Cost Effectiveness (Based on REVISED 2015 Totals)
H13: UOM | I13: Measure Name | J13: Savings | K13: Unit Type | L13: Measure Cost | M13: Incentive | N13: Measure Life | O13: End Use | P13: PLANNED 2015 | Q13: REVISED 2015 | R13: Delta | S13: PLANNED 2015 | T13: REVISED 2015 | U13: Delta | V13: PLANNED 2015 | W13: REVISED 2015 | X13: Delta | Y13: Agency % | Z13: Program Dollars | AA13: Program Dollars | AB13: Program Dollars | AC13: Other Cost Contribut. | AD13: NEBs per Unit | AE13: Total NEBs | AF13: UC Ratio | AG13: TRC Ratio | AH13: PV UC | AI13: PV TRC | AJ13: CE Std UC | AK13: CE Std TRC
C14: Budget Category | D14: 2014 | E14: 2015 | F14: Total | I14: i | J14: i | K14: i | L14: i | M14: i | N14: i | O14: i | P14: i | Q14: i | Y14: i | Z14: Paid to Agency | AA14: PSE | AB14: Combined | AC14: i | AD14: i | AE14: REVISED 2015
B15: FTE | C15: Labor | D15: =SUM(D16:D19) -> 143233 | E15: =SUM(E16:E19) -> 143233 | F15: =D15+E15 -> 286466 | I15: TOTALS g | L15: 2588151.15 | M15: 623379.79 | N15: 53 | S15: 1480362.31 | T15: 1571214.29 | U15: 90851.98 | V15: 2418019.16 | W15: 2523615.11 | X15: 105595.95 | Z15: 484935.273 | AA15: 309589.14 | AB15: 629908.0413 | AC15: 0 | AE15: 603705 | AF15: 1.127272006 | AG15: 1.437434692 | AH15: 2358758.697 | AI15: 2423294.737 | AJ15: 2658962.648 | AK15: 2924858.912
C16: Program Manager | D16: 79086 | E16: 79086 | F16: =SUM(D16:E16) -> 158172 | H16: kWh | I16: Shareholder | J16: 0 | K16: calculated | Y16: 0
C17: Program Coordinator | D17: 39542 | E17: 39542 | F17: =SUM(D17:E17) -> 79084 | H17: kWh | I17: Repairs | J17: 0 | K17: calculated | L17: 603705 | M17: 603705 | N17: 1 | P17: 1 | Q17: 1 | R17: 0 | S17: 0 | T17: 0 | U17: 0 | V17: 603705 | W17: 603705 | X17: 0 | Y17: 0.15 | Z17: 90555.75 | AA17: 74060.63 | AD17: 603705 | AE17: 603705
C18: Market Manager | D18: 20211 | E18: 20211 | F18: 40422 | H18: kWh | I18: Appliances: Refrigerator Replacement ~ TE, MF | J18: 666 | K18: per unit | L18: 600 | M18: 600 | N18: 22 | O18: Res Refrigerator | P18: 10 | Q18: 0 | R18: -10 | S18: 6660 | T18: 0 | U18: -6660 | V18: 6000 | W18: 0 | X18: -6000 | Y18: 0.225 | Z18: 0 | AA18: 0 | AB18: 0 | AD18: 0 | AE18: 0 | AF18: 0.00 | AG18: 0.00 | AH18: 0 | AI18: 0 | AJ18: 0 | AK18: 0
C19: Energy Management Engineer | D19: 4394 | E19: 4394 | F19: 8788 | H19: kWh | I19: Appliances: Refrigerator Replacement ~ TE, MH | J19: 666 | K19: per unit | L19: 600 | M19: 600 | N19: 22 | O19: Res Refrigerator | P19: 2 | Q19: 23 | R19: 21 | S19: 1332 | T19: 15318 | U19: 13986 | V19: 1200 | W19: 13800 | X19: 12600 | Y19: 0.225 | Z19: 3105 | AA19: 1692.940485 | AB19: 4797.940485 | AD19: 0 | AE19: 0 | AF19: 0.7567285944 | AG19: 0.8324014538 | AH19: 17204.38528 | AI19: 17204.38528 | AJ19: 13019.05029 | AK19: 14320.95532
B20: =SUM(B16:B19) -> 0 | H20: kWh | I20: Appliances: Refrigerator Replacement ~ TE, SF | J20: 666 | K20: per unit | L20: 600 | M20: 600 | N20: 22 | O20: Res Refrigerator | P20: 2 | Q20: 12 | R20: 10 | S20: 1332 | T20: 7992 | U20: 6660 | V20: 1200 | W20: 7200 | X20: 6000 | Y20: 0.225 | Z20: 1620 | AA20: 883.2732963 | AB20: 2503.273296 | AD20: 0 | AE20: 0 | AF20: 0.7567285944 | AG20: 0.8324014538 | AH20: 8976.201014 | AI20: 8976.201014 | AJ20: 6792.547977 | AK20: 7471.802774
C21: Marketing Labor | D21: =SUM(D22:D25) -> 17159 | E21: =SUM(E22:E25) -> 17159 | F21: =D21+E21 -> 34318 | H21: kWh | I21: Furnace / Heating: Ductless Heat Pump ~ TE, SF | J21: 2700 | K21: per unit | L21: 3407 | M21: 3407 | N21: 20 | O21: SF Heat Pump | P21: 12 | Q21: 62 | R21: 50 | S21: 32400 | T21: 167400 | U21: 135000 | V21: 40884 | W21: 211234 | X21: 170350 | Y21: 0.15 | Z21: 31685.1 | AA21: 25913.52104 | AB21: 57598.62104 | AD21: 0 | AE21: 0 | AF21: 1.029687629 | AG21: 1.132656392 | AH21: 248688.8261 | AI21: 248688.8261 | AJ21: 256071.8077 | AK21: 281678.9884
C22: Marketing Representative | D22: 17159 | E22: 17159 | F22: 34318 | H22: kWh | I22: Water Heater: Electric Water Heater (.95 EF) ~ TE, MF | J22: 149 | K22: per unit | L22: 67 | M22: 67 | N22: 15 | O22: Res Water Heat | P22: 12 | Q22: 0 | R22: -12 | S22: 1788 | T22: 0 | U22: -1788 | V22: 804 | W22: 0 | X22: -804 | Y22: 0.225 | Z22: 0 | AA22: 0 | AB22: 0 | AD22: 0 | AE22: 0 | AF22: 0.00 | AG22: 0.00 | AH22: 0 | AI22: 0 | AJ22: 0 | AK22: 0
F23: 0 | H23: kWh | I23: Water Heater: Electric Water Heater (.95 EF) ~ TE, MH | J23: 149 | K23: per unit | L23: 67 | M23: 67 | N23: 15 | O23: Res Water Heat | P23: 12 | Q23: 1 | R23: -11 | S23: 1788 | T23: 149 | U23: -1639 | V23: 804 | W23: 67 | X23: -737 | Y23: 0.225 | Z23: 15.075 | AA23: 8.219348729 | AB23: 23.29434873 | AD23: 0 | AE23: 0 | AF23: 1.376455979 | AG23: 1.514101577 | AH23: 83.52853722 | AI23: 83.52853722 | AJ23: 114.9733545 | AK23: 126.4706899
F24: 0 | H24: kWh | I24: Water Heater: Electric Water Heater (.95 EF) ~ TE, SF | J24: 149 | K24: per unit | L24: 67 | M24: 67 | N24: 15 | O24: Res Water Heat | P24: 12 | Q24: 0 | R24: -12 | S24: 1788 | T24: 0 | U24: -1788 | V24: 804 | W24: 0 | X24: -804 | Y24: 0.225 | Z24: 0 | AA24: 0 | AB24: 0 | AD24: 0 | AE24: 0 | AF24: 0.00 | AG24: 0.00 | AH24: 0 | AI24: 0 | AJ24: 0 | AK24: 0
F25: 0 | H25: kWh | I25: Insulation, Ceiling: Attic Insulation (R0 to R19) ~ TE, MF | J25: 1.59 | K25: square foot | L25: 2.21 | M25: 2.21 | N25: 30 | O25: MF Space Heat | P25: 690 | Q25: 0 | R25: -690 | S25: 1097.1 | T25: 0 | U25: -1097.1 | V25: 1524.9 | W25: 0 | X25: -1524.9 | Y25: 0.225 | Z25: 0 | AA25: 0 | AB25: 0 | AD25: 0 | AE25: 0 | AF25: 0.00 | AG25: 0.00 | AH25: 0 | AI25: 0 | AJ25: 0 | AK25: 0
H26: kWh | I26: Insulation, Ceiling: Attic Insulation (R0 to R19) ~ TE, MH | J26: 0.5 | K26: square foot | L26: 1.1 | M26: 1.1 | N26: 25 | O26: SF Space Heat | P26: 21050 | Q26: 6719 | R26: -14331 | S26: 10525 | T26: 3359.5 | U26: -7165.5 | V26: 23155 | W26: 7390.9 | X26: -15764.1 | Y26: 0.15 | Z26: 1108.635 | AA26: 906.6923063 | AB26: 2015.327306 | AD26: 0 | AE26: 0 | AF26: 0.7090880892 | AG26: 0.7799968981 | AH26: 8701.412864 | AI26: 8701.412864 | AJ26: 6170.068221 | AK26: 6787.075043
C27: Overhead | D27: =SUM(D29:D32) -> 110991.264 | E27: =SUM(E29:E32) -> 113397.144 | F27: 0 | H27: kWh | I27: Insulation, Ceiling: Attic Insulation (R0 to R19) ~ TE, SF | J27: 1.38 | K27: square foot | L27: 2.21 | M27: 2.21 | N27: 30 | O27: SF Space Heat | P27: 19082 | Q27: 0 | R27: -19082 | S27: 26333.16 | T27: 0 | U27: -26333.16 | V27: 42171.22 | W27: 0 | X27: -42171.22 | Y27: 0.225 | Z27: 0 | AA27: 0 | AB27: 0 | AD27: 0 | AE27: 0 | AF27: 0.00 | AG27: 0.00 | AH27: 0 | AI27: 0 | AJ27: 0 | AK27: 0
C28: Percentages for Applicable Year | D28: 0.692 | E28: 0.707 | H28: kWh | I28: Insulation, Attic: R0 to R30 ~ TE, MH | J28: 0.84 | K28: square foot | L28: 2.1 | M28: 2.1 | N28: 25 | O28: SF Space Heat | P28: 11111 | Q28: 32561 | R28: 21450 | S28: 9333.24 | T28: 27351.24 | U28: 18018 | V28: 23333.1 | W28: 68378.1 | X28: 45045 | Y28: 0.225 | Z28: 15385.0725 | AA28: 8388.409692 | AB28: 23773.48219 | AD28: 0 | AE28: 0 | AF28: 0.5892712308 | AG28: 0.6481983539 | AH28: 85246.60702 | AI28: 85246.60702 | AJ28: 50233.37304 | AK28: 55256.71035
C29: Program Labor | D29: =D28*D15 -> 99117.236 | E29: =E28*E15 -> 101265.731 | F29: 200382.967 | H29: kWh | I29: Insulation, Ceiling: Attic Insulation (R0 to R38) ~ TE, MF | J29: 2.18 | K29: square foot | L29: 2.43 | M29: 2.43 | N29: 30 | O29: MF Space Heat | P29: 4904 | Q29: 8883 | R29: 3979 | S29: 10690.72 | T29: 19364.94 | U29: 8674.22 | V29: 11916.72 | W29: 21585.69 | X29: 9668.97 | Y29: 0.225 | Z29: 4856.78025 | AA29: 2648.064383 | AB29: 7504.844633 | AD29: 0 | AE29: 0 | AF29: 1.2200089 | AG29: 1.34200979 | AH29: 26910.76284 | AI29: 26910.76284 | AJ29: 32831.37018 | AK29: 36114.5072
C30: Marketing Labor | D30: =D28*D21 -> 11874.028 | E30: =E28*E21 -> 12131.413 | F30: 24005.441 | H30: kWh | I30: Insulation, Ceiling: Attic Insulation (R0 to R38) ~ TE, SF | J30: 2.23 | K30: square foot | L30: 2.43 | M30: 2.43 | N30: 30 | O30: SF Space Heat | P30: 5520 | Q30: 17119 | R30: 11599 | S30: 12309.6 | T30: 38175.37 | U30: 25865.77 | V30: 13413.6 | W30: 41599.17 | X30: 28185.57 | Y30: 0.225 | Z30: 9359.81325 | AA30: 5103.255001 | AB30: 14463.06825 | AD30: 0 | AE30: 0 | AF30: 1.494842244 | AG30: 1.644326469 | AH30: 51861.45999 | AI30: 51861.45999 | AJ30: 77524.70124 | AK30: 85277.17137
H31: kWh | I31: Insulation, Attic: R11 to R33 ~ TE, MH | J31: 1.01 | K31: square foot | L31: 1.71 | M31: 1.71 | N31: 25 | O31: SF Space Heat | P31: 66030 | Q31: 25842 | R31: -40188 | S31: 66690.3 | T31: 26100.42 | U31: -40589.88 | V31: 112911.3 | W31: 44189.82 | X31: -68721.48 | Y31: 0.225 | Z31: 9942.7095 | AA31: 5421.067774 | AB31: 15363.77727 | AD31: 0 | AE31: 0 | AF31: 0.8701227238 | AG31: 0.9571349962 | AH31: 55091.20932 | AI31: 55091.20932 | AJ31: 47936.11311 | AK31: 52729.72442
H32: kWh | I32: Insulation, Ceiling: Attic Insulation (R11 to R38) ~ TE, MF | J32: 1.39 | K32: square foot | L32: 1.95 | M32: 1.95 | N32: 30 | O32: MF Space Heat | P32: 22538 | Q32: 0 | R32: -22538 | S32: 31327.82 | T32: 0 | U32: -31327.82 | V32: 43949.1 | W32: 0 | X32: -43949.1 | Y32: 0.225 | Z32: 0 | AA32: 0 | AB32: 0 | AD32: 0 | AE32: 0 | AF32: 0.00 | AG32: 0.00 | AH32: 0 | AI32: 0 | AJ32: 0 | AK32: 0
H33: kWh | I33: Insulation, Ceiling: Attic Insulation (R11 to R38) ~ TE, SF | J33: 0.48 | K33: square foot | L33: 1.95 | M33: 1.95 | N33: 30 | O33: SF Space Heat | P33: 53339 | Q33: 18179 | R33: -35160 | S33: 25602.72 | T33: 8725.92 | U33: -16876.8 | V33: 104011.05 | W33: 35449.05 | X33: -68562 | Y33: 0.225 | Z33: 7976.03625 | AA33: 4348.777673 | AB33: 12324.81392 | AD33: 0 | AE33: 0 | AF33: 0.4009621694 | AG33: 0.4410583863 | AH33: 44194.13869 | AI33: 44194.13869 | AJ33: 17720.17772 | AK33: 19492.1955
A34: Low Income Weatherization | C34: Marketing | D34: =SUM(D35:D38) -> 19800 | E34: =SUM(E35:E38) -> 19800 | F34: =D34+E34 -> 39600 | H34: kWh | I34: Insulation, Ceiling: Attic Insulation (R19 to R38) ~ TE, MF | J34: 0.58 | K34: square foot | L34: 1.35 | M34: 1.35 | N34: 30 | O34: MF Space Heat | P34: 32538 | Q34: 4350 | R34: -28188 | S34: 18872.04 | T34: 2523 | U34: -16349.04 | V34: 43926.3 | W34: 5872.5 | X34: -38053.8 | Y34: 0.15 | Z34: 880.875 | AA34: 720.4197823 | AB34: 1601.294782 | AD34: 0 | AE34: 0 | AF34: 0.6186921817 | AG34: 0.6805613999 | AH34: 6913.778707 | AI34: 6913.778707 | AJ34: 4277.500832 | AK34: 4705.250915
A35: Schedule 201 | C35: Marketing materials, events, mailings | D35: 19800 | E35: 19800 | F35: =SUM(D35:E35) -> 39600 | H35: kWh | I35: Insulation, Ceiling: Attic Insulation (R19 to R38) ~ TE, SF | J35: 0.22 | K35: square foot | L35: 1.35 | M35: 1.35 | N35: 30 | O35: SF Space Heat | P35: 5746 | Q35: 23304 | R35: 17558 | S35: 1264.12 | T35: 5126.88 | U35: 3862.76 | V35: 7757.1 | W35: 31460.4 | X35: 23703.3 | Y35: 0.15 | Z35: 4719.06 | AA35: 3859.462668 | AB35: 8578.522668 | AD35: 0 | AE35: 0 | AF35: 0.2810951221 | AG35: 0.3092046344 | AH35: 37038.78138 | AI35: 37038.78138 | AJ35: 10411.42077 | AK35: 11452.56285
A36: Order Number | F36: 0 | H36: kWh | I36: Insulation: Duct Insulation (R0-R11) ~ TE, MF | J36: 4.65 | K36: linear foot | L36: 6.46 | M36: 6.46 | N36: 30 | O36: MF Space Heat | P36: 276 | Q36: 0 | R36: -276 | S36: 1283.4 | T36: 0 | U36: -1283.4 | V36: 1782.96 | W36: 0 | X36: -1782.96 | Y36: 0.225 | Z36: 0 | AA36: 0 | AB36: 0 | AD36: 0 | AE36: 0 | AF36: 0.00 | AG36: 0.00 | AH36: 0 | AI36: 0 | AJ36: 0 | AK36: 0
A37: 18230611 | F37: 0 | H37: kWh | I37: Insulation: Duct Insulation (R0-R11) ~ TE, SF | J37: 4.65 | K37: linear foot | L37: 6.46 | M37: 6.46 | N37: 30 | O37: SF Space Heat | P37: 3044 | Q37: 4810 | R37: 1766 | S37: 14154.6 | T37: 22366.5 | U37: 8211.9 | V37: 19664.24 | W37: 31072.6 | X37: 11408.36 | Y37: 0.225 | Z37: 6991.335 | AA37: 3811.888587 | AB37: 10803.22359 | AD37: 0 | AE37: 0 | AF37: 1.172511762 | AG37: 1.289762938 | AH37: 38738.04217 | AI37: 38738.04217 | AJ37: 45420.81008 | AK37: 49962.89108
A38: Electric | F38: 0 | H38: kWh | I38: Insulation: Floor Insulation (R0-R19) ~ TE, MF | J38: 1.04 | K38: square foot | L38: 1.87 | M38: 1.87 | N38: 30 | O38: MF Space Heat | P38: 4223 | Q38: 0 | R38: -4223 | S38: 4391.92 | T38: 0 | U38: -4391.92 | V38: 7897.01 | W38: 0 | X38: -7897.01 | Y38: 0.15 | Z38: 0 | AA38: 0 | AB38: 0 | AD38: 0 | AE38: 0 | AF38: 0.00 | AG38: 0.00 | AH38: 0 | AI38: 0 | AJ38: 0 | AK38: 0
H39: kWh | I39: Insulation: Floor Insulation (R0-R19) ~ TE, SF | J39: 0.82 | K39: square foot | L39: 1.87 | M39: 1.87 | N39: 30 | O39: SF Space Heat | P39: 28353 | Q39: 20377 | R39: -7976 | S39: 23249.46 | T39: 16709.14 | U39: -6540.32 | V39: 53020.11 | W39: 38104.99 | X39: -14915.12 | Y39: 0.15 | Z39: 5715.7485 | AA39: 4674.600017 | AB39: 10390.34852 | AD39: 0 | AE39: 0 | AF39: 0.756374089 | AG39: 0.8320114979 | AH39: 44861.55274 | AI39: 44861.55274 | AJ39: 33932.11609 | AK39: 37325.3277
C40: Employee/Office Expenses | D40: =SUM(D41:D44) -> 6000 | E40: =SUM(E41:E44) -> 6000 | F40: =D40+E40 -> 12000 | H40: kWh | I40: Insulation: Floor (R0 to R22) ~ TE, MH | J40: 1.13 | K40: square foot | L40: 2.26 | M40: 2.26 | N40: 25 | O40: SF Space Heat | P40: 55690 | Q40: 99722 | R40: 44032 | S40: 62929.7 | T40: 112685.86 | U40: 49756.16 | V40: 125859.4 | W40: 225371.72 | X40: 99512.32 | Y40: 0.225 | Z40: 50708.637 | AA40: 27647.89195 | AB40: 78356.52895 | AD40: 0 | AE40: 0 | AF40: 0.7365890385 | AG40: 0.8102479423 | AH40: 280969.703 | AI40: 280969.703 | AJ40: 206959.2034 | AK40: 227655.1237
C41: Travel, lodging, meals, training, phone exp. | D41: 6000 | E41: 6000 | F41: 12000 | H41: kWh | I41: Insulation: Floor Insulation (R0-R30) ~ TE, MF | J41: 1.3 | K41: square foot | L41: 2.2 | M41: 2.2 | N41: 30 | O41: MF Space Heat | P41: 6776 | Q41: 0 | R41: -6776 | S41: 8808.8 | T41: 0 | U41: -8808.8 | V41: 14907.2 | W41: 0 | X41: -14907.2 | Y41: 0.15 | Z41: 0 | AA41: 0 | AB41: 0 | AD41: 0 | AE41: 0 | AF41: 0.00 | AG41: 0.00 | AH41: 0 | AI41: 0 | AJ41: 0 | AK41: 0
F42: 0 | H42: kWh | I42: Insulation: Floor Insulation (R0-R30) ~ TE, MH | J42: 1.47 | K42: square foot | L42: 2.46 | M42: 2.46 | N42: 25 | O42: SF Space Heat | P42: 40478 | Q42: 35712 | R42: -4766 | S42: 59502.66 | T42: 52496.64 | U42: -7006.02 | V42: 99575.88 | W42: 87851.52 | X42: -11724.36 | Y42: 0.225 | Z42: 19766.592 | AA42: 10777.34745 | AB42: 30543.93945 | AD42: 0 | AE42: 0 | AF42: 0.8803137289 | AG42: 0.9683451018 | AH42: 109524.0143 | AI42: 109524.0143 | AJ42: 96415.49343 | AK42: 106057.0428
F43: 0 | H43: kWh | I43: Insulation: Floor Insulation (R0-R30) ~ TE, SF | J43: 0.91 | K43: square foot | L43: 2.2 | M43: 2.2 | N43: 30 | O43: SF Space Heat | P43: 32623 | Q43: 19185 | R43: -13438 | S43: 29686.93 | T43: 17458.35 | U43: -12228.58 | V43: 71770.6 | W43: 42207 | X43: -29563.6 | Y43: 0.15 | Z43: 6331.05 | AA43: 5177.821669 | AB43: 11508.87167 | AD43: 0 | AE43: 0 | AF43: 0.7134821437 | AG43: 0.7848303581 | AH43: 49690.90811 | AI43: 49690.90811 | AJ43: 35453.57564 | AK43: 38998.93321
F44: 0 | H44: kWh | I44: Insulation: Floor (R11 to R22) ~ TE, MH | J44: 0.59 | K44: square foot | L44: 1.4 | M44: 1.4 | N44: 25 | O44: SF Space Heat | P44: 38951 | Q44: 9709 | R44: -29242 | S44: 22981.09 | T44: 5728.31 | U44: -17252.78 | V44: 54531.4 | W44: 13592.6 | X44: -40938.8 | Y44: 0.15 | Z44: 2038.89 | AA44: 1667.497307 | AB44: 3706.387307 | AD44: 0 | AE44: 0 | AF44: 0.657425957 | AG44: 0.7231685527 | AH44: 16002.76347 | AI44: 16002.76347 | AJ44: 10520.63209 | AK44: 11572.69529
H45: kWh | I45: Insulation: Floor Insulation (R11-R30) ~ TE, MF | J45: 0.66 | K45: square foot | L45: 1.13 | M45: 1.13 | N45: 30 | O45: MF Space Heat | P45: 12 | Q45: 0 | R45: -12 | S45: 7.92 | T45: 0 | U45: -7.92 | V45: 13.56 | W45: 0 | X45: -13.56 | Y45: 0.15 | Z45: 0 | AA45: 0 | AB45: 0 | AD45: 0 | AE45: 0 | AF45: 0.00 | AG45: 0.00 | AH45: 0 | AI45: 0 | AJ45: 0 | AK45: 0
C46: Outside Services | D46: =SUM(D47:D50) -> 10000 | E46: =SUM(E47:E50) -> 10000 | F46: =D46+E46 -> 20000 | H46: kWh | I46: Insulation: Floor Insulation (R11-R30) ~ TE, SF | J46: 0.61 | K46: square foot | L46: 1.38 | M46: 1.38 | N46: 30 | O46: SF Space Heat | P46: 12 | Q46: 1610 | R46: 1598 | S46: 7.32 | T46: 982.1 | U46: 974.78 | V46: 16.56 | W46: 2221.8 | X46: 2205.24 | Y46: 0.15 | Z46: 333.27 | AA46: 272.563418 | AB46: 605.833418 | AD46: 0 | AE46: 0 | AF46: 0.7624566307 | AG46: 0.8387022938 | AH46: 2615.757093 | AI46: 2615.757093 | AJ46: 1994.40134 | AK46: 2193.841474
C47: Software maintenance for reporting tool | D47: 10000 | E47: 10000 | F47: =SUM(D47:E47) -> 20000 | H47: kWh | I47: Insulation: Wall Insulation (R0-R11) ~ TE, MF | J47: 1.3 | K47: square foot | L47: 2.75 | M47: 2.75 | N47: 30 | O47: MF Space Heat | P47: 500 | Q47: 0 | R47: -500 | S47: 650 | T47: 0 | U47: -650 | V47: 1375 | W47: 0 | X47: -1375 | Y47: 0.225 | Z47: 0 | AA47: 0 | AB47: 0 | AD47: 0 | AE47: 0 | AF47: 0.00 | AG47: 0.00 | AH47: 0 | AI47: 0 | AJ47: 0 | AK47: 0
F48: 0 | H48: kWh | I48: Insulation: Wall Insulation (R0-R11) ~ TE, MH | J48: 1.68 | K48: square foot | L48: 2.75 | M48: 2.75 | N48: 25 | O48: SF Space Heat | P48: 500 | Q48: 1433 | R48: 933 | S48: 840 | T48: 2407.44 | U48: 1567.44 | V48: 1375 | W48: 3940.75 | X48: 2565.75 | Y48: 0.225 | Z48: 886.66875 | AA48: 483.4387837 | AB48: 1370.107534 | AD48: 0 | AE48: 0 | AF48: 0.8999778798 | AG48: 0.9899756677 | AH48: 4912.911687 | AI48: 4912.911687 | AJ48: 4421.511844 | AK48: 4863.663028
F49: 0 | H49: kWh | I49: Insulation: Wall Insulation (R0-R11) ~ TE, SF | J49: 1.39 | K49: square foot | L49: 2.75 | M49: 2.75 | N49: 30 | O49: SF Space Heat | P49: 25000 | Q49: 6802 | R49: -18198 | S49: 34750 | T49: 9454.78 | U49: -25295.22 | V49: 68750 | W49: 18705.5 | X49: -50044.5 | Y49: 0.225 | Z49: 4208.7375 | AA49: 2294.731756 | AB49: 6503.469256 | AD49: 0 | AE49: 0 | AF49: 0.8233393638 | AG49: 0.9056733001 | AH49: 23320.04557 | AI49: 23320.04557 | AJ49: 19200.31148 | AK49: 21120.34263
F50: 0 | H50: kWh | I50: Low Cost: Showerheads 2.0 GPM ~ TE, MF | J50: 139 | K50: per unit | L50: 40.5 | M50: 40.5 | N50: 10 | O50: Res Water Heat | P50: 20 | Q50: 0 | R50: -20 | S50: 2780 | T50: 0 | U50: -2780 | V50: 810 | W50: 0 | X50: -810 | Y50: 0.225 | Z50: 0 | AA50: 0 | AB50: 0 | AD50: 0 | AE50: 0 | AF50: 0.00 | AG50: 0.00 | AH50: 0 | AI50: 0 | AJ50: 0 | AK50: 0
H51: kWh | I51: Low Cost: Showerheads 2.0 GPM ~ TE, MH | J51: 139 | K51: per unit | L51: 40.5 | M51: 40.5 | N51: 10 | O51: Res Water Heat | P51: 20 | Q51: 12 | R51: -8 | S51: 2780 | T51: 1668 | U51: -1112 | V51: 810 | W51: 486 | X51: -324 | Y51: 0.225 | Z51: 109.35 | AA51: 59.6209475 | AB51: 168.9709475 | AD51: 0 | AE51: 0 | AF51: 1.573249427 | AG51: 1.73057437 | AH51: 605.8935685 | AI51: 605.8935685 | AJ51: 953.2217096 | AK51: 1048.543881
C52: Materials | D52: =SUM(D53:D56) -> 0 | E52: =SUM(E53:E56) -> 0 | F52: =D52+E52 -> 0 | H52: kWh | I52: Low Cost: Showerheads 2.0 GPM~ TE, SF | J52: 139 | K52: per unit | L52: 40.5 | M52: 40.5 | N52: 10 | O52: Res Water Heat | P52: 20 | Q52: 3 | R52: -17 | S52: 2780 | T52: 417 | U52: -2363 | V52: 810 | W52: 121.5 | X52: -688.5 | Y52: 0.225 | Z52: 27.3375 | AA52: 14.90523688 | AB52: 42.24273688 | AD52: 0 | AE52: 0 | AF52: 1.573249427 | AG52: 1.73057437 | AH52: 151.4733921 | AI52: 151.4733921 | AJ52: 238.3054274 | AK52: 262.1359701
F53: 0 | H53: kWh | I53: Lighting: CFL Fixtures ~ TE, MF | J53: 49 | K53: per unit | L53: 50 | M53: 50 | N53: 15 | O53: Res Lighting | P53: 12 | Q53: 0 | R53: -12 | S53: 588 | T53: 0 | U53: -588 | V53: 600 | W53: 0 | X53: -600 | Y53: 0.15 | Z53: 0 | AA53: 0 | AB53: 0 | AD53: 0 | AE53: 0 | AF53: 0.00 | AG53: 0.00 | AH53: 0 | AI53: 0 | AJ53: 0 | AK53: 0
F54: 0 | H54: kWh | I54: Lighting: CFL Fixtures ~ TE, MH | J54: 49 | K54: per unit | L54: 50 | M54: 50 | N54: 15 | O54: Res Lighting | P54: 12 | Q54: 0 | R54: -12 | S54: 588 | T54: 0 | U54: -588 | V54: 600 | W54: 0 | X54: -600 | Y54: 0.15 | Z54: 0 | AA54: 0 | AB54: 0 | AD54: 0 | AE54: 0 | AF54: 0.00 | AG54: 0.00 | AH54: 0 | AI54: 0 | AJ54: 0 | AK54: 0
F55: 0 | H55: kWh | I55: Lighting: CFL Fixtures ~ TE, SF | J55: 49 | K55: per unit | L55: 50 | M55: 50 | N55: 15 | O55: Res Lighting | P55: 750 | Q55: 0 | R55: -750 | S55: 36750 | T55: 0 | U55: -36750 | V55: 37500 | W55: 0 | X55: -37500 | Y55: 0.15 | Z55: 0 | AA55: 0 | AB55: 0 | AD55: 0 | AE55: 0 | AF55: 0.00 | AG55: 0.00 | AH55: 0 | AI55: 0 | AJ55: 0 | AK55: 0
F56: 0 | H56: kWh | I56: Lighting: Screw-In CFL ~ TE, MF | J56: 23 | K56: per unit | L56: 5 | M56: 5 | N56: 5 | O56: Res Lighting | P56: 50 | Q56: 0 | R56: -50 | S56: 1150 | T56: 0 | U56: -1150 | V56: 250 | W56: 0 | X56: -250 | Y56: 0.225 | Z56: 0 | AA56: 0 | AB56: 0 | AD56: 0 | AE56: 0 | AF56: 0.00 | AG56: 0.00 | AH56: 0 | AI56: 0 | AJ56: 0 | AK56: 0
H57: kWh | I57: Lighting: Screw-In CFL ~ TE, MH | J57: 23 | K57: per unit | L57: 5 | M57: 5 | N57: 5 | O57: Res Lighting | P57: 44 | Q57: 148 | R57: 104 | S57: 1012 | T57: 3404 | U57: 2392 | V57: 220 | W57: 740 | X57: 520 | Y57: 0.225 | Z57: 166.5 | AA57: 90.78086656 | AB57: 257.2808666 | AD57: 0 | AE57: 0 | AF57: 1.192031682 | AG57: 1.311234851 | AH57: 922.5539931 | AI57: 922.5539931 | AJ57: 1099.713589 | AK57: 1209.684947
C58: Miscellaneous | D58: =SUM(D59:D62) -> 0 | E58: =SUM(E59:E62) -> 0 | F58: =D58+E58 -> 0 | H58: kWh | I58: Lighting: Screw-In CFL ~ TE, SF | J58: 23 | K58: per unit | L58: 5 | M58: 5 | N58: 5 | O58: Res Lighting | P58: 38 | Q58: 52 | R58: 14 | S58: 874 | T58: 1196 | U58: 322 | V58: 190 | W58: 260 | X58: 70 | Y58: 0.225 | Z58: 58.5 | AA58: 31.89598014 | AB58: 90.39598014 | AD58: 0 | AE58: 0 | AF58: 1.192031682 | AG58: 1.311234851 | AH58: 324.1405922 | AI58: 324.1405922 | AJ58: 386.3858554 | AK58: 425.024441
F59: 0 | H59: kWh | I59: Lighting: LED Fixture ~ TE, MF | J59: 61 | K59: per unit | L59: 60 | M59: 60 | N59: 18 | O59: Res Lighting | P59: 12 | Q59: 0 | R59: -12 | S59: 732 | T59: 0 | U59: -732 | V59: 720 | W59: 0 | X59: -720 | Y59: 0.15 | Z59: 0 | AA59: 0 | AB59: 0 | AD59: 0 | AE59: 0 | AF59: 0.00 | AG59: 0.00 | AH59: 0 | AI59: 0 | AJ59: 0 | AK59: 0
F60: 0 | H60: kWh | I60: Lighting: LED Fixture ~ TE, MH | J60: 61 | K60: per unit | L60: 60 | M60: 60 | N60: 18 | O60: Res Lighting | P60: 12 | Q60: 0 | R60: -12 | S60: 732 | T60: 0 | U60: -732 | V60: 720 | W60: 0 | X60: -720 | Y60: 0.15 | Z60: 0 | AA60: 0 | AB60: 0 | AD60: 0 | AE60: 0 | AF60: 0.00 | AG60: 0.00 | AH60: 0 | AI60: 0 | AJ60: 0 | AK60: 0
F61: 0 | H61: kWh | I61: Lighting: LED Fixture ~ TE, SF | J61: 61 | K61: per unit | L61: 60 | M61: 60 | N61: 18 | O61: Res Lighting | P61: 12 | Q61: 0 | R61: -12 | S61: 732 | T61: 0 | U61: -732 | V61: 720 | W61: 0 | X61: -720 | Y61: 0.15 | Z61: 0 | AA61: 0 | AB61: 0 | AD61: 0 | AE61: 0 | AF61: 0.00 | AG61: 0.00 | AH61: 0 | AI61: 0 | AJ61: 0 | AK61: 0
F62: 0 | H62: kWh | I62: Lighting: LED Lamp ~ TE, MF | J62: 34 | K62: per unit | L62: 40 | M62: 40 | N62: 30 | O62: Res Lighting | P62: 12 | Q62: 0 | R62: -12 | S62: 408 | T62: 0 | U62: -408 | V62: 480 | W62: 0 | X62: -480 | Y62: 0.225 | Z62: 0 | AA62: 0 | AB62: 0 | AD62: 0 | AE62: 0 | AF62: 0.00 | AG62: 0.00 | AH62: 0 | AI62: 0 | AJ62: 0 | AK62: 0
H63: kWh | I63: Lighting: LED Lamp ~ TE, MH | J63: 34 | K63: per unit | L63: 40 | M63: 40 | N63: 30 | O63: Res Lighting | P63: 12 | Q63: 0 | R63: -12 | S63: 408 | T63: 0 | U63: -408 | V63: 480 | W63: 0 | X63: -480 | Y63: 0.225 | Z63: 0 | AA63: 0 | AB63: 0 | AD63: 0 | AE63: 0 | AF63: 0.00 | AG63: 0.00 | AH63: 0 | AI63: 0 | AJ63: 0 | AK63: 0
C64: Direct Benefit to Customer | D64: =W15+(AA15/2) -> 2678409.68 | E64: =W15+Z15 -> 3008550.383 | F64: =D64+E64 -> 5686960.063 | H64: kWh | I64: Lighting: LED Lamp ~ TE, SF | J64: 34 | K64: per unit | L64: 40 | M64: 40 | N64: 30 | O64: Res Lighting | P64: 12 | Q64: 0 | R64: -12 | S64: 408 | T64: 0 | U64: -408 | V64: 480 | W64: 0 | X64: -480 | Y64: 0.225 | Z64: 0 | AA64: 0 | AB64: 0 | AD64: 0 | AE64: 0 | AF64: 0.00 | AG64: 0.00 | AH64: 0 | AI64: 0 | AJ64: 0 | AK64: 0
C65: Ratio | D65: =D64/D12 -> 0.8971114717 | E65: =E64/E12 -> 0.9066979729 | H65: kWh | I65: Duct Sealing: Duct Sealing ~ TE, MH | J65: 1082 | K65: per unit | L65: 500 | M65: 500 | N65: 20 | O65: SF Space Heat | P65: 166 | Q65: 104 | R65: -62 | S65: 179612 | T65: 112528 | U65: -67084 | V65: 83000 | W65: 52000 | X65: -31000 | Y65: 0.225 | Z65: 11700 | AA65: 6379.196029 | AB65: 18079.19603 | AD65: 0 | AE65: 0 | AF65: 2.823864494 | AG65: 3.106250944 | AH65: 64828.11844 | AI65: 64828.11844 | AJ65: 183065.8219 | AK65: 201372.4041
H66: kWh | I66: Duct Sealing: Duct Sealing ~ TE, SF | J66: 1244 | K66: per unit | L66: 500 | M66: 500 | N66: 20 | O66: SF Space Heat | P66: 50 | Q66: 17 | R66: -33 | S66: 62200 | T66: 21148 | U66: -41052 | V66: 25000 | W66: 8500 | X66: -16500 | Y66: 0.225 | Z66: 1912.5 | AA66: 1042.753197 | AB66: 2955.253197 | AD66: 0 | AE66: 0 | AF66: 3.246661211 | AG66: 3.571327333 | AH66: 10596.90398 | AI66: 10596.90398 | AJ66: 34404.5571 | AK66: 37845.01281
A67: Low Income Weatherization | C67: REVENUE | D67: 0 | E67: 0 | F67: 0 | H67: kWh | I67: Structure Sealing: Shell Sealing ~ TE, MH | J67: 0.84 | K67: square foot | L67: 1 | M67: 1 | N67: 25 | O67: SF Space Heat | P67: 158000 | Q67: 128601 | R67: -29399 | S67: 132720 | T67: 108024.84 | U67: -24695.16 | V67: 158000 | W67: 128601 | X67: -29399 | Y67: 0.225 | Z67: 28935.225 | AA67: 15776.36516 | AB67: 44711.59016 | AD67: 0 | AE67: 0 | AF67: 1.237469585 | AG67: 1.361216543 | AH67: 160326.1704 | AI67: 160326.1704 | AJ67: 198398.7595 | AK67: 218238.6354
A68: Schedule 201 | D68: (Enter as a negative value) | H68: kWh | I68: Structure Sealing: Shell Sealing ~ TE, SF | J68: 0.48 | K68: square foot | L68: 1 | M68: 1 | N68: 20 | O68: SF Space Heat | P68: 116000 | Q68: 72849 | R68: -43151 | S68: 55680 | T68: 34967.52 | U68: -20712.48 | V68: 116000 | W68: 72849 | X68: -43151 | Y68: 0.225 | Z68: 16391.025 | AA68: 8936.885606 | AB68: 25327.91061 | AD68: 0 | AE68: 0 | AF68: 0.626365507 | AG68: 0.6890020577 | AH68: 90820.45384 | AI68: 90820.45384 | AJ68: 56886.79962 | AK68: 62575.47958
A69: Order Number | H69: kWh | I69: Thermostat: Electronic ~ TE, SF | J69: 348 | K69: per unit | L69: 202.5 | M69: 202.5 | N69: 15 | O69: SF Space Heat | P69: 5 | Q69: 1 | R69: -4 | S69: 1740 | T69: 348 | U69: -1392 | V69: 1012.5 | W69: 202.5 | X69: -810 | Y69: 0.15 | Z69: 30.375 | AA69: 24.84206146 | AB69: 55.21706146 | AD69: 0 | AE69: 0 | AF69: 2.004938222 | AG69: 2.205432044 | AH69: 238.4061623 | AI69: 238.4061623 | AJ69: 477.9896271 | AK69: 525.7885899
A70: 18230611 | H70: kWh | I70: EnergyStar Whole House Ventilation ~ TE, MF | J70: 128 | K70: per unit | L70: 50 | M70: 50 | N70: 15 | O70: MF Space Heat | P70: 100 | Q70: 6 | R70: -94 | S70: 12800 | T70: 768 | U70: -12032 | V70: 5000 | W70: 300 | X70: -4700 | Y70: 0.225 | Z70: 67.5 | AA70: 36.80305401 | AB70: 104.303054 | AD70: 0 | AE70: 0 | AF70: 2.433249406 | AG70: 2.676574346 | AH70: 374.0083756 | AI70: 374.0083756 | AJ70: 910.0556576 | AK70: 1001.061223
A71: Electric | H71: kWh | I71: EnergyStar Whole House Ventilation ~ TE, MH | J71: 128 | K71: per unit | L71: 50 | M71: 50 | N71: 15 | O71: SF Space Heat | P71: 50 | Q71: 77 | R71: 27 | S71: 6400 | T71: 9856 | U71: 3456 | V71: 2500 | W71: 3850 | X71: 1350 | Y71: 0.225 | Z71: 866.25 | AA71: 472.3058598 | AB71: 1338.55586 | AD71: 0 | AE71: 0 | AF71: 2.820454644 | AG71: 3.102500109 | AH71: 4799.774153 | AI71: 4799.774153 | AJ71: 13537.5453 | AK71: 14891.29983
H72: kWh | I72: EnergyStar Whole House Ventilation ~ TE, SF | J72: 128 | K72: per unit | L72: 50 | M72: 50 | N72: 15 | O72: SF Space Heat | P72: 74 | Q72: 73 | R72: -1 | S72: 9472 | T72: 9344 | U72: -128 | V72: 3700 | W72: 3650 | X72: -50 | Y72: 0.225 | Z72: 821.25 | AA72: 447.7704905 | AB72: 1269.02049 | AD72: 0 | AE72: 0 | AF72: 2.820454644 | AG72: 3.102500109 | AH72: 4550.435236 | AI72: 4550.435236 | AJ72: 12834.2962 | AK72: 14117.72581
H73: kWh | I73: Water Heater: Pipe Insulation ~ TE, MF | J73: 20 | K73: linear foot | L73: 20 | M73: 20 | N73: 15 | O73: Res Water Heat | P73: 16 | Q73: 6 | R73: -10 | S73: 320 | T73: 120 | U73: -200 | V73: 320 | W73: 120 | X73: -200 | Y73: 0.225 | Z73: 27 | AA73: 14.7212216 | AB73: 41.7212216 | AD73: 0 | AE73: 0 | AF73: 0.6189432925 | AG73: 0.6808376218 | AH73: 149.6033502 | AI73: 149.6033502 | AJ73: 92.59599017 | AK73: 101.8555892
H74: kWh | I74: Water Heater: Pipe Insulation ~ TE, MH | J74: 20 | K74: linear foot | L74: 20 | M74: 20 | N74: 15 | O74: Res Water Heat | P74: 96 | Q74: 73 | R74: -23 | S74: 1920 | T74: 1460 | U74: -460 | V74: 1920 | W74: 1460 | X74: -460 | Y74: 0.225 | Z74: 328.5 | AA74: 179.1081962 | AB74: 507.6081962 | AD74: 0 | AE74: 0 | AF74: 0.6189432925 | AG74: 0.6808376218 | AH74: 1820.174095 | AI74: 1820.174095 | AJ74: 1126.584547 | AK74: 1239.243002
H75: kWh | I75: Water Heater: Pipe Insulation ~ TE, SF | J75: 20 | K75: linear foot | L75: 20 | M75: 20 | N75: 15 | O75: Res Water Heat | P75: 20 | Q75: 33 | R75: 13 | S75: 400 | T75: 660 | U75: 260 | V75: 400 | W75: 660 | X75: 260 | Y75: 0.225 | Z75: 148.5 | AA75: 80.96671883 | AB75: 229.4667188 | AD75: 0 | AE75: 0 | AF75: 0.6189432925 | AG75: 0.6808376218 | AH75: 822.8184263 | AI75: 822.8184263 | AJ75: 509.2779459 | AK75: 560.2057405
H76: kWh | I76: Windows: Windows - Double to Triple Pane ~ TE, MF | J76: 13.87 | K76: square foot | L76: 35 | M76: 8 | N76: 30 | O76: MF Space Heat | P76: 12 | Q76: 0 | R76: -12 | S76: 166.44 | T76: 0 | U76: -166.44 | V76: 96 | W76: 0 | X76: -96 | Y76: 0.15 | Z76: 0 | AA76: 0 | AB76: 0 | AD76: 0 | AE76: 0 | AF76: 0.00 | AG76: 0.00 | AH76: 0 | AI76: 0 | AJ76: 0 | AK76: 0
H77: kWh | I77: Windows: Windows - Double to Triple Pane ~ TE, SF | J77: 6.91 | K77: square foot | L77: 35 | M77: 8 | N77: 30 | O77: SF Space Heat | P77: 12 | Q77: 0 | R77: -12 | S77: 82.92 | T77: 0 | U77: -82.92 | V77: 96 | W77: 0 | X77: -96 | Y77: 0.15 | Z77: 0 | AA77: 0 | AB77: 0 | AD77: 0 | AE77: 0 | AF77: 0.00 | AG77: 0.00 | AH77: 0 | AI77: 0 | AJ77: 0 | AK77: 0
H78: kWh | I78: Windows: Windows - Early Double to EF Double ~ TE, MF | J78: 11.94 | K78: square foot | L78: 32.52 | M78: 6 | N78: 30 | O78: MF Space Heat | P78: 1500 | Q78: 0 | R78: -1500 | S78: 17910 | T78: 0 | U78: -17910 | V78: 9000 | W78: 0 | X78: -9000 | Y78: 0.15 | Z78: 0 | AA78: 0 | AB78: 0 | AD78: 0 | AE78: 0 | AF78: 0.00 | AG78: 0.00 | AH78: 0 | AI78: 0 | AJ78: 0 | AK78: 0
H79: kWh | I79: Windows: Windows - Early Double to EF Double ~ TE, MH | J79: 12.26 | K79: square foot | L79: 32.52 | M79: 10 | N79: 25 | O79: SF Space Heat | P79: 500 | Q79: 46 | R79: -454 | S79: 6130 | T79: 563.96 | U79: -5566.04 | V79: 5000 | W79: 460 | X79: -4540 | Y79: 0.15 | Z79: 69 | AA79: 56.43134949 | AB79: 125.4313495 | AD79: 0 | AE79: 0 | AF79: 1.912552394 | AG79: 0.7222560278 | AH79: 541.5646156 | AI79: 1577.484616 | AJ79: 1035.770702 | AK79: 1139.347772
H80: kWh | I80: Windows: Windows - Early Double to EF Double ~ TE, SF | J80: 5.98 | K80: square foot | L80: 32.52 | M80: 10 | N80: 30 | O80: SF Space Heat | P80: 500 | Q80: 0 | R80: -500 | S80: 2990 | T80: 0 | U80: -2990 | V80: 5000 | W80: 0 | X80: -5000 | Y80: 0.15 | Z80: 0 | AA80: 0 | AB80: 0 | AD80: 0 | AE80: 0 | AF80: 0.00 | AG80: 0.00 | AH80: 0 | AI80: 0 | AJ80: 0 | AK80: 0
H81: kWh | I81: Windows: Windows - Single to Double Pane ~ TE, MF | J81: 21.65 | K81: square foot | L81: 32.52 | M81: 16.2 | N81: 30 | O81: MF Space Heat | P81: 1000 | Q81: 0 | R81: -1000 | S81: 21650 | T81: 0 | U81: -21650 | V81: 16200 | W81: 0 | X81: -16200 | Y81: 0.15 | Z81: 0 | AA81: 0 | AB81: 0 | AD81: 0 | AE81: 0 | AF81: 0.00 | AG81: 0.00 | AH81: 0 | AI81: 0 | AJ81: 0 | AK81: 0
H82: kWh | I82: Windows: Windows - Single to Double Pane ~ TE, MH | J82: 20.11 | K82: square foot | L82: 32.52 | M82: 12 | N82: 25 | O82: SF Space Heat | P82: 1086 | Q82: 1478 | R82: 392 | S82: 21839.46 | T82: 29722.58 | U82: 7883.12 | V82: 13032 | W82: 17736 | X82: 4704 | Y82: 0.15 | Z82: 2660.4 | AA82: 2175.796553 | AB82: 4836.196553 | AD82: 0 | AE82: 0 | AF82: 2.614289603 | AG82: 1.172586139 | AH82: 20880.84788 | AI82: 51209.40788 | AJ82: 54588.58351 | AK82: 60047.44186
H83: kWh | I83: Windows: Windows - Single to Double Pane ~ TE, SF | J83: 12.1 | K83: square foot | L83: 32.52 | M83: 13 | N83: 30 | O83: SF Space Heat | P83: 1000 | Q83: 403 | R83: -597 | S83: 12100 | T83: 4876.3 | U83: -7223.7 | V83: 13000 | W83: 5239 | X83: -7761 | Y83: 0.15 | Z83: 785.85 | AA83: 642.7039999 | AB83: 1428.554 | AD83: 0 | AE83: 0 | AF83: 1.605485601 | AG83: 0.7761446928 | AH83: 6167.950046 | AI83: 14034.51005 | AJ83: 9902.55499 | AK83: 10892.81049
H84: kWh | I84: Windows: Windows - Single to Triple Pane ~ TE, MF | J84: 23.58 | K84: square foot | L84: 35 | M84: 18 | N84: 30 | O84: MF Space Heat | P84: 12 | Q84: 0 | R84: -12 | S84: 282.96 | T84: 0 | U84: -282.96 | V84: 216 | W84: 0 | X84: -216 | Y84: 0.15 | Z84: 0 | AA84: 0 | AB84: 0 | AD84: 0 | AE84: 0 | AF84: 0.00 | AG84: 0.00 | AH84: 0 | AI84: 0 | AJ84: 0 | AK84: 0
H85: kWh | I85: Windows: Windows - Single to Triple Pane ~ TE, SF | J85: 13.21 | K85: square foot | L85: 35 | M85: 18 | N85: 30 | O85: SF Space Heat | P85: 12 | Q85: 0 | R85: -12 | S85: 158.52 | T85: 0 | U85: -158.52 | V85: 216 | W85: 0 | X85: -216 | Y85: 0.15 | Z85: 0 | AA85: 0 | AB85: 0 | AD85: 0 | AE85: 0 | AF85: 0.00 | AG85: 0.00 | AH85: 0 | AI85: 0 | AJ85: 0 | AK85: 0
H86: kWh | I86: Common Area Measures: Common Area Lighting ~ TE, MF | J86: 54135 | K86: calculated | L86: 16055 | M86: 8000 | N86: 15 | O86: Comm Lighting | P86: 1 | Q86: 0 | R86: -1 | S86: 54135 | T86: 0 | U86: -54135 | V86: 8000 | W86: 0 | X86: -8000 | Y86: 0.15 | Z86: 0 | AA86: 0 | AB86: 0 | AD86: 0 | AE86: 0 | AF86: 0.00 | AG86: 0.00 | AH86: 0 | AI86: 0 | AJ86: 0 | AK86: 0
H87: kWh | I87: Structure Sealing: Shell Sealing ~ TE, MF | J87: 0.85 | K87: square foot | L87: 1 | M87: 1 | N87: 20 | O87: MF Space Heat | P87: 150000 | Q87: 0 | R87: -150000 | S87: 127500 | T87: 0 | U87: -127500 | V87: 150000 | W87: 0 | X87: -150000 | Y87: 0.225 | Z87: 0 | AA87: 0 | AB87: 0 | AD87: 0 | AE87: 0 | AF87: 0.00 | AG87: 0.00 | AH87: 0 | AI87: 0 | AJ87: 0 | AK87: 0
H88: kWh | I88: Furnace / Heating: Ductless Heat Pump ~ TE, MH | J88: 3400 | K88: per unit | L88: 4130 | M88: 3407 | N88: 18 | O88: SF Space Heat | P88: 15 | Q88: 35 | R88: 20 | S88: 51000 | T88: 119000 | U88: 68000 | V88: 51105 | W88: 119245 | X88: 68140 | Y88: 0.15 | Z88: 17886.75 | AA88: 14628.60059 | AB88: 32515.35059 | AD88: 0 | AE88: 0 | AF88: 1.300513455 | AG88: 1.212086918 | AH88: 140388.8535 | AI88: 165693.8535 | AJ88: 182577.5929 | AK88: 200835.3521
K89: per unit | O89: Res Lighting | Q89: 0
H90: kWh | I90: LED A Lamps~TE, MF | J90: 17 | K90: per unit | L90: 15 | M90: 15 | N90: 12 | O90: Res Lighting | P90: 1 | Q90: 1 | R90: 0 | S90: 17 | T90: 17 | U90: 0 | V90: 15 | W90: 15 | X90: 0 | Y90: 0.225 | Z90: 3.375 | AA90: 1.840152701 | AB90: 5.215152701 | AD90: 0 | AE90: 0 | AF90: 0.6210558195 | AG90: 0.6831614015 | AH90: 18.70041878 | AI90: 18.70041878 | AJ90: 11.61400391 | AK90: 12.7754043
H91: kWh | I91: LED A Lamps~TE, MH | J91: 16.71 | K91: per unit | L91: 15 | M91: 15 | N91: 12 | O91: Res Lighting | P91: 15 | Q91: 15 | R91: 0 | S91: 250.65 | T91: 250.65 | U91: 0 | V91: 225 | W91: 225 | X91: 0 | Y91: 0.225 | Z91: 50.625 | AA91: 27.60229051 | AB91: 78.22729051 | AD91: 0 | AE91: 0 | AF91: 0.6104613379 | AG91: 0.6715074717 | AH91: 280.5062817 | AI91: 280.5062817 | AJ91: 171.23824 | AK91: 188.362064
H92: kWh | I92: LED A Lamps~TE, SF | J92: 13.48 | K92: per unit | L92: 15 | M92: 15 | N92: 12 | O92: Res Lighting | P92: 15 | Q92: 15 | R92: 0 | S92: 202.2 | T92: 202.2 | U92: 0 | V92: 225 | W92: 225 | X92: 0 | Y92: 0.225 | Z92: 50.625 | AA92: 27.60229051 | AB92: 78.22729051 | AD92: 0 | AE92: 0 | AF92: 0.4924607322 | AG92: 0.5417068054 | AH92: 280.5062817 | AI92: 280.5062817 | AJ92: 138.1383289 | AK92: 151.9521618
H93: kWh | I93: LED Bath Vanity 360 watt to 24 watt, TE, MF | J93: 233 | K93: per unit | L93: 15 | M93: 15 | N93: 12 | O93: Res Lighting | P93: 0 | Q93: 0 | R93: 0 | S93: 0 | T93: 0 | U93: 0 | V93: 0 | W93: 0 | X93: 0 | Y93: 0.225 | Z93: 0 | AA93: 0 | AB93: 0 | AD93: 0 | AE93: 0 | AF93: 0.00 | AG93: 0.00 | AH93: 0 | AI93: 0 | AJ93: 0 | AK93: 0
H94: kWh | I94: LED Bath Vanity 360 watt to 24 watt, TE, MH | J94: 233 | K94: per unit | L94: 15 | M94: 15 | N94: 12 | O94: Res Lighting | P94: 0 | Q94: 0 | R94: 0 | S94: 0 | T94: 0 | U94: 0 | V94: 0 | W94: 0 | X94: 0 | Y94: 0.225 | Z94: 0 | AA94: 0 | AB94: 0 | AD94: 0 | AE94: 0 | AF94: 0.00 | AG94: 0.00 | AH94: 0 | AI94: 0 | AJ94: 0 | AK94: 0
H95: kWh | I95: LED Bath Vanity 360 watt to 24 watt, TE, SF | J95: 233 | K95: per unit | L95: 15 | M95: 15 | N95: 12 | O95: Res Lighting | P95: 0 | Q95: 0 | R95: 0 | S95: 0 | T95: 0 | U95: 0 | V95: 0 | W95: 0 | X95: 0 | Y95: 0.225 | Z95: 0 | AA95: 0 | AB95: 0 | AD95: 0 | AE95: 0 | AF95: 0.00 | AG95: 0.00 | AH95: 0 | AI95: 0 | AJ95: 0 | AK95: 0
H96: kWh | I96: LED BR 30~TE, MF | J96: 25.06 | K96: per unit | L96: 15 | M96: 15 | N96: 12 | O96: Res Lighting | P96: 5 | Q96: 5 | R96: 0 | S96: 125.3 | T96: 125.3 | U96: 0 | V96: 75 | W96: 75 | X96: 0 | Y96: 0.225 | Z96: 16.875 | AA96: 9.200763503 | AB96: 26.0757635 | AD96: 0 | AE96: 0 | AF96: 0.9155093434 | AG96: 1.007060278 | AH96: 93.5020939 | AI96: 93.5020939 | AJ96: 85.60204059 | AK96: 94.16224465
H97: kWh | I97: LED BR 30~TE, MH | J97: 23 | K97: per unit | L97: 15 | M97: 15 | N97: 12 | O97: Res Lighting | P97: 0 | Q97: 0 | R97: 0 | S97: 0 | T97: 0 | U97: 0 | V97: 0 | W97: 0 | X97: 0 | Y97: 0.225 | Z97: 0 | AA97: 0 | AB97: 0 | AD97: 0 | AE97: 0 | AF97: 0.00 | AG97: 0.00 | AH97: 0 | AI97: 0 | AJ97: 0 | AK97: 0
H98: kWh | I98: LED BR 30~TE, SF | J98: 29.55 | K98: per unit | L98: 15 | M98: 15 | N98: 12 | O98: Res Lighting | P98: 5 | Q98: 5 | R98: 0 | S98: 147.75 | T98: 147.75 | U98: 0 | V98: 75 | W98: 75 | X98: 0 | Y98: 0.225 | Z98: 16.875 | AA98: 9.200763503 | AB98: 26.0757635 | AD98: 0 | AE98: 0 | AF98: 1.079541145 | AG98: 1.18749526 | AH98: 93.5020939 | AI98: 93.5020939 | AJ98: 100.9393575 | AK98: 111.0332933
H99: kWh | I99: LED Candelabra~TE, MF | J99: 18.51 | K99: per unit | L99: 15 | M99: 15 | N99: 12 | O99: Res Lighting | P99: 5 | Q99: 5 | R99: 0 | S99: 92.55 | T99: 92.55 | U99: 0 | V99: 75 | W99: 75 | X99: 0 | Y99: 0.225 | Z99: 16.875 | AA99: 9.200763503 | AB99: 26.0757635 | AD99: 0 | AE99: 0 | AF99: 0.6762201894 | AG99: 0.7438422083 | AH99: 93.5020939 | AI99: 93.5020939 | AJ99: 63.22800364 | AK99: 69.55080401
H100: kWh | I100: LED Candelabra~TE, MH | J100: 19 | K100: per unit | L100: 15 | M100: 15 | N100: 12 | O100: Res Lighting | P100: 0 | Q100: 0 | R100: 0 | S100: 0 | T100: 0 | U100: 0 | V100: 0 | W100: 0 | X100: 0 | Y100: 0.225 | Z100: 0 | AA100: 0 | AB100: 0 | AD100: 0 | AE100: 0 | AF100: 0.00 | AG100: 0.00 | AH100: 0 | AI100: 0 | AJ100: 0 | AK100: 0
H101: kWh | I101: LED Candelabra~TE, SF | J101: 18.05 | K101: per unit | L101: 15 | M101: 15 | N101: 12 | O101: Res Lighting | P101: 5 | Q101: 5 | R101: 0 | S101: 90.25 | T101: 90.25 | U101: 0 | V101: 75 | W101: 75 | X101: 0 | Y101: 0.225 | Z101: 16.875 | AA101: 9.200763503 | AB101: 26.0757635 | AD101: 0 | AE101: 0 | AF101: 0.6594151496 | AG101: 0.7253566645 | AH101: 93.5020939 | AI101: 93.5020939 | AJ101: 61.65669723 | AK101: 67.82236696
H102: kWh | I102: MF Air Sealing~All Areas | J102: 2.18 | K102: square foot | L102: 2.18 | M102: 2.18 | N102: 30 | O102: MF Space Heat | P102: 1 | Q102: 250000 | R102: 249999 | S102: 2.18 | T102: 545000 | U102: 544997.82 | V102: 2.18 | W102: 545000 | X102: 544997.82 | Y102: 0.225 | Z102: 122625 | AA102: 66858.88146 | AB102: 189483.8815 | AD102: 0 | AE102: 0 | AF102: 1.359918178 | AG102: 1.495909996 | AH102: 679448.549 | AI102: 679448.549 | AJ102: 923994.4326 | AK102: 1016393.876
H103: kWh | I103: MF Air Sealing~Walls and Ceilings | J103: 2.21 | K103: square foot | L103: 1.8 | M103: 1.8 | N103: 30 | O103: MF Space Heat | P103: 28500 | Q103: 0 | R103: -28500 | S103: 62985 | T103: 0 | U103: -62985 | V103: 51300 | W103: 0 | X103: -51300 | Y103: 0.225 | Z103: 0 | AA103: 0 | AB103: 0 | AD103: 0 | AE103: 0 | AF103: 0.00 | AG103: 0.00 | AH103: 0 | AI103: 0 | AJ103: 0 | AK103: 0
H104: kWh | I104: MF Air Sealing~Walls and Floors | J104: 2.08 | K104: square foot | L104: 1.76 | M104: 1.76 | N104: 30 | O104: MF Space Heat | P104: 1 | Q104: 0 | R104: -1 | S104: 2.08 | T104: 0 | U104: -2.08 | V104: 1.76 | W104: 0 | X104: -1.76 | Y104: 0.225 | Z104: 0 | AA104: 0 | AB104: 0 | AD104: 0 | AE104: 0 | AF104: 0.00 | AG104: 0.00 | AH104: 0 | AI104: 0 | AJ104: 0 | AK104: 0
H105: kWh | I105: MF Air Sealing~Ceilings and Floors | J105: 0.68 | K105: square foot | L105: 0.57 | M105: 0.57 | N105: 30 | O105: MF Space Heat | P105: 28500 | Q105: 0 | R105: -28500 | S105: 19380 | T105: 0 | U105: -19380 | V105: 16245 | W105: 0 | X105: -16245 | Y105: 0.225 | Z105: 0 | AA105: 0 | AB105: 0 | AD105: 0 | AE105: 0 | AF105: 0.00 | AG105: 0.00 | AH105: 0 | AI105: 0 | AJ105: 0 | AK105: 0
H106: kWh | I106: MF Air Sealing~Ceilings | J106: 0.86 | K106: square foot | L106: 0.7 | M106: 0.7 | N106: 30 | O106: MF Space Heat | P106: 28500 | Q106: 0 | R106: -28500 | S106: 24510 | T106: 0 | U106: -24510 | V106: 19950 | W106: 0 | X106: -19950 | Y106: 0.225 | Z106: 0 | AA106: 0 | AB106: 0 | AD106: 0 | AE106: 0 | AF106: 0.00 | AG106: 0.00 | AH106: 0 | AI106: 0 | AJ106: 0 | AK106: 0
H107: kWh | I107: MF Air Sealing~Floors | J107: 0.57 | K107: square foot | L107: 0.44 | M107: 0.44 | N107: 30 | O107: MF Space Heat | P107: 28500 | Q107: 0 | R107: -28500 | S107: 16245 | T107: 0 | U107: -16245 | V107: 12540 | W107: 0 | X107: -12540 | Y107: 0.225 | Z107: 0 | AA107: 0 | AB107: 0 | AD107: 0 | AE107: 0 | AF107: 0.00 | AG107: 0.00 | AH107: 0 | AI107: 0 | AJ107: 0 | AK107: 0
H108: kWh | I108: MF Air Sealing~Walls | J108: 3.43 | K108: square foot | L108: 2.41 | M108: 2.41 | N108: 30 | O108: MF Space Heat | P108: 1 | Q108: 0 | R108: -1 | S108: 3.43 | T108: 0 | U108: -3.43 | V108: 2.41 | W108: 0 | X108: -2.41 | Y108: 0.225 | Z108: 0 | AA108: 0 | AB108: 0 | AD108: 0 | AE108: 0 | AF108: 0.00 | AG108: 0.00 | AH108: 0 | AI108: 0 | AJ108: 0 | AK108: 0
H109: kWh | I109: LED Outdoor Fixture~MF | J109: 47 | K109: per unit | L109: 40 | M109: 40 | N109: 12 | O109: Res Lighting | P109: 0 | Q109: 1 | R109: 1 | S109: 0 | T109: 47 | U109: 47 | V109: 0 | W109: 40 | X109: 40 | Y109: 0.15 | Z109: 6 | AA109: 4.907073868 | AB109: 10.90707387 | AD109: 0 | AE109: 0 | AF109: 0.6818337019 | AG109: 0.7500170721 | AH109: 47.09257527 | AI109: 47.09257527 | AJ109: 32.10930493 | AK109: 35.32023542
H110: kWh | I110: LED Outdoor Fixture~MH | J110: 47 | K110: per unit | L110: 40 | M110: 40 | N110: 12 | O110: Res Lighting | P110: 0 | Q110: 1 | R110: 1 | S110: 0 | T110: 47 | U110: 47 | V110: 0 | W110: 40 | X110: 40 | Y110: 0.15 | Z110: 6 | AA110: 4.907073868 | AB110: 10.90707387 | AD110: 0 | AE110: 0 | AF110: 0.6818337019 | AG110: 0.7500170721 | AH110: 47.09257527 | AI110: 47.09257527 | AJ110: 32.10930493 | AK110: 35.32023542
H111: kWh | I111: LED Outdoor Fixture~SF | J111: 47 | K111: per unit | L111: 40 | M111: 40 | N111: 12 | O111: Res Lighting | P111: 0 | Q111: 1 | R111: 1 | S111: 0 | T111: 47 | U111: 47 | V111: 0 | W111: 40 | X111: 40 | Y111: 0.15 | Z111: 6 | AA111: 4.907073868 | AB111: 10.90707387 | AD111: 0 | AE111: 0 | AF111: 0.6818337019 | AG111: 0.7500170721 | AH111: 47.09257527 | AI111: 47.09257527 | AJ111: 32.10930493 | AK111: 35.32023542
H112: kWh | I112: LED Indoor Fixture~MF | J112: 13 | K112: per unit | L112: 40 | M112: 40 | N112: 12 | O112: Res Lighting | P112: 0 | Q112: 0 | R112: 0 | S112: 0 | T112: 0 | U112: 0 | V112: 0 | W112: 0 | X112: 0 | Y112: 0.15 | Z112: 0 | AA112: 0 | AB112: 0 | AD112: 0 | AE112: 0 | AF112: 0.00 | AG112: 0.00 | AH112: 0 | AI112: 0 | AJ112: 0 | AK112: 0
H113: kWh | I113: LED Indoor Fixture~MH | J113: 13 | K113: per unit | L113: 40 | M113: 40 | N113: 12 | O113: Res Lighting | P113: 0 | Q113: 0 | R113: 0 | S113: 0 | T113: 0 | U113: 0 | V113: 0 | W113: 0 | X113: 0 | Y113: 0.15 | Z113: 0 | AA113: 0 | AB113: 0 | AD113: 0 | AE113: 0 | AF113: 0.00 | AG113: 0.00 | AH113: 0 | AI113: 0 | AJ113: 0 | AK113: 0
H114: kWh | I114: LED Indoor Fixture~SF | J114: 13 | K114: per unit | L114: 40 | M114: 40 | N114: 12 | O114: Res Lighting | P114: 0 | Q114: 0 | R114: 0 | S114: 0 | T114: 0 | U114: 0 | V114: 0 | W114: 0 | X114: 0 | Y114: 0.15 | Z114: 0 | AA114: 0 | AB114: 0 | AD114: 0 | AE114: 0 | AF114: 0.00 | AG114: 0.00 | AH114: 0 | AI114: 0 | AJ114: 0 | AK114: 0
H115: kWh | I115: ENERGY STAR Whole House Ventilation w/Air Sealing~MF | J115: 128 | K115: per unit | L115: 250 | M115: 250 | N115: 15 | O115: MF Space Heat | P115: 0 | Q115: 25 | R115: 25 | S115: 0 | T115: 3200 | U115: 3200 | V115: 0 | W115: 6250 | X115: 6250 | Y115: 0.15 | Z115: 937.5 | AA115: 766.7302919 | AB115: 1704.230292 | AD115: 0 | AE115: 0 | AF115: 0.5153285997 | AG115: 0.5668614596 | AH115: 7358.214886 | AI115: 7358.214886 | AJ115: 3791.898573 | AK115: 4171.088431

Sheet REM E214 Title Tab
A1: This is a placeholder tab for Electric Schedule 214
B4: All detail budget and savings programs within the Single Family Existing Schedule 214 add up to the overall figures noted in the Portfolio View of Exhibit 1.

Sheet HomePrint Detail_REM_E214 Elec
C1: HomePrint | D1: Schedule 214 | E1: Order Number | F1: 18230625 | G1: Electric | L1: HomePrint | M1: Schedule 214 | N1: Order Number | O1: 18230625 | P1: Electric | T1: HomePrint | U1: Schedule 214 | V1: Order Number | W1: 18230625 | X1: Electric
H2: This table summarizes the subtotals in the detail table to the left and is used to populate 2014-2015 Sector views. | T2: Ratios | W2: Acquisition Cost
A3: HomePrint | H3: Labor | I3: Marketing Labor | J3: Overhead | K3: Marketing | L3: Employee/Office Expense | M3: Outside Services | N3: Materials | O3: Miscellaneous | P3: DBtC | Q3: Revenue | R3: Total Budget | S3: Total Savings | T3: DBTC | U3: Marketing | V3: Outside Svcs
A4: Schedule 214 | F4: 2014 Values are shown as reference only. | G4: 2014 | H4: =D15 -> 85556.25 | I4: =D21 -> 26325 | J4: =D27 -> 77421.825 | K4: =D34 -> 93750 | L4: =D40 -> 3000 | M4: =D46 -> 25000 | N4: =D52 -> 1000 | O4: =D58 -> 2000 | P4: =D64 -> 1880000 | Q4: =D67 -> 0 | R4: =SUM(H4:Q4) -> 2194053.075 | S4: =T15 -> 3400000 | T4: =P4/R4 -> 0.8568616782 | U4: =(K4+(I4*1.63))/R4 -> 0.06228643762 | V4: =M4/R4 -> 0.01139443721 | W4: =R4/S4 -> 0.6453097279
A5: Order Number | G5: Original 2015 Budget | H5: 85556.25 | I5: 26325 | J5: 77869.35 | K5: 93750 | L5: 3000 | M5: 25000 | N5: 1000 | O5: 2000 | P5: 1880000 | Q5: 0 | R5: 2194500.6 | S5: 3400000
A6: 18230625 | G6: Revised 2015 Budget | H6: =E15 -> 45637.92 | I6: =E21 -> 22133.76 | J6: =E27 -> 47914.57776 | K6: =E34 -> 93750 | L6: =E40 -> 3000 | M6: =E46 -> 25000 | N6: =E52 -> 1000 | O6: =E58 -> 2000 | P6: =E64 -> 1570800 | Q6: =E67 -> 0 | R6: =SUM(H6:Q6) -> 1811236.258 | S6: =U15 -> 3009000 | T6: =P6/R6 -> 0.8672529568 | U6: =(K6+(I6*1.63))/R6 -> 0.07167923469 | V6: =M6/R6 -> 0.01380272722 | W6: =R6/S6 -> 0.6019396005
A7: Electric | G7: Total | H7: =H4+H6 -> 131194.17 | I7: =I4+I6 -> 48458.76 | J7: 125336.4028 | K7: 187500 | L7: 6000 | M7: 50000 | N7: 2000 | O7: 4000 | P7: 3450800 | Q7: 0 | R7: 4005289.333 | S7: =S4+S6 -> 6409000 | T7: =P7/R7 -> 0.8615607297 | U7: =(K7+(I7*1.63))/R7 -> 0.06653396463 | V7: =M7/R7 -> 0.01248349266 | W7: =R7/S7 -> 0.6249476256
D8: 2014 Values are shown as reference only. | H8: NOTE: "Total" excludes "Original 2015 Budget" amount
D9: Orange cells indicate a new budget element for 2015.
C10: Spending Section | H10: Savings Section | W10: Savings Section | Z10: Savings Section
C12: Overall Total | D12: =D15+D21+D27+D34+D40+D46+D52+D58+D64 -> 2194053.075 | E12: =E15+E21+E27+E34+E40+E46+E52+E58+E64 -> 1811236.258 | F12: =D12+E12 -> 4005289.333 | H12: Measure Information | Q12: Unit Totals | T12: Projected Savings | W12: Incentive Totals | Z12: Cost Effectiveness (Based on Two-Year Total)
H13: Measure Name | I13: Savings | J13: UOM | K13: Unit Type | L13: Measure Cost | M13: Incentive | N13: Support % | O13: Measure Life | P13: End Use | Q13: 2014 | R13: 2015 | S13: Combined | T13: 2014 | U13: 2015 | V13: Combined | W13: 2014 | X13: 2015 | Y13: Combined | Z13: NEBs
C14: Budget Category | D14: 2014 | E14: 2015 | F14: Total | H14: i | I14: i | K14: i | L14: i | M14: i | N14: i | O14: i | P14: i | Q14: i | R14: i | Z14: i
B15: FTE | C15: LABOR | D15: =SUM(D16:D18) -> 85556.25 | E15: =SUM(E16:E18) -> 45637.92 | F15: =D15+E15 -> 131194.17 | H15: TOTALS g | L15: 0 | M15: 0 | O15: N/A | T15: =SUM(T16:T65) -> 3400000 | U15: 3009000 | V15: 6409000 | W15: 1880000 | X15: 1570800 | Y15: 3450800 | Z15: 661560
C16: Avg of Staff | D16: 85556.25 | E16: 45637.92 | F16: =SUM(D16:E16) -> 131194.17 | G16: 2014 values | H16: CFL bulbs -DI | I16: 23 | J16: kWh | K16: per unit | L16: 3 | M16: 3 | N16: 0 | O16: 5 | P16: Lighting
F17: 0 | H17: Showerhead - leave behind - REDUCED INCENTIVE $10/Unit | I17: 260 | J17: kWh | K17: per unit | L17: 10 | M17: 10 | N17: 0.128968254 | O17: 10 | P17: Water Heat | Q17: 2000 | R17: 1500 | S17: =SUM(Q17:R17) -> 3500 | T17: =Q17*I17 -> 520000 | U17: =R17*I17 -> 390000 | V17: =SUM(T17:U17) -> 910000 | W17: =Q17*M17 -> 20000 | X17: =R17*M17 -> 15000 | Y17: =SUM(W17:X17) -> 35000 | Z17: 661560
F18: 0 | H18: HomePrint Assessment - REDUCED INCENTIVE $10/Unit | I18: 0 | J18: kWh | K18: per home | L18: 115 | M18: 115 | N18: 0 | Q18: 6000 | R18: 6000 | S18: =SUM(Q18:R18) -> 12000 | T18: 0 | U18: =R18*I18 -> 0 | V18: =SUM(T18:U18) -> 0 | W18: =Q18*M18 -> 690000 | X18: =R18*M18 -> 690000 | Y18: =SUM(W18:X18) -> 1380000
H19: LED bulbs - DI | I19: 32 | J19: kWh | K19: per unit | L19: 15 | M19: 13 | N19: 0 | O19: 30 | P19: Lighting | Q19: 90000 | R19: 0 | S19: =SUM(Q19:R19) -> 90000 | T19: =Q19*I19 -> 2880000 | U19: =R19*I19 -> 0 | V19: 2880000 | W19: =Q19*M19 -> 1170000 | X19: =R19*M19 -> 0 | Y19: =SUM(W19:X19) -> 1170000
B20: =SUM(B16:B19) -> 0 | G20: 2015 values | H20: A-Lamp LED - DI | I20: 18 | J20: kWh | K20: per unit | L20: 8.75 | M20: 8.75 | N20: 0.2261904762 | O20: 12 | P20: Lighting | Q20: 0 | R20: 38000 | S20: =SUM(Q20:R20) -> 38000 | T20: =Q20*I20 -> 0 | U20: =R20*I20 -> 684000 | V20: 684000 | W20: =Q20*M20 -> 0 | X20: =R20*M20 -> 332500 | Y20: =SUM(W20:X20) -> 332500
C21: MARKETING LABOR | D21: =SUM(D22:D25) -> 26325 | E21: =SUM(E22:E25) -> 22133.76 | F21: =D21+E21 -> 48458.76 | H21: Reflector LED - BR30 - DI | I21: 30 | J21: kWh | K21: per unit | L21: 9.7 | M21: 9.7 | N21: 0.3670634921 | O21: 12 | P21: Lighting | Q21: 0 | R21: 37000 | S21: 37000 | T21: 0 | U21: 1110000 | V21: 1110000 | W21: 0 | X21: 358900 | Y21: 358900
D22: 26325 | E22: 22133.76 | F22: 48458.76 | H22: Globe LED - DI | I22: 15 | J22: kWh | K22: per unit | L22: 6.56 | M22: 6.56 | N22: 0.07936507937 | O22: 12 | P22: Lighting | Q22: 0 | R22: 15000 | S22: 15000 | T22: 0 | U22: 225000 | V22: 225000 | W22: 0 | X22: 98400 | Y22: 98400
F23: 0 | H23: APS - Occupancy Surge Protector | I23: 300 | J23: kWh | K23: per unit | L23: 38 | M23: 38 | N23: 0.1984126984 | O23: 5 | P23: Res Plug Load | Q23: 0 | R23: 2000 | S23: 2000 | T23: 0 | U23: 600000 | V23: 600000 | W23: 0 | X23: 76000 | Y23: 76000
F24: 0
F25: 0
C27: OVERHEAD | D27: =SUM(D29:D32) -> 77421.825 | E27: =SUM(E29:E32) -> 47914.57776 | F27: =D27+E27 -> 125336.4028
C28: Percentages for Applicable Year | D28: 0.692 | E28: 0.707
C29: Program Staff | D29: =D28*D15 -> 59204.925 | E29: =E28*E16 -> 32266.00944 | F29: 91470.93444
C30: Marketing Staff | D30: =D28*D21 -> 18216.9 | E30: =E28*E21 -> 15648.56832 | F30: 33865.46832
F31: 0
A34: HomePrint | C34: MARKETING | D34: =SUM(D35:D38) -> 93750 | E34: =SUM(E35:E38) -> 93750 | F34: =D34+E34 -> 187500
A35: Schedule 214 | C35: Bill inserts, collateral, media | D35: 93750 | E35: 93750 | F35: =SUM(D35:E35) -> 187500
A36: Order Number | F36: 0
A37: 18230625 | F37: 0
A38: Electric | F38: 0
C40: EMPLOYEE/OFFICE EXPENSES | D40: =SUM(D41:D44) -> 3000 | E40: =SUM(E41:E44) -> 3000 | F40: =D40+E40 -> 6000
C41: Travel, tolls, meals, lodging, phone expense | D41: 3000 | E41: 3000 | F41: 6000
C42: Phone, office supplies, equipment | F42: 0
F43: 0
F44: 0
C46: OUTSIDE SERVICES | D46: =SUM(D47:D50) -> 25000 | E46: =SUM(E47:E50) -> 25000 | F46: =D46+E46 -> 50000
C47: Program Implementation: | D47: 25000 | E47: 25000 | F47: =SUM(D47:E47) -> 50000
C48: Generate customer assessment reports | F48: 0
F49: 0
F50: 0
C52: MATERIALS | D52: =SUM(D53:D56) -> 1000 | E52: =SUM(E53:E56) -> 1000 | F52: =D52+E52 -> 2000
D53: 1000 | E53: 1000 | F53: 2000
F54: 0
F55: 0
F56: 0
C58: MISCELLANEOUS | D58: =SUM(D59:D62) -> 2000 | E58: =SUM(E59:E62) -> 2000 | F58: =D58+E58 -> 4000
D59: 2000 | E59: 2000 | F59: 4000
F60: 0
F61: 0
F62: 0
A64: HomePrint | C64: DIRECT BENEFIT TO CUSTOMER | D64: =W15 -> 1880000 | E64: =X15 -> 1570800 | F64: =D64+E64 -> 3450800
A65: Schedule 214 | C65: Ratio | D65: =D64/D12 -> 0.8568616782 | E65: =E64/E12 -> 0.8672529568
A66: Order Number
A67: 18230625 | C67: REVENUE | D67: 0 | E67: 0 | F67: 0
A68: Electric | D68: (Enter as a negative value)

Sheet WaterHea_Detail_REM_E214 Elec
C1: SF Existing Water Heat | D1: Schedule 214 | E1: Order Number | F1: 18230626 | G1: Electric | L1: SF Existing Water Heat | M1: Schedule 214 | N1: Order Number | O1: 18230626 | P1: Electric | T1: SF Existing Water Heat | U1: Schedule 214 | V1: Order Number | W1: 18230626 | X1: Electric
H2: This table summarizes the subtotals in the detail table to the left and is used to populate 2014-2015 Sector views. | T2: Ratios | W2: Acquisition Cost
A3: SF Existing Water Heat | H3: Labor | I3: Marketing Labor | J3: Overhead | K3: Marketing | L3: Employee/Office Expense | M3: Outside Services | N3: Materials | O3: Miscellaneous | P3: DBtC | Q3: Revenue | R3: Total Budget | S3: Total Savings | T3: DBTC | U3: Marketing | V3: Outside Svcs
A4: Schedule 214 | F4: 2014 Values are shown as reference only. | G4: 2014 | H4: =D15 -> 17550 | I4: =D21 -> 10968.75 | J4: =D27 -> 19734.975 | K4: =D34 -> 78750 | L4: =D40 -> 1200 | M4: =D46 -> 4000 | N4: =D52 -> 5000 | O4: =D58 -> 2400 | P4: =D64 -> 217000 | Q4: =D67 -> 0 | R4: =SUM(H4:Q4) -> 356603.725 | S4: =T15 -> 545210 | T4: =P4/R4 -> 0.6085186014 | U4: =(K4+(I4*1.63))/R4 -> 0.2709704238 | V4: =M4/R4 -> 0.01121693275 | W4: =R4/S4 -> 0.6540667358
A5: Order Number | G5: Original 2015 Budget | H5: 17550 | I5: 10968.75 | J5: 19849.05 | K5: 78750 | L5: 1200 | M5: 4000 | N5: 5000 | O5: 2400 | P5: 217400 | Q5: 0 | R5: 357117.8 | S5: 545210
A6: 18230626 | G6: Revised 2015 Budget | H6: =E15 -> 11409.48 | I6: =E21 -> 6036.48 | J6: =E27 -> 12334.29372 | K6: =E34 -> 78750 | L6: =E40 -> 1200 | M6: =E46 -> 4000 | N6: =E52 -> 5000 | O6: =E58 -> 2400 | P6: =E64 -> 279500 | Q6: =E67 -> 0 | R6: =SUM(H6:Q6) -> 400630.2537 | S6: =U15 -> 634500 | T6: =P6/R6 -> 0.6976507575 | U6: =(K6+(I6*1.63))/R6 -> 0.2211252435 | V6: =M6/R6 -> 0.009984268444 | W6: =R6/S6 -> 0.6314109594
A7: Electric | G7: Total | H7: =H4+H6 -> 28959.48 | I7: =I4+I6 -> 17005.23 | J7: 32069.26872 | K7: 157500 | L7: 2400 | M7: 8000 | N7: 10000 | O7: 4800 | P7: 496500 | Q7: 0 | R7: 757233.9787 | S7: =S4+S6 -> 1179710 | T7: =P7/R7 -> 0.6556758069 | U7: =(K7+(I7*1.63))/R7 -> 0.2445988032 | V7: =M7/R7 -> 0.01056476627 | W7: =R7/S7 -> 0.6418814613
D8: 2014 Values are shown as reference only. | H8: NOTE: "Total" excludes "Original 2015 Budget" amount
C10: Spending Section | H10: Savings Section | W10: Savings Section | Z10: Savings Section
C12: Overall Total | D12: =D15+D21+D27+D34+D40+D46+D52+D58+D64 -> 356603.725 | E12: =E15+E21+E27+E34+E40+E46+E52+E58+E64 -> 400630.2537 | F12: =D12+E12 -> 757233.9787 | H12: Measure Information | Q12: Unit Totals | T12: Projected Savings | W12: Incentive Totals | Z12: Cost Effectiveness (Based on Two-Year Total)
H13: Measure Name | I13: Savings | J13: UOM | K13: Unit Type | L13: Measure Cost | M13: Incentive | N13: Support % | O13: Measure Life | P13: End Use | Q13: 2014 | R13: 2015 | S13: Combined | T13: 2014 | U13: 2015 | V13: Combined | W13: 2014 | X13: 2015 | Y13: Combined | Z13: NEBs
C14: Budget Category | D14: 2014 | E14: 2015 | F14: Total | H14: i | I14: i | K14: i | L14: i | M14: i | N14: i | O14: i | P14: i | Q14: i | R14: i | Z14: i
B15: FTE | C15: LABOR | D15: =SUM(D16:D18) -> 17550 | E15: =SUM(E16:E18) -> 11409.48 | F15: =D15+E15 -> 28959.48 | H15: TOTALS g | L15: 0 | M15: 0 | O15: N/A | T15: =SUM(T16:T65) -> 545210 | U15: =SUM(U16:U65) -> 634500 | V15: 1179710 | W15: 217000 | X15: 279500 | Y15: 496500 | Z15: 0
C16: Average of Staff labor | D16: 17550 | E16: 11409.48 | F16: =SUM(D16:E16) -> 28959.48 | G16: 2014 values | H16: High Efficiency Electric Water Heater (=> .95 EF) | I16: 149 | J16: kWh | K16: per unit | L16: 73 | M16: 50 | N16: 0.03522458629 | O16: 15 | P16: Water Heat | Q16: 100 | R16: 150 | S16: =SUM(Q16:R16) -> 250 | T16: =Q16*I16 -> 14900 | U16: =R16*I16 -> 22350 | V16: =SUM(T16:U16) -> 37250 | W16: =Q16*M16 -> 5000 | X16: =R16*M16 -> 7500 | Y16: =SUM(W16:X16) -> 12500
F17: =SUM(D17:E17) -> 0 | H17: NEEA Northern Climate Specs Heat Pump Water Heater - Tier 1 | I17: 881 | J17: kWh | K17: per home | L17: 900 | M17: 500 | N17: 0 | O17: 15 | P17: Water Heat | Q17: 150 | R17: 0 | S17: 150 | T17: 132150 | U17: 0 | V17: 132150 | W17: 75000 | X17: 0 | Y17: 75000
F18: =SUM(D18:E18) -> 0 | H18: NEEA Northern Climate Specs Heat Pump Water Heater - Tier 2 | I18: 1786 | J18: kWh | K18: per unit | L18: 1369 | M18: 800 | N18: 0 | O18: 15 | P18: Water Heat | Q18: 150 | R18: 0 | S18: 150 | T18: 267900 | U18: 0 | V18: 267900 | W18: 120000 | X18: 0 | Y18: 120000
H19: New: Direct Install Showerhead | I19: 307 | J19: kWh | K19: per unit | L19: 30 | M19: 30 | N19: 0.1935382191 | O19: 10 | P19: Water Heat | Q19: 400 | R19: 400 | S19: 800 | T19: 122800 | U19: 122800 | V19: 245600 | W19: 12000 | X19: 12000 | Y19: 24000 | Z19: =S19*165.39 -> 132312
B20: =SUM(B16:B19) -> 0 | H20: Waste Water Heat Recovery 2012 | I20: 373 | J20: kWh | K20: per home | L20: 537 | M20: 250 | N20: 0 | O20: 30 | P20: Water Heat | Q20: 20 | R20: 0 | S20: 20 | T20: 7460 | U20: 0 | V20: 7460 | W20: 5000 | X20: 0 | Y20: 5000
C21: MARKETING LABOR | D21: =SUM(D22:D25) -> 10968.75 | E21: =SUM(E22:E25) -> 6036.48 | F21: =D21+E21 -> 17005.23 | G21: 2015 values | H21: 2015 NEEA Northern Climate Specs Heat Pump Water Heater- Tier 1 | I21: 887 | J21: kWh | K21: per unit | L21: 900 | M21: 500 | N21: 0.5591804571 | O21: 15 | P21: Water Heat | Q21: 0 | R21: 400 | S21: 400 | T21: 0 | U21: 354800 | V21: 354800 | W21: 0 | X21: 200000 | Y21: 200000
C22: Marketing Staff | D22: 10968.75 | E22: 6036.48 | F22: =SUM(D22:E22) -> 17005.23 | H22: 2015 NEEA Northern Climate Specs Heat Pump Water Heater- Tier 2 | I22: 1794 | J22: kWh | K22: per unit | L22: 1369 | M22: 800 | N22: 0.2120567376 | O22: 15 | P22: Water Heat | Q22: 0 | R22: 75 | S22: 75 | T22: 0 | U22: 134550 | V22: 134550 | W22: 0 | X22: 60000 | Y22: 60000
F23: 0
F24: 0
F25: 0
C27: OVERHEAD | D27: =SUM(D29:D32) -> 19734.975 | E27: =SUM(E29:E32) -> 12334.29372 | F27: =D27+E27 -> 32069.26872
C28: Percentages for Applicable Year | D28: 0.692 | E28: 0.707
C29: Program Staff | D29: =D28*D15 -> 12144.6 | E29: =E28*E15 -> 8066.50236 | F29: 20211.10236
C30: Marketing Staff | D30: =D28*D21 -> 7590.375 | E30: =E28*E21 -> 4267.79136 | F30: 11858.16636
A34: SF Existing Water Heat | C34: MARKETING | D34: =SUM(D35:D38) -> 78750 | E34: =SUM(E35:E38) -> 78750 | F34: =D34+E34 -> 157500
A35: Schedule 214 | C35: Bill inserts, collateral, media | D35: 78750 | E35: 78750 | F35: =SUM(D35:E35) -> 157500
A36: Order Number | F36: 0
A37: 18230626 | F37: 0
A38: Electric | F38: 0
C40: EMPLOYEE/OFFICE EXPENSES | D40: =SUM(D41:D44) -> 1200 | E40: =SUM(E41:E44) -> 1200 | F40: =D40+E40 -> 2400
C41: Travel, tolls, meals, lodging, phone expense | D41: 1200 | E41: 1200 | F41: 2400
C42: Phone, office supplies, equipment | F42: 0
F43: 0
F44: 0
C46: OUTSIDE SERVICES | D46: =SUM(D47:D50) -> 4000 | E46: =SUM(E47:E50) -> 4000 | F46: =D46+E46 -> 8000
C47: Program Implementation; | D47: 4000 | E47: 4000 | F47: =SUM(D47:E47) -> 8000
C48: direct install admin. Suppt. | F48: 0
F49: 0
F50: 0
C52: MATERIALS | D52: =SUM(D53:D56) -> 5000 | E52: =SUM(E53:E56) -> 5000 | F52: =D52+E52 -> 10000
D53: 5000 | E53: 5000 | F53: 10000
F54: 0
F55: 0
F56: 0
C58: MISCELLANEOUS | D58: =SUM(D59:D62) -> 2400 | E58: =SUM(E59:E62) -> 2400 | F58: =D58+E58 -> 4800
D59: 2400 | E59: 2400 | F59: 4800
F60: 0
F61: 0
F62: 0
A64: SF Existing Water Heat | C64: DIRECT BENEFIT TO CUSTOMER | D64: =W15 -> 217000 | E64: =X15 -> 279500 | F64: =D64+E64 -> 496500
A65: Schedule 214 | C65: Ratio | D65: =D64/D12 -> 0.6085186014 | E65: =E64/E12 -> 0.6976507575
A66: Order Number
A67: 18230626 | C67: REVENUE | D67: 0 | E67: 0 | F67: 0
A68: Electric | D68: (Enter as a negative value)

Sheet Wx_Detail_REM E214 Elec
C1: SF Existing Weatherization | D1: Schedule 214 | E1: Order Number | F1: 18230627 | G1: Electric | L1: SF Existing Weatherization | M1: Schedule 214 | N1: Order Number | O1: 18230627 | P1: Electric | U1: SF Existing Weatherization | V1: Schedule 214 | W1: Order Number | X1: 18230627 | Y1: Electric
H2: This table summarizes the subtotals in the detail table to the left and is used to populate 2014-2015 Sector views. | T2: Ratios | W2: Acquisition Cost
A3: SF Existing Weatherization | H3: Labor | I3: Marketing Labor | J3: Overhead | K3: Marketing | L3: Employee/Office Expense | M3: Outside Services | N3: Materials | O3: Miscellaneous | P3: DBtC | Q3: Revenue | R3: Total Budget | S3: Total Savings | T3: DBTC | U3: Marketing | V3: Outside Svcs
A4: Schedule 214 | F4: 2014 Values are shown as reference only. | G4: 2014 | H4: =D15 -> 96525 | I4: =D21 -> 26325 | J4: =D27 -> 85012.2 | K4: =D34 -> 163500 | L4: =D40 -> 5302 | M4: =D46 -> 85000 | N4: =D52 -> 0 | O4: =D58 -> 15000 | P4: =D64 -> 874669.48 | Q4: =D67 -> 0 | R4: =SUM(H4:Q4) -> 1351333.68 | S4: =T15 -> 3583057.26 | T4: =P4/R4 -> 0.6472638793 | U4: =(K4+(I4*1.63))/R4 -> 0.1527452124 | V4: =M4/R4 -> 0.06290082254 | W4: =R4/S4 -> 0.3771454325
A5: Order Number | G5: Original 2015 Budget | H5: 96525 | I5: 26325 | J5: 85503.6 | K5: 163500 | L5: 5302 | M5: 85000 | N5: 0 | O5: 15000 | P5: 869669.48 | Q5: 0 | R5: 1346825.08 | S5: 3606557.26
A6: 18230627 | G6: Revised 2015 Budget | H6: =E15 -> 53165.52 | I6: =E21 -> 22133.76 | J6: =E27 -> 53236.59096 | K6: =E34 -> 163500 | L6: =E40 -> 5302 | M6: =E46 -> 85000 | N6: =E52 -> 0 | O6: =E58 -> 15000 | P6: =E64 -> 730385.95 | Q6: =E67 -> 0 | R6: =SUM(H6:Q6) -> 1127723.821 | S6: =U15 -> 2315958.71 | T6: =P6/R6 -> 0.6476638486 | U6: =(K6+(I6*1.63))/R6 -> 0.1769742069 | V6: =M6/R6 -> 0.07537306424 | W6: =R6/S6 -> 0.486936065
A7: Electric | G7: Total | H7: =H4+H6 -> 149690.52 | I7: =I4+I6 -> 48458.76 | J7: 138248.791 | K7: 327000 | L7: 10604 | M7: 170000 | N7: 0 | O7: 30000 | P7: 1605055.43 | Q7: 0 | R7: 2479057.501 | S7: =S4+S6 -> 5899015.97 | T7: =P7/R7 -> 0.6474458254 | U7: =(K7+(I7*1.63))/R7 -> 0.1637669875 | V7: =M7/R7 -> 0.06857444813 | W7: =R7/S7 -> 0.4202493286
D8: 2014 Values are shown as reference only. | H8: NOTE: "Total" excludes "Original 2015 Budget" amount
C10: Spending Section | H10: Savings Section | W10: Savings Section | Z10: Savings Section
C12: Overall Total | D12: =D15+D21+D27+D34+D40+D46+D52+D58+D64 -> 1351333.68 | E12: =E15+E21+E27+E34+E40+E46+E52+E58+E64 -> 1127723.821 | F12: =D12+E12 -> 2479057.501 | H12: Measure Information | Q12: Unit Totals | T12: Projected Savings | W12: Incentive Totals | Z12: Cost Effectiveness (Based on Two-Year Total)
H13: Measure Name | I13: Savings | J13: UOM | K13: Unit Type | L13: Measure Cost | M13: Incentive | N13: Support % | O13: Measure Life | P13: End Use | Q13: 2014 | R13: 2015 | S13: Combined | T13: 2014 | U13: 2015 | V13: Combined | W13: 2014 | X13: 2015 | Y13: Combined | Z13: NEBs
C14: Budget Category | D14: 2014 | E14: 2015 | F14: Total | H14: i | I14: i | K14: i | L14: i | M14: i | N14: i | O14: i | P14: i | Q14: i | R14: i | Z14: i
B15: FTE | C15: LABOR | D15: =SUM(D16:D19) -> 96525 | E15: =SUM(E16:E19) -> 53165.52 | F15: =D15+E15 -> 149690.52 | H15: TOTALS g | N15: =SUM(N16:N65) -> 0.9995793975 | O15: N/A | T15: =SUM(T16:T65) -> 3583057.26 | U15: 2315958.71 | V15: 5899015.97 | W15: 874669.48 | X15: 730385.95 | Y15: 1605055.43 | Z15: 0
C16: Avg of Program Staff | D16: 96525 | E16: 53165.52 | F16: =SUM(D16:E16) -> 149690.52 | G16: 2014 values | H16: Air Sealing CFM50 - FAF | I16: 2.04 | J16: kWh | K16: per unit | L16: 0.67 | M16: 0.67 | N16: 0 | O16: 30 | P16: SF Space Heat | Q16: 35657 | R16: 0 | S16: =SUM(Q16:R16) -> 35657 | T16: =Q16*I16 -> 72740.28 | U16: =R16*I16 -> 0 | V16: =SUM(T16:U16) -> 72740.28 | W16: =Q16*$M16 -> 23890.19 | X16: =R16*M16 -> 0 | Y16: =SUM(W16:X16) -> 23890.19
F17: =SUM(D17:E17) -> 0 | H17: Air Sealing CFM50 - HP | I17: 0.96 | J17: kWh | K17: per unit | L17: 0.67 | M17: 0.67 | N17: 0 | O17: 30 | P17: SF Space Heat | Q17: 30790 | R17: 0 | S17: =SUM(Q17:R17) -> 30790 | T17: =Q17*I17 -> 29558.4 | U17: =R17*I17 -> 0 | V17: =SUM(T17:U17) -> 29558.4 | W17: =Q17*M17 -> 20629.3 | X17: =R17*M17 -> 0 | Y17: =SUM(W17:X17) -> 20629.3
F18: 0 | H18: Air Sealing CFM50 - Zonal | I18: 1.81 | J18: kWh | K18: per unit | L18: 0.67 | M18: 0.67 | N18: 0 | O18: 30 | P18: SF Space Heat | Q18: 39349 | R18: 0 | S18: =SUM(Q18:R18) -> 39349 | T18: =Q18*I18 -> 71221.69 | U18: =R18*I18 -> 0 | V18: =SUM(T18:U18) -> 71221.69 | W18: =Q18*M18 -> 26363.83 | X18: =R18*M18 -> 0 | Y18: =SUM(W18:X18) -> 26363.83
F19: 0 | H19: Attic Insulation R-0 to R-49 FAF | I19: 2.38 | J19: kWh | K19: square foot | L19: 1.08 | M19: 0.33 | N19: 0 | O19: 30 | P19: SF Space Heat | Q19: 87770 | R19: 0 | S19: 87770 | T19: 208892.6 | U19: 0 | V19: 208892.6 | W19: 28964.1 | X19: 0 | Y19: 28964.1
B20: =SUM(B16:B19) -> 0 | H20: Attic Insulation R-0 to R-49 HP | I20: 1.04 | J20: kWh | K20: square foot | L20: 1.08 | M20: 0.33 | N20: 0 | O20: 30 | P20: SF Space Heat | Q20: 75791 | R20: 0 | S20: 75791 | T20: 78822.64 | U20: 0 | V20: 78822.64 | W20: 25011.03 | X20: 0 | Y20: 25011.03
C21: MARKETING LABOR | D21: =SUM(D22:D25) -> 26325 | E21: =SUM(E22:E25) -> 22133.76 | F21: =D21+E21 -> 48458.76 | H21: Attic Insulation R-0 to R-49 Zonal | I21: 2.14 | J21: kWh | K21: square foot | L21: 1.08 | M21: 0.33 | N21: 0 | O21: 30 | P21: SF Space Heat | Q21: 96858 | R21: 0 | S21: 96858 | T21: 207276.12 | U21: 0 | V21: 207276.12 | W21: 31963.14 | X21: 0 | Y21: 31963.14
D22: 26325 | E22: 22133.76 | F22: 48458.76 | H22: Attic Insulation R-19 to R-49 FAF | I22: 0.75 | J22: kWh | K22: square foot | L22: 0.66 | M22: 0.11 | N22: 0 | O22: 30 | P22: SF Space Heat | R22: 0 | U22: 0 | X22: 0
F23: 0 | H23: Attic Insulation R-19 to R-49 HP | I23: 0.32 | J23: kWh | K23: square foot | L23: 0.66 | M23: 0.11 | N23: 0 | O23: 30 | P23: SF Space Heat | R23: 0 | U23: 0 | X23: 0
F24: 0 | H24: Attic Insulation R-19 to R-49 Zonal | I24: 0.67 | J24: kWh | K24: square foot | L24: 0.66 | M24: 0.11 | N24: 0 | O24: 30 | P24: SF Space Heat | R24: 0 | U24: 0 | X24: 0
F25: 0 | H25: Floor Insulation R-0 to R-30 FAF | I25: 1.46 | J25: kWh | K25: square foot | L25: 1.37 | M25: 0.11 | N25: 0 | O25: 30 | P25: SF Space Heat | Q25: 111518 | R25: 0 | S25: 111518 | T25: 162816.28 | U25: 0 | V25: 162816.28 | W25: 12266.98 | X25: 0 | Y25: 12266.98
H26: Floor Insulation R-0 to R-30 HP | I26: 0.57 | J26: kWh | K26: square foot | L26: 1.37 | M26: 0.11 | N26: 0 | O26: 30 | P26: SF Space Heat | Q26: 97475 | R26: 0 | S26: 97475 | T26: 55560.75 | U26: 0 | V26: 55560.75 | W26: 10722.25 | X26: 0 | Y26: 10722.25
C27: OVERHEAD | D27: =SUM(D29:D32) -> 85012.2 | E27: =SUM(E29:E32) -> 53236.59096 | F27: =D27+E27 -> 138248.791 | H27: Floor Insulation R-0 to R-30 Zonal | I27: 1.38 | J27: kWh | K27: square foot | L27: 1.37 | M27: 0.11 | N27: 0 | O27: 30 | P27: SF Space Heat | Q27: 115706 | R27: 0 | S27: 115706 | T27: 159674.28 | U27: 0 | V27: 159674.28 | W27: 12727.66 | X27: 0 | Y27: 12727.66
C28: Percentages for Applicable Year | D28: 0.692 | E28: 0.707 | H28: Prescriptive Duct Sealing and Insulation - Electric | I28: 1859 | J28: kWh | K28: per home | L28: 1000 | M28: 300 | N28: 0.253 | O28: 20 | P28: SF Space Heat | Q28: 315 | R28: 315 | S28: 630 | T28: 585585 | U28: 585585 | V28: 1171170 | W28: 94500 | X28: 94500 | Y28: 189000
C29: Program Staff | D29: =D28*D15 -> 66795.3 | E29: =E28*E16 -> 37588.02264 | F29: 104383.3226 | H29: PTCS Duct Sealing - FAF | I29: 1362 | J29: kWh | K29: per unit | L29: 538 | M29: 300 | N29: 0.012 | O29: 20 | P29: SF Space Heat | Q29: 125 | R29: 20 | S29: 145 | T29: 170250 | U29: 27240 | V29: 197490 | W29: 37500 | X29: 6000 | Y29: 43500
C30: Marketing Staff | D30: =D28*D21 -> 18216.9 | E30: =E28*E21 -> 15648.56832 | F30: 33865.46832 | H30: PTCS Duct Sealing - HP | I30: 1049 | J30: kWh | K30: per unit | L30: 538 | M30: 300 | N30: 0.011 | O30: 20 | P30: SF Space Heat | Q30: 100 | R30: 25 | S30: 125 | T30: 104900 | U30: 26225 | V30: 131125 | W30: 30000 | X30: 7500 | Y30: 37500
F31: 0 | H31: Wall Insulation R-0 to R-13 FAF | I31: 1.67 | J31: kWh | K31: square foot | L31: 0.97 | M31: 0.22 | N31: 0 | O31: 30 | P31: SF Space Heat | Q31: 14634 | R31: 0 | S31: 14634 | T31: 24438.78 | U31: 0 | V31: 24438.78 | W31: 3219.48 | X31: 0 | Y31: 3219.48
H32: Wall Insulation R-0 to R-13 HP | I32: 0.72 | J32: kWh | K32: square foot | L32: 0.97 | M32: 0.22 | N32: 0 | O32: 30 | P32: SF Space Heat | Q32: 12760 | R32: 0 | S32: 12760 | T32: 9187.2 | U32: 0 | V32: 9187.2 | W32: 2807.2 | X32: 0 | Y32: 2807.2
H33: Wall Insulation R-0 to R-13 Zonal | I33: 1.48 | J33: kWh | K33: square foot | L33: 0.97 | M33: 0.22 | N33: 0 | O33: 30 | P33: SF Space Heat | Q33: 23184 | R33: 0 | S33: 23184 | T33: 34312.32 | U33: 0 | V33: 34312.32 | W33: 5100.48 | X33: 0 | Y33: 5100.48
A34: SF Existing Weatherization | C34: MARKETING | D34: =SUM(D35:D38) -> 163500 | E34: =SUM(E35:E38) -> 163500 | F34: =D34+E34 -> 327000 | H34: Energy Star Windows- Double Pane to U.30- Average | I34: 11.53 | J34: kWh | K34: square foot | L34: 20.61 | M34: 4.16 | N34: 0 | O34: 30 | P34: SF Space Heat | Q34: 59804 | R34: 0 | S34: 59804 | T34: 689540.12 | U34: 0 | V34: 689540.12 | W34: 248784.64 | X34: 0 | Y34: 248784.64
A35: Schedule 214 | C35: Bill inserts, collateral, media | D35: 163500 | E35: 163500 | F35: =SUM(D35:E35) -> 327000 | H35: Energy Star Windows- Single Pane to U.30- Average | I35: 20.84 | J35: kWh | K35: square foot | L35: 20.61 | M35: 4.16 | N35: 0 | O35: 30 | P35: SF Space Heat | Q35: 42120 | R35: 0 | S35: 42120 | T35: 877780.8 | U35: 0 | V35: 877780.8 | W35: 175219.2 | X35: 0 | Y35: 175219.2
A36: Order Number | F36: 0 | H36: Home Performance with Energy Star | I36: 0 | J36: kWh | K36: per home | L36: 600 | M36: 400 | N36: 0 | O36: 30 | P36: SF Space Heat | Q36: 150 | R36: 0 | S36: 150 | T36: 0 | U36: 0 | V36: 0 | W36: 60000 | X36: 0 | Y36: 60000
A37: 18230627 | F37: 0 | H37: Energy Star Whole House Ventilation | I37: 81 | J37: kWh | K37: per unit | L37: 50 | M37: 50 | N37: 0.017 | O37: 10 | P37: plug load | Q37: 500 | R37: 500 | S37: 1000 | T37: 40500 | U37: 40500 | V37: 81000 | W37: 25000 | X37: 25000 | Y37: 50000
A38: Electric | F38: 0 | G38: 2015 values | H38: Air Sealing CFM50 - FAF | I38: 0.6 | J38: kWh | K38: per unit | L38: 0.66 | M38: 0.66 | N38: 0.006029900248 | O38: 30 | P38: SF Space Heat | Q38: 0 | R38: 23275 | S38: 23275 | T38: 0 | U38: 13965 | V38: 13965 | W38: 0 | X38: 15361.5 | Y38: 15361.5
H39: Air Sealing CFM50 - HP | I39: 0.25 | J39: kWh | K39: per unit | L39: 0.66 | M39: 0.66 | N39: 0.004111364317 | O39: 30 | P39: SF Space Heat | Q39: 0 | R39: 38087 | S39: 38087 | T39: 0 | U39: 9521.75 | V39: 9521.75 | W39: 0 | X39: 25137.42 | Y39: 25137.42
C40: EMPLOYEE/OFFICE EXPENSES | D40: =SUM(D41:D44) -> 5302 | E40: =SUM(E41:E44) -> 5302 | F40: =D40+E40 -> 10604 | H40: Air Sealing CFM50 - Zonal | I40: 0.48 | J40: kWh | K40: per unit | L40: 0.66 | M40: 0.66 | N40: 0.004823920198 | O40: 30 | P40: SF Space Heat | Q40: 0 | R40: 23275 | S40: 23275 | T40: 0 | U40: 11172 | V40: 11172 | W40: 0 | X40: 15361.5 | Y40: 15361.5
C41: Travel, tolls, meals, lodging, phone expense | D41: 2302 | E41: 2302 | F41: 4604 | H41: Attic Insulation R-0 to R-49 FAF | I41: 3.02 | J41: kWh | K41: square foot | L41: 1.12 | M41: 0.33 | N41: 0.06791730756 | O41: 30 | P41: SF Space Heat | Q41: 0 | R41: 52084 | S41: 52084 | T41: 0 | U41: 157293.68 | V41: 157293.68 | W41: 0 | X41: 17187.72 | Y41: 17187.72
C42: Phone, office supplies, equipment | D42: 3000 | E42: 3000 | F42: 6000 | H42: Attic Insulation R-0 to R-49 HP | I42: 1.5 | J42: kWh | K42: square foot | L42: 1.12 | M42: 0.33 | N42: 0.01518032245 | O42: 30 | P42: SF Space Heat | Q42: 0 | R42: 23438 | S42: 23438 | T42: 0 | U42: 35157 | V42: 35157 | W42: 0 | X42: 7734.54 | Y42: 7734.54
F43: 0 | H43: Attic Insulation R-0 to R-49 Zonal | I43: 2.01 | J43: kWh | K43: square foot | L43: 1.12 | M43: 0.33 | N43: 0.0384224078 | O43: 30 | P43: SF Space Heat | Q43: 0 | R43: 44271 | S43: 44271 | T43: 0 | U43: 88984.71 | V43: 88984.71 | W43: 0 | X43: 14609.43 | Y43: 14609.43
F44: 0 | H44: Floor Insulation R-0 to R-30 FAF | I44: 1.2 | J44: kWh | K44: square foot | L44: 1.32 | M44: 0.11 | N44: 0.06561412315 | O44: 30 | P44: SF Space Heat | Q44: 0 | R44: 126633 | S44: 126633 | T44: 0 | U44: 151959.6 | V44: 151959.6 | W44: 0 | X44: 13929.63 | Y44: 13929.63
H45: Floor Insulation R-0 to R-30 HP | I45: 0.25 | J45: kWh | K45: square foot | L45: 1.32 | M45: 0.11 | N45: 0.005257541919 | O45: 30 | P45: SF Space Heat | Q45: 0 | R45: 48705 | S45: 48705 | T45: 0 | U45: 12176.25 | V45: 12176.25 | W45: 0 | X45: 5357.55 | Y45: 5357.55
C46: OUTSIDE SERVICES | D46: =SUM(D47:D50) -> 85000 | E46: =SUM(E47:E50) -> 85000 | F46: =D46+E46 -> 170000 | H46: Floor Insulation R-0 to R-30 Zonal | I46: 1.01 | J46: kWh | K46: square foot | L46: 1.32 | M46: 0.11 | N46: 0.05239315773 | O46: 30 | P46: SF Space Heat | Q46: 0 | R46: 120139 | S46: 120139 | T46: 0 | U46: 121340.39 | V46: 121340.39 | W46: 0 | X46: 13215.29 | Y46: 13215.29
C47: Program administration, | D47: 85000 | E47: 85000 | F47: =SUM(D47:E47) -> 170000 | H47: Wall Insulation R-0 to R-13 FAF | I47: 2.08 | J47: kWh | K47: square foot | L47: 1.39 | M47: 0.22 | N47: 0.009538891995 | O47: 30 | P47: SF Space Heat | Q47: 0 | R47: 10621 | S47: 10621 | T47: 0 | U47: 22091.68 | V47: 22091.68 | W47: 0 | X47: 2336.62 | Y47: 2336.62
C48: contractor management, training & QA | F48: 0 | H48: Wall Insulation R-0 to R-13 HP | I48: 0.77 | J48: kWh | K48: square foot | L48: 1.39 | M48: 0.22 | N48: 0.003026858799 | O48: 30 | P48: SF Space Heat | Q48: 0 | R48: 9104 | S48: 9104 | T48: 0 | U48: 7010.08 | V48: 7010.08 | W48: 0 | X48: 2002.88 | Y48: 2002.88
F49: 0 | H49: Wall Insulation R-0 to R-13 Zonal | I49: 1.13 | J49: kWh | K49: square foot | L49: 1.39 | M49: 0.22 | N49: 0.01258586773 | O49: 30 | P49: SF Space Heat | Q49: 0 | R49: 25795 | S49: 25795 | T49: 0 | U49: 29148.35 | V49: 29148.35 | W49: 0 | X49: 5674.9 | Y49: 5674.9
F50: 0 | H50: Windows- Double Pane to U.30- FAF | I50: 7.8 | J50: kWh | K50: square foot | L50: 20.87 | M50: 4.16 | N50: 0.06848023642 | O50: 30 | P50: SF Space Heat | Q50: 0 | R50: 20333 | S50: 20333 | T50: 0 | U50: 158597.4 | V50: 158597.4 | W50: 0 | X50: 84585.28 | Y50: 84585.28
H51: Windows- Double Pane to U.30- Zonal | I51: 5.26 | J51: kWh | K51: square foot | L51: 20.87 | M51: 4.16 | N51: 0.05568976659 | O51: 30 | P51: SF Space Heat | Q51: 0 | R51: 24520 | S51: 24520 | T51: 0 | U51: 128975.2 | V51: 128975.2 | W51: 0 | X51: 102003.2 | Y51: 102003.2
C52: MATERIALS | D52: =SUM(D53:D56) -> 0 | E52: =SUM(E53:E56) -> 0 | F52: =D52+E52 -> 0 | H52: Windows- Double Pane to U.30- HP | I52: 4.4 | J52: kWh | K52: square foot | L52: 20.87 | M52: 4.16 | N52: 0.01931588841 | O52: 30 | P52: MF Space Heat | Q52: 0 | R52: 10167 | S52: 10167 | T52: 0 | U52: 44734.8 | V52: 44734.8 | W52: 0 | X52: 42294.72 | Y52: 42294.72
F53: 0 | H53: Windows- Single Pane to U.30- FAF | I53: 18.29 | J53: kWh | K53: square foot | L53: 20.87 | M53: 4.16 | N53: 0.1130983419 | O53: 30 | P53: SF Space Heat | Q53: 0 | R53: 14321 | S53: 14321 | T53: 0 | U53: 261931.09 | V53: 261931.09 | W53: 0 | X53: 59575.36 | Y53: 59575.36
F54: 0 | H54: Windows- Single Pane to U.30- Zonal | I54: 9.09 | J54: kWh | K54: square foot | L54: 20.87 | M54: 4.16 | N54: 0.06777979647 | O54: 30 | P54: SF Space Heat | Q54: 0 | R54: 17269 | S54: 17269 | T54: 0 | U54: 156975.21 | V54: 156975.21 | W54: 0 | X54: 71839.04 | Y54: 71839.04
F55: 0 | H55: Windows- Single Pane to U.30- HP | I55: 7.74 | J55: kWh | K55: square foot | L55: 20.87 | M55: 4.16 | N55: 0.02392892402 | O55: 30 | P55: SF Space Heat | Q55: 0 | R55: 7160 | S55: 7160 | T55: 0 | U55: 55418.4 | V55: 55418.4 | W55: 0 | X55: 29785.6 | Y55: 29785.6
F56: 0 | H56: Air Sealing CFM50 - DHP | I56: 0.42 | J56: kWh | K56: per unit | L56: 0.66 | M56: 0.66 | N56: 0.003837192762 | O56: 30 | P56: SF Space Heat | Q56: 0 | R56: 21159 | S56: 21159 | T56: 0 | U56: 8886.78 | V56: 8886.78 | W56: 0 | X56: 13964.94 | Y56: 13964.94
H57: Attic Insulation R-0 to R-49 DHP | I57: 0.77 | J57: kWh | K57: square foot | L57: 1.12 | M57: 0.33 | N57: 0.003463399397 | O57: 30 | P57: SF Space Heat | Q57: 0 | R57: 10417 | S57: 10417 | T57: 0 | U57: 8021.09 | V57: 8021.09 | W57: 0 | X57: 3437.61 | Y57: 3437.61
C58: MISCELLANEOUS | D58: =SUM(D59:D62) -> 15000 | E58: =SUM(E59:E62) -> 15000 | F58: =D58+E58 -> 30000 | H58: Floor Insulation R-0 to R-30 DHP | I58: 0.92 | J58: kWh | K58: square foot | L58: 1.32 | M58: 0.11 | N58: 0.01031880227 | O58: 30 | P58: SF Space Heat | Q58: 0 | R58: 25976 | S58: 25976 | T58: 0 | U58: 23897.92 | V58: 23897.92 | W58: 0 | X58: 2857.36 | Y58: 2857.36
D59: 15000 | E59: 15000 | F59: 30000 | H59: Wall Insulation R-0 to R-13 DHP | I59: 1.13 | J59: kWh | K59: square foot | L59: 1.39 | M59: 0.22 | N59: 0.001974119824 | O59: 30 | P59: SF Space Heat | Q59: 0 | R59: 4046 | S59: 4046 | T59: 0 | U59: 4571.98 | V59: 4571.98 | W59: 0 | X59: 890.12 | Y59: 890.12
F60: 0 | H60: Windows- Double Pane to U.30- DHP | I60: 5.25 | J60: kWh | K60: square foot | L60: 20.87 | M60: 4.16 | N60: 0.01084475293 | O60: 30 | P60: SF Space Heat | Q60: 0 | R60: 4784 | S60: 4784 | T60: 0 | U60: 25116 | V60: 25116 | W60: 0 | X60: 19901.44 | Y60: 19901.44
F61: 0 | H61: Windows- Single Pane to U.30- DHP | I61: 8.58 | J61: kWh | K61: square foot | L61: 20.87 | M61: 4.16 | N61: 0.01248493761 | O61: 30 | P61: SF Space Heat | Q61: 0 | R61: 3370 | S61: 3370 | T61: 0 | U61: 28914.6 | V61: 28914.6 | W61: 0 | X61: 14019.2 | Y61: 14019.2
F62: 0 | H62: Attic Insulation R-11 to R-49 FAF | I62: 0.77 | J62: kWh | K62: square foot | L62: 0.98 | M62: 0.11 | N62: 0.01731666451 | O62: 30 | P62: SF Space Heat | Q62: 0 | R62: 52084 | S62: 52084 | T62: 0 | U62: 40104.68 | V62: 40104.68 | W62: 0 | X62: 5729.24 | Y62: 5729.24
H63: Attic Insulation R-11 to R-49 HP | I63: 0.3 | J63: kWh | K63: square foot | L63: 0.98 | M63: 0.11 | N63: 0.00303606449 | O63: 30 | P63: SF Space Heat | Q63: 0 | R63: 23438 | S63: 23438 | T63: 0 | U63: 7031.4 | V63: 7031.4 | W63: 0 | X63: 2578.18 | Y63: 2578.18
A64: SF Existing Weatherization | C64: DIRECT BENEFIT TO CUSTOMER | D64: =W15 -> 874669.48 | E64: =X15 -> 730385.95 | F64: =D64+E64 -> 1605055.43 | H64: Attic Insulation R-11 to R-49 Zonal | I64: 0.43 | J64: kWh | K64: square foot | L64: 0.98 | M64: 0.11 | N64: 0.008219719081 | O64: 30 | P64: SF Space Heat | Q64: 0 | R64: 44271 | S64: 44271 | T64: 0 | U64: 19036.53 | V64: 19036.53 | W64: 0 | X64: 4869.81 | Y64: 4869.81
A65: Schedule 214 | C65: Ratio | D65: =D64/D12 -> 0.6472638793 | E65: =E64/E12 -> 0.6476638486 | H65: Attic Insulation R-11 to R-49 DHP | I65: 0.42 | J65: kWh | K65: square foot | L65: 0.98 | M65: 0.11 | N65: 0.001889126944 | O65: 30 | P65: SF Space Heat | Q65: 0 | R65: 10417 | S65: 10417 | T65: 0 | U65: 4375.14 | V65: 4375.14 | W65: 0 | X65: 1145.87 | Y65: 1145.87
A66: Order Number
A67: 18230627 | C67: REVENUE | D67: 0 | E67: 0 | F67: 0
A68: Electric

Sheet SpcHeat Detail_REM_E214 Elec
C1: SF Existing Space Heat | D1: Schedule 214 | E1: Order Number | F1: 18230628 | G1: Electric | M1: SF Existing Space Heat | N1: Schedule 214 | O1: Order Number | P1: 18230628 | Q1: Electric | U1: SF Existing Space Heat | V1: Schedule 214 | W1: Order Number | X1: 18230628 | Y1: Electric
H2: This table summarizes the subtotals in the detail table to the left and is used to populate 2014-2015 Sector views. | T2: Ratios | W2: Acquisition Cost
A3: SF Existing Space Heat | H3: Labor | I3: Marketing Labor | J3: Overhead | K3: Marketing | L3: Employee/Office Expense | M3: Outside Services | N3: Materials | O3: Miscellaneous | P3: DBtC | Q3: Revenue | R3: Total Budget | S3: Total Savings | T3: DBTC | U3: Marketing | V3: Outside Svcs
A4: Schedule 214 | F4: 2014 Values are shown as reference only. | G4: 2014 | H4: =D15 -> 117365.63 | I4: =D21 -> 32906.25 | J4: =D27 -> 103988.141 | K4: =D34 -> 222000 | L4: =D40 -> 7200 | M4: =D46 -> 28000 | N4: =D52 -> 17200 | O4: =D58 -> 28200 | P4: =D64 -> 3552500 | Q4: =D67 -> 0 | R4: =SUM(H4:Q4) -> 4109360.021 | S4: =T15 -> 10131810 | T4: =P4/R4 -> 0.8644898432 | U4: =(K4+(I4*1.63))/R4 -> 0.06707545362 | V4: =M4/R4 -> 0.00681371305 | W4: =R4/S4 -> 0.4055899213
A5: Order Number | G5: Original 2015 Budget | H5: 117365.63 | I5: 32906.25 | J5: 104589.2285 | K5: 222000 | L5: 7200 | M5: 28000 | N5: 17200 | O5: 28200 | P5: 3552500 | Q5: 0 | R5: 4109961.108 | S5: 10131810
A6: 18230628 | G6: Revised 2015 Budget | H6: =E15 -> 53461.08 | I6: =E21 -> 22133.76 | J6: =E27 -> 53445.55188 | K6: =E34 -> 222000 | L6: =E40 -> 7200 | M6: =E46 -> 28000 | N6: =E52 -> 17200 | O6: =E58 -> 28200 | P6: =E64 -> 3630000 | Q6: =E67 -> 0 | R6: =SUM(H6:Q6) -> 4061640.392 | S6: =U15 -> 7841910 | T6: =P6/R6 -> 0.8937275706 | U6: =(K6+(I6*1.63))/R6 -> 0.06354034427 | V6: =M6/R6 -> 0.006893766385 | W6: =R6/S6 -> 0.5179401947
A7: Electric | G7: Total | H7: =H4+H6 -> 170826.71 | I7: =I4+I6 -> 55040.01 | J7: 157433.6928 | K7: 444000 | L7: 14400 | M7: 56000 | N7: 34400 | O7: 56400 | P7: 7182500 | Q7: 0 | R7: 8171000.413 | S7: =S4+S6 -> 17973720 | T7: =P7/R7 -> 0.8790233309 | U7: =(K7+(I7*1.63))/R7 -> 0.06531822168 | V7: =M7/R7 -> 0.006853505957 | W7: =R7/S7 -> 0.4546081953
D8: 2014 Values are shown as reference only. | H8: NOTE: "Total" excludes "Original 2015 Budget" amount
C10: Spending Section | H10: Savings Section | W10: Savings Section | Z10: Savings Section
C12: Overall Total | D12: =D15+D21+D27+D34+D40+D46+D52+D58+D64 -> 4109360.021 | E12: =E15+E21+E27+E34+E40+E46+E52+E58+E64 -> 4061640.392 | F12: =D12+E12 -> 8171000.413 | H12: Measure Information | Q12: Unit Totals | T12: Projected Savings | W12: Incentive Totals | Z12: Cost Effectiveness (Based on Two-Year Total)
H13: Measure Name | I13: Savings | J13: UOM | K13: Unit Type | L13: Measure Cost | M13: Incentive | N13: Support % | O13: Measure Life | P13: End Use | Q13: 2014 | R13: 2015 | S13: Combined | T13: 2014 | U13: 2015 | V13: Combined | W13: 2014 | X13: 2015 | Y13: Combined | Z13: NEBs
C14: Budget Category | D14: 2014 | E14: 2015 | F14: Total | H14: i | I14: i | K14: i | L14: i | M14: i | N14: i | O14: i | P14: i | Q14: i | R14: i | Z14: i
B15: FTE | C15: LABOR | D15: =SUM(D16:D19) -> 117365.63 | E15: =SUM(E16:E19) -> 53461.08 | F15: =D15+E15 -> 170826.71 | H15: TOTALS g | N15: =SUM(N16:N65) -> 0.9966409637 | O15: N/A | T15: =SUM(T16:T65) -> 10131810 | U15: 7841910 | V15: 17973720 | W15: 3552500 | X15: 3630000 | Y15: 7182500 | Z15: 0
C16: Avg of Program Staff | D16: 117365.63 | E16: 53461.08 | F16: =SUM(D16:E16) -> 170826.71 | G16: 2014 values | H16: Ductless Heat Pump | I16: 3500 | J16: kWh | K16: per unit | L16: 3407 | M16: 1200 | N16: 0 | O16: 20 | P16: SF Heat Pump | Q16: 1250 | R16: 0 | S16: =SUM(Q16:R16) -> 1250 | T16: =Q16*I16 -> 4375000 | U16: =R16*I16 -> 0 | V16: =SUM(T16:U16) -> 4375000 | W16: =Q16*M16 -> 1500000 | X16: =R16*M16 -> 0 | Y16: =SUM(W16:X16) -> 1500000
F17: =SUM(D17:E17) -> 0 | H17: Energy Star Geothermal Heat Pump | I17: 4037 | J17: kWh | K17: per home | L17: 3889 | M17: 1500 | N17: 0.012 | O17: 30 | P17: SF Heat Pump | Q17: 30 | R17: 30 | S17: 60 | T17: 121110 | U17: 121110 | V17: 242220 | W17: 45000 | X17: 45000 | Y17: 90000
F18: =SUM(D18:E18) -> 0 | H18: Energy Star Heat Pump - Tier 1 = 8.5 HSPF, 14 SEER | I18: 408 | J18: kWh | K18: per unit | L18: 742 | M18: 200 | N18: 0 | O18: 20 | P18: SF Heat Pump | Q18: 350 | R18: 0 | S18: 350 | T18: 142800 | U18: 0 | V18: 142800 | W18: 70000 | X18: 0 | Y18: 70000
F19: 0 | H19: Energy Star Heat Pump - Tier 2 = 9.0 HSPF, 14 SEER | I19: 554 | J19: kWh | K19: per unit | L19: 844 | M19: 350 | N19: 0 | O19: 20 | P19: SF Heat Pump | Q19: 800 | R19: 0 | S19: 800 | T19: 443200 | U19: 0 | V19: 443200 | W19: 280000 | X19: 0 | Y19: 280000
B20: =SUM(B16:B19) -> 0 | H20: Forced-air-furnace to Heat Pump Conversion (greater than or equal to 8.5 HSPF, 14 SEER) | I20: 5176 | J20: kWh | K20: per home | L20: 5663 | M20: 1500 | N20: 0 | O20: 20 | P20: SF Heat Pump | Q20: 425 | R20: 0 | S20: 425 | T20: 2199800 | U20: 0 | V20: 2199800 | W20: 637500 | X20: 0 | Y20: 637500
C21: MARKETING LABOR | D21: =SUM(D22:D25) -> 32906.25 | E21: =SUM(E22:E25) -> 22133.76 | F21: =D21+E21 -> 55040.01 | H21: Heat Pump Sizing & Lock out Controls | I21: 1447 | J21: kWh | K21: per home | L21: 350 | M21: 300 | N21: 0 | O21: 20 | P21: SF Heat Pump | Q21: 600 | R21: 0 | S21: 600 | T21: 868200 | U21: 0 | V21: 868200 | W21: 180000 | X21: 0 | Y21: 180000
D22: 32906.25 | E22: 22133.76 | F22: 55040.01 | H22: NEW Energy Star Heat Pump - Tier 3 = 10.0 HSPF, 16 SEER | I22: 939 | J22: kWh | K22: per unit | L22: 1688 | M22: 800 | N22: 0.072 | O22: 20 | P22: SF Heat Pump | Q22: 300 | R22: 600 | S22: 900 | T22: 281700 | U22: 563400 | V22: 845100 | W22: 240000 | X22: 480000 | Y22: 720000
F23: 0 | H23: Ductless Heat Pump (Manufactured Homes) | I23: 3400 | J23: kWh | K23: per unit | L23: 4130 | M23: 1200 | N23: 0.13 | O23: 18 | P23: SF Heat Pump | Q23: 500 | R23: 300 | S23: 800 | T23: 1700000 | U23: 1020000 | V23: 2720000 | W23: 600000 | X23: 360000 | Y23: 960000
F24: 0 | G24: 2015 values | H24: 2015 Energy Star Heat Pump- Tier 2 | I24: 128 | J24: kWh | K24: per unit | L24: 844 | M24: 350 | N24: 0.01469029866 | O24: 15 | P24: SF Heat Pump | Q24: 0 | R24: 900 | S24: 900 | T24: 0 | U24: 115200 | V24: 115200 | W24: 0 | X24: 315000 | Y24: 315000
F25: 0 | H25: 2015 FAF to HP Conversion | I25: 3912 | J25: kWh | K25: per unit | L25: 5663 | M25: 1500 | N25: 0.2494290294 | O25: 20 | P25: SF Heat Pump | Q25: 0 | R25: 500 | S25: 500 | T25: 0 | U25: 1956000 | V25: 1956000 | W25: 0 | X25: 750000 | Y25: 750000
H26: 2015 Heat Pump Sizing & Lock Out Controls | I26: 1152 | J26: kWh | K26: per unit | L26: 350 | M26: 300 | N26: 0.08814179199 | O26: 20 | P26: SF Heat Pump | Q26: 0 | R26: 600 | S26: 600 | T26: 0 | U26: 691200 | V26: 691200 | W26: 0 | X26: 180000 | Y26: 180000
C27: OVERHEAD | D27: =SUM(D29:D32) -> 103988.141 | E27: =SUM(E29:E32) -> 53445.55188 | F27: =D27+E27 -> 157433.6928 | H27: 2015 Ductless Heat Pump | I27: 2700 | J27: kWh | K27: per unit | L27: 3407 | M27: 1200 | N27: 0.4303798437 | O27: 20 | P27: SF Heat Pump | Q27: 0 | R27: 1250 | S27: 1250 | T27: 0 | U27: 3375000 | V27: 3375000 | W27: 0 | X27: 1500000 | Y27: 1500000
C28: Percentages for Applicable Year | D28: 0.692 | E28: 0.707
C29: Program Staff | D29: =D28*D15 -> 81217.01596 | E29: =E28*E16 -> 37796.98356 | F29: 119013.9995
C30: Marketing Staff | D30: =D28*D21 -> 22771.125 | E30: =E28*E21 -> 15648.56832 | F30: 38419.69332
F31: 0
A34: SF Existing Space Heat | C34: MARKETING | D34: =SUM(D35:D38) -> 222000 | E34: =SUM(E35:E38) -> 222000 | F34: =D34+E34 -> 444000
A35: Schedule 214 | C35: Bill inserts, collateral, media | D35: 222000 | E35: 222000 | F35: =SUM(D35:E35) -> 444000
A36: Order Number | F36: 0
A37: 18230628 | F37: 0
A38: Electric | F38: 0
C40: EMPLOYEE/OFFICE EXPENSES | D40: =SUM(D41:D44) -> 7200 | E40: =SUM(E41:E44) -> 7200 | F40: =D40+E40 -> 14400
C41: Travel, tolls, meals, lodging, phone expense | D41: 7200 | E41: 7200 | F41: 14400
C42: Phone, office supplies, equipment | F42: 0
F43: 0
F44: 0
C46: OUTSIDE SERVICES | D46: =SUM(D47:D50) -> 28000 | E46: =SUM(E47:E50) -> 28000 | F46: =D46+E46 -> 56000
C47: Program Implementation, | D47: 28000 | E47: 28000 | F47: =SUM(D47:E47) -> 56000
C48: Anticpated software solutions | F48: 0
F49: 0
F50: 0
C52: MATERIALS | D52: =SUM(D53:D56) -> 17200 | E52: =SUM(E53:E56) -> 17200 | F52: =D52+E52 -> 34400
D53: 17200 | E53: 17200 | F53: 34400
F54: 0
F55: 0
F56: 0
C58: MISCELLANEOUS | D58: =SUM(D59:D62) -> 28200 | E58: =SUM(E59:E62) -> 28200 | F58: =D58+E58 -> 56400
D59: 28200 | E59: 28200 | F59: 56400
F60: 0
F61: 0
F62: 0
A64: SF Existing Space Heat | C64: DIRECT BENEFIT TO CUSTOMER | D64: =W15 -> 3552500 | E64: =X15 -> 3630000 | F64: =D64+E64 -> 7182500
A65: Schedule 214 | C65: Ratio | D65: =D64/D12 -> 0.8644898432 | E65: =E64/E12 -> 0.8937275706
A66: Order Number
A67: 18230628 | C67: REVENUE | D67: 0 | E67: 0 | F67: 0
A68: Electric

Sheet HmAppplc_Detail_REM_E214 Elec
C1: Home Appliances | D1: Schedule 214 | E1: Order Number | F1: 18230432 | G1: Electric | M1: Home Appliances | N1: Schedule 214 | O1: Order Number | P1: 18230432 | Q1: Electric | V1: Home Appliances | W1: Schedule 214 | X1: Order Number | Y1: 18230432 | Z1: Electric
H2: This table summarizes the subtotals in the detail table to the left and is used to populate 2014-2015 Sector views. | T2: Ratios | W2: Acquisition Cost
A3: Home Appliances | H3: Labor | I3: Marketing Labor | J3: Overhead | K3: Marketing | L3: Employee/Office Expense | M3: Outside Services | N3: Materials | O3: Miscellaneous | P3: DBtC | Q3: Revenue | R3: Total Budget | S3: Total Savings | T3: DBTC | U3: Marketing | V3: Outside Svcs
A4: Schedule 214 | F4: 2014 Values are shown as reference only. | G4: 2014 | H4: =D15 -> 125000 | I4: =D21 -> 100000 | J4: =D27 -> 155700 | K4: =D34 -> 320000 | L4: =D40 -> 6000 | M4: =D46 -> 430000 | N4: =D52 -> 28000 | O4: =D58 -> 15000 | P4: =D64 -> 5078700 | Q4: =D67 -> 0 | R4: =SUM(H4:Q4) -> 6258400 | S4: =T15 -> 9714440 | T4: =P4/R4 -> 0.8115013422 | U4: =(K4+(I4*1.63))/R4 -> 0.07717627509 | V4: =M4/R4 -> 0.06870765691 | W4: =R4/S4 -> 0.6442368268
A5: Order Number | G5: Original 2015 Budget | H5: 137500 | I5: 110000 | J5: 172260 | K5: 320000 | L5: 6000 | M5: 430000 | N5: 28000 | O5: 15000 | P5: 4958700 | Q5: 0 | R5: 6177460 | S5: 10011440
A6: 18230432 | G6: Revised 2015 Budget | H6: =E15 -> 112500 | I6: =E21 -> 90000 | J6: =E27 -> 143167.5 | K6: =E34 -> 340000 | L6: =E40 -> 5000 | M6: =E46 -> 340635 | N6: =E52 -> 8000 | O6: =E58 -> 7500 | P6: =E64 -> 5250250 | Q6: =E67 -> 0 | R6: =SUM(H6:Q6) -> 6297052.5 | S6: =U15 -> 11386446 | T6: =P6/R6 -> 0.8337630979 | U6: =(K6+(I6*1.63))/R6 -> 0.07729012899 | V6: =M6/R6 -> 0.05409435605 | W6: =R6/S6 -> 0.5530305505
A7: Electric | G7: Total | H7: =H4+H6 -> 237500 | I7: =I4+I6 -> 190000 | J7: 298867.5 | K7: 660000 | L7: 11000 | M7: 770635 | N7: 36000 | O7: 22500 | P7: 10328950 | Q7: 0 | R7: 12555452.5 | S7: =S4+S6 -> 21100886 | T7: =P7/R7 -> 0.8226664869 | U7: =(K7+(I7*1.63))/R7 -> 0.07723337729 | V7: =M7/R7 -> 0.06137851264 | W7: =R7/S7 -> 0.595020157
D8: 2014 Values are shown as reference only. | H8: NOTE: "Total" excludes "Original 2015 Budget" amount
C10: Spending Section | H10: Savings Section | W10: Savings Section | Z10: Savings Section
C12: Overall Total | D12: =D15+D21+D27+D34+D40+D46+D52+D58+D64 -> 6258400 | E12: =E15+E21+E27+E34+E40+E46+E52+E58+E64 -> 6297052.5 | F12: =D12+E12 -> 12555452.5 | H12: Measure Information | Q12: Unit Totals | T12: Projected Savings | W12: Incentive Totals | Z12: Cost Effectiveness (Based on Two-Year Total)
H13: Measure Name | I13: Savings | J13: UOM | K13: Unit Type | L13: Measure Cost | M13: Incentive | N13: Support % | O13: Measure Life | P13: End Use | Q13: 2014 | R13: 2015 | S13: Combined | T13: 2014 | U13: 2015 | V13: Combined | W13: 2014 | X13: 2015 | Y13: Combined | Z13: NEBs
C14: Budget Category | D14: 2014 | E14: 2015 | F14: Total | H14: i | I14: i | K14: i | L14: i | M14: i | N14: i | O14: i | P14: i | Q14: i | R14: i | Z14: i
B15: FTE | C15: LABOR | D15: =SUM(D16:D19) -> 125000 | E15: =SUM(E16:E19) -> 112500 | F15: =D15+E15 -> 237500 | H15: TOTALS g | N15: =SUM(N16:N65) -> 0.999196536 | O15: N/A | T15: =SUM(T16:T65) -> 9714440 | U15: 11386446 | V15: 21100886 | W15: 5078700 | X15: 5250250 | Y15: 10328950 | Z15: =SUM(Z16:Z65) -> 9933267.78
B16: 0.25 | C16: Market Manager | D16: 25000 | E16: 22500 | F16: =SUM(D16:E16) -> 47500 | G16: 2015 values | H16: Advanced Power Strips | I16: 300 | J16: kWh | K16: per unit | L16: 52 | M16: 52 | N16: 0.04 | O16: 5 | P16: Res Plug Load | R16: 3500 | S16: =SUM(Q16:R16) -> 3500 | T16: =Q16*I16 -> 0 | U16: =R16*I16 -> 1050000 | V16: =SUM(T16:U16) -> 1050000 | W16: =Q16*M16 -> 0 | X16: =R16*M16 -> 182000 | Y16: =SUM(W16:X16) -> 182000 | Z16: 0
B17: 0.5 | C17: Program Manager | D17: 50000 | E17: 45000 | F17: =SUM(D17:E17) -> 95000 | H17: CFL: Engagement - Appl Repl | I17: 16 | J17: kWh | K17: per unit | L17: 1.7 | M17: 1.7 | N17: 0 | O17: 5 | P17: Res Lighting | R17: 0 | S17: =SUM(Q17:R17) -> 0 | T17: =Q17*I17 -> 0 | U17: =R17*I17 -> 0 | V17: =SUM(T17:U17) -> 0 | W17: =Q17*M17 -> 0 | X17: =R17*M17 -> 0 | Y17: =SUM(W17:X17) -> 0 | Z17: 0
B18: 0.25 | C18: Program Coordinator | D18: 25000 | E18: 22500 | F18: 47500 | H18: Clothes Washer MEF 2.4 -3.19 Any WH / Any Dryer | I18: 126 | J18: kWh | K18: per unit | L18: 156 | M18: 50 | N18: 0.01272565645 | O18: 14 | P18: Res Water Heat | R18: 1150 | S18: =SUM(Q18:R18) -> 1150 | T18: =Q18*I18 -> 0 | U18: =R18*I18 -> 144900 | V18: =SUM(T18:U18) -> 144900 | W18: 0 | X18: 57500 | Y18: 57500 | Z18: 122429
B19: 0.25 | C19: Other Staff | D19: 25000 | E19: 22500 | F19: 47500 | H19: Clothes Washer MEF 2.4 -3.19 Electric WH / Electric Dryer | I19: 151 | J19: kWh | K19: per unit | L19: 156 | M19: 50 | N19: 0.02 | O19: 14 | P19: Res Water Heat | R19: 2950 | S19: 2950 | T19: 0 | U19: 445450 | V19: 445450 | W19: 0 | X19: 147500 | Y19: 147500 | Z19: 314057
B20: =SUM(B16:B19) -> 1.25 | H20: Clothes Washer MEF 2.4 -3.19 Electric WH / Gas Dryer | I20: 63 | J20: kWh | K20: per unit | L20: 156 | M20: 50 | N20: 0.0006639472931 | O20: 14 | P20: Res Water Heat | R20: 120 | S20: 120 | T20: 0 | U20: 7560 | V20: 7560 | W20: 0 | X20: 6000 | Y20: 6000 | Z20: 12775.2
C21: MARKETING LABOR | D21: =SUM(D22:D25) -> 100000 | E21: =SUM(E22:E25) -> 90000 | F21: =D21+E21 -> 190000 | H21: Clothes Washer MEF 2.4 -3.19 Gas WH / Electric Dryer | I21: 105 | J21: kWh | K21: per unit | L21: 156 | M21: 50 | N21: 0.01 | O21: 14 | P21: Res Water Heat | R21: 3150 | S21: 3150 | T21: 0 | U21: 330750 | V21: 330750 | W21: 0 | X21: 157500 | Y21: 157500 | Z21: 335349
C22: Marketing Manager | D22: 50000 | E22: 45000 | F22: 95000 | H22: Clothes Washer MEF 2.4 -3.19 Gas WH / Gas Dryer | I22: 16 | J22: kWh | K22: per unit | L22: 156 | M22: 50 | N22: 0.0008431076738 | O22: 14 | P22: Res Water Heat | R22: 600 | S22: 600 | T22: 0 | U22: 9600 | V22: 9600 | W22: 0 | X22: 30000 | Y22: 30000 | Z22: 63876
C23: Marketing Support | D23: 50000 | E23: 45000 | F23: 95000 | H23: Clothes Washer MEF 3.2+ Any WH / Any Dryer | I23: 177 | J23: kWh | K23: per unit | L23: 313 | M23: 50 | N23: 0.01430121392 | O23: 14 | P23: Res Water Heat | R23: 920 | S23: 920 | T23: 0 | U23: 162840 | V23: 162840 | W23: 0 | X23: 46000 | Y23: 46000 | Z23: 145065.6
F24: 0 | H24: Clothes Washer MEF 3.2+ Electric WH / Electric Dryer | I24: 211 | J24: kWh | K24: per unit | L24: 313 | M24: 50 | N24: 0.01 | O24: 14 | P24: Res Water Heat | R24: 1250 | S24: 1250 | T24: 0 | U24: 263750 | V24: 263750 | W24: 0 | X24: 62500 | Y24: 62500 | Z24: 197100
F25: 0 | H25: Clothes Washer MEF 3.2+ Electric WH / Gas Dryer | I25: 84 | J25: kWh | K25: per unit | L25: 313 | M25: 50 | N25: 0.0003319736466 | O25: 14 | P25: Res Water Heat | R25: 45 | S25: 45 | T25: 0 | U25: 3780 | V25: 3780 | W25: 0 | X25: 2250 | Y25: 2250 | Z25: 7095.6
H26: Clothes Washer MEF 3.2+ Gas / Electric Dryer | I26: 151 | J26: kWh | K26: per unit | L26: 313 | M26: 50 | N26: 0.01 | O26: 14 | P26: Res Water Heat | R26: 1150 | S26: 1150 | T26: 0 | U26: 173650 | V26: 173650 | W26: 0 | X26: 57500 | Y26: 57500 | Z26: 181332
C27: OVERHEAD | D27: =SUM(D29:D32) -> 155700 | E27: =SUM(E29:E32) -> 143167.5 | F27: =D27+E27 -> 298867.5 | H27: Clothes Washer MEF 3.2+ Gas WH / Gas Dryer | I27: 24 | J27: kWh | K27: per unit | L27: 313 | M27: 50 | N27: 0.0006534084472 | O27: 14 | P27: Res Water Heat | R27: 310 | S27: 310 | T27: 0 | U27: 7440 | V27: 7440 | W27: 0 | X27: 15500 | Y27: 15500 | Z27: 48880.8
C28: Percentages for Applicable Year | D28: 0.692 | E28: 0.707 | H28: Clothes Washer Replacement Electric WH / Electric Dryer | I28: 764 | J28: kWh | K28: per unit | L28: 600 | M28: 600 | N28: 0.08 | O28: 11 | P28: Res Water Heat | R28: 2500 | S28: 2500 | T28: 0 | U28: 1910000 | V28: 1910000 | W28: 0 | X28: 1500000 | Y28: 1500000 | Z28: 266150
C29: Program Staff | D29: =D28*D15 -> 86500 | E29: =E28*E15 -> 79537.5 | F29: 166037.5 | H29: Energy Star Freezer | I29: 40 | J29: kWh | K29: per unit | L29: 4 | M29: 25 | N29: 0.002019945468 | O29: 22 | P29: Res Refrigerator | R29: 575 | S29: 575 | T29: 0 | U29: 23000 | V29: 23000 | W29: 0 | X29: 14375 | Y29: 14375 | Z29: 0
C30: Marketing Staff | D30: =D28*D21 -> 69200 | E30: =E28*E21 -> 63630 | F30: 132830 | H30: Freezer Decomm | I30: 570 | J30: kWh | K30: per unit | L30: 108.5 | M30: 108.5 | N30: 0.05 | O30: 5 | P30: Res Refrigerator | R30: 2050 | S30: 2050 | T30: 0 | U30: 1168500 | V30: 1168500 | W30: 0 | X30: 222425 | Y30: 222425 | Z30: 0
H31: LED: Engagement | I31: 13.48 | J31: kWh | K31: per unit | L31: 9 | M31: 9 | N31: 0.0126673415 | O31: 30 | P31: Res Lighting | R31: 10700 | S31: 10700 | T31: 0 | U31: 144236 | V31: 144236 | W31: 0 | X31: 96300 | Y31: 96300 | Z31: 0
H32: Refrigerator CEE Tier 1 - Thank You Kit is Incentive | I32: 22 | J32: kWh | K32: per unit | L32: 9 | M32: 0 | N32: 0.002289564277 | O32: 17 | P32: Res Refrigerator | R32: 1185 | S32: 1185 | T32: 0 | U32: 26070 | V32: 26070 | W32: 0 | X32: 0 | Y32: 0 | Z32: 0
H33: Refrigerator CEE Tier 2 | I33: 47 | J33: kWh | K33: per unit | L33: 33 | M33: 50 | N33: 0.008049043573 | O33: 17 | P33: Res Refrigerator | R33: 1950 | S33: 1950 | T33: 0 | U33: 91650 | V33: 91650 | W33: 0 | X33: 97500 | Y33: 97500 | Z33: 0
A34: Home Appliances | C34: MARKETING | D34: =SUM(D35:D38) -> 320000 | E34: =SUM(E35:E38) -> 340000 | F34: =D34+E34 -> 660000 | H34: Refrigerator CEE Tier 3 | I34: 88 | J34: kWh | K34: per unit | L34: 77 | M34: 50 | N34: 0.008424050841 | O34: 17 | P34: Res Refrigerator | R34: 1090 | S34: 1090 | T34: 0 | U34: 95920 | V34: 95920 | W34: 0 | X34: 54500 | Y34: 54500 | Z34: 0
A35: Schedule 214 | D35: 320000 | E35: 340000 | F35: =SUM(D35:E35) -> 660000 | H35: Refrigerator Decomm | I35: 356 | J35: kWh | K35: per unit | L35: 108.5 | M35: 108.5 | N35: 0.09 | O35: 11 | P35: Res Refrigerator | R35: 6400 | S35: 6400 | T35: 0 | U35: 2278400 | V35: 2278400 | W35: 0 | X35: 694400 | Y35: 694400 | Z35: 0
A36: Order Number | F36: 0 | H36: Refrigerator Decomm 20yrs | I36: 356 | J36: kWh | K36: per unit | L36: 108.5 | M36: 108.5 | N36: 0 | O36: 11 | P36: Res Refrigerator | R36: 0 | S36: 0 | T36: 0 | U36: 0 | V36: 0 | W36: 0 | X36: 0 | Y36: 0 | Z36: 0
A37: 18230432 | F37: 0 | H37: Refrigerator Replacement Year 1-14 | I37: 494 | J37: kWh | K37: per unit | L37: 500 | M37: 500 | N37: 0.05 | O37: 14 | P37: Res Refrigerator | R37: 3000 | S37: 3000 | T37: 0 | U37: 1482000 | V37: 1482000 | W37: 0 | X37: 1500000 | Y37: 1500000 | Z37: 0
A38: Electric | F38: 0 | H38: Refrigerator Replacement Year 15-20 | I38: 86 | J38: kWh | K38: per unit | L38: 75 | M38: 75 | N38: 0.02265851873 | O38: 20 | P38: Res Refrigerator | R38: 3000 | S38: 3000 | T38: 0 | U38: 258000 | V38: 258000 | W38: 0 | X38: 225000 | Y38: 225000 | Z38: 0
H39: Retail Freezer Decomm | I39: 570 | J39: kWh | K39: per unit | L39: 108.5 | M39: 108.5 | N39: 0 | O39: 5 | P39: Res Refrigerator | R39: 0 | S39: 0 | T39: 0 | U39: 0 | V39: 0 | W39: 0 | X39: 0 | Y39: 0 | Z39: 0
C40: EMPLOYEE/OFFICE EXPENSES | D40: =SUM(D41:D44) -> 6000 | E40: =SUM(E41:E44) -> 5000 | F40: =D40+E40 -> 11000 | H40: Retail Refrigerator Decomm | I40: 356 | J40: kWh | K40: per unit | L40: 108.5 | M40: 108.5 | N40: 0 | O40: 11 | P40: Res Refrigerator | R40: 0 | S40: 0 | T40: 0 | U40: 0 | V40: 0 | W40: 0 | X40: 0 | Y40: 0 | Z40: 0
D41: 6000 | E41: 5000 | F41: 11000 | H41: Showerhead - Engagement_C - Appl Repl - 1.5 gpm (E) | I41: 103 | J41: kWh | K41: per unit | L41: 10 | M41: 10 | N41: 0.01356876413 | O41: 10 | P41: Res Water Heat | R41: 1500 | S41: 1500 | T41: 0 | U41: 154500 | V41: 154500 | W41: 0 | X41: 15000 | Y41: 15000 | Z41: 248025
F42: 0 | H42: Showerhead - Engagement_EO - Appl Repl - 1.5 gpm | I42: 125 | J42: kWh | K42: per unit | L42: 10 | M42: 10 | N42: 0.02 | O42: 10 | P42: Res Water Heat | R42: 3450 | S42: 3450 | T42: 0 | U42: 431250 | V42: 431250 | W42: 0 | X42: 34500 | Y42: 34500 | Z42: 570457.5
F43: 0 | H43: Showerhead - Leave Behind - Elec WH | I43: 226 | J43: kWh | K43: per unit | L43: 10 | M43: 10 | N43: 0.03 | O43: 10 | P43: Res Water Heat | R43: 3200 | S43: 3200 | T43: 0 | U43: 723200 | V43: 723200 | W43: 0 | X43: 32000 | Y43: 32000 | Z43: 529120
F44: 0
G45: 2014 values | H45: Clothes Washer MEF 2.4 -3.09 Electric WH / Electric Dryer | I45: 82 | J45: kWh | K45: per unit | L45: 73 | M45: 50 | N45: 0.11 | O45: 14 | P45: water heat | Q45: 5936 | S45: 5936 | T45: =I45*Q45 -> 486752 | U45: 0 | V45: =SUM(T45:U45) -> 486752 | W45: 296800 | X45: 0 | Y45: 296800 | Z45: 1263893.12
C46: OUTSIDE SERVICES | D46: =SUM(D47:D50) -> 430000 | E46: =SUM(E47:E50) -> 340635 | F46: =D46+E46 -> 770635 | H46: Clothes Washer MEF 2.4 -3.09 Electric WH / Gas Dryer | I46: 31 | J46: kWh | K46: per unit | L46: 73 | M46: 50 | N46: 0 | O46: 14 | P46: water heat | Q46: 114 | S46: 114 | T46: =I46*Q46 -> 3534 | U46: 0 | V46: 3534 | W46: 5700 | X46: 0 | Y46: 5700 | Z46: 24272.88
C47: Incentive Processing | D47: 180000 | E47: 133796 | F47: =SUM(D47:E47) -> 313796 | H47: Clothes Washer MEF 2.4 -3.09 Gas WH / Electric Dryer | I47: 59 | J47: kWh | K47: per unit | L47: 73 | M47: 50 | N47: 0.09 | O47: 14 | P47: water heat | Q47: 5619 | S47: 5619 | T47: 331521 | U47: 0 | V47: 331521 | W47: 280950 | X47: 0 | Y47: 280950 | Z47: 1196397.48
C48: Field Services | D48: 190000 | E48: 146839 | F48: 336839 | H48: Clothes Washer MEF 2.4 -3.09 Gas WH / Gas Dryer | I48: 9 | J48: kWh | K48: per unit | L48: 73 | M48: 50 | N48: 0.02 | O48: 14 | P48: water heat | Q48: 1374 | S48: 1374 | T48: 12366 | U48: 0 | V48: 12366 | W48: 68700 | X48: 0 | Y48: 68700 | Z48: 292552.08
C49: Program Management for Recycling | D49: 60000 | E49: 60000 | F49: 120000 | H49: Clothes Washer MEF 3.1+ Electric WH / Electric Dryer | I49: 140 | J49: kWh | K49: per unit | L49: 206 | M49: 50 | N49: 0.01 | O49: 14 | P49: water heat | Q49: 844 | S49: 844 | T49: 118160 | U49: 0 | V49: 118160 | W49: 42200 | X49: 0 | Y49: 42200 | Z49: 266163.84
F50: 0 | H50: Clothes Washer MEF 3.1+ Electric WH / Gas Dryer | I50: 51 | J50: kWh | K50: per unit | L50: 206 | M50: 50 | N50: 0 | O50: 14 | P50: water heat | Q50: 20 | S50: 20 | T50: 1020 | U50: 0 | V50: 1020 | W50: 1000 | X50: 0 | Y50: 1000 | Z50: 6307.2
H51: Clothes Washer MEF 3.1+ Gas / Electric Dryer | I51: 105 | J51: kWh | K51: per unit | L51: 206 | M51: 50 | N51: 0.01 | O51: 14 | P51: water heat | Q51: 891 | S51: 891 | T51: 93555 | U51: 0 | V51: 93555 | W51: 44550 | X51: 0 | Y51: 44550 | Z51: 280985.76
C52: MATERIALS | D52: =SUM(D53:D56) -> 28000 | E52: =SUM(E53:E56) -> 8000 | F52: =D52+E52 -> 36000 | H52: Clothes Washer MEF 3.1+ Gas WH / Gas Dryer | I52: 16 | J52: kWh | K52: per unit | L52: 206 | M52: 50 | N52: 0.01 | O52: 14 | P52: water heat | Q52: 202 | S52: 202 | T52: 3232 | U52: 0 | V52: 3232 | W52: 10100 | X52: 0 | Y52: 10100 | Z52: 63702.72
D53: 28000 | E53: 8000 | F53: 36000 | H53: Energy Star Freezer | I53: 40 | J53: kWh | K53: per unit | L53: 4 | M53: 25 | N53: 0 | O53: 22 | P53: refrigerator | Q53: 250 | S53: 250 | T53: 10000 | U53: 0 | V53: 10000 | W53: 6250 | X53: 0 | Y53: 6250 | Z53: 0
F54: 0 | H54: Freezer Decomm | I54: 478 | J54: kWh | K54: per unit | L54: 108.5 | M54: 108.5 | N54: 0.05 | O54: 5 | P54: refrigerator | Q54: 2000 | S54: 2000 | T54: 956000 | U54: 0 | V54: 956000 | W54: 217000 | X54: 0 | Y54: 217000 | Z54: 0
F55: 0 | H55: Refrigerator CEE Tier 3 | I55: 85 | J55: kWh | K55: per unit | L55: 81 | M55: 50 | N55: 0.01 | O55: 17 | P55: refrigerator | Q55: 2000 | S55: 2000 | T55: 170000 | U55: 0 | V55: 170000 | W55: 100000 | X55: 0 | Y55: 100000 | Z55: 0
F56: 0 | H56: Refrigerator Decomm | I56: 424 | J56: kWh | K56: per unit | L56: 108.5 | M56: 108.5 | N56: 0.09 | O56: 7 | P56: refrigerator | Q56: 6000 | S56: 6000 | T56: 2544000 | U56: 0 | V56: 2544000 | W56: 651000 | X56: 0 | Y56: 651000 | Z56: 0
H57: Retail Freezer Decomm | I57: 478 | J57: kWh | K57: per unit | L57: 108.5 | M57: 108.5 | N57: 0.01 | O57: 5 | P57: refrigerator | Q57: 100 | S57: 100 | T57: 47800 | U57: 0 | V57: 47800 | W57: 10850 | X57: 0 | Y57: 10850 | Z57: 0
C58: MISCELLANEOUS | D58: =SUM(D59:D62) -> 15000 | E58: =SUM(E59:E62) -> 7500 | F58: =D58+E58 -> 22500 | H58: Retail Refrigerator Decomm | I58: 424 | J58: kWh | K58: per unit | L58: 108.5 | M58: 108.5 | N58: 0.01 | O58: 7 | P58: refrigerator | Q58: 500 | S58: 500 | T58: 212000 | U58: 0 | V58: 212000 | W58: 54250 | X58: 0 | Y58: 54250 | Z58: 0
D59: 15000 | E59: 7500 | F59: 22500 | H59: Refrigerator Replacement Year 1-14 | I59: 494 | J59: kWh | K59: per unit | L59: 575 | M59: 575 | N59: 0.02 | O59: 14 | P59: refrigerator | Q59: 3000 | S59: 3000 | T59: 1482000 | U59: 0 | V59: 1482000 | W59: 1725000 | X59: 0 | Y59: 1725000 | Z59: 0
F60: 0 | H60: Refrigerator Replacement (New Unit) Year 1-20 | I60: 86 | J60: kWh | K60: per unit | L60: 0 | M60: 0 | N60: 0 | O60: 20 | P60: refrigerator | Q60: 3000 | S60: 3000 | T60: 258000 | U60: 0 | V60: 258000 | W60: 0 | X60: 0 | Y60: 0 | Z60: 0
F61: 0 | H61: Refrigerator Replacement 1.5 gpm Engagement Showerhead | I61: 103 | J61: kWh | K61: per unit | L61: 24 | M61: 10 | N61: 0.01 | O61: 10 | P61: water heat | Q61: 3000 | S61: 3000 | T61: 309000 | U61: 0 | V61: 309000 | W61: 30000 | X61: 0 | Y61: 30000 | Z61: 1322800
F62: 0 | H62: Refrigerator Replacmenet Engagment CFL Bulb | I62: 16 | J62: kWh | K62: per unit | L62: 1.7 | M62: 1.7 | N62: 0.01 | O62: 5 | P62: lighting | Q62: 3000 | S62: 3000 | T62: 48000 | U62: 0 | V62: 48000 | W62: 5100 | X62: 0 | Y62: 5100 | Z62: 0
H63: Clothes Washer Replacement Electric WH / Electric Dryer | I63: 932 | J63: kWh | K63: per unit | L63: 600 | M63: 600 | N63: 0.01 | O63: 11 | P63: water heat | Q63: 2500 | S63: 2500 | T63: 2330000 | U63: 0 | V63: 2330000 | W63: 1500000 | X63: 0 | Y63: 1500000 | Z63: 851680
A64: Home Appliances | C64: DIRECT BENEFIT TO CUSTOMER | D64: =W15 -> 5078700 | E64: =X15 -> 5250250 | F64: =D64+E64 -> 10328950 | H64: Clothes Washer Replacement 1.5 gpm Engagement Showerhead | I64: 103 | J64: kWh | K64: per unit | L64: 24 | M64: 10 | N64: 0.01 | O64: 10 | P64: water heat | Q64: 2500 | S64: 2500 | T64: 257500 | U64: 0 | V64: 257500 | W64: 25000 | X64: 0 | Y64: 25000 | Z64: 1322800
A65: Schedule 214 | C65: Ratio | D65: =D64/D12 -> 0.8115013422 | E65: =E64/E12 -> 0.8337630979 | H65: Clothes Washer Replacmenet Engagment CFL Bulb | I65: 16 | J65: kWh | K65: per unit | L65: 1.7 | M65: 1.7 | N65: 0.01 | O65: 5 | P65: lighting | Q65: 2500 | S65: 2500 | T65: 40000 | U65: 0 | V65: 40000 | W65: 4250 | X65: 0 | Y65: 4250 | Z65: 0
A66: Order Number
A67: 18230432 | C67: REVENUE | D67: 0 | E67: 0 | F67: 0
A68: Electric

Sheet ShwrHead_Detail_REM_E214 Elec
C1: Showerheads | D1: Schedule 214 | E1: Order Number | F1: 18230435 | G1: Electric | M1: Showerheads | N1: Schedule 214 | O1: Order Number | P1: 18230435 | Q1: Electric | V1: Showerheads | W1: Schedule 214 | X1: Order Number | Y1: 18230435 | Z1: Electric
H2: This table summarizes the subtotals in the detail table to the left and is used to populate 2014-2015 Sector views. | T2: Ratios | W2: Acquisition Cost
A3: Showerheads | H3: Labor | I3: Marketing Labor | J3: Overhead | K3: Marketing | L3: Employee/Office Expense | M3: Outside Services | N3: Materials | O3: Miscellaneous | P3: DBtC | Q3: Revenue | R3: Total Budget | S3: Total Savings | T3: DBTC | U3: Marketing | V3: Outside Svcs
A4: Schedule 214 | F4: 2014 Values are shown as reference only. | G4: 2014 | H4: =D15 -> 50000 | I4: =D21 -> 15000 | J4: =D27 -> 44980 | K4: =D34 -> 60000 | L4: =D40 -> 0 | M4: =D46 -> 40000 | N4: =D52 -> 1000 | O4: =D58 -> 1000 | P4: =D64 -> 441050 | Q4: =D67 -> 0 | R4: =SUM(H4:Q4) -> 653030 | S4: =T15 -> 5254725 | T4: =P4/R4 -> 0.6753901046 | U4: =(K4+(I4*1.63))/R4 -> 0.1293202456 | V4: =M4/R4 -> 0.06125292866 | W4: =R4/S4 -> 0.1242748193
A5: Order Number | G5: Original 2015 Budget | H5: 55000 | I5: 16500 | J5: 49764 | K5: 66000 | L5: 0 | M5: 44000 | N5: 1100 | O5: 1100 | P5: 441050 | Q5: 0 | R5: 674514 | S5: 5254725
A6: 18230435 | G6: Revised 2015 Budget | H6: =E15 -> 45000 | I6: =E21 -> 13500 | J6: =E27 -> 41359.5 | K6: =E34 -> 65000 | L6: =E40 -> 1000 | M6: =E46 -> 40000 | N6: =E52 -> 1000 | O6: =E58 -> 500 | P6: =E64 -> 367350 | Q6: =E67 -> 0 | R6: =SUM(H6:Q6) -> 574709.5 | S6: =U15 -> 4138680 | T6: =P6/R6 -> 0.6391924964 | U6: =(K6+(I6*1.63))/R6 -> 0.1513895281 | V6: =M6/R6 -> 0.06960038071 | W6: =R6/S6 -> 0.138862995
A7: Electric | G7: Total | H7: =H4+H6 -> 95000 | I7: =SUM(I4:I6) -> 45000 | J7: 136103.5 | K7: 191000 | L7: 1000 | M7: 124000 | N7: 3100 | O7: 2600 | P7: 1249450 | Q7: 0 | R7: =SUM(H7:Q7) -> 1847253.5 | S7: =SUM(S4:S6) -> 14648130 | T7: =P7/R7 -> 0.6763825322 | U7: =(K7+(I7*1.63))/R7 -> 0.1431043438 | V7: =M7/R7 -> 0.06712668294 | W7: =R7/S7 -> 0.1261084862
D8: 2014 Values are shown as reference only. | H8: NOTE: "Total" excludes "Original 2015 Budget" amount
C10: Spending Section | H10: Savings Section | W10: Savings Section | Z10: Savings Section
C12: Overall Total | D12: =D15+D21+D27+D34+D40+D46+D52+D58+D64 -> 653030 | E12: =E15+E21+E27+E34+E40+E46+E52+E58+E64 -> 574709.5 | F12: =D12+E12 -> 1227739.5 | H12: Measure Information | Q12: Unit Totals | T12: Projected Savings | W12: Incentive Totals | Z12: Cost Effectiveness (Based on Two-Year Total)
H13: Measure Name | I13: Savings | J13: UOM | K13: Unit Type | L13: Measure Cost | M13: Incentive | N13: Support % | O13: Measure Life | P13: End Use | Q13: 2014 | R13: 2015 | S13: Combined | T13: 2014 | U13: 2015 | V13: Combined | W13: 2014 | X13: 2015 | Y13: Combined | Z13: NEBs
C14: Budget Category | D14: 2014 | E14: 2015 | F14: Total | H14: i | I14: i | K14: i | L14: i | M14: i | N14: i | O14: i | P14: i | Q14: i | R14: i | Z14: i
B15: FTE | C15: LABOR | D15: =SUM(D16:D19) -> 50000 | E15: =SUM(E16:E19) -> 45000 | F15: =D15+E15 -> 95000 | H15: TOTALS g | N15: =SUM(N16:N38) -> 1.000711145 | O15: N/A | T15: =SUM(T16:T65) -> 5254725 | U15: 4138680 | V15: 9393405 | W15: 441050 | X15: 367350 | Y15: 808400 | Z15: 0
B16: 0.05 | C16: Market Manager | D16: 5000 | E16: 4500 | F16: =SUM(D16:E16) -> 9500 | G16: 2015 values | H16: Adapater - ShowerStart (E) | I16: 222 | J16: kWh | K16: per unit | L16: 30 | M16: 10 | N16: 0 | O16: 10 | P16: Res Water Heat | R16: 0 | S16: =SUM(Q16:R16) -> 0 | T16: =Q16*I16 -> 0 | U16: =R16*I16 -> 0 | V16: =SUM(T16:U16) -> 0 | W16: =Q16*M16 -> 0 | X16: =R16*M16 -> 0 | Y16: =SUM(W16:X16) -> 0 | Z16: 0
B17: 0.25 | C17: Program Manager | D17: 25000 | E17: 22500 | F17: =SUM(D17:E17) -> 47500 | H17: Showerhead - Engagement_C - Elec WH (E) | I17: 103 | J17: kWh | K17: per unit | L17: 10 | M17: 10 | N17: 0 | O17: 10 | P17: Res Water Heat | R17: 0 | S17: =SUM(Q17:R17) -> 0 | T17: =Q17*I17 -> 0 | U17: =R17*I17 -> 0 | V17: =SUM(T17:U17) -> 0 | W17: =Q17*M17 -> 0 | X17: =R17*M17 -> 0 | Y17: =SUM(W17:X17) -> 0 | Z17: 0
B18: 0.2 | C18: Program Implementer | D18: 20000 | E18: 18000 | F18: 38000 | H18: Showerhead - Engagement_EO - Elec WH | I18: 125 | J18: kWh | K18: per unit | L18: 10 | M18: 10 | N18: 0 | O18: 10 | P18: Res Water Heat | R18: 0 | S18: =SUM(Q18:R18) -> 0 | T18: =Q18*I18 -> 0 | U18: 0 | V18: 0 | W18: 0 | X18: 0 | Y18: 0 | Z18: 0
F19: 0 | H19: Showerhead - Retail - Elec WH - 1.50 gpm and less | I19: 239 | J19: kWh | K19: per unit | L19: 24 | M19: 10 | N19: 0.02 | O19: 10 | P19: Res Water Heat | R19: 750 | S19: 750 | T19: 0 | U19: 179250 | V19: 179250 | W19: 0 | X19: 7500 | Y19: 7500 | Z19: 124012.5
B20: =SUM(B16:B19) -> 0.5 | H20: Showerhead - Retail - Elec WH - 1.51 to 1.75 gpm | I20: 185 | J20: kWh | K20: per unit | L20: 24 | M20: 10 | N20: 0.004470024259 | O20: 10 | P20: Res Water Heat | R20: 100 | S20: 100 | T20: 0 | U20: 18500 | V20: 18500 | W20: 0 | X20: 1000 | Y20: 1000 | Z20: 12162
C21: MARKETING LABOR | D21: =SUM(D22:D25) -> 15000 | E21: =SUM(E22:E25) -> 13500 | F21: =D21+E21 -> 28500 | H21: Showerhead - Retail - Elec WH - 1.76 to 2.0 gpm | I21: 123 | J21: kWh | K21: per unit | L21: 24 | M21: 10 | N21: 0.006241120357 | O21: 10 | P21: Res Water Heat | R21: 210 | S21: 210 | T21: 0 | U21: 25830 | V21: 25830 | W21: 0 | X21: 2100 | Y21: 2100 | Z21: 16338
C22: Marketing Manager | D22: 5000 | E22: 4500 | F22: 9500 | H22: Showerhead - Retail_C - Any WH - 1.50 gpm and less (E) | I22: 122 | J22: kWh | K22: per unit | L22: 24 | M22: 10 | N22: 0.24 | O22: 10 | P22: Res Water Heat | R22: 16500 | S22: 16500 | T22: 0 | U22: 2013000 | V22: 2013000 | W22: 0 | X22: 165000 | Y22: 165000 | Z22: 2728275
C23: Marketing Support | D23: 10000 | E23: 9000 | F23: 19000 | H23: Showerhead - Retail_C - Any WH - 1.51 to 1.75 gpm (E) | I23: 94 | J23: kWh | K23: per unit | L23: 24 | M23: 10 | N23: 0.03 | O23: 10 | P23: Res Water Heat | R23: 2500 | S23: 2500 | T23: 0 | U23: 235000 | V23: 235000 | W23: 0 | X23: 25000 | Y23: 25000 | Z23: 304050
F24: 0 | H24: Showerhead - Retail_C - Any WH - 1.76 to 2.0 gpm (E) | I24: 63 | J24: kWh | K24: per unit | L24: 24 | M24: 10 | N24: 0.05 | O24: 10 | P24: Res Water Heat | R24: 6750 | S24: 6750 | T24: 0 | U24: 425250 | V24: 425250 | W24: 0 | X24: 67500 | Y24: 67500 | Z24: 525150
F25: 0 | H25: Showerhead - Retail_EO - Any WH - 1.50 gpm and less | I25: 145 | J25: kWh | K25: per unit | L25: 24 | M25: 10 | N25: 0.12 | O25: 10 | P25: Res Water Heat | R25: 6750 | S25: =SUM(Q25:R25) -> 6750 | T25: =Q25*I25 -> 0 | U25: =R25*I25 -> 978750 | V25: =SUM(T25:U25) -> 978750 | W25: =Q25*M25 -> 0 | X25: =R25*M25 -> 67500 | Y25: =SUM(W25:X25) -> 67500 | Z25: 1116112.5
H26: Showerhead - Retail_EO - Any WH - 1.51 to 1.75 gpm | I26: 112 | J26: kWh | K26: per unit | L26: 24 | M26: 10 | N26: 0.01 | O26: 10 | P26: Res Water Heat | R26: 675 | S26: 675 | T26: 0 | U26: 75600 | V26: 75600 | W26: 0 | X26: 6750 | Y26: 6750 | Z26: 82093.5
C27: OVERHEAD | D27: =SUM(D29:D32) -> 44980 | E27: =SUM(E29:E32) -> 41359.5 | F27: =D27+E27 -> 86339.5 | H27: Showerhead - Retail_EO - Any WH - 1.76 to 2.0 gpm | I27: 75 | J27: kWh | K27: per unit | L27: 24 | M27: 10 | N27: 0.02 | O27: 10 | P27: Res Water Heat | R27: 2500 | S27: 2500 | T27: 0 | U27: 187500 | V27: 187500 | W27: 0 | X27: 25000 | Y27: 25000 | Z27: 194500
C28: Percentages for Applicable Year | D28: 0.692 | E28: 0.707 | H28: Showerhead - ShowerStart - 1.5 gpm (E) | I28: 390 | J28: kWh | K28: per unit | L28: 40 | M28: 10 | N28: 0 | O28: 10 | P28: Res Water Heat | R28: 0 | S28: 0 | T28: 0 | U28: 0 | V28: 0 | W28: 0 | X28: 0 | Y28: 0 | Z28: 0
C29: Program Staff | D29: =D28*D15 -> 34600 | E29: =E28*E15 -> 31815 | F29: 66415
C30: Marketing Staff | D30: =D28*D21 -> 10380 | E30: =E28*E21 -> 9544.5 | F30: 19924.5 | G30: 2014 values | H30: Showerhead Retail Electric Only Territory - 1.50 gpm and less | I30: 145 | J30: kWh | K30: per unit | L30: 24 | M30: 10 | N30: 0.14 | O30: 10 | P30: water heat | Q30: 3050 | S30: 3050 | T30: =Q30*I30 -> 442250 | U30: =R30*I30 -> 0 | V30: =SUM(T30:U30) -> 442250 | W30: =Q30*M30 -> 30500 | X30: =R30*M30 -> 0 | Y30: =SUM(W30:X30) -> 30500 | Z30: 1008635
H31: Showerhead Retail Electric Waterheat - 1.50 gpm and less | I31: 239 | J31: kWh | K31: per unit | L31: 24 | M31: 10 | N31: 0.01 | O31: 10 | P31: water heat | Q31: 150 | S31: 150 | T31: =Q31*I31 -> 35850 | U31: =R31*I31 -> 0 | V31: =SUM(T31:U31) -> 35850 | W31: =Q31*M31 -> 1500 | X31: =R31*M31 -> 0 | Y31: =SUM(W31:X31) -> 1500 | Z31: 49605
H32: Showerhead Retail Combined - 1.50 gpm and less | I32: 122 | J32: kWh | K32: per unit | L32: 24 | M32: 10 | N32: 0.26 | O32: 10 | P32: water heat | Q32: 5400 | S32: 5400 | T32: 658800 | U32: 0 | V32: 658800 | W32: 54000 | X32: 0 | Y32: 54000 | Z32: 892890
H33: Showerhead Retail Combined - 1.51 - 1.75 gpm | I33: 94 | J33: kWh | K33: per unit | L33: 24 | M33: 8 | N33: 0.03 | O33: 10 | P33: water heat | Q33: 35000 | S33: 35000 | T33: 3290000 | U33: 0 | V33: 3290000 | W33: 280000 | X33: 0 | Y33: 280000 | Z33: 4256700
A34: Showerheads | C34: MARKETING | D34: =SUM(D35:D38) -> 60000 | E34: =SUM(E35:E38) -> 65000 | F34: =D34+E34 -> 125000 | H34: Showerhead Retail Electric Waterheat - 1.51 - 1.75 gpm | I34: 185 | J34: kWh | K34: per unit | L34: 24 | M34: 10 | N34: 0 | O34: 10 | P34: water heat | Q34: 5 | S34: 5 | T34: 925 | U34: 0 | V34: 925 | W34: 50 | X34: 0 | Y34: 50 | Z34: 1216.2
A35: Schedule 214 | D35: 60000 | E35: 65000 | F35: =SUM(D35:E35) -> 125000 | H35: Showerhead Retail Electric Only Territory - 1.51 - 1.75 gpm | I35: 112 | J35: kWh | K35: per unit | L35: 24 | M35: 10 | N35: 0.03 | O35: 10 | P35: water heat | Q35: 7000 | S35: 7000 | T35: 784000 | U35: 0 | V35: 784000 | W35: 70000 | X35: 0 | Y35: 70000 | Z35: 1702680
A36: Order Number | F36: 0 | H36: Showerhead Retail Electric Only - 1.76 - 2.0 gpm | I36: 75 | J36: kWh | K36: per unit | L36: 24 | M36: 10 | N36: 0.01 | O36: 10 | P36: water heat | Q36: 200 | S36: 200 | T36: 15000 | U36: 0 | V36: 15000 | W36: 2000 | X36: 0 | Y36: 2000 | Z36: 31120
A37: 18230435 | F37: 0 | H37: Showerhead Retail Combined - 1.76 - 2.0 gpm | I37: 63 | J37: kWh | K37: per unit | L37: 24 | M37: 10 | N37: 0.01 | O37: 10 | P37: water heat | Q37: 150 | S37: 150 | T37: 9450 | U37: 0 | V37: 9450 | W37: 1500 | X37: 0 | Y37: 1500 | Z37: 11670
A38: Electric | F38: 0 | H38: Showerhead Retail Electric Waterheat - 1.76 - 2.0 gpm | I38: 123 | J38: kWh | K38: per unit | L38: 24 | M38: 10 | N38: 0.01 | O38: 10 | P38: water heat | Q38: 150 | S38: 150 | T38: 18450 | U38: 0 | V38: 18450 | W38: 1500 | X38: 0 | Y38: 1500 | Z38: 23340
C40: EMPLOYEE/OFFICE EXPENSES | D40: =SUM(D41:D44) -> 0 | E40: =SUM(E41:E44) -> 1000 | F40: =D40+E40 -> 1000
E41: 1000 | F41: 1000
F42: 0
F43: 0
F44: 0
C46: OUTSIDE SERVICES | D46: =SUM(D47:D50) -> 40000 | E46: =SUM(E47:E50) -> 40000 | F46: =D46+E46 -> 80000
C47: Field Services | D47: 10000 | E47: 10000 | F47: =SUM(D47:E47) -> 20000
C48: Incentive Processing | D48: 30000 | E48: 30000 | F48: 60000
F49: 0
F50: 0
C52: MATERIALS | D52: =SUM(D53:D56) -> 1000 | E52: =SUM(E53:E56) -> 1000 | F52: =D52+E52 -> 2000
D53: 1000 | E53: 1000 | F53: 2000
F54: 0
F55: 0
F56: 0
C58: MISCELLANEOUS | D58: =SUM(D59:D62) -> 1000 | E58: =SUM(E59:E62) -> 500 | F58: =D58+E58 -> 1500
D59: 1000 | E59: 500 | F59: 1500
F60: 0
F61: 0
F62: 0
A64: Showerheads | C64: DIRECT BENEFIT TO CUSTOMER | D64: =W15 -> 441050 | E64: =X15 -> 367350 | F64: =D64+E64 -> 808400
A65: Schedule 214 | C65: Ratio | D65: =D64/D12 -> 0.6753901046 | E65: =E64/E12 -> 0.6391924964
A66: Order Number
A67: 18230435 | C67: REVENUE | D67: 0 | E67: 0 | F67: 0
A68: Electric

Sheet Lighting Detail_REM_E214 Elec
C1: Lighting | D1: Schedule 214 | E1: Order Number | F1: 18230440 | G1: Electric | M1: Lighting | N1: Schedule 214 | O1: Order Number | P1: 18230440 | Q1: Electric | V1: Lighting | W1: Schedule 214 | X1: Order Number | Y1: 18230440 | Z1: Electric
H2: This table summarizes the subtotals in the detail table to the left and is used to populate 2014-2015 Sector views. | T2: Ratios | W2: Acquisition Cost
A3: Lighting | H3: Labor | I3: Marketing Labor | J3: Overhead | K3: Marketing | L3: Employee/Office Expense | M3: Outside Services | N3: Materials | O3: Miscellaneous | P3: DBtC | Q3: Revenue | R3: Total Budget | S3: Total Savings | T3: DBTC | U3: Marketing | V3: Outside Svcs
A4: Schedule 214 | F4: 2014 Values are shown as reference only. | G4: 2014 | H4: =D15 -> 375000 | I4: =D21 -> 150000 | J4: =D27 -> 363300 | K4: =D34 -> 1870000 | L4: =D40 -> 9000 | M4: =D46 -> 1096600 | N4: =D52 -> 7500 | O4: =D58 -> 36000 | P4: =D64 -> 10933360.82 | Q4: =D67 -> 0 | R4: =SUM(H4:Q4) -> 14840760.82 | S4: =T15 -> 66120084 | T4: =P4/R4 -> 0.7367116115 | U4: =(K4+(I4*1.63))/R4 -> 0.1424792183 | V4: =M4/R4 -> 0.07389109044 | W4: =R4/S4 -> 0.2244516329
A5: Order Number | G5: Original 2015 Budget | H5: 412500 | I5: 165000 | J5: 401940 | K5: 1870000 | L5: 9900 | M5: 1206260 | N5: 8250 | O5: 39600 | P5: 10933360.82 | Q5: 0 | R5: 15046810.82 | S5: 66120084
A6: 18230440 | G6: Revised 2015 Budget | H6: =E15 -> 315000 | I6: =E21 -> 135000 | J6: =E27 -> 318150 | K6: =E34 -> 1870000 | L6: =E40 -> 11000 | M6: =E46 -> 1081537 | N6: =E52 -> 8250 | O6: =E58 -> 20000 | P6: =E64 -> 11620469.86 | Q6: =E67 -> 0 | R6: =SUM(H6:Q6) -> 15379406.86 | S6: =U15 -> 66609297.26 | T6: =P6/R6 -> 0.7555863478 | U6: =(K6+(I6*1.63))/R6 -> 0.1358992592 | V6: =M6/R6 -> 0.07032371336 | W6: =R6/S6 -> 0.2308897931
A7: Electric | G7: Total | H7: =H4+H6 -> 690000 | I7: =I4+I6 -> 285000 | J7: 681450 | K7: 3740000 | L7: 20000 | M7: 2178137 | N7: 15750 | O7: 56000 | P7: 22553830.68 | Q7: 0 | R7: 30220167.68 | S7: =S4+S6 -> 132729381.3 | T7: =P7/R7 -> 0.7463171919 | U7: =(K7+(I7*1.63))/R7 -> 0.1391305979 | V7: =M7/R7 -> 0.07207560933 | W7: =R7/S7 -> 0.2276825779
D8: 2014 Values are shown as reference only. | H8: NOTE: "Total" excludes "Original 2015 Budget" amount
C10: Spending Section | H10: Savings Section | W10: Savings Section | Z10: Savings Section
C12: Overall Total | D12: =D15+D21+D27+D34+D40+D46+D52+D58+D64 -> 14840760.82 | E12: =E15+E21+E27+E34+E40+E46+E52+E58+E64 -> 15379406.86 | F12: =D12+E12 -> 30220167.68 | H12: Measure Information | Q12: Unit Totals | T12: Projected Savings | W12: Incentive Totals | Z12: Cost Effectiveness (Based on Two-Year Total)
H13: Measure Name | I13: Savings | J13: UOM | K13: Unit Type | L13: Measure Cost | M13: Incentive | N13: Support % | O13: Measure Life | P13: End Use | Q13: 2014 | R13: 2015 | S13: Combined | T13: 2014 | U13: 2015 | V13: Combined | W13: 2014 | X13: 2015 | Y13: Combined | Z13: NEBs
C14: Budget Category | D14: 2014 | E14: 2015 | F14: Total | H14: i | I14: i | K14: i | L14: i | M14: i | N14: i | O14: i | P14: i | Q14: i | R14: i | Z14: i
B15: FTE | C15: LABOR | D15: =SUM(D16:D19) -> 375000 | E15: =SUM(E16:E19) -> 315000 | F15: =D15+E15 -> 690000 | H15: TOTALS g | N15: =SUM(N16:N65) -> 1.001 | O15: N/A | T15: =SUM(T16:T65) -> 66120084 | U15: 66609297.26 | V15: 132729381.3 | W15: 10933360.82 | X15: 11620469.86 | Y15: 22553830.68 | Z15: 0
B16: 0.5 | C16: Market Manager | D16: 50000 | E16: 45000 | F16: =SUM(D16:E16) -> 95000 | G16: 2015 values | H16: Engagement Bulb | I16: 6 | J16: kWh | K16: per unit | L16: 1.7 | M16: 1.7 | N16: 0 | O16: 5 | P16: lighting | R16: 0 | S16: =SUM(Q16:R16) -> 0 | T16: =Q16*I16 -> 0 | U16: =R16*I16 -> 0 | V16: =SUM(T16:U16) -> 0 | W16: =Q16*M16 -> 0 | X16: =R16*M16 -> 0 | Y16: =SUM(W16:X16) -> 0
B17: 1.25 | C17: Program Manager | D17: 125000 | E17: 112500 | F17: =SUM(D17:E17) -> 237500 | H17: Engagement Bulb LED | I17: 13.48 | J17: kWh | K17: per unit | L17: 8 | M17: 8 | N17: 0.04 | O17: 12 | P17: lighting | R17: 45000 | S17: =SUM(Q17:R17) -> 45000 | T17: =Q17*I17 -> 0 | U17: =R17*I17 -> 606600 | V17: =SUM(T17:U17) -> 606600 | W17: =Q17*M17 -> 0 | X17: =R17*M17 -> 360000 | Y17: =SUM(W17:X17) -> 360000
B18: 1 | C18: Program Implementer | D18: 125000 | E18: 90000 | F18: 215000 | H18: A-Lamp LED | I18: 16.02 | J18: kWh | K18: per unit | L18: 10.11 | M18: 3.25 | N18: 0.16 | O18: 12 | P18: lighting | R18: 1402972.58 | S18: 1402972.58 | T18: 0 | U18: 22475620.73 | V18: 22475620.73 | W18: 0 | X18: 4559660.885 | Y18: 4559660.885
B19: 0.75 | C19: Other Support | D19: 75000 | E19: 67500 | F19: 142500 | H19: Candelabra LED | I19: 17.76 | J19: kWh | K19: per unit | L19: 11.56 | M19: 2.75 | N19: 0.026 | O19: 12 | P19: lighting | R19: 194366.35 | S19: 194366.35 | T19: 0 | U19: 3451946.376 | V19: 3451946.376 | W19: 0 | X19: 534507.4625 | Y19: 534507.4625
B20: =SUM(B16:B19) -> 3.5 | H20: Globe LED | I20: 15.71 | J20: kWh | K20: per unit | L20: 12.83 | M20: 2.75 | N20: 0.01 | O20: 12 | P20: lighting | R20: 129272.6837 | S20: 129272.6837 | T20: 0 | U20: 2030873.86 | V20: 2030873.86 | W20: 0 | X20: 355499.88 | Y20: 355499.88
C21: MARKETING LABOR | D21: =SUM(D22:D25) -> 150000 | E21: =SUM(E22:E25) -> 135000 | F21: =D21+E21 -> 285000 | H21: Indoor LED Fixture | I21: 23.99 | J21: kWh | K21: per unit | L21: 15.79 | M21: 10 | N21: 0.0125 | O21: 15 | P21: lighting | R21: 69767.87918 | S21: 69767.87918 | T21: 0 | U21: 1673731.422 | V21: 1673731.422 | W21: 0 | X21: 697678.7918 | Y21: 697678.7918
C22: Marketing Manager | D22: 75000 | E22: 67500 | F22: 142500 | H22: MR-16 LED | I22: 25.42 | J22: kWh | K22: per unit | L22: 15.82 | M22: 5 | N22: 0.002 | O22: 12 | P22: lighting | R22: 10000 | S22: 10000 | T22: 0 | U22: 254200 | V22: 254200 | W22: 0 | X22: 50000 | Y22: 50000
C23: Marketing Support | D23: 75000 | E23: 67500 | F23: 142500 | H23: Outdoor LED Fixture | I23: 58.47 | J23: kWh | K23: per unit | L23: 10.11 | M23: 11 | N23: 0.015 | O23: 15 | P23: lighting | R23: 35200 | S23: 35200 | T23: 0 | U23: 2058144 | V23: 2058144 | W23: 0 | X23: 387200 | Y23: 387200
F24: 0 | H24: Reflector LED | I24: 28.23 | J24: kWh | K24: per unit | L24: 14.36 | M24: 5.5 | N24: 0.13 | O24: 12 | P24: lighting | R24: 650000 | S24: 650000 | T24: 0 | U24: 18349500 | V24: 18349500 | W24: 0 | X24: 3575000 | Y24: 3575000
F25: 0 | H25: Retrofit Kit LED | I25: 19.99 | J25: kWh | K25: per unit | L25: 10.05 | M25: 6.5 | N25: 0.0095 | O25: 15 | P25: lighting | R25: 62345.72815 | S25: 62345.72815 | T25: 0 | U25: 1246291.106 | V25: 1246291.106 | W25: 0 | X25: 405247.233 | Y25: 405247.233
H26: Specialty CFL | I26: 15.09 | J26: kWh | K26: per unit | L26: 3.26 | M26: 0.5 | N26: 0.05 | O26: 7 | P26: lighting | R26: 437246.188 | S26: 437246.188 | T26: 0 | U26: 6598044.976 | V26: 6598044.976 | W26: 0 | X26: 218623.094 | Y26: 218623.094
C27: OVERHEAD | D27: =SUM(D29:D32) -> 363300 | E27: =SUM(E29:E32) -> 318150 | F27: =D27+E27 -> 681450 | H27: Standard CFL | I27: 9.09 | J27: kWh | K27: per unit | L27: 1.84 | M27: 0.5 | N27: 0.045 | O27: 5 | P27: lighting | R27: 850105.0371 | S27: 850105.0371 | T27: 0 | U27: 7727454.787 | V27: 7727454.787 | W27: 0 | X27: 425052.5185 | Y27: 425052.5185
C28: Percentages for Applicable Year | D28: 0.692 | E28: 0.707 | H28: Standard CFL - Door-to-Door/Direct-Mail | I28: 15 | J28: kWh | K28: per unit | L28: 3 | M28: 2.25 | N28: 0 | O28: 5 | P28: lighting | R28: 0 | S28: 0 | T28: 0 | U28: 0 | V28: 0 | W28: 0 | X28: 0 | Y28: 0
C29: Program Staff | D29: =D28*D15 -> 259500 | E29: =E28*E15 -> 222705 | F29: 482205 | H29: A-Lamp Induction | I29: 10.53 | J29: kWh | K29: per unit | L29: 7.97 | M29: 4 | N29: 0.001 | O29: 12 | P29: lighting | R29: 13000 | S29: 13000 | T29: 0 | U29: 136890 | V29: 136890 | W29: 0 | X29: 52000 | Y29: 52000
C30: Marketing Staff | D30: =D28*D21 -> 103800 | E30: =E28*E21 -> 95445 | F30: 199245
G31: 2014 values | H31: A-Lamp LED | I31: 18 | J31: kWh | K31: per unit | L31: 27.5 | M31: 6.5 | N31: 0.1 | O31: 30 | P31: lighting | Q31: 525000 | S31: 525000 | T31: 9450000 | U31: 0 | V31: 9450000 | W31: 3412500 | X31: 0 | Y31: 3412500
H32: Engagement Bulb | I32: 20 | J32: kWh | K32: per unit | L32: 8 | M32: 8 | N32: 0.005 | O32: 30 | P32: lighting | Q32: 5600 | S32: 5600 | T32: 112000 | U32: 0 | V32: 112000 | W32: 44800 | X32: 0 | Y32: 44800
H33: Indoor CFL Fixture | I33: 43 | J33: kWh | K33: per unit | L33: 25 | M33: 0 | N33: 0 | O33: 15 | P33: lighting | Q33: 0 | S33: 0 | T33: 0 | U33: 0 | V33: 0 | W33: 0 | X33: 0 | Y33: 0
A34: Lighting | C34: MARKETING | D34: =SUM(D35:D38) -> 1870000 | E34: =SUM(E35:E38) -> 1870000 | F34: =D34+E34 -> 3740000 | H34: Indoor LED Fixture | I34: 50 | J34: kWh | K34: per unit | L34: 50 | M34: 12 | N34: 0.01 | O34: 18 | P34: lighting | Q34: 65000 | S34: 65000 | T34: 3250000 | U34: 0 | V34: 3250000 | W34: 780000 | X34: 0 | Y34: 780000
A35: Schedule 214 | C35: Materials & Campaign | D35: 1870000 | E35: 1870000 | F35: =SUM(D35:E35) -> 3740000 | H35: MR-16 LED | I35: 22 | J35: kWh | K35: per unit | L35: 15.82 | M35: 6 | N35: 0.005 | O35: 30 | P35: lighting | Q35: 10000 | S35: 10000 | T35: 220000 | U35: 0 | V35: 220000 | W35: 60000 | X35: 0 | Y35: 60000
A36: Order Number | F36: 0 | H36: Occupancy Sensors | I36: 84 | J36: kWh | K36: per unit | L36: 19.97 | M36: 10 | N36: 0 | O36: 25 | P36: lighting | Q36: 0 | S36: 0 | T36: 0 | U36: 0 | V36: 0 | W36: 0 | X36: 0 | Y36: 0
A37: 18230440 | F37: 0 | H37: Outdoor CFL Fixture | I37: 120 | J37: kWh | K37: per unit | L37: 14 | M37: 0 | N37: 0 | O37: 15 | P37: lighting | Q37: 0 | S37: 0 | T37: 0 | U37: 0 | V37: 0 | W37: 0 | X37: 0 | Y37: 0
A38: Electric | F38: 0 | H38: Outdoor LED Fixture | I38: 143 | J38: kWh | K38: per unit | L38: 50 | M38: 11 | N38: 0 | O38: 18 | P38: lighting | Q38: 35200 | S38: 35200 | T38: 5033600 | U38: 0 | V38: 5033600 | W38: 387200 | X38: 0 | Y38: 387200
H39: Reflector LED | I39: 23 | J39: kWh | K39: per unit | L39: 26.78 | M39: 7.5 | N39: 0.045 | O39: 30 | P39: lighting | Q39: 295000 | S39: 295000 | T39: 6785000 | U39: 0 | V39: 6785000 | W39: 2212500 | X39: 0 | Y39: 2212500
C40: EMPLOYEE/OFFICE EXPENSES | D40: =SUM(D41:D44) -> 9000 | E40: =SUM(E41:E44) -> 11000 | F40: =D40+E40 -> 20000 | H40: Specialty CFL | I40: 17 | J40: kWh | K40: per unit | L40: 2 | M40: 2 | N40: 0.13 | O40: 7 | P40: lighting | Q40: 1330300 | S40: 1330300 | T40: 22615100 | U40: 0 | V40: 22615100 | W40: 2660600 | X40: 0 | Y40: 2660600
D41: 9000 | E41: 11000 | F41: 20000 | H41: Standard CFL | I41: 16 | J41: kWh | K41: per unit | L41: 3 | M41: 1.18 | N41: 0.205 | O41: 5 | P41: lighting | Q41: 1165899 | S41: 1165899 | T41: 18654384 | U41: 0 | V41: 18654384 | W41: 1375760.82 | X41: 0 | Y41: 1375760.82
F42: 0
F43: 0
F44: 0
C46: OUTSIDE SERVICES | D46: =SUM(D47:D50) -> 1096600 | E46: =SUM(E47:E50) -> 1081537 | F46: =D46+E46 -> 2178137
C47: Incentive Processing | D47: 421600 | E47: 249450 | F47: =SUM(D47:E47) -> 671050
C48: Field Services | D48: 675000 | E48: 832087 | F48: 1507087
F49: 0
F50: 0
C52: MATERIALS | D52: =SUM(D53:D56) -> 7500 | E52: =SUM(E53:E56) -> 8250 | F52: =D52+E52 -> 15750
D53: 7500 | E53: 8250 | F53: 15750
F54: 0
F55: 0
F56: 0
C58: MISCELLANEOUS | D58: =SUM(D59:D62) -> 36000 | E58: =SUM(E59:E62) -> 20000 | F58: =D58+E58 -> 56000
D59: 36000 | E59: 20000 | F59: 56000
F60: 0
F61: 0
F62: 0
A64: Lighting | C64: DIRECT BENEFIT TO CUSTOMER | D64: =W15 -> 10933360.82 | E64: =X15 -> 11620469.86 | F64: =D64+E64 -> 22553830.68
A65: Schedule 214 | C65: Ratio | D65: =D64/D12 -> 0.7367116115 | E65: =E64/E12 -> 0.7555863478
A66: Order Number
A67: 18230440 | C67: REVENUE | D67: 0 | E67: 0 | F67: 0
A68: Electric

Sheet MHDS Detail_REM_E214 Elec.
C1: SF Existing - Mobile Home Duct Sealing | D1: Schedule 214 | E1: Order Number | F1: 18230634 | G1: Electric | M1: SF Existing - Mobile Home Duct Sealing | N1: Schedule 214 | O1: Order Number | P1: 18230634 | Q1: Electric | V1: SF Existing - Mobile Home Duct Sealing | W1: Schedule 214 | X1: Order Number | Y1: 18230634 | Z1: Electric
H2: This table summarizes the subtotals in the detail table to the left and is used to populate 2014-2015 Sector views. | T2: Ratios | W2: Acquisition Cost
A3: SF Existing - Mobile Home Duct Sealing | H3: Labor | I3: Marketing Labor | J3: Overhead | K3: Marketing | L3: Employee/Office Expense | M3: Outside Services | N3: Materials | O3: Miscellaneous | P3: DBtC | Q3: Revenue | R3: Total Budget | S3: Total Savings | T3: DBTC | U3: Marketing | V3: Outside Svcs
A4: Schedule 214 | F4: 2014 Values are shown as reference only. | G4: 2014 | H4: =D15 -> 40584.38 | I4: =D21 -> 6581.25 | J4: =D27 -> 32638.61596 | K4: =D34 -> 15000 | L4: =D40 -> 402.26 | M4: =D46 -> 126.99 | N4: =D52 -> 507.96 | O4: =D58 -> 590.71 | P4: =D64 -> 1586625 | Q4: 0 | R4: =SUM(H4:Q4) -> 1683057.166 | S4: =T15 -> 3592000
A5: Order Number | G5: Original 2015 Budget | H5: 40584.38 | I5: 6581.25 | J5: 32827.27848 | K5: 15000 | L5: 402.26 | M5: 126.99 | N5: 507.96 | O5: 590.71 | P5: 1586700 | Q5: 0 | R5: 1683320.828 | S5: 3592160
A6: 18230634 | G6: Revised 2015 Budget | H6: =E15 -> 39036.6 | I6: =E21 -> 4024.32 | J6: =E27 -> 30444.07044 | K6: =E34 -> 15000 | L6: =E40 -> 402.26 | M6: =E46 -> 126.99 | N6: =E52 -> 507.96 | O6: =E58 -> 590.71 | P6: =E64 -> 1575503.2 | Q6: 0 | R6: =SUM(H6:Q6) -> 1665636.11 | S6: =U15 -> 4665981 | T6: 0.5643351299 | U6: 0.01800754463 | V6: 0.3558043195 | W6: =R6/S6 -> 0.3569744734
A7: Electric | G7: Total | H7: =H4+H6 -> 79620.98 | I7: =I4+I6 -> 10605.57 | J7: 63082.6864 | K7: 30000 | L7: 804.52 | M7: 253.98 | N7: 1015.92 | O7: 1181.42 | P7: 3162128.2 | Q7: 0 | R7: 3348693.276 | S7: =S4+S6 -> 8257981 | T7: 0.6638305573 | U7: 0.1442135149 | V7: 0.0002280372837 | W7: 0.5323722037
D8: 2014 Values are shown as reference only. | H8: NOTE: "Total" excludes "Original 2015 Budget" amount
C10: Spending Section | H10: Savings Section | W10: Savings Section | Z10: Savings Section
C12: Overall Total | D12: =D15+D21+D27+D34+D40+D46+D52+D58+D64 -> 1683057.166 | E12: =E15+E21+E27+E34+E40+E46+E52+E58+E64 -> 1665636.11 | F12: =D12+E12 -> 3348693.276 | H12: Measure Information | Q12: Unit Totals | T12: Projected Savings | W12: Incentive Totals | Z12: Cost Effectiveness (Based on Two-Year Total)
H13: Measure Name | I13: Savings | J13: UOM | K13: Unit Type | L13: Measure Cost | M13: Incentive | N13: Support % | O13: Measure Life | P13: End Use | Q13: 2014 | R13: 2015 | S13: Combined | T13: 2014 | U13: 2015 | V13: Combined | W13: 2014 | X13: 2015 | Y13: Combined | Z13: NEBs
C14: Budget Category | D14: 2014 | E14: 2015 | F14: Total | H14: i | I14: i | K14: i | L14: i | M14: i | N14: i | O14: i | P14: i | Q14: i | R14: i | Z14: i
B15: FTE | C15: LABOR | D15: =SUM(D16:D19) -> 40584.38 | E15: =SUM(E16:E19) -> 39036.6 | F15: =D15+E15 -> 79620.98 | H15: TOTALS g | N15: =SUM(N16:N65) -> 1 | O15: N/A | T15: =SUM(T16:T65) -> 3592000 | U15: 4665981 | V15: 8257981 | W15: 1586625 | X15: 1575503.2 | Y15: 3162128.2 | Z15: 0
C16: Avg of Staff Labor | D16: 40584.38 | E16: 39036.6 | F16: =D16+E16 -> 79620.98 | G16: 2014 values | H16: Elec - Manufactured Home Duct Sealing- Level 1 (In Park) | I16: 600 | J16: kWh | K16: per unit | L16: 250 | M16: 250 | O16: 20 | P16: SF space heat | Q16: 623 | R16: 0 | S16: =SUM(Q16:R16) -> 623 | T16: =Q16*I16 -> 373800 | U16: =R16*I16 -> 0 | V16: =SUM(T16:U16) -> 373800 | W16: =Q16*M16 -> 155750 | X16: =R16*M16 -> 0 | Y16: =SUM(W16:X16) -> 155750
F17: =D17+E17 -> 0 | H17: Elec - Manufactured Home Duct Sealing- Level 1 (Out of Park) | I17: 600 | J17: kWh | K17: per unit | L17: 290 | M17: 290 | O17: 20 | P17: SF space heat | Q17: 550 | R17: 0 | S17: =SUM(Q17:R17) -> 550 | T17: =Q17*I17 -> 330000 | U17: =R17*I17 -> 0 | V17: =SUM(T17:U17) -> 330000 | W17: =Q17*M17 -> 159500 | X17: =R17*M17 -> 0 | Y17: =SUM(W17:X17) -> 159500
F18: 0 | H18: Elec - Manufactured Home Duct Sealing- Level 2 (In Park) | I18: 800 | J18: kWh | K18: per unit | L18: 350 | M18: 350 | O18: 20 | P18: SF space heat | Q18: 700 | R18: 0 | S18: 700 | T18: 560000 | U18: 0 | V18: 560000 | W18: 245000 | X18: 0 | Y18: 245000
F19: 0 | H19: Elec - Manufactured Home Duct Sealing- Level 2 (Out of Park) | I19: 800 | J19: kWh | K19: per unit | L19: 400 | M19: 400 | O19: 20 | P19: SF space heat | Q19: 725 | R19: 0 | S19: 725 | T19: 580000 | U19: 0 | V19: 580000 | W19: 290000 | X19: 0 | Y19: 290000
B20: =SUM(B16:B19) -> 0 | H20: Elec - Manufactured Home Duct Sealing- Level 3 (In Park) | I20: 1000 | J20: kWh | K20: per unit | L20: 390 | M20: 390 | O20: 20 | P20: SF space heat | Q20: 300 | R20: 0 | S20: 300 | T20: 300000 | U20: 0 | V20: 300000 | W20: 117000 | X20: 0 | Y20: 117000
C21: MARKETING LABOR | D21: =SUM(D22:D25) -> 6581.25 | E21: =SUM(E22:E25) -> 4024.32 | F21: =D21+E21 -> 10605.57 | H21: Elec - Manufactured Home Duct Sealing- Level 3 (Out of Park) | I21: 1000 | J21: kWh | K21: per unit | L21: 440 | M21: 440 | O21: 20 | P21: SF space heat | Q21: 425 | R21: 0 | S21: 425 | T21: 425000 | U21: 0 | V21: 425000 | W21: 187000 | X21: 0 | Y21: 187000
D22: 6581.25 | E22: 4024.32 | F22: =D22+E22 -> 10605.57 | H22: Elec - MHDS Direct Install CFL | I22: 23 | J22: kWh | K22: per unit | L22: 4.9 | M22: 4.9 | O22: 5 | P22: lighting | R22: 0 | S22: 0 | T22: 0 | U22: 0 | V22: 0 | W22: 0 | X22: 0 | Y22: 0
F23: 0 | H23: Elec - MHDS Showerhead - Direct Install #1 | I23: 307 | J23: kWh | K23: per unit | L23: 35 | M23: 35 | O23: 10 | P23: water heat | Q23: 1600 | R23: 0 | S23: 1600 | T23: 491200 | U23: 0 | V23: 491200 | W23: 56000 | X23: 0 | Y23: 56000 | Z23: 529248
F24: 0 | H24: Elec - MHDS Showerhead - Direct Install #2 | I24: 307 | J24: kWh | K24: per unit | L24: 15 | M24: 15 | O24: 10 | P24: water heat | Q24: 0 | R24: 0 | S24: 0 | T24: 0 | U24: 0 | V24: 0 | W24: 0 | X24: 0 | Y24: 0
F25: 0 | H25: Elec - Furnace Filter | I25: 0 | J25: kWh | K25: per unit | L25: 20 | M25: 20 | Q25: 6350 | R25: 0 | S25: 6350 | T25: 0 | U25: 0 | V25: 0 | W25: 127000 | X25: 0 | Y25: 127000 | Z25: 254000
H26: Mobile Home Floor Insulation R-0 to R-30**** | I26: 1.47 | J26: kWh | K26: per unit | L26: 1.61 | M26: 1.61 | O26: 25 | P26: SF space heat | Q26: 0 | R26: 0 | S26: 0 | T26: 0 | U26: 0 | V26: 0 | W26: 0 | X26: 0 | Y26: 0
C27: OVERHEAD | D27: =SUM(D29:D32) -> 32638.61596 | E27: =SUM(E29:E32) -> 30444.07044 | F27: =D27+E27 -> 63082.6864 | H27: ****NOTE****Costs for Rodent Barrier Repair ($0.20/sf) and Plumbing Repair ($0.04/sf) are applied to the Insulation measure cost ($1.37/sf) on a square foot basis assuming an average 1100 sf per home.
C28: Percentages for Applicable Year | D28: 0.692 | E28: 0.707 | H28: LED bulbs - DI | I28: 32 | J28: kWh | K28: per unit | L28: 17 | M28: 15 | O28: 30 | P28: lighting | Q28: 16625 | R28: 0 | S28: 16625 | T28: 532000 | U28: 0 | V28: 532000 | W28: 249375 | X28: 0 | Y28: 249375
C29: Program Staff | D29: =D15*D28 -> 28084.39096 | E29: =E15*E28 -> 27598.8762 | F29: =D29+E29 -> 55683.26716 | G29: 2015 values | H29: Elec - Manufactured Home Duct Sealing- Level 1 (In Park) | I29: 900 | J29: kWh | K29: per unit | L29: 390 | M29: 390 | N29: 0.06877871087 | O29: 20 | P29: SF Space Heat | Q29: 0 | R29: 369 | S29: 369 | T29: 0 | U29: 332100 | V29: 332100 | W29: 0 | X29: 143910 | Y29: 143910
C30: Marketing Staff | D30: =D21*D28 -> 4554.225 | E30: =E21*E28 -> 2845.19424 | F30: 7399.41924 | H30: Elec - Manufactured Home Duct Sealing- Level 1 (Out of Park) | I30: 1000 | J30: kWh | K30: per unit | L30: 475 | M30: 475 | N30: 0.1401047814 | O30: 20 | P30: SF Space Heat | Q30: 0 | R30: 671 | S30: 671 | T30: 0 | U30: 671000 | V30: 671000 | W30: 0 | X30: 318725 | Y30: 318725
H31: Elec - Manufactured Home Duct Sealing- Level 2 (In Park) | I31: 900 | J31: kWh | K31: per unit | L31: 390 | M31: 390 | N31: 0.03056831594 | O31: 20 | P31: SF Space Heat | Q31: 0 | R31: 153 | S31: 153 | T31: 0 | U31: 137700 | V31: 137700 | W31: 0 | X31: 59670 | Y31: 59670
H32: Elec - Manufactured Home Duct Sealing- Level 2 (Out of Park) | I32: 1000 | J32: kWh | K32: per unit | L32: 475 | M32: 475 | N32: 0.03396479549 | O32: 20 | P32: SF Space Heat | Q32: 0 | R32: 153 | S32: 153 | T32: 0 | U32: 153000 | V32: 153000 | W32: 0 | X32: 72675 | Y32: 72675
H33: Elec - Manufactured Home Duct Sealing- Level 3 (In Park) | I33: 1600 | J33: kWh | K33: per unit | L33: 475 | M33: 475 | N33: 0.1086873456 | O33: 20 | P33: SF Space Heat | Q33: 0 | R33: 313 | S33: 313 | T33: 0 | U33: 500800 | V33: 500800 | W33: 0 | X33: 148675 | Y33: 148675
A34: SF Existing - | C34: MARKETING | D34: =SUM(D35:D38) -> 15000 | E34: =SUM(E35:E38) -> 15000 | F34: =D34+E34 -> 30000 | H34: Elec - Manufactured Home Duct Sealing- Level 3 (Out of Park) | I34: 2500 | J34: kWh | K34: per unit | L34: 550 | M34: 550 | N34: 0.4245599436 | O34: 20 | P34: SF Space Heat | Q34: 0 | R34: 783 | S34: 783 | T34: 0 | U34: 1957500 | V34: 1957500 | W34: 0 | X34: 430650 | Y34: 430650
A35: Mobile Home | D35: 15000 | E35: 15000 | F35: =D35+E35 -> 30000 | H35: Elec - MHDS Direct Install LED A-Lamp | I35: 17 | J35: kWh | K35: per unit | L35: 30 | M35: 30 | N35: 0.04474861806 | O35: 12 | P35: Res Lighting | Q35: 0 | R35: 12403 | S35: 12403 | T35: 0 | U35: 210851 | V35: 210851 | W35: 0 | X35: 372090 | Y35: 372090
A36: Duct Sealing | F36: 0 | H36: Elec - MHDS Showerhead - Direct Install #1 | I36: 307 | J36: kWh | K36: per unit | L36: 10.58 | M36: 10.58 | N36: 0.1485874891 | O36: 10 | P36: Res Water Heat | Q36: 0 | R36: 2290 | S36: 2290 | T36: 0 | U36: 703030 | V36: 703030 | W36: 0 | X36: 24228.2 | Y36: 24228.2 | Z36: =S36*165.39 -> 378743.1
A37: Schedule 214 | F37: 0 | H37: DIM only Service | I37: 0 | J37: kWh | K37: per unit | L37: 80 | M37: 80 | N37: 0 | Q37: 0 | R37: 61 | S37: 61 | T37: 0 | U37: 0 | V37: 0 | W37: 0 | X37: 4880 | Y37: 4880
A38: Order Number | F38: 0
A39: 18230634
A40: Electric | C40: EMPLOYEE/OFFICE EXPENSES | D40: =SUM(D41:D44) -> 402.26 | E40: 402.26 | F40: =D40+E40 -> 804.52
D41: 402.26 | E41: 402.26 | F41: =D41+E41 -> 804.52
F42: 0
F43: 0
F44: 0
C46: OUTSIDE SERVICES | D46: =SUM(D47:D50) -> 126.99 | E46: =SUM(E47:E50) -> 126.99 | F46: =D46+E46 -> 253.98
D47: 126.99 | E47: 126.99 | F47: =D47+E47 -> 253.98
F48: 0
F49: 0
F50: 0
C52: MATERIALS | D52: =SUM(D53:D56) -> 507.96 | E52: =SUM(E53:E56) -> 507.96 | F52: =D52+E52 -> 1015.92
D53: 507.96 | E53: 507.96 | F53: =D53+E53 -> 1015.92
F54: 0
F55: 0
F56: 0
C58: MISCELLANEOUS | D58: =SUM(D59:D62) -> 590.71 | E58: =SUM(E59:E62) -> 590.71 | F58: =D58+E58 -> 1181.42
D59: 590.71 | E59: 590.71 | F59: =D59+E59 -> 1181.42
F60: 0
F61: 0
F62: 0
A64: SF Existing - | C64: DIRECT BENEFIT TO CUSTOMER | D64: =W15 -> 1586625 | E64: =X15 -> 1575503.2 | F64: =D64+E64 -> 3162128.2
A65: Mobile Home | C65: Ratio | D65: =D64/D12 -> 0.9427041648 | E65: =E64/E12 -> 0.9458867937
A66: Duct Sealing
A67: Schedule 214 | C67: REVENUE | D67: 0 | E67: 0 | F67: 0
A68: Order Number
A69: 18230634
A70: Electric

Sheet ARRAWx Detail_REM_E214 Elec
C1: SF Existing ARRA Wx | D1: Schedule 214 | E1: Order Number | F1: 18230501 | G1: Electric | M1: SF Existing ARRA Wx | N1: Schedule 214 | O1: Order Number | P1: 18230501 | Q1: Electric | V1: SF Existing ARRA Wx | W1: Schedule 214 | X1: Order Number | Y1: 18230501 | Z1: Electric
H2: This table summarizes the subtotals in the detail table to the left and is used to populate 2014-2015 Sector views. | T2: Ratios | W2: Acquisition Cost
A3: SF Existing ARRA Wx | H3: Labor | I3: Marketing Labor | J3: Overhead | K3: Marketing | L3: Employee/Office Expense | M3: Outside Services | N3: Materials | O3: Miscellaneous | P3: DBtC | Q3: Revenue | R3: Total Budget | S3: Total Savings | T3: DBTC | U3: Marketing | V3: Outside Svcs
A4: Schedule 214 | F4: 2014 Values are shown as reference only. | G4: 2014 | H4: 0 | I4: 0 | J4: 0 | K4: 0 | L4: 0 | M4: 0 | N4: 0 | O4: 0 | P4: 0 | Q4: 0 | R4: 0 | S4: =T15 -> 0
A5: Order Number | G5: Original 2015 Budget | S5: =U14 -> 0
A6: 18230501 | G6: Revised 2015 Budget | H6: =E15 -> 0 | I6: =E21 -> 0 | J6: =E27 -> 0 | K6: =E34 -> 0 | L6: =E40 -> 0 | M6: =E46 -> 0 | N6: =E52 -> 0 | O6: =E58 -> 0 | P6: =E64 -> 100000 | Q6: 0 | R6: =SUM(H6:Q6) -> 100000 | S6: =U15 -> 294000 | T6: =P6/R6 -> 1 | U6: =(K6+(I6*1.63))/R6 -> 0 | V6: =M6/R6 -> 0 | W6: =R6/S6 -> 0.3401360544
A7: Electric | G7: Total | H7: =H4+H6 -> 0 | I7: =I4+I6 -> 0 | J7: 0 | K7: 0 | L7: 0 | M7: 0 | N7: 0 | O7: 0 | P7: 100000 | Q7: 0 | R7: 100000 | S7: =S4+S6 -> 294000 | T7: 0.999963571 | U7: 0 | V7: 0 | W7: =R7/S7 -> 0.3401360544
H8: NOTE: "Total" excludes "Original 2015 Budget" amount
C10: Spending Section | H10: Savings Section | W10: Savings Section | Z10: Savings Section
C12: Overall Total | D12: =D15+D21+D27+D34+D40+D46+D52+D58 -> 0 | E12: =E15+E21+E27+E34+E40+E46+E52+E58+E64 -> 100000 | F12: =D12+E12 -> 100000 | H12: Measure Information | Q12: Unit Totals | T12: Projected Savings | W12: Incentive Totals | Z12: Cost Effectiveness (Based on Two-Year Total)
H13: Measure Name | I13: Savings | J13: UOM | K13: Unit Type | L13: Measure Cost | M13: Incentive | N13: Support % | O13: Measure Life | P13: End Use | Q13: 2014 | R13: 2015 | S13: Combined | T13: 2014 | U13: 2015 | V13: Combined | W13: 2014 | X13: 2015 | Y13: Combined | Z13: NEBs
C14: Budget Category | D14: 2014 | E14: 2015 | F14: Total | H14: i | I14: i | K14: i | L14: i | M14: i | N14: i | O14: i | P14: i | Q14: i | R14: i | Z14: i
B15: FTE | C15: LABOR | D15: 0 | E15: 0 | F15: 0 | H15: TOTALS g | L15: 0 | M15: 0 | O15: N/A | T15: =SUM(T16:T65) -> 0 | U15: 294000 | V15: 294000 | W15: 0 | X15: 100000 | Y15: 100000 | Z15: 0
F16: 0 | H16: Mobile Home Floor Insulation R-0 to R-30 | I16: 1.47 | J16: kWh | K16: square foot | L16: 1 | M16: 0.5 | N16: 1 | O16: 25 | P16: SF Space Heat | Q16: 0 | R16: 200000 | S16: =SUM(Q16:R16) -> 200000 | T16: =Q16*I16 -> 0 | U16: =R16*I16 -> 294000 | V16: =SUM(T16:U16) -> 294000 | W16: =Q16*M16 -> 0 | X16: =R16*M16 -> 100000 | Y16: =SUM(W16:X16) -> 100000
F17: 0
F18: 0
F19: 0
B20: =SUM(B16:B19) -> 0
C21: MARKETING LABOR | D21: 0 | E21: 0 | F21: 0
F22: 0
F23: 0
F24: 0
F25: 0
C27: OVERHEAD | D27: 0 | E27: 0 | F27: 0
C28: Percentages for Applicable Year | D28: 0.692 | E28: 0.707
C29: Program Staff | D29: =D15*D28 -> 0 | E29: =E15*E28 -> 0 | F29: 0
C30: Marketing Staff | D30: =D21*D28 -> 0 | E30: =E21*E28 -> 0 | F30: 0
A34: SF Existing ARRA Wx | C34: MARKETING | D34: 0 | E34: 0 | F34: 0
A35: Schedule 214 | C35: Detail 1 | F35: 0
A36: Order Number | C36: Detail 2 | F36: 0
A37: 18230501 | C37: Detail 3 | F37: 0
A38: Electric | C38: Detail 4 | F38: 0
C40: EMPLOYEE/OFFICE EXPENSES | D40: 0 | E40: 0 | F40: 0
C41: Detail 1 | F41: 0
C42: Detail 2 | F42: 0
C43: Detail 3 | F43: 0
C44: Detail 4 | F44: 0
C46: OUTSIDE SERVICES | D46: 0 | E46: 0 | F46: 0
C47: Detail 1 | F47: 0
C48: Detail 2 | F48: 0
C49: Detail 3 | F49: 0
C50: Detail 4 | F50: 0
C52: MATERIALS | D52: 0 | E52: 0 | F52: 0
C53: Detail 1 | F53: 0
C54: Detail 2 | F54: 0
C55: Detail 3 | F55: 0
C56: Detail 4 | F56: 0
C58: MISCELLANEOUS | D58: 0 | E58: 0 | F58: 0
C59: Detail 1 | F59: 0
C60: Detail 2 | F60: 0
C61: Detail 3 | F61: 0
C62: Detail 4 | F62: 0
A64: SF Existing ARRA Wx | C64: DIRECT BENEFIT TO CUSTOMER | D64: =W15 -> 0 | E64: =X15 -> 100000 | F64: =D64+E64 -> 100000
A65: Schedule 214 | C65: Ratio
A66: Order Number
A67: 18230501 | C67: REVENUE | D67: 0 | E67: 0 | F67: 0
A68: Electric

Sheet HER Detail_REM_E214 elec.
C1: Home Energy Reports | D1: Schedule 214 | E1: Order Number | F1: 18230461 | G1: Electric | M1: Home Energy Reports | N1: Schedule 214 | O1: Order Number | P1: 18230461 | Q1: Electric | V1: Home Energy Reports | W1: Schedule 214 | X1: Order Number | Y1: 18230461 | Z1: Electric
H2: This table summarizes the subtotals in the detail table to the left and is used to populate 2014-2015 Sector views. | T2: Ratios | W2: Acquisition Cost
A3: Home Energy Reports | H3: Labor | I3: Marketing Labor | J3: Overhead | K3: Marketing | L3: Employee/Office Expense | M3: Outside Services | N3: Materials | O3: Miscellaneous | P3: DBtC | Q3: Revenue | R3: Total Budget | S3: Total Savings | T3: DBTC | U3: Marketing | V3: Outside Svcs
A4: Schedule 214 | F4: 2014 Values are shown as reference only. | G4: 2014 | H4: =D15 -> 5625 | I4: =D21 -> 750 | J4: =D27 -> 4411.5 | K4: =D34 -> 0 | L4: =D40 -> 400 | M4: =D46 -> 82508.5 | N4: =D52 -> 0 | O4: =D58 -> 200 | P4: =D64 -> 72695 | Q4: 0 | R4: =SUM(H4:Q4) -> 166590 | S4: =T15 -> 5560625 | T4: 0.4034439004 | U4: 0.04551956422 | V4: 0.4034439004 | W4: 0.03907796289
A5: Order Number | G5: Original 2015 Budget | H5: 6187.5 | I5: 832.5 | J5: 4885.92 | K5: 0 | L5: 440 | M5: 75473.5 | N5: 0 | O5: 220 | P5: 65660 | Q5: 0 | R5: 153699.42 | S5: 532000
A6: 18230461 | G6: Revised 2015 Budget | H6: =E15 -> 5250 | I6: =E21 -> 750 | J6: =E27 -> 4242 | K6: =E34 -> 0 | L6: =E40 -> 500 | M6: =E46 -> 75473.5 | N6: =E52 -> 250 | O6: =E58 -> 100 | P6: =E64 -> 65660 | Q6: 0 | R6: =SUM(H6:Q6) -> 152225.5 | S6: =U15 -> 472500 | T6: 0 | U6: 0.04639930799 | V6: 0.80242175 | W6: 0.03929545969
A7: Electric | G7: Total | H7: =H6 -> 5250 | I7: =I6 -> 750 | J7: 4242 | K7: 0 | L7: 500 | M7: 75473.5 | N7: 250 | O7: 100 | P7: 65660 | Q7: 0 | R7: 152225.5 | S7: =S4+S6 -> 6033125 | T7: 0.4004503114 | U7: 0.04574657763 | V7: 0.4004503114 | W7: 0.03937009241
D8: 2014 Values are shown as reference only. | H8: NOTE: "Total" excludes "Original 2015 Budget" amount
C10: Spending Section | H10: Savings Section | W10: Savings Section | Z10: Savings Section
C12: Overall Total | D12: =D15+D21+D27+D34+D40+D46+D52+D58+D64 -> 166590 | E12: =E15+E21+E27+E34+E40+E46+E52+E58+E64 -> 152225.5 | F12: =D12+E12 -> 318815.5 | H12: Measure Information | Q12: Unit Totals | T12: Projected Savings | W12: Incentive Totals | Z12: Cost Effectiveness (Based on Two-Year Total)
H13: Measure Name | I13: Savings | J13: UOM | K13: Unit Type | L13: Measure Cost | M13: Incentive | N13: Support % | O13: Measure Life | P13: End Use | Q13: 2014 | R13: 2015 | S13: Combined | T13: 2014 | U13: 2015 | V13: Combined | W13: 2014 | X13: 2015 | Y13: Combined | Z13: NEBs
C14: Budget Category | D14: 2014 | E14: 2015 | F14: Total | H14: i | I14: i | K14: i | L14: i | M14: i | N14: i | O14: i | P14: i | Q14: i | R14: i | Z14: i
B15: FTE | C15: LABOR | D15: =SUM(D16:D19) -> 5625 | E15: =SUM(E16:E19) -> 5250 | F15: =SUM(D15:E15) -> 10875 | H15: TOTALS g | N15: =SUM(N16:N65) -> 1 | O15: N/A | T15: =SUM(T16:T65) -> 5560625 | U15: 472500 | V15: 6033125 | W15: 72695 | X15: 65660 | Y15: 138355 | Z15: 0
C16: Market Manager | D16: 1875 | E16: 0 | F16: =SUM(D16:E16) -> 1875 | H16: Home Energy Reports (Original) - Elec | I16: 358.75 | J16: kWh | K16: per unit | L16: 4.69 | M16: 4.69 | N16: 0.5 | O16: 2 | P16: lighting | Q16: 15500 | R16: 0 | S16: =SUM(Q16:R16) -> 15500 | T16: =Q16*I16 -> 5560625 | U16: =R16*I16 -> 0 | V16: =SUM(T16:U16) -> 5560625 | W16: =Q16*M16 -> 72695 | X16: =R16*M16 -> 0 | Y16: =SUM(W16:X16) -> 72695
C17: Program Manager | D17: 3750 | E17: 5250 | F17: =SUM(D17:E17) -> 9000 | H17: Home Energy Reports - Legacy Yr 2 | I17: 33.75 | J17: kWh | K17: per unit | L17: 4.69 | M17: 4.69 | N17: 0.5 | O17: 2 | P17: lighting | Q17: 0 | R17: 14000 | S17: =SUM(Q17:R17) -> 14000 | T17: =Q17*I17 -> 0 | U17: =R17*I17 -> 472500 | V17: =SUM(T17:U17) -> 472500 | W17: =Q17*M17 -> 0 | X17: =R17*M17 -> 65660 | Y17: =SUM(W17:X17) -> 65660
F18: =SUM(D18:E18) -> 0
F19: =SUM(D19:E19) -> 0
B20: =SUM(B16:B19) -> 0
C21: MARKETING LABOR | D21: =SUM(D22:D25) -> 750 | E21: =SUM(E22:E25) -> 750 | F21: =SUM(D21:E21) -> 1500
C22: Marketing Manager | D22: 250 | E22: 250 | F22: =SUM(D22:E22) -> 500
C23: Marketing Support | D23: 500 | E23: 500 | F23: =SUM(D23:E23) -> 1000
F24: =SUM(D24:E24) -> 0
F25: =SUM(D25:E25) -> 0
C27: OVERHEAD | D27: =SUM(D29:D32) -> 4411.5 | E27: =SUM(E29:E32) -> 4242 | F27: =SUM(D27:E27) -> 8653.5
C28: Percentages for Applicable Year | D28: 0.692 | E28: 0.707
C29: Program Staff | D29: =D15*D28 -> 3892.5 | E29: =E15*E28 -> 3711.75 | F29: =SUM(D29:E29) -> 7604.25
C30: Marketing Staff | D30: =D21*D28 -> 519 | E30: =E21*E28 -> 530.25 | F30: =SUM(D30:E30) -> 1049.25
A34: Home Energy Reports | C34: MARKETING | D34: =SUM(D35:D38) -> 0 | E34: =SUM(E35:E38) -> 0 | F34: =SUM(D34:E34) -> 0
A35: Schedule 214 | F35: =SUM(D35:E35) -> 0
A36: Order Number | F36: =SUM(D36:E36) -> 0
A37: 18230461 | F37: =SUM(D37:E37) -> 0
A38: Electric | F38: =SUM(D38:E38) -> 0
C40: EMPLOYEE/OFFICE EXPENSES | D40: =SUM(D41:D44) -> 400 | E40: =SUM(E41:E44) -> 500 | F40: =SUM(D40:E40) -> 900
C41: Employee training, travel, lodging | D41: 200 | E41: 250 | F41: =SUM(D41:E41) -> 450
C42: Phone expense, office supplies | D42: 200 | E42: 250 | F42: =SUM(D42:E42) -> 450
F43: =SUM(D43:E43) -> 0
F44: =SUM(D44:E44) -> 0
C46: OUTSIDE SERVICES | D46: =SUM(D47:D50) -> 82508.5 | E46: =SUM(E47:E50) -> 75473.5 | F46: =SUM(D46:E46) -> 157982
C47: OPOWER | D47: 82508.5 | E47: 75473.5 | F47: =SUM(D47:E47) -> 157982
F48: =SUM(D48:E48) -> 0
F49: =SUM(D49:E49) -> 0
F50: =SUM(D50:E50) -> 0
C52: MATERIALS | D52: =SUM(D53:D56) -> 0 | E52: =SUM(E53:E56) -> 250 | F52: =SUM(D52:E52) -> 250
E53: 250 | F53: =SUM(D53:E53) -> 250
F54: =SUM(D54:E54) -> 0
F55: =SUM(D55:E55) -> 0
F56: =SUM(D56:E56) -> 0
C58: MISCELLANEOUS | D58: =SUM(D59:D62) -> 200 | E58: =SUM(E59:E62) -> 100 | F58: =SUM(D58:E58) -> 300
D59: 200 | E59: 100 | F59: =SUM(D59:E59) -> 300
F60: =SUM(D60:E60) -> 0
F61: =SUM(D61:E61) -> 0
F62: =SUM(D62:E62) -> 0
A64: Home Energy Reports | C64: DIRECT BENEFIT TO CUSTOMER | D64: =W15 -> 72695 | E64: =X15 -> 65660 | F64: =D64+E64 -> 138355
A65: Schedule 214 | C65: Ratio | D65: =D64/D12 -> 0.4363707305 | E65: =E64/E12 -> 0.4313337778
A66: Order Number
A67: 18230461 | C67: REVENUE | D67: 0 | E67: 0 | F67: 0
A68: Electric

Sheet SFNC Detail_REM E215 Elec
C1: Single Family New Construction | D1: Schedule 215 | E1: Order Number | F1: 18230405 | G1: Electric | M1: Single Family New Construction | N1: Schedule 215 | O1: Order Number | P1: 18230405 | Q1: Electric | V1: Single Family New Construction | W1: Schedule 215 | X1: Order Number | Y1: 18230405
H2: This table summarizes the subtotals in the detail table to the left and is used to populate 2014-2015 Sector views. | T2: Ratios | W2: Acquisition Cost
A3: Single Family New Construction | H3: Labor | I3: Marketing Labor | J3: Overhead | K3: Marketing | L3: Employee/Office Expense | M3: Outside Services | N3: Materials | O3: Miscellaneous | P3: DBtC | Q3: Revenue | R3: Total Budget | S3: Total Savings | T3: DBTC | U3: Marketing | V3: Outside Svcs
A4: Schedule 215 | F4: 2014 Values are shown as reference only. | G4: 2014 | H4: =D15 -> 0 | I4: =D21 -> 0 | J4: =D27 -> 0 | K4: =D34 -> 0 | L4: =D40 -> 0 | M4: =D46 -> 0 | N4: =D52 -> 0 | O4: =D58 -> 0 | P4: =D64 -> 0 | Q4: =D65 -> 0 | R4: =SUM(H4:Q4) -> 0 | S4: =T15 -> 0 | T4: =P4/R4 ->  | U4: =(K4+(I4*1.63))/R4 ->  | V4: =M4/R4 ->  | W4: =R4/S4 -> 
A5: Order Number | G5: Original 2015 Budget | H5: 0 | I5: 0 | J5: 0 | K5: 0 | L5: 0 | M5: 0 | N5: 0 | O5: 0 | P5: 0 | Q5: 0 | R5: 0 | S5: 0
A6: 18230405 | G6: Revised 2015 Budget | H6: =E15 -> 16476 | I6: =E21 -> 3295 | J6: =E27 -> 13978.097 | K6: =E34 -> 30000 | L6: =E40 -> 0 | M6: =E46 -> 0 | N6: =E52 -> 0 | O6: =E58 -> 5000 | P6: =E64 -> 0 | Q6: =E65 -> 0 | R6: =SUM(H6:Q6) -> 68749.097 | S6: =U15 -> 0 | T6: =P6/R6 -> 0 | U6: =(K6+(I6*1.63))/R6 -> 0.5144918485 | V6: =M6/R6 -> 0 | W6: =R6/S6 -> 
A7: Electric | G7: Total | H7: =H4+H6 -> 16476 | I7: =I4+I6 -> 3295 | J7: 13978.097 | K7: 30000 | L7: 0 | M7: 0 | N7: 0 | O7: 5000 | P7: 0 | Q7: 0 | R7: 68749.097 | S7: =S4+S6 -> 0 | T7: =P7/R7 -> 0 | U7: =(K7+(I7*1.63))/R7 -> 0.5144918485 | V7: =M7/R7 -> 0 | W7: =R7/S7 -> 
D8: 2014 Values are shown as reference only. | H8: NOTE: "Total" excludes "Original 2015 Budget" amount
C10: Spending Section | H10: Savings Section | W10: Savings Section
C12: Overall Total | D12: =D15+D21+D27+D34+D40+D46+D52+D58 -> 0 | E12: =E15+E21+E27+E34+E40+E46+E52+E58 -> 68749.097 | F12: =D12+E12 -> 68749.097 | H12: Measure Information | Q12: Unit Totals | T12: Projected Savings | W12: Incentive Totals
H13: Measure Name | I13: Savings | J13: UOM | K13: Unit Type | L13: Measure Cost | M13: Incentive | N13: Support % | O13: Measure Life | P13: End Use | Q13: 2014 | R13: 2015 | S13: Combined | T13: 2014 | U13: 2015 | V13: Combined | W13: 2014 | X13: 2015 | Y13: Combined
C14: Budget Category | D14: 2014 | E14: 2015 | F14: Total | H14: i | I14: i | K14: i | L14: i | M14: i | N14: i | O14: i | P14: i | Q14: i | R14: i
B15: FTE | C15: LABOR | D15: =SUM(D16:D19) -> 0 | E15: =SUM(E16:E19) -> 16476 | F15: =D15+E15 -> 16476 | H15: TOTALS g | L15: 0 | M15: 0 | O15: N/A | T15: 0 | U15: 0 | V15: 0 | W15: 0 | X15: 0 | Y15: 0
C16: Program Coordinator | E16: 16476 | F16: =SUM(D16:E16) -> 16476
F17: =SUM(D17:E17) -> 0
F18: 0
F19: 0
B20: =SUM(B16:B19) -> 0
C21: MARKETING LABOR | D21: =SUM(D22:D25) -> 0 | E21: =SUM(E22:E25) -> 3295 | F21: =D21+E21 -> 3295
C22: Marketing Staff | E22: 3295 | F22: 3295
F23: 0
F24: 0
F25: 0
C27: OVERHEAD LABOR | D27: =SUM(D29:D32) -> 0 | E27: =SUM(E29:E32) -> 13978.097 | F27: =D27+E27 -> 13978.097
C28: Percentages for Applicable Year | D28: 0.692 | E28: 0.707
C29: Program Staff | D29: =D28*D15 -> 0 | E29: =E28*E15 -> 11648.532 | F29: 11648.532
C30: Marketing Staff | D30: =D28*D21 -> 0 | E30: =E28*E21 -> 2329.565 | F30: 2329.565
A34: Single Family New Construction | C34: MARKETING | D34: =SUM(D35:D38) -> 0 | E34: =SUM(E35:E38) -> 30000 | F34: =D34+E34 -> 30000
A35: Schedule 215 | C35: Materials, Master Builder's Assc., | E35: 30000 | F35: =SUM(D35:E35) -> 30000
A36: Order Number | C36: Promotional | F36: 0
A37: 18230405 | F37: 0
A38: Electric | F38: 0
C40: EMPLOYEE/OFFICE EXPENSES | D40: =SUM(D41:D44) -> 0 | E40: =SUM(E41:E44) -> 0 | F40: =D40+E40 -> 0
F41: 0
F42: 0
F43: 0
F44: 0
C46: OUTSIDE SERVICES | D46: =SUM(D47:D50) -> 0 | E46: =SUM(E47:E50) -> 0 | F46: =D46+E46 -> 0
F47: =SUM(D47:E47) -> 0
F48: 0
F49: 0
F50: 0
C52: MATERIALS | D52: =SUM(D53:D56) -> 0 | E52: =SUM(E53:E56) -> 0 | F52: =D52+E52 -> 0
F53: 0
F54: 0
F55: 0
F56: 0
C58: MISCELLANEOUS | D58: =SUM(D59:D62) -> 0 | E58: =SUM(E59:E62) -> 5000 | F58: =D58+E58 -> 5000
E59: 5000 | F59: 5000
F60: 0
F61: 0
F62: 0
A64: Single Family New Construction | C64: DIRECT BENEFIT TO CUSTOMER | D64: =W15 -> 0 | E64: =X15*1.15 -> 0 | F64: =D64+E64 -> 0
A65: Schedule 215 | C65: Ratio
A66: Order Number
A67: 18230405 | C67: REVENUE | D67: 0 | E67: 0 | F67: 0
A68: Electric

Sheet NCMfgHome Detail_REM E215 Elec
C1: Energy Star Manufactured Home | D1: Schedule 215 | E1: Order Number | F1: 18230433 | G1: Electric | M1: Energy Star Manufactured Home | N1: Schedule 215 | O1: Order Number | P1: 18230433 | Q1: Electric | V1: Energy Star Manufactured Home | W1: Schedule 215 | X1: Order Number | Y1: 18230433 | Z1: Electric
H2: This table summarizes the subtotals in the detail table to the left and is used to populate 2014-2015 Sector views. | T2: Ratios | W2: Acquisition Cost
A3: Energy Star Manufactured Home | H3: Labor | I3: Marketing Labor | J3: Overhead | K3: Marketing | L3: Employee/Office Expense | M3: Outside Services | N3: Materials | O3: Miscellaneous | P3: DBtC | Q3: Revenue | R3: Total Budget | S3: Total Savings | T3: DBTC | U3: Marketing | V3: Outside Svcs
A4: Schedule 215 | F4: 2014 Values are shown as reference only. | G4: 2014 | H4: =D15 -> 0 | I4: =D21 -> 0 | J4: =D27 -> 0 | K4: =D34 -> 0 | L4: =D40 -> 0 | M4: =D46 -> 0 | N4: =D52 -> 0 | O4: =D58 -> 0 | P4: =D64 -> 0 | Q4: =D65 -> 0 | R4: =SUM(H4:Q4) -> 0 | S4: =T15 -> 0 | T4: =P4/R4 ->  | U4: =(K4+(I4*1.63))/R4 ->  | V4: =M4/R4 ->  | W4: =R4/S4 -> 
A5: Order Number | G5: Original 2015 Budget | H5: 0 | I5: 0 | J5: 0 | K5: 0 | L5: 0 | M5: 0 | N5: 0 | O5: 0 | P5: 0 | Q5: 0 | R5: 0 | S5: 0
A6: 18230433 | G6: Revised 2015 Budget | H6: =E15 -> 0 | I6: =E21 -> 0 | J6: =E27 -> 0 | K6: =E34 -> 5000 | L6: =E40 -> 0 | M6: =E46 -> 0 | N6: =E52 -> 0 | O6: =E58 -> 0 | P6: =E64 -> 0 | Q6: =E65 -> 0 | R6: =SUM(H6:Q6) -> 5000 | S6: =U15 -> 0 | T6: =P6/R6 -> 0 | U6: =(K6+(I6*1.63))/R6 -> 1 | V6: =M6/R6 -> 0 | W6: =R6/S6 -> 
A7: Electric | G7: Total | H7: =H4+H6 -> 0 | I7: =I4+I6 -> 0 | J7: 0 | K7: 5000 | L7: 0 | M7: 0 | N7: 0 | O7: 0 | P7: 0 | Q7: 0 | R7: 5000 | S7: =S4+S6 -> 0 | T7: =P7/R7 -> 0 | U7: =(K7+(I7*1.63))/R7 -> 1 | V7: =M7/R7 -> 0 | W7: =R7/S7 -> 
D8: 2014 Values are shown as reference only. | H8: NOTE: "Total" excludes "Original 2015 Budget" amount
C10: Spending Section | H10: Savings Section | W10: Savings Section | Z10: Savings Section
C12: Overall Total | D12: =D15+D21+D27+D34+D40+D46+D52+D58 -> 0 | E12: =E15+E21+E27+E34+E40+E46+E52+E58+E64 -> 5000 | F12: =D12+E12 -> 5000 | H12: Measure Information | Q12: Unit Totals | T12: Projected Savings | W12: Incentive Totals | Z12: Cost Effectiveness (Based on Two-Year Total)
H13: Measure Name | I13: Savings | J13: UOM | K13: Unit Type | L13: Measure Cost | M13: Incentive | N13: Support % | O13: Measure Life | P13: End Use | Q13: 2014 | R13: 2015 | S13: Combined | T13: 2014 | U13: 2015 | V13: Combined | W13: 2014 | X13: 2015 | Y13: Combined | Z13: NEBs
C14: Budget Category | D14: 2014 | E14: 2015 | F14: Total | H14: i | I14: i | K14: i | L14: i | M14: i | N14: i | O14: i | P14: i | Q14: i | R14: i | Z14: i
B15: FTE | C15: LABOR | D15: =SUM(D16:D19) -> 0 | E15: =SUM(E16:E19) -> 0 | F15: =D15+E15 -> 0 | H15: TOTALS g | L15: 0 | M15: 0 | O15: N/A | T15: 0 | U15: 0 | V15: 0 | W15: 0 | X15: 0 | Y15: 0 | Z15: 0
F16: =SUM(D16:E16) -> 0
F17: =SUM(D17:E17) -> 0
F18: 0
F19: 0
B20: =SUM(B16:B19) -> 0
C21: MARKETING LABOR | D21: =SUM(D22:D25) -> 0 | E21: =SUM(E22:E25) -> 0 | F21: =D21+E21 -> 0
F22: 0
F23: 0
F24: 0
F25: 0
C27: OVERHEAD | D27: =SUM(D29:D32) -> 0 | E27: =SUM(E29:E32) -> 0 | F27: =D27+E27 -> 0
C28: Percentages for Applicable Year | D28: 0.692 | E28: 0.707
C29: Program Staff | D29: =D28*D15 -> 0 | E29: =E28*E15 -> 0 | F29: 0
C30: Marketing Staff | D30: =D28*D21 -> 0 | E30: =E21*E28 -> 0 | F30: 0
A34: Energy Star Manufactured Home | C34: MARKETING | D34: =SUM(D35:D38) -> 0 | E34: =SUM(E35:E38) -> 5000 | F34: =D34+E34 -> 5000
A35: Schedule 215 | E35: 5000 | F35: =SUM(D35:E35) -> 5000
A36: Order Number | F36: 0
A37: 18230433 | F37: 0
A38: Electric | F38: 0
C40: EMPLOYEE/OFFICE EXPENSES | D40: =SUM(D41:D44) -> 0 | E40: =SUM(E41:E44) -> 0 | F40: =D40+E40 -> 0
F41: 0
F42: 0
F43: 0
F44: 0
C46: OUTSIDE SERVICES | D46: =SUM(D47:D50) -> 0 | E46: =SUM(E47:E50) -> 0 | F46: =D46+E46 -> 0
F47: =SUM(D47:E47) -> 0
F48: 0
F49: 0
F50: 0
C52: MATERIALS | D52: =SUM(D53:D56) -> 0 | E52: =SUM(E53:E56) -> 0 | F52: =D52+E52 -> 0
F53: 0
F54: 0
F55: 0
F56: 0
C58: MISCELLANEOUS | D58: =SUM(D59:D62) -> 0 | E58: =SUM(E59:E62) -> 0 | F58: =D58+E58 -> 0
F59: 0
F60: 0
F61: 0
F62: 0
A64: Energy Star Manufactured Home | C64: DIRECT BENEFIT TO CUSTOMER | D64: =W15 -> 0 | E64: =X15*1.15 -> 0 | F64: =D64+E64 -> 0
A65: Schedule 215 | C65: Ratio
A66: Order Number
A67: 18230433 | C67: REVENUE | D67: 0 | E67: 0 | F67: 0
A68: Electric

Sheet FuelConv Detail_REM E216 Elec
C1: Fuel Conversion Rebate | D1: Schedule 216 | E1: Order Number | F1: 18230612 | G1: Electric | M1: Fuel Conversion Rebate | N1: Schedule 216 | O1: Order Number | P1: 18230612 | Q1: Electric | V1: Fuel Conversion Rebate | W1: Schedule 216 | X1: Order Number | Y1: 18230612 | Z1: Electric
H2: This table summarizes the subtotals in the detail table to the left and is used to populate 2014-2015 Sector views. | T2: Ratios | W2: Acquisition Cost
A3: Fuel Conversion Rebate | H3: Labor | I3: Marketing Labor | J3: Overhead | K3: Marketing | L3: Employee/Office Expense | M3: Outside Services | N3: Materials | O3: Miscellaneous | P3: DBtC | Q3: Revenue | R3: Total Budget | S3: Total Savings | T3: DBTC | U3: Marketing | V3: Outside Svcs
A4: Schedule 216 | F4: 2014 Values are shown as reference only. | G4: 2014 | H4: =D15 -> 63618.75 | I4: =D21 -> 32906.25 | J4: =D27 -> 66795.3 | K4: =D34 -> 105000 | L4: =D40 -> 1200 | M4: =D46 -> 1000 | N4: =D52 -> 1000 | O4: =D58 -> 2000 | P4: =D64 -> 505500 | Q4: =D67 -> 0 | R4: =SUM(H4:Q4) -> 779020.3 | S4: =T15 -> 1892500 | T4: =P4/R4 -> 0.648891948 | U4: =(K4+(I4*1.63))/R4 -> 0.2036367826 | V4: =M4/R4 -> 0.001283663596 | W4: =R4/S4 -> 0.4116355614
A5: Order Number | G5: Original 2015 Budget | H5: 63618.75 | I5: 32906.25 | J5: 67181.4 | K5: 105000 | L5: 1200 | M5: 1000 | N5: 1000 | O5: 2000 | P5: 505500 | Q5: 0 | R5: 779406.4 | S5: 1892500
A6: 18230612 | G6: Revised 2015 Budget | H6: =E15 -> 54072 | I6: =E21 -> 22133.76 | J6: =E27 -> 53877.47232 | K6: =E34 -> 105000 | L6: =E40 -> 1200 | M6: =E46 -> 1000 | N6: =E52 -> 1000 | O6: =E58 -> 2000 | P6: =E64 -> 545500 | Q6: =E67 -> 0 | R6: =SUM(H6:Q6) -> 785783.2323 | S6: =U15 -> 2062500 | T6: =P6/R6 -> 0.69421181 | U6: =(K6+(I6*1.63))/R6 -> 0.1795381003 | V6: =M6/R6 -> 0.0012726156 | W6: =R6/S6 -> 0.3809858096
A7: Electric | G7: Total | H7: =H4+H6 -> 117690.75 | I7: =I4+I6 -> 55040.01 | J7: 120672.7723 | K7: 210000 | L7: 2400 | M7: 2000 | N7: 2000 | O7: 4000 | P7: 1051000 | Q7: 0 | R7: 1564803.532 | S7: =S4+S6 -> 3955000 | T7: =P7/R7 -> 0.6716498131 | U7: =(K7+(I7*1.63))/R7 -> 0.1915353654 | V7: =M7/R7 -> 0.001278115724 | W7: =R7/S7 -> 0.3956519677
D8: 2014 Values are shown as reference only. | H8: NOTE: "Total" excludes "Original 2015 Budget" amount
C10: Spending Section | H10: Savings Section | W10: Savings Section | Z10: Savings Section
C12: Overall Total | D12: =D15+D21+D27+D34+D40+D46+D52+D58+D64 -> 779020.3 | E12: =E15+E21+E27+E34+E40+E46+E52+E58+E64 -> 785783.2323 | F12: =D12+E12 -> 1564803.532 | H12: Measure Information | Q12: Unit Totals | T12: Projected Savings | W12: Incentive Totals | Z12: Cost Effectiveness (Based on Two-Year Total)
H13: Measure Name | I13: Savings | J13: UOM | K13: Unit Type | L13: Measure Cost | M13: Incentive | N13: Support % | O13: Measure Life | P13: End Use | Q13: 2014 | R13: 2015 | S13: Combined | T13: 2014 | U13: 2015 | V13: Combined | W13: 2014 | X13: 2015 | Y13: Combined | Z13: NEBs
C14: Budget Category | D14: 2014 | E14: 2015 | F14: Total | H14: i | I14: i | K14: i | L14: i | M14: i | N14: i | O14: i | P14: i | Q14: i | R14: i | Z14: i
B15: FTE | C15: LABOR | D15: =SUM(D16:D19) -> 63618.75 | E15: =SUM(E16:E19) -> 54072 | F15: =D15+E15 -> 117690.75 | H15: TOTALS g | N15: =SUM(N16:N65) -> 1 | O15: N/A | T15: =SUM(T16:T65) -> 1892500 | U15: 2062500 | V15: 3955000 | W15: 505500 | X15: 545500 | Y15: 1051000 | Z15: 0
C16: Avg of Program Staff | D16: 63618.75 | E16: 54072 | F16: =SUM(D16:E16) -> 117690.75 | H16: Natural Gas Water and Space Heating - BB | I16: 12000 | J16: kWh | K16: per home | L16: 10800 | M16: 3550 | N16: 0.13 | O16: 30 | P16: sf space heat | Q16: 20 | R16: 20 | S16: =SUM(Q16:R16) -> 40 | T16: =Q16*I16 -> 240000 | U16: =R16*I16 -> 240000 | V16: =SUM(T16:U16) -> 480000 | W16: =Q16*M16 -> 71000 | X16: =R16*M16 -> 71000 | Y16: =SUM(W16:X16) -> 142000
F17: =SUM(D17:E17) -> 0 | H17: Natural Gas Water and Space Heating - FAF | I17: 12000 | J17: kWh | K17: per home | L17: 8300 | M17: 2950 | N17: 0.25 | O17: 30 | P17: sf space heat | Q17: 40 | R17: 40 | S17: 80 | T17: 480000 | U17: 480000 | V17: 960000 | W17: 118000 | X17: 118000 | Y17: 236000
F18: 0 | H18: Natural Gas Space Heating Only -BB | I18: 8500 | J18: kWh | K18: per home | L18: 8700 | M18: 2600 | N18: 0.07 | O18: 30 | P18: sf space heat | Q18: 15 | R18: 15 | S18: 30 | T18: 127500 | U18: 127500 | V18: 255000 | W18: 39000 | X18: 39000 | Y18: 78000
F19: 0 | H19: Natural Gas Space Heating Only -FAF | I19: 8500 | J19: kWh | K19: per home | L19: 6700 | M19: 2000 | N19: 0.09 | O19: 30 | P19: sf space heat | Q19: 20 | R19: 40 | S19: 60 | T19: 170000 | U19: 340000 | V19: 510000 | W19: 40000 | X19: 80000 | Y19: 120000
B20: =SUM(B16:B19) -> 0 | H20: E2G Fuel Conv - WH Only - Storage | I20: 3500 | J20: kWh | K20: per home | L20: 2600 | M20: 950 | N20: 0.18 | O20: 30 | P20: water heat | Q20: 100 | R20: 100 | S20: 200 | T20: 350000 | U20: 350000 | V20: 700000 | W20: 95000 | X20: 95000 | Y20: 190000
C21: MARKETING LABOR | D21: =SUM(D22:D25) -> 32906.25 | E21: =SUM(E22:E25) -> 22133.76 | F21: =D21+E21 -> 55040.01 | H21: E2G Fuel Conv - WH Only - Tankless | I21: 3500 | J21: kWh | K21: per home | L21: 3500 | M21: 950 | N21: 0.28 | O21: 30 | P21: water heat | Q21: 150 | R21: 150 | S21: 300 | T21: 525000 | U21: 525000 | V21: 1050000 | W21: 142500 | X21: 142500 | Y21: 285000
D22: 32906.25 | E22: 22133.76 | F22: 55040.01
F23: 0
F24: 0
F25: 0
C27: OVERHEAD | D27: =SUM(D29:D32) -> 66795.3 | E27: =SUM(E29:E32) -> 53877.47232 | F27: =D27+E27 -> 120672.7723
C28: Percentages for Applicable Year | D28: 0.692 | E28: 0.707
C29: Program Staff | D29: =D28*D15 -> 44024.175 | E29: =E28*E16 -> 38228.904 | F29: 82253.079
C30: Marketing Staff | D30: =D28*D21 -> 22771.125 | E30: =E28*E21 -> 15648.56832 | F30: 38419.69332
A34: Fuel Conversion Rebate | C34: MARKETING | D34: =SUM(D35:D38) -> 105000 | E34: =SUM(E35:E38) -> 105000 | F34: =D34+E34 -> 210000
A35: Schedule 216 | C35: Bill inserts, collateral, media | D35: 105000 | E35: 105000 | F35: =SUM(D35:E35) -> 210000
A36: Order Number | F36: 0
A37: 18230612 | F37: 0
A38: Electric | F38: 0
C40: EMPLOYEE/OFFICE EXPENSES | D40: =SUM(D41:D44) -> 1200 | E40: =SUM(E41:E44) -> 1200 | F40: =D40+E40 -> 2400
C41: Travel, tolls, meals, lodging, phone expense | D41: 1200 | E41: 1200 | F41: 2400
C42: Phone, office supplies, equipment | F42: 0
F43: 0
F44: 0
C46: OUTSIDE SERVICES | D46: =SUM(D47:D50) -> 1000 | E46: =SUM(E47:E50) -> 1000 | F46: =D46+E46 -> 2000
C47: Program Implementation | D47: 1000 | E47: 1000 | F47: =SUM(D47:E47) -> 2000
F48: 0
F49: 0
F50: 0
C52: MATERIALS | D52: =SUM(D53:D56) -> 1000 | E52: =SUM(E53:E56) -> 1000 | F52: =D52+E52 -> 2000
D53: 1000 | E53: 1000 | F53: 2000
F54: 0
F55: 0
F56: 0
C58: MISCELLANEOUS | D58: =SUM(D59:D62) -> 2000 | E58: =SUM(E59:E62) -> 2000 | F58: =D58+E58 -> 4000
D59: 2000 | E59: 2000 | F59: 4000
F60: 0
F61: 0
F62: 0
A64: Fuel Conversion Rebate | C64: DIRECT BENEFIT TO CUSTOMER | D64: =W15 -> 505500 | E64: =X15 -> 545500 | F64: =D64+E64 -> 1051000
A65: Schedule 216 | C65: Ratio | D65: =D64/D12 -> 0.648891948 | E65: =E64/E12 -> 0.69421181
A66: Order Number
A67: 18230612 | C67: REVENUE | D67: 0 | E67: 0 | F67: 0
A68: Electric

Sheet MF Retr Detail_REM E217 Elec
C1: Multi-Family Retrofit | D1: Schedule 217 | E1: Order Number | F1: 18230407 | G1: Electric | M1: Multi-Family Retrofit | N1: Schedule 217 | O1: Order Number | P1: 18230407 | Q1: Electric | V1: Multi-Family Retrofit | W1: Schedule 217 | X1: Order Number | Y1: 18230407 | Z1: Electric
H2: This table summarizes the subtotals in the detail table to the left and is used to populate 2014-2015 Sector views. | T2: Ratios | W2: Acquisition Cost
A3: Multi-Family Retrofit | H3: Labor | I3: Marketing Labor | J3: Overhead | K3: Marketing | L3: Employee/Office Expense | M3: Outside Services | N3: Materials | O3: Miscellaneous | P3: DBtC | Q3: Revenue | R3: Total Budget | S3: Total Savings | T3: DBTC | U3: Marketing | V3: Outside Svcs
A4: Schedule 217 | F4: 2014 Values are shown as reference only. | G4: 2014 | H4: =D15 -> 162565.05 | I4: =D22 -> 70978 | J4: =D28 -> 161611.7906 | K4: =D35 -> 70293 | L4: =D41 -> 16400 | M4: =D47 -> 500000 | N4: =D53 -> 12000 | O4: =D59 -> 0 | P4: =D65 -> 7269774 | Q4: =D68 -> 0 | R4: =SUM(H4:Q4) -> 8263621.841 | S4: =T15 -> 18021281 | T4: =P4/R4 -> 0.8797321732 | U4: =(K4+(I4*1.63))/R4 -> 0.02250673416 | V4: =M4/R4 -> 0.06050615694 | W4: =R4/S4 -> 0.4585479712
A5: Order Number | G5: Original 2015 Budget | H5: 162565.05 | I5: 70978 | J5: 162545.9628 | K5: 70293 | L5: 16400 | M5: 500000 | N5: 12000 | O5: 0 | P5: 9194853 | Q5: 0 | R5: 10189635.01 | S5: 22436781
A6: 18230407 | G6: Revised 2015 Budget | H6: =E15 -> 188926.95 | I6: =E22 -> 63880.2 | J6: =E28 -> 178734.6551 | K6: =E35 -> 74293 | L6: =E41 -> 12400 | M6: =E47 -> 1046266.88 | N6: =E53 -> 4000 | O6: =E59 -> 1500 | P6: =E65 -> 9943535 | Q6: =E68 -> 0 | R6: 11513537 | S6: =U15 -> 25861860 | T6: =P6/R6 -> 0.8636386021 | U6: =(K6+(I6*1.63))/R6 -> 0.01549634365 | V6: =M6/R6 -> 0.0908727596 | W6: =R6/S6 -> 0.4451936945
A7: Electric | G7: Total | H7: =H4+H6 -> 351492 | I7: =I4+I6 -> 134858.2 | J7: 340346.4457 | K7: 144586 | L7: 28800 | M7: 1546266.88 | N7: 16000 | O7: 1500 | P7: 17213309 | Q7: 0 | R7: 19777158.84 | S7: =S4+S6 -> 43883141 | T7: =P7/R7 -> 0.870363086 | U7: =(K7+(I7*1.63))/R7 -> 0.01842554175 | V7: =M7/R7 -> 0.07818448001 | W7: =R7/S7 -> 0.4506778318
D8: 2014 Values are shown as reference only. | H8: NOTE: "Total" excludes "Original 2015 Budget" amount
H9: Due to file size, the 2015-specific measure table was imported to the 2015 ACP, and replaces the original 2014-2015 view.
C10: Spending Section | I10: Savings Section | W10: Savings Section | AA10: Savings Section
N11: REVISED 2015
C12: Overall Total | D12: =D15+D22+D28+D35+D41+D47+D53+D59+D65 -> 8263621.841 | E12: =E15+E22+E28+E35+E41+E47+E53+E59+E65 -> 11513536.69 | F12: =D12+E12 -> 19777158.53 | H12: Measure Information | Q12: Unit Totals | T12: Projected Savings | W12: Incentive Totals | Z12: ***REVISED 2015*** Cost Effectiveness (Based on REVISED 2015 Totals)
H13: UOM | I13: Measure Name | J13: Savings | K13: Unit Type | L13: Measure Cost | M13: Incentive | N13: Supp. % | O13: Measure Life | P13: End Use | Q13: PLANNED 2015 | R13: REVISED 2015 | S13: Delta | T13: PLANNED 2015 | U13: REVISED 2015 | V13: Delta | W13: PLANNED 2015 | X13: REVISED 2015 | Y13: Delta | Z13: NEBs per Unit | AA13: Total NEBs | AB13: UC Ratio | AC13: TRC Ratio | AD13: PV UC | AE13: PV TRC | AF13: CE Std UC | AG13: CE Std TRC
C14: Budget Category | D14: 2014 | E14: 2015 | F14: Total | I14: i | J14: i | K14: i | L14: i | M14: i | O14: i | P14: i | Q14: i | R14: i | Z14: i | AA14: REVISED 2015
B15: FTE | C15: LABOR | D15: =SUM(D16:D20) -> 162565.05 | E15: =SUM(E16:E20) -> 188926.95 | F15: =D15+E15 -> 351492 | I15: TOTALS g | L15: 14167786 | M15: 41032.9 | O15: 11 | T15: 18021281 | U15: 25861860 | V15: 7840579 | W15: 7269774 | X15: 9943535 | Y15: 2673761 | AA15: 2712138 | AB15: 2.236210761 | AC15: 1.985869043 | AD15: 10650820.25 | AE15: 14558545.5 | AF15: 23817478.85 | AG15: 26199226.73
C16: Market Manager | D16: 17574.6 | E16: 17574.6 | F16: =SUM(D16:E16) -> 35149.2 | H16: kWh | I16: Advanced Power Strip (IR) - Direct Install | J16: 300 | K16: per unit | L16: 55 | M16: 55 | N16: 0.1392011247 | O16: 5 | P16: Res Plug Load | Q16: 0 | R16: 12000 | S16: 12000 | T16: 0 | U16: 3600000 | V16: 3600000 | W16: 0 | X16: 660000 | Y16: 660000 | Z16: 0 | AA16: 0 | AB16: 1.419305191 | AC16: 1.56123571 | AD16: 812716.0041 | AE16: 812716.0041 | AF16: 1153492.043 | AG16: 1268841.247
C17: Program Manager | D17: 70298.4 | E17: 70298.4 | F17: =SUM(D17:E17) -> 140596.8 | H17: kWh | I17: Aerator - 1.5 gpm EWH - Direct Install | J17: 66 | K17: per unit | L17: 2.1 | M17: 2.1 | N17: 0.005104041241 | O17: 10 | P17: Res Water Heat | Q17: 0 | R17: 2000 | S17: 2000 | T17: 0 | U17: 132000 | V17: 132000 | W17: 0 | X17: 4200 | Y17: 4200 | Z17: 23.64 | AA17: 47280 | AB17: 6.676711052 | AC17: 11.21555485 | AD17: 11298.19921 | AE17: 11298.19921 | AF17: 75434.81155 | AG17: 82978.29271
C18: Program Implementer | D18: 35149.2 | E18: 35149.2 | F18: =SUM(D18:E18) -> 70298.4 | H18: kWh | I18: Air Tightening - Ceiling, Floor, Wall insulation to R13 | J18: 2.18 | K18: square foot | L18: 1.48 | M18: 1.48 | N18: 0.06743521154 | O18: 30 | P18: MF Space Heat | Q18: 800000 | R18: 800000 | S18: 0 | T18: 1744000 | U18: 1744000 | V18: 0 | W18: 1184000 | X18: 1184000 | Y18: 0 | Z18: 0 | AA18: 0 | AB18: 2.477980825 | AC18: 2.725778908 | AD18: 1193222.383 | AE18: 1193222.383 | AF18: 2956782.184 | AG18: 3252460.403
C19: Energy Management Engineer | D19: 17574.6 | E19: 65904.75 | F19: =SUM(D19:E19) -> 83479.35 | H19: kWh | I19: Attic Insulation R0 to R38 | J19: 2.18 | K19: square foot | L19: 1.06 | M19: 0.75 | N19: 0.01551009865 | O19: 30 | P19: MF Space Heat | Q19: 12000 | R19: 184000 | S19: 172000 | T19: 26160 | U19: 401120 | V19: 374960 | W19: 9000 | X19: 138000 | Y19: 129000 | Z19: 0 | AA19: 0 | AB19: 4.528122976 | AC19: 3.685929088 | AD19: 150185.8289 | AE19: 202951.7863 | AF19: 680059.9024 | AG19: 748065.8927
C20: Other Support | D20: 21968.25 | E20: 0 | F20: =SUM(D20:E20) -> 21968.25 | H20: kWh | I20: Attic Insulation R11 to R38 | J20: 1.39 | K20: square foot | L20: 0.75 | M20: 0.75 | N20: 0.08062065141 | O20: 30 | P20: MF Space Heat | Q20: 1500000 | R20: 1500000 | S20: 0 | T20: 2085000 | U20: 2085000 | V20: 0 | W20: 1125000 | X20: 1125000 | Y20: 0 | Z20: 0 | AA20: 0 | AB20: 3.053148155 | AC20: 3.35846297 | AD20: 1157793.301 | AE20: 1157793.301 | AF20: 3534914.481 | AG20: 3888405.929
B21: =SUM(B16:B20) -> 0 | H21: kWh | I21: Clothes Washer MEF 2.46 or Higher (EWH/Edryer) | J21: 84 | K21: per unit | L21: 78 | M21: 50 | N21: 0.0001624013122 | O21: 14 | P21: Res Water Heat | Q21: 100 | R21: 50 | S21: -50 | T21: 8400 | U21: 4200 | V21: -4200 | W21: 5000 | X21: 2500 | Y21: -2500 | Z21: 106.46 | AA21: 5323 | AB21: 1.212415462 | AC21: 2.165403065 | AD21: 2548.538699 | AE21: 3843.635831 | AF21: 3089.887725 | AG21: 3398.876498
C22: MARKETING LABOR | D22: =SUM(D23:D26) -> 70978 | E22: =SUM(E23:E26) -> 63880.2 | F22: =D22+E22 -> 134858.2 | H22: kWh | I22: Clothes Washer Replacement Electric WH / Electric Dryer | J22: 764 | K22: per unit | L22: 600 | M22: 600 | N22: 0.07385393007 | O22: 14 | P22: Res Water Heat | Q22: 0 | R22: 2500 | S22: 2500 | T22: 0 | U22: 1910000 | V22: 1910000 | W22: 0 | X22: 1500000 | Y22: 1500000 | Z22: 106.46 | AA22: 266150 | AB22: 0.9399923896 | AC22: 1.198693426 | AD22: 1494866.6 | AE22: 1494866.6 | AF22: 1405163.228 | AG22: 1545679.55
C23: Marketing Lead | D23: 56958 | E23: 51262.2 | F23: =SUM(D23:E23) -> 108220.2 | H23: kWh | I23: Common Area Lighting (Calculated) | J23: 54135 | K23: calculated | L23: 16055 | M23: 8000 | N23: 0.1737386638 | O23: 15 | P23: Comm Lighting | Q23: 69 | R23: 83 | S23: 14 | T23: 3735315 | U23: 4493205 | V23: 757890 | W23: 552000 | X23: 664000 | Y23: 112000 | Z23: 0 | AA23: 0 | AB23: 4.073789398 | AC23: 2.614920907 | AD23: 866577.2386 | AE23: 1485046.249 | AF23: 3530253.167 | AG23: 3883278.484
C24: Marketing Support | D24: 14020 | E24: 12618 | F24: 26638 | H24: kWh | I24: Ductless Heat Pump | J24: 2000 | K24: calculated | L24: 3407 | M24: 1200 | N24: 0.01546679164 | O24: 20 | P24: MF Space Heat | Q24: 200 | R24: 200 | S24: 0 | T24: 400000 | U24: 400000 | V24: 0 | W24: 240000 | X24: 240000 | Y24: 0 | Z24: 0 | AA24: 0 | AB24: 2.30173125 | AC24: 0.9482148616 | AD24: 244480.0083 | AE24: 652805.6327 | AF24: 562727.2751 | AG24: 619000.0026
F25: 0 | H25: kWh | I25: E2G Fuel Conv - WH Only - Storage | J25: 3500 | K25: per home | L25: 2196 | M25: 950 | N25: 0.0004060032805 | O25: 30 | P25: Res Water Heat | Q25: 0 | R25: 3 | S25: 3 | T25: 0 | U25: 10500 | V25: 10500 | W25: 0 | X25: 2850 | Y25: 2850 | Z25: 0 | AA25: 0 | AB25: 3.668216966 | AC25: 1.947552767 | AD25: 3226.110855 | AE25: 6684.020198 | AF25: 11834.07457 | AG25: 13017.48203
F26: 0 | H26: kWh | I26: E2G Fuel Conv - WH Only - Tankless | J26: 3500 | K26: per home | L26: 3489 | M26: 950 | N26: 0.0004060032805 | O26: 30 | P26: Res Water Heat | Q26: 0 | R26: 3 | S26: 3 | T26: 0 | U26: 10500 | V26: 10500 | W26: 0 | X26: 2850 | Y26: 2850 | Z26: 0 | AA26: 0 | AB26: 3.668216966 | AC26: 1.267233289 | AD26: 3226.110855 | AE26: 10272.36432 | AF26: 11834.07457 | AG26: 13017.48203
H27: kWh | I27: Energy Star CFL - Direct Install | J27: 23 | K27: per unit | L27: 8.75 | M27: 8.75 | N27: 0 | O27: 5 | P27: Res Lighting | Q27: 50000 | R27: 0 | S27: -50000 | T27: 1150000 | U27: 0 | V27: -1150000 | W27: 437500 | X27: 0 | Y27: -437500 | Z27: 0 | AA27: 0 | AB27: 0.00 | AC27: 0.00 | AD27: 0 | AE27: 0 | AF27: 0 | AG27: 0
C28: OVERHEAD | D28: =SUM(D30:D33) -> 161611.7906 | E28: =SUM(E30:E33) -> 178734.6551 | F28: =D28+E28 -> 340346.4457 | H28: kWh | I28: Energy Star Heat Pump - Tier 2 = 9.0 HSPF, 14 SEER | J28: 128 | K28: per unit | L28: 884 | M28: 350 | N28: 0 | O28: 20 | P28: SF Heat Pump | Q28: 0 | R28: 0 | S28: 0 | T28: 0 | U28: 0 | V28: 0 | W28: 0 | X28: 0 | Y28: 0 | Z28: 0 | AA28: 0 | AB28: 0.00 | AC28: 0.00 | AD28: 0 | AE28: 0 | AF28: 0 | AG28: 0
C29: Percentages for Applicable Year | D29: 0.692 | E29: 0.707 | H29: kWh | I29: Energy Star Heat Pump - Tier 3 = 10.0 HSPF, 16 SEER | J29: 939 | K29: per unit | L29: 1688 | M29: 800 | N29: 0.0002178497602 | O29: 20 | P29: MF Space Heat | Q29: 0 | R29: 6 | S29: 6 | T29: 0 | U29: 5634 | V29: 5634 | W29: 0 | X29: 4800 | Y29: 4800 | Z29: 0 | AA29: 0 | AB29: 1.666273817 | AC29: 0.9001719971 | AD29: 4756.729409 | AE29: 9685.499066 | AF29: 7926.01367 | AG29: 8718.615037
C30: Program Staff | D30: =D29*D15 -> 112495.0146 | E30: =E29*E15 -> 133571.3537 | F30: 246066.3682 | H30: kWh | I30: Energy Star Outdoor LED Fixture | J30: 47 | K30: per unit | L30: 50 | M30: 30 | N30: 0.0001817348018 | O30: 12 | P30: Res Lighting | Q30: 0 | R30: 100 | S30: 100 | T30: 0 | U30: 4700 | V30: 4700 | W30: 0 | X30: 3000 | Y30: 3000 | Z30: 0 | AA30: 0 | AB30: 1.056521646 | AC30: 0.7223998924 | AD30: 3039.152586 | AE30: 4889.291346 | AF30: 3210.930493 | AG30: 3532.023542
C31: Marketing Staff | D31: =D29*D22 -> 49116.776 | E31: =E29*E22 -> 45163.3014 | F31: 94280.0774 | H31: kWh | I31: Energy Star Indoor LED Fixture | J31: 13 | K31: per unit | L31: 50 | M31: 30 | N31: 5.026707282e-05 | O31: 12 | P31: Res Lighting | Q31: 0 | R31: 100 | S31: 100 | T31: 0 | U31: 1300 | V31: 1300 | W31: 0 | X31: 3000 | Y31: 3000 | Z31: 0 | AA31: 0 | AB31: 0.3118198615 | AC31: 0.2079330185 | AD31: 2848.214051 | AE31: 4698.352811 | AF31: 888.1297108 | AG31: 976.9426819
H32: kWh | I32: Energy Star Refrigerator | J32: 85 | K32: per unit | L32: 81 | M32: 50 | N32: 0 | O32: 17 | P32: Res Refrigerator | Q32: 0 | R32: 0 | S32: 0 | T32: 0 | U32: 0 | V32: 0 | W32: 0 | X32: 0 | Y32: 0 | Z32: 0 | AA32: 0 | AB32: 0.00 | AC32: 0.00 | AD32: 0 | AE32: 0 | AF32: 0 | AG32: 0
H33: kWh | I33: Energy Star Ventilation Fan | J33: 143 | K33: per unit | L33: 40 | M33: 50 | N33: 0.0005529378011 | O33: 10 | P33: Res Plug Load | Q33: 200 | R33: 100 | S33: -100 | T33: 28600 | U33: 14300 | V33: -14300 | W33: 10000 | X33: 5000 | Y33: -5000 | Z33: 0 | AA33: 0 | AB33: 1.549775201 | AC33: 2.054940283 | AD33: 5428.411914 | AE33: 4503.342534 | AF33: 8412.818163 | AG33: 9254.09998
H34: kWh | I34: Energy Star Ventilation Fan with Air Sealing | J34: 143 | K34: per home | L34: 250 | M34: 200 | N34: 0.003981152168 | O34: 10 | P34: Res Plug Load | Q34: 0 | R34: 720 | S34: 720 | T34: 0 | U34: 102960 | V34: 102960 | W34: 0 | X34: 144000 | Y34: 144000 | Z34: 0 | AA34: 0 | AB34: 0.4357967734 | AC34: 0.386718659 | AD34: 138992.0588 | AE34: 172294.5565 | AF34: 60572.29078 | AG34: 66629.51985
A35: Multi-Family | C35: MARKETING | D35: =SUM(D36:D39) -> 70293 | E35: =SUM(E36:E39) -> 74293 | F35: =D35+E35 -> 144586 | H35: kWh | I35: Floor Insulation R0 to R30 | J35: 1.3 | K35: square foot | L35: 1.59 | M35: 0.75 | N35: 0.004021365826 | O35: 30 | P35: MF Space Heat | Q35: 150000 | R35: 80000 | S35: -70000 | T35: 195000 | U35: 104000 | V35: -91000 | W35: 112500 | X35: 60000 | Y35: -52500 | Z35: 0 | AA35: 0 | AB35: 2.87428349 | AC35: 1.570359996 | AD35: 61344.63564 | AE35: 123509.298 | AF35: 176321.8734 | AG35: 193954.0607
A36: Retrofit | C36: Marketing Events, material, mailings etc. | D36: 70293 | E36: 74293 | F36: =SUM(D36:E36) -> 144586 | H36: kWh | I36: Floor Insulation R11 to R30 | J36: 0.66 | K36: square foot | L36: 1.01 | M36: 0.75 | N36: 0.000382803093 | O36: 30 | P36: MF Space Heat | Q36: 0 | R36: 15000 | S36: 15000 | T36: 0 | U36: 9900 | V36: 9900 | W36: 0 | X36: 11250 | Y36: 11250 | Z36: 0 | AA36: 0 | AB36: 1.531012328 | AC36: 1.26712148 | AD36: 10962.99861 | AE36: 14570.7692 | AF36: 16784.48602 | AG36: 18462.93463
A37: Schedule 217 | F37: 0 | H37: kWh | I37: HRV/ERV | J37: 21168 | K37: calculated | L37: 17958 | M37: 6351 | N37: 0.001637005227 | O37: 15 | P37: MF Space Heat | Q37: 2 | R37: 2 | S37: 0 | T37: 42336 | U37: 42336 | V37: 0 | W37: 12702 | X37: 12702 | Y37: 0 | Z37: 0 | AA37: 0 | AB37: 3.55094106 | AC37: 1.549997582 | AD37: 14127.75297 | AE37: 35602.31357 | AF37: 50166.81812 | AG37: 55183.49994
A38: Order Number | F38: 0 | H38: kWh | I38: Heat Pump (Calculated) | J38: 1140 | K38: calculated | L38: 1347 | M38: 356 | N38: 0.0002204017808 | O38: 15 | P38: MF Space Heat | Q38: 0 | R38: 5 | S38: 5 | T38: 0 | U38: 5700 | V38: 5700 | W38: 0 | X38: 1780 | Y38: 1780 | Z38: 0 | AA38: 0 | AB38: 3.434295467 | AC38: 1.134236092 | AD38: 1966.726334 | AE38: 6550.445113 | AF38: 6754.319334 | AG38: 7429.751267
A39: 18230407 | F39: 0 | H39: kWh | I39: Heat Pump Water Heater (Tier 1) - In Unit | J39: 887 | K39: per unit | L39: 900 | M39: 500 | N39: 0.0001714880523 | O39: 15 | P39: Res Water Heat | Q39: 0 | R39: 5 | S39: 5 | T39: 0 | U39: 4435 | V39: 4435 | W39: 0 | X39: 2500 | Y39: 2500 | Z39: 0 | AA39: 0 | AB39: 1.335888466 | AC39: 0.8532456356 | AD39: 2561.735921 | AE39: 4411.874682 | AF39: 3422.19347 | AG39: 3764.412817
A40: Electric | H40: kWh | I40: Heat Pump Water Heater (Tier 2) - In Unit | J40: 1794 | K40: per unit | L40: 1369 | M40: 800 | N40: 0.0003468428025 | O40: 15 | P40: Res Water Heat | Q40: 0 | R40: 5 | S40: 5 | T40: 0 | U40: 8970 | V40: 8970 | W40: 0 | X40: 4000 | Y40: 4000 | Z40: 0 | AA40: 0 | AB40: 1.646412972 | AC40: 1.113792091 | AD40: 4204.018302 | AE40: 6835.840689 | AF40: 6921.550265 | AG40: 7613.705292
C41: EMPLOYEE/OFFICE EXPENSES | D41: =SUM(D42:D45) -> 16400 | E41: =SUM(E42:E45) -> 12400 | F41: =D41+E41 -> 28800 | H41: kWh | I41: LED - A-Lamp - Direct Install | J41: 17 | K41: per unit | L41: 15.41 | M41: 15.41 | N41: 0.03944031868 | O41: 12 | P41: Res Lighting | Q41: 70000 | R41: 60000 | S41: -10000 | T41: 1190000 | U41: 1020000 | V41: -170000 | W41: 1078700 | X41: 924600 | Y41: -154100 | Z41: 0 | AA41: 0 | AB41: 0.763576258 | AC41: 0.8399338838 | AD41: 912600.7093 | AE41: 912600.7093 | AF41: 696840.2347 | AG41: 766524.2581
C42: Training, travel, lodging, phone expense | D42: 12000 | E42: 8000 | F42: 20000 | H42: kWh | I42: LED - A-Lamp - Direct Install (Labor) | J42: 17 | K42: per unit | L42: 15.41 | M42: 6.75 | N42: 0 | O42: 12 | P42: Res Lighting | Q42: 0 | R42: 0 | S42: 0 | T42: 0 | U42: 0 | V42: 0 | W42: 0 | X42: 0 | Y42: 0 | Z42: 0 | AA42: 0 | AB42: 0.00 | AC42: 0.00 | AD42: 0 | AE42: 0 | AF42: 0 | AG42: 0
C43: Printing | D43: 400 | E43: 400 | F43: 800 | H43: kWh | I43: LED - Candelabra - Direct Install | J43: 19 | K43: per unit | L43: 11.22 | M43: 11.22 | N43: 0.005877380823 | O43: 12 | P43: Res Lighting | Q43: 10000 | R43: 8000 | S43: -2000 | T43: 190000 | U43: 152000 | V43: -38000 | W43: 112200 | X43: 89760 | Y43: -22440 | Z43: 0 | AA43: 0 | AB43: 1.134023311 | AC43: 1.247425643 | AD43: 91570.30323 | AE43: 91570.30323 | AF43: 103842.8585 | AG43: 114227.1443
C44: PSE assessed charges | D44: 4000 | E44: 4000 | F44: 8000 | H44: kWh | I44: LED - Candelabra - Direct Install (Labor) | J44: 19 | K44: per unit | L44: 11.22 | M44: 6.75 | N44: 0 | O44: 12 | P44: Res Lighting | Q44: 0 | R44: 0 | S44: 0 | T44: 0 | U44: 0 | V44: 0 | W44: 0 | X44: 0 | Y44: 0 | Z44: 0 | AA44: 0 | AB44: 0.00 | AC44: 0.00 | AD44: 0 | AE44: 0 | AF44: 0 | AG44: 0
F45: 0 | H45: kWh | I45: LED - MR-16 - Direct Install | J45: 23 | K45: per unit | L45: 15.94 | M45: 15.94 | N45: 0.001778681038 | O45: 12 | P45: Res Lighting | Q45: 800 | R45: 2000 | S45: 1200 | T45: 18400 | U45: 46000 | V45: 27600 | W45: 12752 | X45: 31880 | Y45: 19128 | Z45: 0 | AA45: 0 | AB45: 0.9797855084 | AC45: 1.077764059 | AD45: 32074.4979 | AE45: 32074.4979 | AF45: 31426.12823 | AG45: 34568.74105
H46: kWh | I46: LED - MR-16 - Direct Install (Labor) | J46: 23 | K46: per unit | L46: 15.94 | M46: 6.75 | N46: 0 | O46: 12 | P46: Res Lighting | Q46: 0 | R46: 0 | S46: 0 | T46: 0 | U46: 0 | V46: 0 | W46: 0 | X46: 0 | Y46: 0 | Z46: 0 | AA46: 0 | AB46: 0.00 | AC46: 0.00 | AD46: 0 | AE46: 0 | AF46: 0 | AG46: 0
C47: OUTSIDE SERVICES | D47: =SUM(D48:D51) -> 500000 | E47: =SUM(E48:E51) -> 1046266.88 | F47: =D47+E47 -> 1546266.88 | H47: kWh | I47: LED Globe - Direct Install | J47: 16 | K47: per unit | L47: 12.74 | M47: 12.74 | N47: 0.01237343331 | O47: 12 | P47: Res Lighting | Q47: 0 | R47: 20000 | S47: 20000 | T47: 0 | U47: 320000 | V47: 320000 | W47: 0 | X47: 254800 | Y47: 254800 | Z47: 0 | AA47: 0 | AB47: 0.8617863227 | AC47: 0.947964955 | AD47: 253678.3637 | AE47: 253678.3637 | AF47: 218616.5442 | AG47: 240478.1986
C48: Labor - field management activities | D48: 500000 | E48: 1046266.88 | F48: =SUM(D48:E48) -> 1546266.88 | H48: kWh | I48: LED Globe - Direct Install (Labor) | J48: 16 | K48: per unit | L48: 12.74 | M48: 6.75 | N48: 0 | O48: 12 | P48: Res Lighting | Q48: 0 | R48: 0 | S48: 0 | T48: 0 | U48: 0 | V48: 0 | W48: 0 | X48: 0 | Y48: 0 | Z48: 0 | AA48: 0 | AB48: 0.00 | AC48: 0.00 | AD48: 0 | AE48: 0 | AF48: 0 | AG48: 0
C49: Blower Door Testing (built into measure cost) | D49: 0 | E49: 0 | F49: =SUM(D49:E49) -> 0 | H49: kWh | I49: LED Reflector - Direct Install | J49: 25 | K49: per unit | L49: 15.76 | M49: 15.76 | N49: 0.009666744774 | O49: 12 | P49: Res Lighting | Q49: 0 | R49: 10000 | S49: 10000 | T49: 0 | U49: 250000 | V49: 250000 | W49: 0 | X49: 157600 | Y49: 157600 | Z49: 0 | AA49: 0 | AB49: 1.068595421 | AC49: 1.175454963 | AD49: 159830.5325 | AE49: 159830.5325 | AF49: 170794.1752 | AG49: 187873.5927
F50: =SUM(D50:E50) -> 0 | H50: kWh | I50: LED Reflector - Direct Install (Labor) | J50: 25 | K50: per unit | L50: 15.76 | M50: 6.75 | N50: 0 | O50: 12 | P50: Res Lighting | Q50: 0 | R50: 0 | S50: 0 | T50: 0 | U50: 0 | V50: 0 | W50: 0 | X50: 0 | Y50: 0 | Z50: 0 | AA50: 0 | AB50: 0.00 | AC50: 0.00 | AD50: 0 | AE50: 0 | AF50: 0 | AG50: 0
F51: =SUM(D51:E51) -> 0 | H51: kWh | I51: LED - T8 - Direct Install | J51: 23 | K51: per unit | L51: 20 | M51: 20 | N51: 0.0008893405192 | O51: 15 | P51: Res Lighting | Q51: 0 | R51: 1000 | S51: 1000 | T51: 0 | U51: 23000 | V51: 23000 | W51: 0 | X51: 20000 | Y51: 20000 | Z51: 0 | AA51: 0 | AB51: 0.9310850617 | AC51: 1.024193568 | AD51: 19793.03063 | AE51: 19793.03063 | AF51: 18428.99515 | AG51: 20271.89466
H52: kWh | I52: Parking Garage CO Sensor (Calculated) | J52: 10095 | K52: calculated | L52: 9376 | M52: 3028 | N52: 0 | O52: 10 | P52: Res Plug Load | Q52: 1 | R52: 0 | S52: -1 | T52: 10095 | U52: 0 | V52: -10095 | W52: 3028 | X52: 0 | Y52: -3028 | Z52: 0 | AA52: 0 | AB52: 0.00 | AC52: 0.00 | AD52: 0 | AE52: 0 | AF52: 0 | AG52: 0
C53: MATERIALS | D53: =SUM(D54:D57) -> 12000 | E53: =SUM(E54:E57) -> 4000 | F53: =D53+E53 -> 16000 | H53: kWh | I53: Pool Heat Pump | J53: 24000 | K53: calculated | L53: 11454 | M53: 5071 | N53: 0.002784022495 | O53: 15 | P53: Comm Water Heat | Q53: 2 | R53: 3 | S53: 1 | T53: 48000 | U53: 72000 | V53: 24000 | W53: 10142 | X53: 15213 | Y53: 5071 | Z53: 0 | AA53: 0 | AB53: 2.916190714 | AC53: 1.621914646 | AD53: 18116.48474 | AE53: 35830.63831 | AF53: 52831.12458 | AG53: 58114.23704
C54: Diagnostic tools, safety equipment | D54: 12000 | E54: 4000 | F54: =SUM(D54:E54) -> 16000 | H54: kWh | I54: Refrigerator Decommissioning | J54: 356 | K54: per unit | L54: 108.5 | M54: 108.5 | N54: 0 | O54: 6 | P54: Res Refrigerator | Q54: 0 | R54: 0 | S54: 0 | T54: 0 | U54: 0 | V54: 0 | W54: 0 | X54: 0 | Y54: 0 | Z54: 0 | AA54: 0 | AB54: 0.00 | AC54: 0.00 | AD54: 0 | AE54: 0 | AF54: 0 | AG54: 0
F55: 0 | H55: kWh | I55: Refrigerator Replacement | J55: 666 | K55: per unit | L55: 575 | M55: 575 | N55: 0.03862831212 | O55: 20 | P55: Res Refrigerator | Q55: 1900 | R55: 1500 | S55: -400 | T55: 1265400 | U55: 999000 | V55: -266400 | W55: 1092500 | X55: 862500 | Y55: -230000 | Z55: 0 | AA55: 0 | AB55: 0.9419934393 | AC55: 1.036192783 | AD55: 853974.5746 | AE55: 853974.5746 | AF55: 804438.4466 | AG55: 884882.2913
F56: 0 | H56: kWh | I56: Showerhead - Max 1.5 gpm EWH - Direct Install | J56: 307 | K56: per unit | L56: 18 | M56: 18 | N56: 0.04154766904 | O56: 10 | P56: Res Water Heat | Q56: 3500 | R56: 3500 | S56: 0 | T56: 1074500 | U56: 1074500 | V56: 0 | W56: 63000 | X56: 63000 | Y56: 0 | Z56: 195.79 | AA56: 685265 | AB56: 5.176552864 | AC56: 11.03824214 | AD56: 118621.5637 | AE56: 118621.5637 | AF56: 614050.7956 | AG56: 675455.8751
F57: 0 | H57: kWh | I57: Solar Pool Heater (Calculated) | J57: 27000 | K57: calculated | L57: 12665 | M57: 8000 | N57: 0.002088016871 | O57: 12 | P57: Comm Water Heat | Q57: 2 | R57: 2 | S57: 0 | T57: 54000 | U57: 54000 | V57: 0 | W57: 16000 | X57: 16000 | Y57: 0 | Z57: 0 | AA57: 0 | AB57: 1.892239806 | AC57: 1.402635202 | AD57: 17833.66328 | AE57: 26464.5606 | AF57: 33745.56755 | AG57: 37120.1243
H58: kWh | I58: Thermostatic Restrictor Handelehld Showerhead | J58: 502 | K58: per unit | L58: 58 | M58: 58 | N58: 0.02911623526 | O58: 10 | P58: Res Water Heat | Q58: 0 | R58: 1500 | S58: 1500 | T58: 0 | U58: 753000 | V58: 753000 | W58: 0 | X58: 87000 | Y58: 87000 | Z58: 251.88 | AA58: 377820 | AB58: 3.505149876 | AC58: 6.702569945 | AD58: 122768.3057 | AE58: 122768.3057 | AF58: 430321.3114 | AG58: 473353.4425
C59: MISCELLANEOUS | D59: =SUM(D60:D63) -> 0 | E59: =SUM(E60:E63) -> 1500 | F59: =D59+E59 -> 1500 | H59: kWh | I59: Thermostatic Restrictor Showerhead | J59: 502 | K59: per unit | L59: 41 | M59: 41 | N59: 0.06793788227 | O59: 10 | P59: Res Water Heat | Q59: 3500 | R59: 3500 | S59: 0 | T59: 1757000 | U59: 1757000 | V59: 0 | W59: 143500 | X59: 143500 | Y59: 0 | Z59: 251.88 | AA59: 881580 | AB59: 4.338833353 | AC59: 8.296744807 | AD59: 231417.7518 | AE59: 231417.7518 | AF59: 1004083.06 | AG59: 1104491.366
E60: 1500 | F60: 1500 | H60: kWh | I60: Thermostatic Restrictor Showerhead Adaptor | J60: 195 | K60: per unit | L60: 33 | M60: 33 | N60: 0.06032048739 | O60: 10 | P60: Res Water Heat | Q60: 3500 | R60: 8000 | S60: 4500 | T60: 682500 | U60: 1560000 | V60: 877500 | W60: 115500 | X60: 264000 | Y60: 148500 | Z60: 56.09 | AA60: 448720 | AB60: 2.686660801 | AC60: 4.206277294 | AD60: 331825.4087 | AE60: 331825.4087 | AF60: 891502.3183 | AG60: 980652.5502
F61: 0 | H61: kWh | I61: Variable Speed Drive | J61: 26684 | K61: calculated | L61: 172703 | M61: 2555 | N61: 0 | O61: 15 | P61: Comm Space Heat | Q61: 0 | R61: 0 | S61: 0 | T61: 0 | U61: 0 | V61: 0 | W61: 0 | X61: 0 | Y61: 0 | Z61: 0 | AA61: 0 | AB61: 0.00 | AC61: 0.00 | AD61: 0 | AE61: 0 | AF61: 0 | AG61: 0
F62: 0 | H62: kWh | I62: Wall Insulation R0 to R11 | J62: 1.3 | K62: square foot | L62: 0.76 | M62: 0.75 | N62: 0.0002513353641 | O62: 30 | P62: MF Space Heat | Q62: 12000 | R62: 5000 | S62: -7000 | T62: 15600 | U62: 6500 | V62: -9100 | W62: 9000 | X62: 3750 | Y62: -5250 | Z62: 0 | AA62: 0 | AB62: 2.87428349 | AC62: 3.124023929 | AD62: 3834.039727 | AE62: 3880.293196 | AF62: 11020.11709 | AG62: 12122.1288
F63: 0 | H63: kWh | I63: Water Heater (0.95+) - In-unit | J63: 149 | K63: per unit | L63: 73 | M63: 50 | N63: 5.761379885e-05 | O63: 15 | P63: Res Water Heat | Q63: 75 | R63: 10 | S63: -65 | T63: 11175 | U63: 1490 | V63: -9685 | W63: 3750 | X63: 500 | Y63: -3250 | Z63: 0 | AA63: 0 | AB63: 2.104926826 | AC63: 1.666331757 | AD63: 546.210695 | AE63: 758.9766524 | AF63: 1149.733545 | AG63: 1264.706899
H64: kWh | I64: Water Heater Pipewrap - Direct Install | J64: 20 | K64: per unit | L64: 4.5 | M64: 4.5 | N64: 0.003093358328 | O64: 15 | P64: Res Water Heat | Q64: 4000 | R64: 4000 | S64: 0 | T64: 80000 | U64: 80000 | V64: 0 | W64: 18000 | X64: 18000 | Y64: 0 | Z64: 0 | AA64: 0 | AB64: 2.919546583 | AC64: 3.211501242 | AD64: 21143.92025 | AE64: 21143.92025 | AF64: 61730.66011 | AG64: 67903.72613
A65: Multi-Family Retrofit | C65: DIRECT BENEFIT TO CUSTOMER | D65: =W15 -> 7269774 | E65: =X15 -> 9943535 | F65: =D65+E65 -> 17213309 | H65: kWh | I65: Windows (double to double paned) U= 0.6 to 0.30 | J65: 11.94 | K65: square foot | L65: 20.61 | M65: 6 | N65: 0.07386939686 | O65: 30 | P65: MF Space Heat | Q65: 100000 | R65: 160000 | S65: 60000 | T65: 1194000 | U65: 1910400 | V65: 716400 | W65: 600000 | X65: 960000 | Y65: 360000 | Z65: 0 | AA65: 0 | AB65: 3.254023189 | AC65: 1.128251921 | AD65: 995351.5981 | AE65: 3157793.781 | AF65: 3238897.182 | AG65: 3562786.9
A66: Schedule 217 | C66: Ratio | D66: =D65/D12 -> 0.8797321732 | E66: =E65/E12 -> 0.8636386257 | H66: kWh | I66: Windows (double to triple paned) U= 0.6 to 0.22 | J66: 13.87 | K66: square foot | L66: 21.97 | M66: 8 | N66: 0.008044665001 | O66: 30 | P66: MF Space Heat | Q66: 4000 | R66: 15000 | S66: 11000 | T66: 55480 | U66: 208050 | V66: 152570 | W66: 32000 | X66: 120000 | Y66: 88000 | Z66: 0 | AA66: 0 | AB66: 2.874908627 | AC66: 1.225756359 | AD66: 122692.0792 | AE66: 316540.3678 | AF66: 352728.5169 | AG66: 388001.3686
A67: Order Number | H67: kWh | I67: Windows (single to double paned) U= 1.2 to 0.30 | J67: 21.65 | K67: square foot | L67: 20.61 | M67: 6 | N67: 0.01674280195 | O67: 30 | P67: MF Space Heat | Q67: 40000 | R67: 20000 | S67: -20000 | T67: 866000 | U67: 433000 | V67: -433000 | W67: 240000 | X67: 120000 | Y67: -120000 | Z67: 0 | AA67: 0 | AB67: 5.424790901 | AC67: 1.99077955 | AD67: 135324.9096 | AE67: 405630.1825 | AF67: 734109.3382 | AG67: 807520.2721
A68: 18230407 | C68: REVENUE | D68: 0 | E68: 0 | F68: 0 | H68: kWh | I68: Windows (single to triple paned) U= 1.2 to 0.22 | J68: 23.58 | K68: square foot | L68: 21.97 | M68: 8 | N68: 0.001823534734 | O68: 30 | P68: MF Space Heat | Q68: 4000 | R68: 2000 | S68: -2000 | T68: 94320 | U68: 47160 | V68: -47160 | W68: 32000 | X68: 16000 | Y68: -16000 | Z68: 0 | AA68: 0 | AB68: 4.582080017 | AC68: 2.031382824 | AD68: 17449.53988 | AE68: 43295.97836 | AF68: 79955.18797 | AG68: 87950.70677
A69: Electric

Sheet MFNC Detail_REM E218 Elec
D1: Multi-Family New Construction | E1: Schedule 218 | F1: Order Number | G1: 18230486 | H1: Electric
H2: This table summarizes the subtotals in the detail table to the left and is used to populate 2014-2015 Sector views. | T2: Ratios | W2: Acquisition Cost
A3: Multi-Family New Construction | H3: Labor | I3: Marketing Labor | J3: Overhead | K3: Marketing | L3: Employee/Office Expense | M3: Outside Services | N3: Materials | O3: Miscellaneous | P3: DBtC | Q3: Revenue | R3: Total Budget | S3: Total Savings | T3: DBTC | U3: Marketing | V3: Outside Svcs
A4: Schedule 218 | F4: 2014 Values are shown as reference only. | G4: 2014 | H4: =D15 -> 50000 | I4: =D22 -> 0 | J4: =D28 -> 34600 | K4: =D35 -> 15500 | L4: =D41 -> 1100 | M4: =D47 -> 7000 | N4: =D53 -> 400 | O4: =D59 -> 0 | P4: =D65 -> 279965.6 | Q4: =D68 -> 0 | R4: =SUM(H4:Q4) -> 388565.6 | S4: =T15 -> 1057398.712 | T4: =P4/R4 -> 0.7205105135 | U4: =(K4+(I4*1.63))/R4 -> 0.03989030424 | V4: =M4/R4 -> 0.01801497611 | W4: =R4/S4 -> 0.3674731164
A5: Order Number | G5: Original 2015 Budget | H5: 50000 | I5: 0 | J5: 34800 | K5: 15500 | L5: 1100 | M5: 8000 | N5: 800 | O5: 0 | P5: 690698.72 | Q5: 0 | R5: 800898.72 | S5: 1468309.56
A6: 18230486 | G6: Revised 2015 Budget | H6: =E15 -> 65000 | I6: =E22 -> 3000 | J6: =E28 -> 48076 | K6: =E35 -> 10000 | L6: =E41 -> 6000 | M6: =E47 -> 0 | N6: =E53 -> 800 | O6: =E59 -> 0 | P6: =E65 -> 279965.6 | Q6: =E68 -> 0 | R6: =SUM(H6:Q6) -> 412841.6 | S6: =U15 -> 1057398.712 | T6: =P6/R6 -> 0.6781429003 | U6: =(K6+(I6*1.63))/R6 -> 0.03606710176 | V6: =M6/R6 -> 0 | W6: =R6/S6 -> 0.3904313437
A7: Electric | G7: Total | H7: =H4+H6 -> 115000 | I7: =I4+I6 -> 3000 | J7: 82676 | K7: 25500 | L7: 7100 | M7: 7000 | N7: 1200 | O7: 0 | P7: 559931.2 | Q7: 0 | R7: 801407.2 | S7: =S4+S6 -> 2114797.424 | T7: =P7/R7 -> 0.6986850131 | U7: =(K7+(I7*1.63))/R7 -> 0.03792079732 | V7: =M7/R7 -> 0.008734635776 | W7: =R7/S7 -> 0.3789522301
D8: 2014 Values are shown as reference only. | H8: NOTE: "Total" excludes "Original 2015 Budget" amount
H9: Due to file size, the 2015-specific measure table was imported to the 2015 ACP, and replaces the original 2014-2015 view.
C10: Spending Section | I10: Savings Section | W10: Savings Section
N11: REVISED 2015
C12: Overall Total | D12: =D15+D22+D28+D35+D41+D47+D53+D59+D65 -> 388565.6 | E12: =E15+E22+E28+E35+E41+E47+E53+E59+E65 -> 412841.6 | F12: =D12+E12 -> 801407.2 | H12: Measure Information | Q12: Unit Totals | T12: Projected Savings | W12: Incentive Totals | Z12: ***REVISED 2015*** Cost Effectiveness (Based on REVISED 2015 Totals)
